Workbook

Sheet UWAGA
I2: Witam serdecznie!
B5: W celu poprawnego działania pliku, należy włączyć obsługę makr.
D8: =IF(G8="WŁĄCZONA","Ö","C") -> C | E8: Obsługa makr: | G8: WYŁĄCZONA
C10: =IF(AND(G8="WŁĄCZONA",G9="WŁĄCZONA"),"Ustawienia poprawne. Przejdź do arkusza Intro.","Ustawienia niepoprawne. Zmień ustawienia Excela!") -> Ustawienia niepoprawne. Zmień ustawienia Excela!
B14: Instrukcja włączenia makr w pliku:
B16: Metoda 1:
B17: Na pasku na górze naciśnij przycisk: Włącz zawartość
B25: Metoda 2:
B26: Jeżeli nie widzisz paska na górze, to:
B27: 1. Na wstążce wybierz: Plik > Opcje > Centrum zaufania > Ustawienia centrum zaufania > Ustawienia
B28: makr > Wyłącz wszystkie makra i wyświetl powiadomienie > OK
B29: 2. Następnie, ponownie uruchom plik Excela i włącz makra (Włącz zawartość).
B31: Uwaga: w zależności od wersji Excela nazwy opcji mogą się różnić.

Sheet Intro (hidden)
A1: ã LabMasters.pl
B2: Test wiedzy z Excela cz.1
B4: 48 | F4: =ROUND(B4/12,1) -> 4
B20: Zadanie | C20: Rozwiązane | D20: Materiały
B33: Wynik: | C33: =COUNTIF(C21:C32,"TAK") -> 0
B34: Nasza rekomendacja: Twój wynik niestety nie jest zadowalający. Polecamy rozpoczęcie nauki Excela od podstaw. Zdecydowanie rekomendujemy Ci kurs Wstęp do analizy danych w programie MS Excel, dzięki któremu szybko wskoczysz na poziom średnio zaawansowany i opanujesz wszystkie podstawowe narzędzia oraz funkcje wymagane w codziennej pracy w Excelu, jak również na rozmowach kwalifikacyjnych.
B35: Nasza rekomendacja: Całkiem dobry wynik. Widać, że podstawy masz opanowane. Warto jednak usystematyzować posiadaną wiedzę i zwiększyć wydajność swojej pracy poprzez stosowanie skrótów klawiaturowych, odpowiednich narzędzi i różnych trików przyspieszających czynności wykonywane w Excelu. Dlatego rekomendujemy Ci kurs Wstęp do analizy danych w programie MS Excel, dzięki któremu opanujesz m.in. odwołania względne-bezwzględne, funkcje logiczne, funkcje wyszukiwania, czy tabele przestawne, a więc elementy o które najczęściej jesteśmy pytani na rozmowach kwalifikacyjnych.
B36: Nasza rekomendacja: Brawo! Ponad 50% poprawnych rozwiązań trikowych zadań przy dużej presji czasu. Jest to bardzo dobry wynik. Warto jednak powtórzyć zagadnienia poruszane w zadaniach, których nie udało się rozwiązać, a może także materiał kursu Wstęp do analizy danych w programie MS Excel. Po szybkiej powtórce, rekomendujemy Ci kurs Efektywna praca w programie MS Excel, na którym poznasz zaawansowane narzędzia Excela i przydatne triki pozwalające zautomatyzować twoją codzienną pracę.
B37: Nasza rekomendacja: Super! – rewelacyjny wynik. Posiadasz umiejętność bardzo wydajnej i bezbłędnej pracy w Excelu z wykorzystaniem różnego rodzaju narzędzi, trików i skrótów klawiaturowych. Duża szybkość i skuteczność wyróżnia Cię na rynku pracy - wykorzystaj tę umiejętność! Rekomendujemy Ci zmierzenie się z drugą częścią naszego testu i w zależności od jego wyniku zapisanie się na kurs pt. Efektywna praca w programie MS Excel albo przejście na jeszcze kolejny poziom - kurs pt. Dashboardy i narzędzia Power Excel.

Sheet Zadanie 1 (hidden)
B2: Zadanie 1
B4: Ustaw obszar drukowania arkusza dla komórek od A1 do F5.

Sheet Zadanie 1-rozw (hidden)
B2: Zadanie 1-rozw
B4: Ustaw obszar drukowania arkusza dla komórek od A1 do F5.
B7: Schemat rozwiązania:
B8: Zaznacz komórki A1:F5 i na wstążce wybierz:
B9: Układ strony > Ustawienia strony > Obszar wydruku > Ustaw obszar wydruku.

Sheet Zadanie 2 (hidden)
B2: Zadanie 2
B4: Popraw nazwiska w tabeli poniżej zgodnie z następującą regułą:
B5: Pierwsza litera każdego członu nazwiska powinna być wielka, a pozostałe małe.
B8: Nazwisko
B9: adamczyk
B10: michalska
B11: ćwiek
B12: sieczkowski
B13: stankiewicz
B14: śpiewak
B15: koza
B16: grochowicz
B17: walenciuk
B18: janusz
B19: bobrowski
B20: rogoża
B21: chałuda
B22: leśkiewicz
B23: pidganiuk
B24: włodarczyk
B25: grzybowska
B26: tyszka
B27: hakim
B28: suski
B29: duraj
B30: niewiadomy
B31: biendzio
B32: kamińska
B33: glinicki
B34: bartosik
B35: lechnio
B36: lemańczyk
B37: pomianowska
B38: krzynówek
B39: gębska
B40: buduła
B41: koprowicz
B42: zapendowski
B43: pruszkowska
B44: kuczara
B45: piątek
B46: spłocharska
B47: fomičiova
B48: barczuk
B49: kowalczyk
B50: mielnicki
B51: jackiewicz
B52: szmel
B53: grzęda
B54: błaszczyk
B55: chudzyńska
B56: skowrońska
B57: alberska
B58: tamborska
B59: sobora
B60: hampel
B61: standerski
B62: gontarz
B63: adamczyk
B64: bessarab
B65: piasecki
B66: staszel
B67: kujawa
B68: olszewska
B69: krych
B70: rzeźniczak
B71: milej
B72: stopyra
B73: janowski
B74: szkop
B75: ropiak
B76: grzybowska
B77: nguyen
B78: naduk
B79: patej
B80: druz
B81: walachniewicz
B82: szymańska
B83: ścibek
B84: kabat
B85: karwowski
B86: trąbiński
B87: mątewka
B88: sitko
B89: serafin
B90: strzałka
B91: sikora
B92: laskowski
B93: dobkowski
B94: zubilewicz
B95: piebiak
B96: pluciński
B97: szymusiak
B98: sulbińska
B99: engele
B100: lorenc
B101: dobkowska
B102: liszewska
B103: chronowska
B104: gryżewski
B105: wawrzeniuk
B106: klim
B107: bojakowska
B108: adamczyk
B109: lubińska
B110: pakulski
B111: litewka
B112: kawalec
B113: jałowiec
B114: kesler
B115: akhremenka
B116: witek
B117: ruła
B118: żukowska
B119: żukowska-zarzecka
B120: sakowicz
B121: wąs
B122: sawtyruk
B123: waniek
B124: czaczkowski
B125: komada
B126: woźnica
B127: bajda
B128: górlicki
B129: sołowiński
B130: brodalka
B131: niespodziany
B132: brosig
B133: słowińska
B134: salabura
B135: kuciński
B136: frączek
B137: rybarczyk
B138: głąb
B139: rudzka
B140: mieszkowski
B141: kotlarski
B142: stankiewicz
B143: rokicka
B144: kravtsova
B145: kociszewski
B146: aleksandrowicz
B147: fajdek
B148: miktus
B149: brynda
B150: zabrzeski
B151: szyszko
B152: stępień
B153: cwienczek
B154: furmaniak
B155: filipek
B156: kazusek
B157: pasternak
B158: wieczorek
B159: celiński
B160: brodecka
B161: krotoszyński
B162: lembke
B163: bąk
B164: lipińska
B165: kołodziejczyk
B166: wawrzyniuk
B167: niesiobędzki
B168: pietrzak
B169: żuchniewski
B170: kaczkowski
B171: masztarowski
B172: bonder
B173: lewandowski
B174: szydłowska
B175: błoński
B176: nowak
B177: terczyńska
B178: gajowa
B179: cieślik
B180: górka
B181: stawski
B182: błaziak
B183: radecka
B184: jarosławska
B185: włostowski
B186: młynarczyk
B187: walczak
B188: cano dominguez
B189: sołtysiak
B190: kalinowska
B191: szczudło
B192: zabielski
B193: stojanov
B194: borowski
B195: bylica
B196: skrodzki
B197: lewandowski
B198: nguyen le
B199: mieczkowska
B200: wardzyńska
B201: gładysz
B202: zduńska
B203: pocheć
B204: pieńkowska
... 199 more rows

Sheet Zadanie 2-rozw (hidden)
B2: Zadanie 2-rozw
B4: Popraw nazwiska w tabeli poniżej zgodnie z następującą regułą:
B5: Pierwsza litera każdego członu nazwiska powinna być wielka, a pozostałe małe.
B8: Nazwisko | D8: Schemat rozwiązania:
B9: Adamczyk
B10: Michalska | D10: Metoda 1:
B11: Ćwiek | D11: 1. W komórce C9 wpisz formułę: =Z.WIELKIEJ.LITERY(B9).
B12: Sieczkowski | D12: 2. Przeciągnij ją do pozostałych komórek (C10:C403).
B13: Stankiewicz | D13: 3. Wklej wartości do docelowego zakresu (Kopiuj > Wklej specjalnie > Wartości).
B14: Śpiewak
B15: Koza | D15: Metoda 2 (najszybsza i najprostsza, ale działa od Excela 2013):
B16: Grochowicz | D16: 1. W komórce C9 wpisz nazwisko z wielkiej litery (Adamczyk).
B17: Walenciuk | D17: 2. Zaznacz komórki C9:C403.
B18: Janusz | D18: 3. Użyj narzędzia Wypełnianie błyskawiczne (Dane > Narzędzia danych > Wypełnianie błyskawiczne, bądź skrót CTRL+E).
B19: Bobrowski | D19: 4. Przenieś dane do docelowego zakresu.
B20: Rogoża
B21: Chałuda
B22: Leśkiewicz
B23: Pidganiuk
B24: Włodarczyk
B25: Grzybowska
B26: Tyszka
B27: Hakim
B28: Suski
B29: Duraj
B30: Niewiadomy
B31: Biendzio
B32: Kamińska
B33: Glinicki
B34: Bartosik
B35: Lechnio
B36: Lemańczyk
B37: Pomianowska
B38: Krzynówek
B39: Gębska
B40: Buduła
B41: Koprowicz
B42: Zapendowski
B43: Pruszkowska
B44: Kuczara
B45: Piątek
B46: Spłocharska
B47: Fomičiova
B48: Barczuk
B49: Kowalczyk
B50: Mielnicki
B51: Jackiewicz
B52: Szmel
B53: Grzęda
B54: Błaszczyk
B55: Chudzyńska
B56: Skowrońska
B57: Alberska
B58: Tamborska
B59: Sobora
B60: Hampel
B61: Standerski
B62: Gontarz
B63: Adamczyk
B64: Bessarab
B65: Piasecki
B66: Staszel
B67: Kujawa
B68: Olszewska
B69: Krych
B70: Rzeźniczak
B71: Milej
B72: Stopyra
B73: Janowski
B74: Szkop
B75: Ropiak
B76: Grzybowska
B77: Nguyen
B78: Naduk
B79: Patej
B80: Druz
B81: Walachniewicz
B82: Szymańska
B83: Ścibek
B84: Kabat
B85: Karwowski
B86: Trąbiński
B87: Mątewka
B88: Sitko
B89: Serafin
B90: Strzałka
B91: Sikora
B92: Laskowski
B93: Dobkowski
B94: Zubilewicz
B95: Piebiak
B96: Pluciński
B97: Szymusiak
B98: Sulbińska
B99: Engele
B100: Lorenc
B101: Dobkowska
B102: Liszewska
B103: Chronowska
B104: Gryżewski
B105: Wawrzeniuk
B106: Klim
B107: Bojakowska
B108: Adamczyk
B109: Lubińska
B110: Pakulski
B111: Litewka
B112: Kawalec
B113: Jałowiec
B114: Kesler
B115: Akhremenka
B116: Witek
B117: Ruła
B118: Żukowska
B119: Żukowska-Zarzecka
B120: Sakowicz
B121: Wąs
B122: Sawtyruk
B123: Waniek
B124: Czaczkowski
B125: Komada
B126: Woźnica
B127: Bajda
B128: Górlicki
B129: Sołowiński
B130: Brodalka
B131: Niespodziany
B132: Brosig
B133: Słowińska
B134: Salabura
B135: Kuciński
B136: Frączek
B137: Rybarczyk
B138: Głąb
B139: Rudzka
B140: Mieszkowski
B141: Kotlarski
B142: Stankiewicz
B143: Rokicka
B144: Kravtsova
B145: Kociszewski
B146: Aleksandrowicz
B147: Fajdek
B148: Miktus
B149: Brynda
B150: Zabrzeski
B151: Szyszko
B152: Stępień
B153: Cwienczek
B154: Furmaniak
B155: Filipek
B156: Kazusek
B157: Pasternak
B158: Wieczorek
B159: Celiński
B160: Brodecka
B161: Krotoszyński
B162: Lembke
B163: Bąk
B164: Lipińska
B165: Kołodziejczyk
B166: Wawrzyniuk
B167: Niesiobędzki
B168: Pietrzak
B169: Żuchniewski
B170: Kaczkowski
B171: Masztarowski
B172: Bonder
B173: Lewandowski
B174: Szydłowska
B175: Błoński
B176: Nowak
B177: Terczyńska
B178: Gajowa
B179: Cieślik
B180: Górka
B181: Stawski
B182: Błaziak
B183: Radecka
B184: Jarosławska
B185: Włostowski
B186: Młynarczyk
B187: Walczak
B188: Cano Dominguez
B189: Sołtysiak
B190: Kalinowska
B191: Szczudło
B192: Zabielski
B193: Stojanov
B194: Borowski
B195: Bylica
B196: Skrodzki
B197: Lewandowski
B198: Nguyen Le
B199: Mieczkowska
B200: Wardzyńska
B201: Gładysz
B202: Zduńska
B203: Pocheć
B204: Pieńkowska
... 199 more rows

Sheet Zadanie 3 (hidden)
B2: Zadanie 3
B4: Uzupełnij poniższą macierz korelacji stosując następującą regułę:
B5: Macierz korelacji jest symetryczna, tzn. korelacja pomiędzy aktywami A i B jest taka sama, jak korelacja pomiędzy aktywami B i A.
B6: Oznacza to, że wartości pól ponad przekątną są równe odpowiednim wartościom poniżej przekątnej.
B8: Macierz korelacji | C8: WIG | D8: ASSECOPOL | E8: BIOTON | F8: BRE | G8: BZWBK | H8: CERSANIT | I8: CEZ | J8: CYFRPLSAT | K8: GETIN | L8: GTC | M8: KGHM | N8: LOTOS | O8: PBG | P8: PEKAO | Q8: PGNIG | R8: PKNORLEN | S8: PKOBP | T8: POLIMEXMS | U8: TPSA | V8: TVN | W8: DJIA | X8: FTSE100 | Y8: DAX | Z8: RTS | AA8: BUX
B9: WIG | C9: 1
B10: ASSECOPOL | C10: 0.6636787974 | D10: 1
B11: BIOTON | C11: 0.3749735501 | D11: 0.3237294454 | E11: 1
B12: BRE | C12: 0.7704383195 | D12: 0.5252977255 | E12: 0.21448003 | F12: 1
B13: BZWBK | C13: 0.7978235894 | D13: 0.5124724734 | E13: 0.2431896377 | F13: 0.6644952197 | G13: 1
B14: CERSANIT | C14: 0.5574796179 | D14: 0.3764163808 | E14: 0.2724169062 | F14: 0.4912083345 | G14: 0.4666880512 | H14: 1
B15: CEZ | C15: 0.2505283194 | D15: 0.2516938313 | E15: 0.1464827248 | F15: 0.2107079511 | G15: 0.15548094 | H15: 0.3298849264 | I15: 1
B16: CYFRPLSAT | C16: 0.3504119578 | D16: 0.2852444789 | E16: 0.1092165485 | F16: 0.2195976453 | G16: 0.2312561653 | H16: 0.2854040451 | I16: 0.2474462432 | J16: 1
B17: GETIN | C17: 0.7518028856 | D17: 0.5648081817 | E17: 0.3482855982 | F17: 0.6061244063 | G17: 0.593623042 | H17: 0.505846417 | I17: 0.215536336 | J17: 0.2614993671 | K17: 1
B18: GTC | C18: 0.6367517889 | D18: 0.4825000705 | E18: 0.2303331257 | F18: 0.5331507234 | G18: 0.5115584532 | H18: 0.4620732561 | I18: 0.3070657406 | J18: 0.3611697321 | K18: 0.5176723907 | L18: 1
B19: KGHM | C19: 0.7505662176 | D19: 0.4392922557 | E19: 0.3145396577 | F19: 0.5111431797 | G19: 0.5533406286 | H19: 0.3586025861 | I19: 0.1619441076 | J19: 0.1829831727 | K19: 0.5642963367 | L19: 0.4668102379 | M19: 1
B20: LOTOS | C20: 0.8021765191 | D20: 0.5573493538 | E20: 0.326180898 | F20: 0.6253960748 | G20: 0.629576551 | H20: 0.4672547607 | I20: 0.274996079 | J20: 0.2713074204 | K20: 0.5744636414 | L20: 0.5564516118 | M20: 0.6386327321 | N20: 1
B21: PBG | C21: 0.4706245748 | D21: 0.4086848884 | E21: 0.2474162251 | F21: 0.3612945809 | G21: 0.3091322156 | H21: 0.4714451635 | I21: 0.3545569833 | J21: 0.3390520447 | K21: 0.4582042072 | L21: 0.4634285723 | M21: 0.2750587165 | N21: 0.3630416471 | O21: 1
B22: PEKAO | C22: 0.8484599301 | D22: 0.5202015595 | E22: 0.2683753543 | F22: 0.685917319 | G22: 0.7317286163 | H22: 0.403446003 | I22: 0.1101888595 | J22: 0.2843768207 | K22: 0.5906569932 | L22: 0.4357001956 | M22: 0.5443549048 | N22: 0.6174232791 | O22: 0.3338585198 | P22: 1
B23: PGNIG | C23: 0.6470305075 | D23: 0.4814469125 | E23: 0.1833615079 | F23: 0.4788345779 | G23: 0.5316353374 | H23: 0.3584972954 | I23: 0.2195117993 | J23: 0.2449524697 | K23: 0.5208009963 | L23: 0.4903941566 | M23: 0.4952543884 | N23: 0.5125453927 | O23: 0.3222973556 | P23: 0.4962563401 | Q23: 1
B24: PKNORLEN | C24: 0.807863199 | D24: 0.5713563237 | E24: 0.2666827407 | F24: 0.5965244902 | G24: 0.634998936 | H24: 0.4908192641 | I24: 0.2741865031 | J24: 0.3424858702 | K24: 0.554285349 | L24: 0.5216114639 | M24: 0.5958495464 | N24: 0.6774527804 | O24: 0.3737468668 | P24: 0.652542805 | Q24: 0.547035373 | R24: 1
B25: PKOBP | C25: 0.8528215641 | D25: 0.5460302331 | E25: 0.2534794518 | F25: 0.6138164742 | G25: 0.6667404826 | H25: 0.3868515424 | I25: 0.1342177735 | J25: 0.2737981746 | K25: 0.5928799886 | L25: 0.4864380667 | M25: 0.5963319398 | N25: 0.6986891268 | O25: 0.3313787907 | P25: 0.7396049121 | Q25: 0.5735455729 | R25: 0.645389598 | S25: 1
B26: POLIMEXMS | C26: 0.6947397154 | D26: 0.5073115789 | E26: 0.3279165369 | F26: 0.5923089942 | G26: 0.6244211774 | H26: 0.5692645269 | I26: 0.2844722668 | J26: 0.2607145079 | K26: 0.5970778342 | L26: 0.5684677335 | M26: 0.4912680688 | N26: 0.6008097631 | O26: 0.3717246742 | P26: 0.5598710969 | Q26: 0.4229289125 | R26: 0.5627580611 | S26: 0.5469126282 | T26: 1
B27: TPSA | C27: 0.5124199211 | D27: 0.3596498694 | E27: 0.1902976837 | F27: 0.3517864053 | G27: 0.3709269393 | H27: 0.2925153904 | I27: 0.2055309758 | J27: 0.2368430167 | K27: 0.3926374027 | L27: 0.3242369971 | M27: 0.3339297453 | N27: 0.3894731607 | O27: 0.2870495619 | P27: 0.4081404115 | Q27: 0.2830897386 | R27: 0.4389470042 | S27: 0.3640078997 | T27: 0.3992815513 | U27: 1
B28: TVN | C28: 0.6721220638 | D28: 0.543383689 | E28: 0.3244265999 | F28: 0.5491684421 | G28: 0.4856487732 | H28: 0.3907590835 | I28: 0.3042129637 | J28: 0.2983516802 | K28: 0.5302948043 | L28: 0.5604801228 | M28: 0.531679599 | N28: 0.581515021 | O28: 0.3302287272 | P28: 0.4958514533 | Q28: 0.5241301962 | R28: 0.5752613622 | S28: 0.515317981 | T28: 0.4832864118 | U28: 0.3187423364 | V28: 1
B29: DJIA | C29: 0.131380201 | D29: 0.09847267808 | E29: 0.06314542022 | F29: 0.05006981515 | G29: 0.1505129041 | H29: 0.1056440881 | I29: 0.03816883104 | J29: 0.1168080864 | K29: 0.1340961577 | L29: -0.01649985525 | M29: 0.137959156 | N29: 0.1646676964 | O29: 0.09844273709 | P29: 0.1352456862 | Q29: 0.11833349 | R29: 0.0705802228 | S29: 0.1254911997 | T29: 0.02971413137 | U29: -0.01252351271 | V29: 0.07659739477 | W29: 1
B30: FTSE100 | C30: 0.2270621154 | D30: 0.1556477915 | E30: 0.102187255 | F30: 0.1549437074 | G30: 0.1981658691 | H30: 0.1247010038 | I30: -0.01181534295 | J30: 0.07384359033 | K30: 0.2411631479 | L30: 0.0892704185 | M30: 0.2374563218 | N30: 0.2130045473 | O30: 0.1084354284 | P30: 0.1738334564 | Q30: 0.1330912763 | R30: 0.132157839 | S30: 0.201675537 | T30: 0.08056858336 | U30: 0.004049641805 | V30: 0.1745182627 | W30: 0.5949415074 | X30: 1
B31: DAX | C31: 0.1678129305 | D31: 0.1894320182 | E31: 0.2112207847 | F31: -0.0003533683501 | G31: 0.171001763 | H31: 0.06910000164 | I31: -0.01221327448 | J31: 0.1246551932 | K31: 0.1911347069 | L31: 0.07701810997 | M31: 0.1797557348 | N31: 0.1555361865 | O31: 0.01229481108 | P31: 0.133184276 | Q31: 0.1531225982 | R31: 0.09721830169 | S31: 0.1336168974 | T31: 0.0895866059 | U31: 0.05208854823 | V31: 0.1632117302 | W31: 0.514041558 | X31: 0.6766929958 | Y31: 1
B32: RTS | C32: 0.20883889 | D32: 0.184481989 | E32: 0.127741299 | F32: 0.1015339922 | G32: 0.2547093187 | H32: 0.1873157528 | I32: 0.074924609 | J32: 0.1432762751 | K32: 0.1395942655 | L32: 0.05927272206 | M32: 0.1391272192 | N32: 0.2018789518 | O32: 0.04411153516 | P32: 0.2055850056 | Q32: 0.1540137265 | R32: 0.1892356321 | S32: 0.1732082807 | T32: 0.1222788084 | U32: 0.1359671195 | V32: 0.1496638845 | W32: 0.5064051251 | X32: 0.5283344448 | Y32: 0.5848496083 | Z32: 1
B33: BUX | C33: 0.1308612246 | D33: 0.1716339534 | E33: 0.06557358749 | F33: 0.09945706284 | G33: 0.1708743703 | H33: 0.06049103333 | I33: 0.01686697042 | J33: 0.08590612344 | K33: 0.1288696763 | L33: 0.07319774652 | M33: -0.0001103519492 | N33: 0.1179148747 | O33: 0.09239277604 | P33: 0.1638669351 | Q33: 0.03626951711 | R33: 0.08624956247 | S33: 0.119105838 | T33: 0.1207866779 | U33: 0.009894853832 | V33: 0.09507751046 | W33: 0.4149490372 | X33: 0.5100450784 | Y33: 0.4506504313 | Z33: 0.3448620593 | AA33: 1

Sheet Zadanie 3-rozw (hidden)
B2: Zadanie 3-rozw
B4: Uzupełnij poniższą macierz korelacji stosując następującą regułę: | N4: Schemat rozwiązania:
B5: Macierz korelacji jest symetryczna, tzn. korelacja pomiędzy aktywami A i B jest taka sama, jak korelacja pomiędzy aktywami B i A. | N5: 1. Skopiuj tabelę i wklej poniżej z opcją transpozycji (Kopiuj > Wklej specjalnie > Transpozycja).
B6: Oznacza to, że wartości pól ponad przekątną są równe odpowiednim wartościom poniżej przekątnej. | N6: 2. Skopiuj transponowaną tabelę i wklej w miejsce tabeli początkowej z opcją pominięcia pustych komórek (Kopiuj > Wklej specjalnie > Pomijaj puste).
B8: Macierz korelacji | C8: WIG | D8: ASSECOPOL | E8: BIOTON | F8: BRE | G8: BZWBK | H8: CERSANIT | I8: CEZ | J8: CYFRPLSAT | K8: GETIN | L8: GTC | M8: KGHM | N8: LOTOS | O8: PBG | P8: PEKAO | Q8: PGNIG | R8: PKNORLEN | S8: PKOBP | T8: POLIMEXMS | U8: TPSA | V8: TVN | W8: DJIA | X8: FTSE100 | Y8: DAX | Z8: RTS | AA8: BUX
B9: WIG | C9: 1 | D9: 0.6636787974 | E9: 0.3749735501 | F9: 0.7704383195 | G9: 0.7978235894 | H9: 0.5574796179 | I9: 0.2505283194 | J9: 0.3504119578 | K9: 0.7518028856 | L9: 0.6367517889 | M9: 0.7505662176 | N9: 0.8021765191 | O9: 0.4706245748 | P9: 0.8484599301 | Q9: 0.6470305075 | R9: 0.807863199 | S9: 0.8528215641 | T9: 0.6947397154 | U9: 0.5124199211 | V9: 0.6721220638 | W9: 0.131380201 | X9: 0.2270621154 | Y9: 0.1678129305 | Z9: 0.20883889 | AA9: 0.1308612246
B10: ASSECOPOL | C10: 0.6636787974 | D10: 1 | E10: 0.3237294454 | F10: 0.5252977255 | G10: 0.5124724734 | H10: 0.3764163808 | I10: 0.2516938313 | J10: 0.2852444789 | K10: 0.5648081817 | L10: 0.4825000705 | M10: 0.4392922557 | N10: 0.5573493538 | O10: 0.4086848884 | P10: 0.5202015595 | Q10: 0.4814469125 | R10: 0.5713563237 | S10: 0.5460302331 | T10: 0.5073115789 | U10: 0.3596498694 | V10: 0.543383689 | W10: 0.09847267808 | X10: 0.1556477915 | Y10: 0.1894320182 | Z10: 0.184481989 | AA10: 0.1716339534
B11: BIOTON | C11: 0.3749735501 | D11: 0.3237294454 | E11: 1 | F11: 0.21448003 | G11: 0.2431896377 | H11: 0.2724169062 | I11: 0.1464827248 | J11: 0.1092165485 | K11: 0.3482855982 | L11: 0.2303331257 | M11: 0.3145396577 | N11: 0.326180898 | O11: 0.2474162251 | P11: 0.2683753543 | Q11: 0.1833615079 | R11: 0.2666827407 | S11: 0.2534794518 | T11: 0.3279165369 | U11: 0.1902976837 | V11: 0.3244265999 | W11: 0.06314542022 | X11: 0.102187255 | Y11: 0.2112207847 | Z11: 0.127741299 | AA11: 0.06557358749
B12: BRE | C12: 0.7704383195 | D12: 0.5252977255 | E12: 0.21448003 | F12: 1 | G12: 0.6644952197 | H12: 0.4912083345 | I12: 0.2107079511 | J12: 0.2195976453 | K12: 0.6061244063 | L12: 0.5331507234 | M12: 0.5111431797 | N12: 0.6253960748 | O12: 0.3612945809 | P12: 0.685917319 | Q12: 0.4788345779 | R12: 0.5965244902 | S12: 0.6138164742 | T12: 0.5923089942 | U12: 0.3517864053 | V12: 0.5491684421 | W12: 0.05006981515 | X12: 0.1549437074 | Y12: -0.0003533683501 | Z12: 0.1015339922 | AA12: 0.09945706284
B13: BZWBK | C13: 0.7978235894 | D13: 0.5124724734 | E13: 0.2431896377 | F13: 0.6644952197 | G13: 1 | H13: 0.4666880512 | I13: 0.15548094 | J13: 0.2312561653 | K13: 0.593623042 | L13: 0.5115584532 | M13: 0.5533406286 | N13: 0.629576551 | O13: 0.3091322156 | P13: 0.7317286163 | Q13: 0.5316353374 | R13: 0.634998936 | S13: 0.6667404826 | T13: 0.6244211774 | U13: 0.3709269393 | V13: 0.4856487732 | W13: 0.1505129041 | X13: 0.1981658691 | Y13: 0.171001763 | Z13: 0.2547093187 | AA13: 0.1708743703
B14: CERSANIT | C14: 0.5574796179 | D14: 0.3764163808 | E14: 0.2724169062 | F14: 0.4912083345 | G14: 0.4666880512 | H14: 1 | I14: 0.3298849264 | J14: 0.2854040451 | K14: 0.505846417 | L14: 0.4620732561 | M14: 0.3586025861 | N14: 0.4672547607 | O14: 0.4714451635 | P14: 0.403446003 | Q14: 0.3584972954 | R14: 0.4908192641 | S14: 0.3868515424 | T14: 0.5692645269 | U14: 0.2925153904 | V14: 0.3907590835 | W14: 0.1056440881 | X14: 0.1247010038 | Y14: 0.06910000164 | Z14: 0.1873157528 | AA14: 0.06049103333
B15: CEZ | C15: 0.2505283194 | D15: 0.2516938313 | E15: 0.1464827248 | F15: 0.2107079511 | G15: 0.15548094 | H15: 0.3298849264 | I15: 1 | J15: 0.2474462432 | K15: 0.215536336 | L15: 0.3070657406 | M15: 0.1619441076 | N15: 0.274996079 | O15: 0.3545569833 | P15: 0.1101888595 | Q15: 0.2195117993 | R15: 0.2741865031 | S15: 0.1342177735 | T15: 0.2844722668 | U15: 0.2055309758 | V15: 0.3042129637 | W15: 0.03816883104 | X15: -0.01181534295 | Y15: -0.01221327448 | Z15: 0.074924609 | AA15: 0.01686697042
B16: CYFRPLSAT | C16: 0.3504119578 | D16: 0.2852444789 | E16: 0.1092165485 | F16: 0.2195976453 | G16: 0.2312561653 | H16: 0.2854040451 | I16: 0.2474462432 | J16: 1 | K16: 0.2614993671 | L16: 0.3611697321 | M16: 0.1829831727 | N16: 0.2713074204 | O16: 0.3390520447 | P16: 0.2843768207 | Q16: 0.2449524697 | R16: 0.3424858702 | S16: 0.2737981746 | T16: 0.2607145079 | U16: 0.2368430167 | V16: 0.2983516802 | W16: 0.1168080864 | X16: 0.07384359033 | Y16: 0.1246551932 | Z16: 0.1432762751 | AA16: 0.08590612344
B17: GETIN | C17: 0.7518028856 | D17: 0.5648081817 | E17: 0.3482855982 | F17: 0.6061244063 | G17: 0.593623042 | H17: 0.505846417 | I17: 0.215536336 | J17: 0.2614993671 | K17: 1 | L17: 0.5176723907 | M17: 0.5642963367 | N17: 0.5744636414 | O17: 0.4582042072 | P17: 0.5906569932 | Q17: 0.5208009963 | R17: 0.554285349 | S17: 0.5928799886 | T17: 0.5970778342 | U17: 0.3926374027 | V17: 0.5302948043 | W17: 0.1340961577 | X17: 0.2411631479 | Y17: 0.1911347069 | Z17: 0.1395942655 | AA17: 0.1288696763
B18: GTC | C18: 0.6367517889 | D18: 0.4825000705 | E18: 0.2303331257 | F18: 0.5331507234 | G18: 0.5115584532 | H18: 0.4620732561 | I18: 0.3070657406 | J18: 0.3611697321 | K18: 0.5176723907 | L18: 1 | M18: 0.4668102379 | N18: 0.5564516118 | O18: 0.4634285723 | P18: 0.4357001956 | Q18: 0.4903941566 | R18: 0.5216114639 | S18: 0.4864380667 | T18: 0.5684677335 | U18: 0.3242369971 | V18: 0.5604801228 | W18: -0.01649985525 | X18: 0.0892704185 | Y18: 0.07701810997 | Z18: 0.05927272206 | AA18: 0.07319774652
B19: KGHM | C19: 0.7505662176 | D19: 0.4392922557 | E19: 0.3145396577 | F19: 0.5111431797 | G19: 0.5533406286 | H19: 0.3586025861 | I19: 0.1619441076 | J19: 0.1829831727 | K19: 0.5642963367 | L19: 0.4668102379 | M19: 1 | N19: 0.6386327321 | O19: 0.2750587165 | P19: 0.5443549048 | Q19: 0.4952543884 | R19: 0.5958495464 | S19: 0.5963319398 | T19: 0.4912680688 | U19: 0.3339297453 | V19: 0.531679599 | W19: 0.137959156 | X19: 0.2374563218 | Y19: 0.1797557348 | Z19: 0.1391272192 | AA19: -0.0001103519492
B20: LOTOS | C20: 0.8021765191 | D20: 0.5573493538 | E20: 0.326180898 | F20: 0.6253960748 | G20: 0.629576551 | H20: 0.4672547607 | I20: 0.274996079 | J20: 0.2713074204 | K20: 0.5744636414 | L20: 0.5564516118 | M20: 0.6386327321 | N20: 1 | O20: 0.3630416471 | P20: 0.6174232791 | Q20: 0.5125453927 | R20: 0.6774527804 | S20: 0.6986891268 | T20: 0.6008097631 | U20: 0.3894731607 | V20: 0.581515021 | W20: 0.1646676964 | X20: 0.2130045473 | Y20: 0.1555361865 | Z20: 0.2018789518 | AA20: 0.1179148747
B21: PBG | C21: 0.4706245748 | D21: 0.4086848884 | E21: 0.2474162251 | F21: 0.3612945809 | G21: 0.3091322156 | H21: 0.4714451635 | I21: 0.3545569833 | J21: 0.3390520447 | K21: 0.4582042072 | L21: 0.4634285723 | M21: 0.2750587165 | N21: 0.3630416471 | O21: 1 | P21: 0.3338585198 | Q21: 0.3222973556 | R21: 0.3737468668 | S21: 0.3313787907 | T21: 0.3717246742 | U21: 0.2870495619 | V21: 0.3302287272 | W21: 0.09844273709 | X21: 0.1084354284 | Y21: 0.01229481108 | Z21: 0.04411153516 | AA21: 0.09239277604
B22: PEKAO | C22: 0.8484599301 | D22: 0.5202015595 | E22: 0.2683753543 | F22: 0.685917319 | G22: 0.7317286163 | H22: 0.403446003 | I22: 0.1101888595 | J22: 0.2843768207 | K22: 0.5906569932 | L22: 0.4357001956 | M22: 0.5443549048 | N22: 0.6174232791 | O22: 0.3338585198 | P22: 1 | Q22: 0.4962563401 | R22: 0.652542805 | S22: 0.7396049121 | T22: 0.5598710969 | U22: 0.4081404115 | V22: 0.4958514533 | W22: 0.1352456862 | X22: 0.1738334564 | Y22: 0.133184276 | Z22: 0.2055850056 | AA22: 0.1638669351
B23: PGNIG | C23: 0.6470305075 | D23: 0.4814469125 | E23: 0.1833615079 | F23: 0.4788345779 | G23: 0.5316353374 | H23: 0.3584972954 | I23: 0.2195117993 | J23: 0.2449524697 | K23: 0.5208009963 | L23: 0.4903941566 | M23: 0.4952543884 | N23: 0.5125453927 | O23: 0.3222973556 | P23: 0.4962563401 | Q23: 1 | R23: 0.547035373 | S23: 0.5735455729 | T23: 0.4229289125 | U23: 0.2830897386 | V23: 0.5241301962 | W23: 0.11833349 | X23: 0.1330912763 | Y23: 0.1531225982 | Z23: 0.1540137265 | AA23: 0.03626951711
B24: PKNORLEN | C24: 0.807863199 | D24: 0.5713563237 | E24: 0.2666827407 | F24: 0.5965244902 | G24: 0.634998936 | H24: 0.4908192641 | I24: 0.2741865031 | J24: 0.3424858702 | K24: 0.554285349 | L24: 0.5216114639 | M24: 0.5958495464 | N24: 0.6774527804 | O24: 0.3737468668 | P24: 0.652542805 | Q24: 0.547035373 | R24: 1 | S24: 0.645389598 | T24: 0.5627580611 | U24: 0.4389470042 | V24: 0.5752613622 | W24: 0.0705802228 | X24: 0.132157839 | Y24: 0.09721830169 | Z24: 0.1892356321 | AA24: 0.08624956247
B25: PKOBP | C25: 0.8528215641 | D25: 0.5460302331 | E25: 0.2534794518 | F25: 0.6138164742 | G25: 0.6667404826 | H25: 0.3868515424 | I25: 0.1342177735 | J25: 0.2737981746 | K25: 0.5928799886 | L25: 0.4864380667 | M25: 0.5963319398 | N25: 0.6986891268 | O25: 0.3313787907 | P25: 0.7396049121 | Q25: 0.5735455729 | R25: 0.645389598 | S25: 1 | T25: 0.5469126282 | U25: 0.3640078997 | V25: 0.515317981 | W25: 0.1254911997 | X25: 0.201675537 | Y25: 0.1336168974 | Z25: 0.1732082807 | AA25: 0.119105838
B26: POLIMEXMS | C26: 0.6947397154 | D26: 0.5073115789 | E26: 0.3279165369 | F26: 0.5923089942 | G26: 0.6244211774 | H26: 0.5692645269 | I26: 0.2844722668 | J26: 0.2607145079 | K26: 0.5970778342 | L26: 0.5684677335 | M26: 0.4912680688 | N26: 0.6008097631 | O26: 0.3717246742 | P26: 0.5598710969 | Q26: 0.4229289125 | R26: 0.5627580611 | S26: 0.5469126282 | T26: 1 | U26: 0.3992815513 | V26: 0.4832864118 | W26: 0.02971413137 | X26: 0.08056858336 | Y26: 0.0895866059 | Z26: 0.1222788084 | AA26: 0.1207866779
B27: TPSA | C27: 0.5124199211 | D27: 0.3596498694 | E27: 0.1902976837 | F27: 0.3517864053 | G27: 0.3709269393 | H27: 0.2925153904 | I27: 0.2055309758 | J27: 0.2368430167 | K27: 0.3926374027 | L27: 0.3242369971 | M27: 0.3339297453 | N27: 0.3894731607 | O27: 0.2870495619 | P27: 0.4081404115 | Q27: 0.2830897386 | R27: 0.4389470042 | S27: 0.3640078997 | T27: 0.3992815513 | U27: 1 | V27: 0.3187423364 | W27: -0.01252351271 | X27: 0.004049641805 | Y27: 0.05208854823 | Z27: 0.1359671195 | AA27: 0.009894853832
B28: TVN | C28: 0.6721220638 | D28: 0.543383689 | E28: 0.3244265999 | F28: 0.5491684421 | G28: 0.4856487732 | H28: 0.3907590835 | I28: 0.3042129637 | J28: 0.2983516802 | K28: 0.5302948043 | L28: 0.5604801228 | M28: 0.531679599 | N28: 0.581515021 | O28: 0.3302287272 | P28: 0.4958514533 | Q28: 0.5241301962 | R28: 0.5752613622 | S28: 0.515317981 | T28: 0.4832864118 | U28: 0.3187423364 | V28: 1 | W28: 0.07659739477 | X28: 0.1745182627 | Y28: 0.1632117302 | Z28: 0.1496638845 | AA28: 0.09507751046
B29: DJIA | C29: 0.131380201 | D29: 0.09847267808 | E29: 0.06314542022 | F29: 0.05006981515 | G29: 0.1505129041 | H29: 0.1056440881 | I29: 0.03816883104 | J29: 0.1168080864 | K29: 0.1340961577 | L29: -0.01649985525 | M29: 0.137959156 | N29: 0.1646676964 | O29: 0.09844273709 | P29: 0.1352456862 | Q29: 0.11833349 | R29: 0.0705802228 | S29: 0.1254911997 | T29: 0.02971413137 | U29: -0.01252351271 | V29: 0.07659739477 | W29: 1 | X29: 0.5949415074 | Y29: 0.514041558 | Z29: 0.5064051251 | AA29: 0.4149490372
B30: FTSE100 | C30: 0.2270621154 | D30: 0.1556477915 | E30: 0.102187255 | F30: 0.1549437074 | G30: 0.1981658691 | H30: 0.1247010038 | I30: -0.01181534295 | J30: 0.07384359033 | K30: 0.2411631479 | L30: 0.0892704185 | M30: 0.2374563218 | N30: 0.2130045473 | O30: 0.1084354284 | P30: 0.1738334564 | Q30: 0.1330912763 | R30: 0.132157839 | S30: 0.201675537 | T30: 0.08056858336 | U30: 0.004049641805 | V30: 0.1745182627 | W30: 0.5949415074 | X30: 1 | Y30: 0.6766929958 | Z30: 0.5283344448 | AA30: 0.5100450784
B31: DAX | C31: 0.1678129305 | D31: 0.1894320182 | E31: 0.2112207847 | F31: -0.0003533683501 | G31: 0.171001763 | H31: 0.06910000164 | I31: -0.01221327448 | J31: 0.1246551932 | K31: 0.1911347069 | L31: 0.07701810997 | M31: 0.1797557348 | N31: 0.1555361865 | O31: 0.01229481108 | P31: 0.133184276 | Q31: 0.1531225982 | R31: 0.09721830169 | S31: 0.1336168974 | T31: 0.0895866059 | U31: 0.05208854823 | V31: 0.1632117302 | W31: 0.514041558 | X31: 0.6766929958 | Y31: 1 | Z31: 0.5848496083 | AA31: 0.4506504313
B32: RTS | C32: 0.20883889 | D32: 0.184481989 | E32: 0.127741299 | F32: 0.1015339922 | G32: 0.2547093187 | H32: 0.1873157528 | I32: 0.074924609 | J32: 0.1432762751 | K32: 0.1395942655 | L32: 0.05927272206 | M32: 0.1391272192 | N32: 0.2018789518 | O32: 0.04411153516 | P32: 0.2055850056 | Q32: 0.1540137265 | R32: 0.1892356321 | S32: 0.1732082807 | T32: 0.1222788084 | U32: 0.1359671195 | V32: 0.1496638845 | W32: 0.5064051251 | X32: 0.5283344448 | Y32: 0.5848496083 | Z32: 1 | AA32: 0.3448620593
B33: BUX | C33: 0.1308612246 | D33: 0.1716339534 | E33: 0.06557358749 | F33: 0.09945706284 | G33: 0.1708743703 | H33: 0.06049103333 | I33: 0.01686697042 | J33: 0.08590612344 | K33: 0.1288696763 | L33: 0.07319774652 | M33: -0.0001103519492 | N33: 0.1179148747 | O33: 0.09239277604 | P33: 0.1638669351 | Q33: 0.03626951711 | R33: 0.08624956247 | S33: 0.119105838 | T33: 0.1207866779 | U33: 0.009894853832 | V33: 0.09507751046 | W33: 0.4149490372 | X33: 0.5100450784 | Y33: 0.4506504313 | Z33: 0.3448620593 | AA33: 1

Sheet Zadanie 4 (hidden)
AA1: Tabela pomocnicza (nie ruszać):
B2: Zadanie 4 | AA2: LP | AB2: Imię i Nazwisko | AC2: Data urodzenia | AD2: Płeć | AE2: Wzrost | AF2: Waga | AG2: Trening | AH2: Wiek
AA3: 1 | AB3: Nowak Jakub | AC3: 1968-08-17 | AD3: 0 | AE3: 175 | AF3: 97 | AG3: Nie | AH3: 49
B4: Posortuj poniższą tabelę alfabetycznie. | AA4: 2 | AB4: Kowalski Kacper | AC4: 1993-03-03 | AD4: 0 | AE4: 170 | AF4: 110 | AG4: Nie | AH4: 25
B5: Pamiętaj, aby tytuły zmiennych pozostały w wierszu 8. | AA5: 3 | AB5: Nowak Julia | AC5: 1936-05-07 | AD5: 1 | AE5: 162 | AF5: 63 | AG5: Tak | AH5: 82
AA6: 4 | AB6: Kowalska Lena | AC6: 1929-07-10 | AD6: 1 | AE6: 159 | AF6: 77 | AG6: Nie | AH6: 89
AA7: 5 | AB7: Wiśniewska Maja | AC7: 1926-01-28 | AD7: 1 | AE7: 154 | AF7: 65 | AG7: Nie | AH7: 92
B8: Osoba | C8: BMI | AA8: 6 | AB8: Wiśniewski Filip | AC8: 1981-05-20 | AD8: 0 | AE8: 178 | AF8: 71 | AG8: Tak | AH8: 37
B9: Nowak Jakub | C9: =AF3/(AE3/100)^2 -> 31.67346939 | AA9: 7 | AB9: Wójcik Zuzanna | AC9: 1955-12-10 | AD9: 1 | AE9: 165 | AF9: 79 | AG9: Nie | AH9: 62
B10: Kowalski Kacper | C10: 38.06228374 | AA10: 8 | AB10: Wójcik Szymon | AC10: 1957-04-27 | AD10: 0 | AE10: 172 | AF10: 71 | AG10: Tak | AH10: 61
B11: Nowak Julia | C11: 24.00548697 | AA11: 9 | AB11: Kowalczyk Wiktoria | AC11: 1959-12-13 | AD11: 1 | AE11: 155 | AF11: 58 | AG11: Tak | AH11: 58
B12: Kowalska Lena | C12: 30.45765595 | AA12: 10 | AB12: Kowalczyk Jan | AC12: 1959-05-04 | AD12: 0 | AE12: 171 | AF12: 76 | AG12: Tak | AH12: 59
B13: Wiśniewska Maja | C13: 27.40765728 | AA13: 11 | AB13: Kamińska Amelia | AC13: 1942-06-28 | AD13: 1 | AE13: 166 | AF13: 63 | AG13: Nie | AH13: 76
B14: Wiśniewski Filip | C14: 22.40878677 | AA14: 12 | AB14: Lewandowska Oliwia | AC14: 1968-07-08 | AD14: 1 | AE14: 167 | AF14: 61 | AG14: Tak | AH14: 50
B15: Wójcik Zuzanna | C15: 29.0174472 | AA15: 13 | AB15: Dąbrowska Aleksandra | AC15: 1949-12-13 | AD15: 1 | AE15: 162 | AF15: 37 | AG15: Tak | AH15: 68
B16: Wójcik Szymon | C16: 23.99945917 | AA16: 14 | AB16: Kamiński Michał | AC16: 1951-04-16 | AD16: 0 | AE16: 173 | AF16: 82 | AG16: Nie | AH16: 67
B17: Kowalczyk Wiktoria | C17: 24.14151925 | AA17: 15 | AB17: Nowak Julia | AC17: 1988-11-23 | AD17: 1 | AE17: 163 | AF17: 86 | AG17: Nie | AH17: 29
B18: Kowalczyk Jan | C18: 25.99090318 | AA18: 16 | AB18: Szymańska Zofia | AC18: 1926-07-17 | AD18: 1 | AE18: 173 | AF18: 71 | AG18: Tak | AH18: 92
B19: Kamińska Amelia | C19: 22.86253448 | AA19: 17 | AB19: Woźniak Hanna | AC19: 1965-08-05 | AD19: 1 | AE19: 158 | AF19: 61 | AG19: Tak | AH19: 53
B20: Lewandowska Oliwia | C20: 21.87242282 | AA20: 18 | AB20: Lewandowski Antoni | AC20: 1931-03-03 | AD20: 0 | AE20: 169 | AF20: 79 | AG20: Tak | AH20: 87
B21: Dąbrowska Aleksandra | C21: 14.0984606 | AA21: 19 | AB21: Kozłowska Alicja | AC21: 1946-02-10 | AD21: 1 | AE21: 164 | AF21: 70 | AG21: Tak | AH21: 72
B22: Kamiński Michał | C22: 27.39817568 | AA22: 20 | AB22: Jankowska Emilia | AC22: 1922-02-15 | AD22: 1 | AE22: 161 | AF22: 59 | AG22: Tak | AH22: 96
B23: Nowak Julia | C23: 32.36854981 | AA23: 21 | AB23: Dąbrowski Bartosz | AC23: 1964-01-22 | AD23: 0 | AE23: 175 | AF23: 112 | AG23: Nie | AH23: 54
B24: Szymańska Zofia | C24: 23.72281065 | AA24: 22 | AB24: Zieliński Mateusz | AC24: 1994-11-04 | AD24: 0 | AE24: 174 | AF24: 68 | AG24: Tak | AH24: 23
B25: Woźniak Hanna | C25: 24.43518667 | AA25: 23 | AB25: Szymański Wojciech | AC25: 1943-05-26 | AD25: 0 | AE25: 176 | AF25: 99 | AG25: Nie | AH25: 75
B26: Lewandowski Antoni | C26: 27.66009594 | AA26: 24 | AB26: Wojciechowska Martyna | AC26: 1930-09-19 | AD26: 1 | AE26: 159 | AF26: 64 | AG26: Nie | AH26: 87
B27: Kozłowska Alicja | C27: 26.0261749 | AA27: 25 | AB27: Woźniak Adam | AC27: 1936-04-23 | AD27: 0 | AE27: 177 | AF27: 55 | AG27: Tak | AH27: 82
B28: Jankowska Emilia | C28: 22.76146754 | AA28: 26 | AB28: Kozłowski Piotr | AC28: 1948-08-20 | AD28: 0 | AE28: 170 | AF28: 69 | AG28: Tak | AH28: 69
B29: Dąbrowski Bartosz | C29: 36.57142857 | AA29: 27 | AB29: Kwiatkowska Anna | AC29: 1940-12-18 | AD29: 1 | AE29: 157 | AF29: 56 | AG29: Tak | AH29: 77
B30: Zieliński Mateusz | C30: 22.46003435 | AA30: 28 | AB30: Mazur Gabriela | AC30: 1990-02-13 | AD30: 1 | AE30: 161 | AF30: 85 | AG30: Nie | AH30: 28
B31: Szymański Wojciech | C31: 31.96022727 | AA31: 29 | AB31: Krawczyk Nikola | AC31: 1952-09-12 | AD31: 1 | AE31: 161 | AF31: 73 | AG31: Nie | AH31: 65
B32: Wojciechowska Martyna | C32: 25.31545429 | AA32: 30 | AB32: Piotrowska Nadia | AC32: 1954-09-02 | AD32: 1 | AE32: 156 | AF32: 59 | AG32: Tak | AH32: 63
B33: Woźniak Adam | C33: 17.55561939 | AA33: 31 | AB33: Jankowski Aleksander | AC33: 1940-09-07 | AD33: 0 | AE33: 180 | AF33: 82 | AG33: Tak | AH33: 77
B34: Kozłowski Piotr | C34: 23.87543253 | AA34: 32 | AB34: Mazur Wiktor | AC34: 1978-03-18 | AD34: 0 | AE34: 174 | AF34: 83 | AG34: Nie | AH34: 40
B35: Kwiatkowska Anna | C35: 22.7189744 | AA35: 33 | AB35: Wojciechowski Igor | AC35: 1938-08-28 | AD35: 0 | AE35: 168 | AF35: 69 | AG35: Tak | AH35: 79
B36: Mazur Gabriela | C36: 32.79194476 | AA36: 34 | AB36: Kwiatkowski Mikołaj | AC36: 1946-05-22 | AD36: 0 | AE36: 181 | AF36: 72 | AG36: Tak | AH36: 72
B37: Krawczyk Nikola | C37: 28.16249373 | AA37: 35 | AB37: Kaczmarek Maria | AC37: 1933-03-17 | AD37: 1 | AE37: 164 | AF37: 76 | AG37: Tak | AH37: 85
B38: Piotrowska Nadia | C38: 24.24391847 | AA38: 36 | AB38: Grabowska Milena | AC38: 1961-06-04 | AD38: 1 | AE38: 159 | AF38: 51 | AG38: Nie | AH38: 57
B39: Jankowski Aleksander | C39: 25.30864198 | AA39: 37 | AB39: Pawłowska Magdalena | AC39: 1946-11-26 | AD39: 1 | AE39: 152 | AF39: 67 | AG39: Nie | AH39: 71
B40: Mazur Wiktor | C40: 27.41445369 | AA40: 38 | AB40: Krawczyk Dawid | AC40: 1925-04-23 | AD40: 0 | AE40: 176 | AF40: 96 | AG40: Tak | AH40: 93
B41: Wojciechowski Igor | C41: 24.44727891 | AA41: 39 | AB41: Michalska Weronika | AC41: 1954-07-08 | AD41: 1 | AE41: 153 | AF41: 74 | AG41: Nie | AH41: 64
B42: Kwiatkowski Mikołaj | C42: 21.97735112 | AA42: 40 | AB42: Kaczmarek Franciszek | AC42: 1937-08-15 | AD42: 0 | AE42: 165 | AF42: 61 | AG42: Tak | AH42: 80
B43: Kaczmarek Maria | C43: 28.25698989 | AA43: 41 | AB43: Piotrowski Marcel | AC43: 1955-04-11 | AD43: 0 | AE43: 172 | AF43: 70 | AG43: Tak | AH43: 63
B44: Grabowska Milena | C44: 20.17325264 | AA44: 42 | AB44: Grabowski Maciej | AC44: 1931-12-17 | AD44: 0 | AE44: 180 | AF44: 66 | AG44: Tak | AH44: 86
B45: Pawłowska Magdalena | C45: 28.99930748 | AA45: 43 | AB45: Zając Karolina | AC45: 1946-05-18 | AD45: 1 | AE45: 154 | AF45: 77 | AG45: Nie | AH45: 72
B46: Krawczyk Dawid | C46: 30.99173554 | AA46: 44 | AB46: Król Laura | AC46: 1944-07-08 | AD46: 1 | AE46: 167 | AF46: 63 | AG46: Tak | AH46: 74
B47: Michalska Weronika | C47: 31.61177325 | AA47: 45 | AB47: Nowakowska Antonina | AC47: 1921-10-30 | AD47: 1 | AE47: 162 | AF47: 88 | AG47: Nie | AH47: 96
B48: Kaczmarek Franciszek | C48: 22.40587695 | AA48: 46 | AB48: Zając Karol | AC48: 1955-02-22 | AD48: 0 | AE48: 170 | AF48: 85 | AG48: Nie | AH48: 63
B49: Piotrowski Marcel | C49: 23.66143862 | AA49: 47 | AB49: Pawłowski Dominik | AC49: 1928-03-03 | AD49: 0 | AE49: 173 | AF49: 65 | AG49: Nie | AH49: 90
B50: Grabowski Maciej | C50: 20.37037037 | AA50: 48 | AB50: Wieczorek Agata | AC50: 1975-06-05 | AD50: 1 | AE50: 155 | AF50: 44 | AG50: Tak | AH50: 43
B51: Zając Karolina | C51: 32.46753247 | AA51: 49 | AB51: Michalski Alan | AC51: 1923-05-22 | AD51: 0 | AE51: 178 | AF51: 102 | AG51: Nie | AH51: 95
B52: Król Laura | C52: 22.58955144 | AA52: 50 | AB52: Jabłońska Paulina | AC52: 1932-11-29 | AD52: 1 | AE52: 166 | AF52: 88 | AG52: Nie | AH52: 85
B53: Nowakowska Antonina | C53: 33.53147386 | AA53: 51 | AB53: Król Oskar | AC53: 1940-04-15 | AD53: 0 | AE53: 178 | AF53: 108 | AG53: Tak | AH53: 78
B54: Zając Karol | C54: 29.41176471 | AA54: 52 | AB54: Nowakowski Paweł | AC54: 1922-10-16 | AD54: 0 | AE54: 174 | AF54: 72 | AG54: Tak | AH54: 95
B55: Pawłowski Dominik | C55: 21.71806609 | AA55: 53 | AB55: Majewska Pola | AC55: 1954-05-26 | AD55: 1 | AE55: 165 | AF55: 62 | AG55: Tak | AH55: 64
B56: Wieczorek Agata | C56: 18.31425598 | AA56: 54 | AB56: Wieczorek Oliwier | AC56: 1969-03-17 | AD56: 0 | AE56: 173 | AF56: 99 | AG56: Nie | AH56: 49
B57: Michalski Alan | C57: 32.19290494 | AA57: 55 | AB57: Adamczyk Kinga | AC57: 1976-05-12 | AD57: 1 | AE57: 167 | AF57: 99 | AG57: Nie | AH57: 42
B58: Jabłońska Paulina | C58: 31.93496879 | AA58: 56 | AB58: Wróbel Patryk | AC58: 1959-01-23 | AD58: 0 | AE58: 180 | AF58: 77 | AG58: Tak | AH58: 59
B59: Król Oskar | C59: 34.08660523 | AA59: 57 | AB59: Wróbel Kornelia | AC59: 1939-08-29 | AD59: 1 | AE59: 155 | AF59: 71 | AG59: Nie | AH59: 78
B60: Nowakowski Paweł | C60: 23.78121284 | AA60: 58 | AB60: Jabłoński Hubert | AC60: 1966-07-09 | AD60: 0 | AE60: 164 | AF60: 75 | AG60: Nie | AH60: 52
B61: Majewska Pola | C61: 22.77318641 | AA61: 59 | AB61: Nowicka Patrycja | AC61: 1934-03-31 | AD61: 1 | AE61: 166 | AF61: 91 | AG61: Tak | AH61: 84
B62: Wieczorek Oliwier | C62: 33.07828528 | AA62: 60 | AB62: Dudek Krzysztof | AC62: 1923-10-17 | AD62: 0 | AE62: 181 | AF62: 80 | AG62: Nie | AH62: 94
B63: Adamczyk Kinga | C63: 35.49786654 | AA63: 61 | AB63: Dudek Marta | AC63: 1931-06-05 | AD63: 1 | AE63: 160 | AF63: 53 | AG63: Tak | AH63: 87
B64: Wróbel Patryk | C64: 23.7654321 | AA64: 62 | AB64: Olszewska Michalina | AC64: 1946-11-01 | AD64: 1 | AE64: 164 | AF64: 76 | AG64: Tak | AH64: 71
B65: Wróbel Kornelia | C65: 29.55254943 | AA65: 63 | AB65: Adamczyk Tomasz | AC65: 1933-08-24 | AD65: 0 | AE65: 173 | AF65: 66 | AG65: Tak | AH65: 84
B66: Jabłoński Hubert | C66: 27.88518739 | AA66: 64 | AB66: Majewski Maksymilian | AC66: 1942-01-31 | AD66: 0 | AE66: 178 | AF66: 121 | AG66: Nie | AH66: 76
B67: Nowicka Patrycja | C67: 33.02366091 | AA67: 65 | AB67: Nowicki Kamil | AC67: 1971-01-21 | AD67: 0 | AE67: 178 | AF67: 47 | AG67: Tak | AH67: 47
B68: Dudek Krzysztof | C68: 24.41927902 | AA68: 66 | AB68: Olszewski Miłosz | AC68: 1936-12-21 | AD68: 0 | AE68: 176 | AF68: 73 | AG68: Tak | AH68: 81
B69: Dudek Marta | C69: 20.703125 | AA69: 67 | AB69: Stępień Stanisław | AC69: 1954-07-01 | AD69: 0 | AE69: 168 | AF69: 58 | AG69: Nie | AH69: 64
B70: Olszewska Michalina | C70: 28.25698989 | AA70: 68 | AB70: Jaworski Nikodem | AC70: 1931-10-23 | AD70: 0 | AE70: 175 | AF70: 105 | AG70: Nie | AH70: 86
B71: Adamczyk Tomasz | C71: 22.05219018 | AA71: 69 | AB71: Malinowski Bartłomiej | AC71: 1945-12-08 | AD71: 0 | AE71: 174 | AF71: 77 | AG71: Tak | AH71: 72
B72: Majewski Maksymilian | C72: 38.18962252 | AA72: 70 | AB72: Pawlak Sebastian | AC72: 1933-12-13 | AD72: 0 | AE72: 171 | AF72: 85 | AG72: Nie | AH72: 84
B73: Nowicki Kamil | C73: =AF67/(AE67/100)^2 -> 14.83398561 | AA73: 71 | AB73: Jaworska Klaudia | AC73: 1920-05-04 | AD73: 1 | AE73: 163 | AF73: 61 | AG73: Tak | AH73: 98
B74: Olszewski Miłosz | C74: 23.56663223 | AA74: 72 | AB74: Górski Adrian | AC74: 1954-05-01 | AD74: 0 | AE74: 171 | AF74: 80 | AG74: Tak | AH74: 64
B75: Stępień Stanisław | C75: 20.54988662 | AA75: 73 | AB75: Malinowska Małgorzata | AC75: 1941-11-26 | AD75: 1 | AE75: 147 | AF75: 85 | AG75: Nie | AH75: 76
B76: Jaworski Nikodem | C76: 34.28571429 | AA76: 74 | AB76: Witkowski Gabriel | AC76: 1924-02-03 | AD76: 0 | AE76: 166 | AF76: 69 | AG76: Nie | AH76: 94
B77: Malinowski Bartłomiej | C77: 25.43268596 | AA77: 75 | AB77: Walczak Tymoteusz | AC77: 1950-11-23 | AD77: 0 | AE77: 180 | AF77: 127 | AG77: Nie | AH77: 67
B78: Pawlak Sebastian | C78: 29.0687733 | AA78: 76 | AB78: Sikora Ksawery | AC78: 1949-07-18 | AD78: 0 | AE78: 169 | AF78: 67 | AG78: Tak | AH78: 69
B79: Jaworska Klaudia | C79: 22.95908766 | AA79: 77 | AB79: Stępień Joanna | AC79: 1934-01-30 | AD79: 1 | AE79: 170 | AF79: 81 | AG79: Nie | AH79: 84
B80: Górski Adrian | C80: 27.35884546 | AA80: 78 | AB80: Górska Nina | AC80: 1995-01-17 | AD80: 1 | AE80: 164 | AF80: 77 | AG80: Nie | AH80: 23
B81: Malinowska Małgorzata | C81: 39.33546208 | AA81: 79 | AB81: Pawlak Katarzyna | AC81: 1928-07-22 | AD81: 1 | AE81: 157 | AF81: 78 | AG81: Tak | AH81: 90
B82: Witkowski Gabriel | C82: 25.03991871 | AA82: 80 | AB82: Witkowska Iga | AC82: 1957-09-17 | AD82: 1 | AE82: 161 | AF82: 73 | AG82: Nie | AH82: 60
B83: Walczak Tymoteusz | C83: 39.19753086 | AA83: 81 | AB83: Rutkowski Krystian | AC83: 1952-12-01 | AD83: 0 | AE83: 170 | AF83: 95 | AG83: Nie | AH83: 65
B84: Sikora Ksawery | C84: 23.45856238 | AA84: 82 | AB84: Walczak Jagoda | AC84: 1922-07-02 | AD84: 1 | AE84: 146 | AF84: 60 | AG84: Tak | AH84: 96
B85: Stępień Joanna | C85: 28.02768166 | AA85: 83 | AB85: Baran Julian | AC85: 1950-11-07 | AD85: 0 | AE85: 169 | AF85: 90 | AG85: Nie | AH85: 67
B86: Górska Nina | C86: 28.62879239 | AA86: 84 | AB86: Rutkowska Dominika | AC86: 1928-04-21 | AD86: 1 | AE86: 160 | AF86: 56 | AG86: Tak | AH86: 90
B87: Pawlak Katarzyna | C87: 31.64428577 | AA87: 85 | AB87: Michalak Łukasz | AC87: 1930-04-27 | AD87: 0 | AE87: 165 | AF87: 91 | AG87: Nie | AH87: 88
B88: Witkowska Iga | C88: 28.16249373 | AA88: 86 | AB88: Szewczyk Leon | AC88: 1978-12-29 | AD88: 0 | AE88: 168 | AF88: 70 | AG88: Tak | AH88: 39
B89: Rutkowski Krystian | C89: 32.87197232 | AA89: 87 | AB89: Sikora Liliana | AC89: 1964-05-19 | AD89: 1 | AE89: 168 | AF89: 69 | AG89: Tak | AH89: 54
B90: Walczak Jagoda | C90: 28.14787014 | AA90: 88 | AB90: Ostrowski Fabian | AC90: 1948-03-01 | AD90: 0 | AE90: 166 | AF90: 78 | AG90: Tak | AH90: 70
B91: Baran Julian | C91: 31.5115017 | AA91: 89 | AB91: Tomaszewski Tymon | AC91: 1968-12-21 | AD91: 0 | AE91: 169 | AF91: 83 | AG91: Nie | AH91: 49
B92: Rutkowska Dominika | C92: 21.875 | AA92: 90 | AB92: Pietrzak Błażej | AC92: 1978-08-04 | AD92: 0 | AE92: 174 | AF92: 110 | AG92: Tak | AH92: 40
B93: Michalak Łukasz | C93: 33.4251607 | AA93: 91 | AB93: Michalak Barbara | AC93: 1930-05-06 | AD93: 1 | AE93: 163 | AF93: 82 | AG93: Nie | AH93: 88
B94: Szewczyk Leon | C94: 24.8015873 | AA94: 92 | AB94: Ostrowska Blanka | AC94: 1938-09-04 | AD94: 1 | AE94: 159 | AF94: 53 | AG94: Tak | AH94: 79
B95: Sikora Liliana | C95: 24.44727891 | AA95: 93 | AB95: Duda Ignacy | AC95: 1958-09-01 | AD95: 0 | AE95: 173 | AF95: 84 | AG95: Nie | AH95: 59
B96: Ostrowski Fabian | C96: 28.30599506 | AA96: 94 | AB96: Szewczyk Marcelina | AC96: 1947-07-08 | AD96: 1 | AE96: 166 | AF96: 96 | AG96: Nie | AH96: 71
B97: Tomaszewski Tymon | C97: 29.06060712 | AA97: 95 | AB97: Zalewski Borys | AC97: 1931-12-12 | AD97: 0 | AE97: 164 | AF97: 74 | AG97: Nie | AH97: 86
B98: Pietrzak Błażej | C98: 36.33240851 | AA98: 96 | AB98: Baran Izabela | AC98: 1968-04-13 | AD98: 1 | AE98: 164 | AF98: 76 | AG98: Nie | AH98: 50
B99: Michalak Barbara | C99: 30.86303587 | AA99: 97 | AB99: Tomaszewska Helena | AC99: 1955-05-29 | AD99: 1 | AE99: 156 | AF99: 83 | AG99: Nie | AH99: 63
B100: Ostrowska Blanka | C100: 20.96436059 | AA100: 98 | AB100: Wróblewski Marcin | AC100: 1964-12-06 | AD100: 0 | AE100: 182 | AF100: 78 | AG100: Tak | AH100: 53
B101: Duda Ignacy | C101: 28.06642387 | AA101: 99 | AB101: Pietrzak Kaja | AC101: 1943-02-18 | AD101: 1 | AE101: 172 | AF101: 66 | AG101: Tak | AH101: 75
B102: Szewczyk Marcelina | C102: 34.83814777 | AA102: 100 | AB102: Jasiński Damian | AC102: 1967-07-06 | AD102: 0 | AE102: 162 | AF102: 54 | AG102: Tak | AH102: 51
B103: Zalewski Borys | C103: 27.51338489 | AA103: 101 | AB103: Jasińska Ewa | AC103: 1963-08-28 | AD103: 1 | AE103: 168 | AF103: 67 | AG103: Tak | AH103: 54
B104: Baran Izabela | C104: 28.25698989 | AA104: 102 | AB104: Marciniak Daniel | AC104: 1926-06-21 | AD104: 0 | AE104: 180 | AF104: 70 | AG104: Tak | AH104: 92
B105: Tomaszewska Helena | C105: 34.10585141 | AA105: 103 | AB105: Bąk Konrad | AC105: 1954-01-03 | AD105: 0 | AE105: 179 | AF105: 78 | AG105: Tak | AH105: 64
B106: Wróblewski Marcin | C106: 23.54788069 | AA106: 104 | AB106: Zawadzki Artur | AC106: 1984-06-13 | AD106: 0 | AE106: 170 | AF106: 63 | AG106: Tak | AH106: 34
B107: Pietrzak Kaja | C107: 22.30935641 | AA107: 105 | AB107: Wróblewska Łucja | AC107: 1947-03-29 | AD107: 1 | AE107: 166 | AF107: 58 | AG107: Tak | AH107: 71
B108: Jasiński Damian | C108: 20.57613169 | AA108: 106 | AB108: Zalewska Kamila | AC108: 1956-04-23 | AD108: 1 | AE108: 160 | AF108: 74 | AG108: Tak | AH108: 62
B109: Jasińska Ewa | C109: 23.73866213 | AA109: 107 | AB109: Marciniak Sandra | AC109: 1923-09-09 | AD109: 1 | AE109: 165 | AF109: 74 | AG109: Nie | AH109: 94
B110: Marciniak Daniel | C110: 21.60493827 | AA110: 108 | AB110: Sadowski Olaf | AC110: 1956-02-15 | AD110: 0 | AE110: 176 | AF110: 87 | AG110: Nie | AH110: 62
B111: Bąk Konrad | C111: 24.34380949 | AA111: 109 | AB111: Jakubowski Grzegorz | AC111: 1946-03-03 | AD111: 0 | AE111: 176 | AF111: 73 | AG111: Tak | AH111: 72
B112: Zawadzki Artur | C112: 21.79930796 | AA112: 110 | AB112: Zawadzka Daria | AC112: 1942-04-22 | AD112: 1 | AE112: 162 | AF112: 73 | AG112: Nie | AH112: 76
B113: Wróblewska Łucja | C113: 21.04804761 | AA113: 111 | AB113: Wilk Rafał | AC113: 1932-06-01 | AD113: 0 | AE113: 183 | AF113: 72 | AG113: Tak | AH113: 86
B114: Zalewska Kamila | C114: 28.90625 | AA114: 112 | AB114: Włodarczyk Kajetan | AC114: 1931-08-02 | AD114: 0 | AE114: 177 | AF114: 88 | AG114: Tak | AH114: 87
B115: Marciniak Sandra | C115: 27.18089991 | AA115: 113 | AB115: Jakubowska Malwina | AC115: 1921-06-04 | AD115: 1 | AE115: 165 | AF115: 78 | AG115: Nie | AH115: 97
B116: Sadowski Olaf | C116: 28.08626033 | AA116: 114 | AB116: Chmielewski Eryk | AC116: 1956-03-05 | AD116: 0 | AE116: 164 | AF116: 57 | AG116: Nie | AH116: 62
B117: Jakubowski Grzegorz | C117: 23.56663223 | AA117: 115 | AB117: Borkowski Przemysław | AC117: 1947-08-31 | AD117: 0 | AE117: 171 | AF117: 80 | AG117: Nie | AH117: 70
B118: Zawadzka Daria | C118: 27.81588173 | AA118: 116 | AB118: Sokołowski Kuba | AC118: 1949-07-24 | AD118: 0 | AE118: 162 | AF118: 62 | AG118: Tak | AH118: 69
B119: Wilk Rafał | C119: 21.49959688 | AA119: 117 | AB119: Duda Roksana | AC119: 1941-02-21 | AD119: 1 | AE119: 162 | AF119: 58 | AG119: Tak | AH119: 77
B120: Włodarczyk Kajetan | C120: 28.08899103 | AA120: 118 | AB120: Sadowska Kalina | AC120: 1954-04-29 | AD120: 1 | AE120: 176 | AF120: 73 | AG120: Tak | AH120: 64
B121: Jakubowska Malwina | C121: 28.65013774 | AA121: 119 | AB121: Szczepański Radosław | AC121: 1976-01-26 | AD121: 0 | AE121: 169 | AF121: 64 | AG121: Tak | AH121: 42
B122: Chmielewski Eryk | C122: 21.19274242 | AA122: 120 | AB122: Sawicki Cezary | AC122: 1972-11-16 | AD122: 0 | AE122: 185 | AF122: 115 | AG122: Nie | AH122: 45
B123: Borkowski Przemysław | C123: 27.35884546 | AA123: 121 | AB123: Bąk Olga | AC123: 1927-11-22 | AD123: 1 | AE123: 157 | AF123: 67 | AG123: Nie | AH123: 90
B124: Sokołowski Kuba | C124: 23.62444749 | AA124: 122 | AB124: Lis Robert | AC124: 1959-04-01 | AD124: 0 | AE124: 167 | AF124: 57 | AG124: Tak | AH124: 59
B125: Duda Roksana | C125: 22.10028959 | AA125: 123 | AB125: Włodarczyk Natasza | AC125: 1960-10-30 | AD125: 1 | AE125: 161 | AF125: 67 | AG125: Nie | AH125: 57
B126: Sadowska Kalina | C126: 23.56663223 | AA126: 124 | AB126: Chmielewska Sara | AC126: 1934-12-18 | AD126: 1 | AE126: 164 | AF126: 67 | AG126: Nie | AH126: 83
B127: Szczepański Radosław | C127: 22.40817899 | AA127: 125 | AB127: Borkowska Justyna | AC127: 1962-09-12 | AD127: 1 | AE127: 163 | AF127: 62 | AG127: Tak | AH127: 55
B128: Sawicki Cezary | C128: 33.60116874 | AA128: 126 | AB128: Sokołowska Matylda | AC128: 1959-05-02 | AD128: 1 | AE128: 162 | AF128: 58 | AG128: Tak | AH128: 59
B129: Bąk Olga | C129: 27.18163009 | AA129: 127 | AB129: Kucharski Marek | AC129: 1949-12-04 | AD129: 0 | AE129: 165 | AF129: 66 | AG129: Tak | AH129: 68
B130: Lis Robert | C130: 20.43816558 | AA130: 128 | AB130: Mazurek Natan | AC130: 1930-02-26 | AD130: 0 | AE130: 175 | AF130: 58 | AG130: Tak | AH130: 88
B131: Włodarczyk Natasza | C131: 25.84776822 | AA131: 129 | AB131: Kubiak Gracjan | AC131: 1928-03-06 | AD131: 0 | AE131: 175 | AF131: 89 | AG131: Nie | AH131: 90
B132: Chmielewska Sara | C132: 24.9107674 | AA132: 130 | AB132: Kalinowski Olivier | AC132: 1948-07-15 | AD132: 0 | AE132: 186 | AF132: 74 | AG132: Tak | AH132: 70
B133: Borkowska Justyna | C133: 23.33546614 | AA133: 131 | AB133: Wilk Anastazja | AC133: 1924-02-11 | AD133: 1 | AE133: 163 | AF133: 56 | AG133: Tak | AH133: 94
B134: Sokołowska Matylda | C134: 22.10028959 | AA134: 132 | AB134: Sawicka Klara | AC134: 1953-03-20 | AD134: 1 | AE134: 162 | AF134: 62 | AG134: Tak | AH134: 65
B135: Kucharski Marek | C135: 24.24242424 | AA135: 133 | AB135: Szczepańska Urszula | AC135: 1971-09-13 | AD135: 1 | AE135: 162 | AF135: 87 | AG135: Nie | AH135: 46
B136: Mazurek Natan | C136: 18.93877551 | AA136: 134 | AB136: Kucharska Adrianna | AC136: 1935-02-19 | AD136: 1 | AE136: 166 | AF136: 70 | AG136: Nie | AH136: 83
B137: Kubiak Gracjan | C137: =AF131/(AE131/100)^2 -> 29.06122449 | AA137: 135 | AB137: Wysocki Arkadiusz | AC137: 1927-03-02 | AD137: 0 | AE137: 180 | AF137: 76 | AG137: Tak | AH137: 91
B138: Kalinowski Olivier | C138: 21.38975604 | AA138: 136 | AB138: Maciejewski Bruno | AC138: 1965-03-14 | AD138: 0 | AE138: 169 | AF138: 69 | AG138: Tak | AH138: 53
B139: Wilk Anastazja | C139: 21.07719523 | AA139: 137 | AB139: Lis Eliza | AC139: 1943-12-26 | AD139: 1 | AE139: 163 | AF139: 75 | AG139: Tak | AH139: 74
B140: Sawicka Klara | C140: 23.62444749 | AA140: 138 | AB140: Maciejewska Agnieszka | AC140: 1957-02-21 | AD140: 1 | AE140: 164 | AF140: 68 | AG140: Tak | AH140: 61
B141: Szczepańska Urszula | C141: 33.15043439 | AA141: 139 | AB141: Czarnecki Tobiasz | AC141: 1937-09-08 | AD141: 0 | AE141: 172 | AF141: 80 | AG141: Nie | AH141: 80
B142: Kucharska Adrianna | C142: 25.40281608 | AA142: 140 | AB142: Czarnecka Monika | AC142: 1979-11-04 | AD142: 1 | AE142: 155 | AF142: 54 | AG142: Tak | AH142: 38
B143: Wysocki Arkadiusz | C143: 23.45679012 | AA143: 141 | AB143: Kalinowska Aniela | AC143: 1932-02-07 | AD143: 1 | AE143: 157 | AF143: 86 | AG143: Tak | AH143: 86
B144: Maciejewski Bruno | C144: 24.15881797 | AA144: 142 | AB144: Kubiak Dorota | AC144: 1984-05-19 | AD144: 1 | AE144: 160 | AF144: 92 | AG144: Tak | AH144: 34
B145: Lis Eliza | C145: 28.22838647 | AA145: 143 | AB145: Wysocka Lidia | AC145: 1947-11-22 | AD145: 1 | AE145: 163 | AF145: 64 | AG145: Tak | AH145: 70
B146: Maciejewska Agnieszka | C146: 25.2825699 | AA146: 144 | AB146: Mazurek Lilianna | AC146: 1970-03-23 | AD146: 1 | AE146: 154 | AF146: 51 | AG146: Nie | AH146: 48
B147: Czarnecki Tobiasz | C147: 27.04164413 | AA147: 145 | AB147: Urbańska Marika | AC147: 1957-06-29 | AD147: 1 | AE147: 173 | AF147: 82 | AG147: Nie | AH147: 61
B148: Czarnecka Monika | C148: 22.47658689 | AA148: 146 | AB148: Kołodziej Emil | AC148: 1952-02-04 | AD148: 0 | AE148: 180 | AF148: 104 | AG148: Nie | AH148: 66
B149: Kalinowska Aniela | C149: 34.88985354 | AA149: 147 | AB149: Kołodziej Nicola | AC149: 1939-07-15 | AD149: 1 | AE149: 161 | AF149: 62 | AG149: Tak | AH149: 79
B150: Kubiak Dorota | C150: 35.9375 | AA150: 148 | AB150: Kaźmierczak Karina | AC150: 1973-04-04 | AD150: 1 | AE150: 166 | AF150: 60 | AG150: Tak | AH150: 45
B151: Wysocka Lidia | C151: 24.08822312 | AA151: 149 | AB151: Sobczak Róża | AC151: 1929-08-28 | AD151: 1 | AE151: 162 | AF151: 70 | AG151: Nie | AH151: 88
B152: Mazurek Lilianna | C152: 21.50446956 | AA152: 150 | AB152: Urbański Kornel | AC152: 1926-03-09 | AD152: 0 | AE152: 162 | AF152: 75 | AG152: Nie | AH152: 92
B153: Urbańska Marika | C153: 27.39817568 | AA153: 151 | AB153: Sikorska Marianna | AC153: 1950-09-10 | AD153: 1 | AE153: 164 | AF153: 81 | AG153: Tak | AH153: 67
B154: Kołodziej Emil | C154: 32.09876543 | AA154: 152 | AB154: Kaźmierczak Nataniel | AC154: 1964-07-05 | AD154: 0 | AE154: 178 | AF154: 73 | AG154: Nie | AH154: 54
B155: Kołodziej Nicola | C155: 23.91883029 | AA155: 153 | AB155: Głowacka Rozalia | AC155: 1954-08-13 | AD155: 1 | AE155: 161 | AF155: 59 | AG155: Nie | AH155: 63
B156: Kaźmierczak Karina | C156: 21.77384236 | AA156: 154 | AB156: Krajewska Vanessa | AC156: 1954-08-20 | AD156: 1 | AE156: 162 | AF156: 73 | AG156: Nie | AH156: 63
B157: Sobczak Róża | C157: 26.6727633 | AA157: 155 | AB157: Zakrzewska Marlena | AC157: 1950-04-23 | AD157: 1 | AE157: 164 | AF157: 59 | AG157: Tak | AH157: 68
B158: Urbański Kornel | C158: 28.57796068 | AA158: 156 | AB158: Sobczak Alex | AC158: 1930-11-23 | AD158: 0 | AE158: 154 | AF158: 60 | AG158: Tak | AH158: 87
B159: Sikorska Marianna | C159: 30.11600238 | AA159: 157 | AB159: Konieczny Norbert | AC159: 1947-04-06 | AD159: 0 | AE159: 177 | AF159: 66 | AG159: Tak | AH159: 71
B160: Kaźmierczak Nataniel | C160: 23.0400202 | AA160: 158 | AB160: Adamska Dagmara | AC160: 1980-06-12 | AD160: 1 | AE160: 166 | AF160: 71 | AG160: Nie | AH160: 38
B161: Głowacka Rozalia | C161: 22.76146754 | AA161: 159 | AB161: Głowacki Aleks | AC161: 1968-10-04 | AD161: 0 | AE161: 176 | AF161: 75 | AG161: Tak | AH161: 49
B162: Krajewska Vanessa | C162: 27.81588173 | AA162: 160 | AB162: Wasilewska Liwia | AC162: 1951-06-19 | AD162: 1 | AE162: 166 | AF162: 60 | AG162: Tak | AH162: 67
B163: Zakrzewska Marlena | C163: 21.93634741 | AA163: 161 | AB163: Zakrzewski Brajan | AC163: 1939-09-24 | AD163: 0 | AE163: 183 | AF163: 70 | AG163: Tak | AH163: 78
B164: Sobczak Alex | C164: 25.29937595 | AA164: 162 | AB164: Gajewska Ada | AC164: 1942-06-25 | AD164: 1 | AE164: 158 | AF164: 72 | AG164: Nie | AH164: 76
B165: Konieczny Norbert | C165: 21.06674327 | AA165: 163 | AB165: Laskowska Julita | AC165: 1950-09-09 | AD165: 1 | AE165: 164 | AF165: 86 | AG165: Nie | AH165: 67
B166: Adamska Dagmara | C166: 25.76571346 | AA166: 164 | AB166: Krupa Sonia | AC166: 1928-10-23 | AD166: 1 | AE166: 171 | AF166: 94 | AG166: Tak | AH166: 89
B167: Głowacki Aleks | C167: 24.21229339 | AA167: 165 | AB167: Krupa Andrzej | AC167: 1953-10-23 | AD167: 0 | AE167: 174 | AF167: 88 | AG167: Nie | AH167: 64
B168: Wasilewska Liwia | C168: 21.77384236 | AA168: 166 | AB168: Wasilewski Seweryn | AC168: 1944-12-08 | AD168: 0 | AE168: 171 | AF168: 83 | AG168: Nie | AH168: 73
B169: Zakrzewski Brajan | C169: 20.90238586 | AA169: 167 | AB169: Krajewski Jacek | AC169: 1942-05-07 | AD169: 0 | AE169: 164 | AF169: 57 | AG169: Tak | AH169: 76
B170: Gajewska Ada | C170: 28.84153181 | AA170: 168 | AB170: Adamski Witold | AC170: 1984-11-25 | AD170: 0 | AE170: 173 | AF170: 99 | AG170: Nie | AH170: 33
B171: Laskowska Julita | C171: 31.97501487 | AA171: 169 | AB171: Ziółkowska Aurelia | AC171: 1923-09-04 | AD171: 1 | AE171: 162 | AF171: 45 | AG171: Tak | AH171: 94
B172: Krupa Sonia | C172: 32.14664341 | AA172: 170 | AB172: Szulc Bianka | AC172: 1929-10-08 | AD172: 1 | AE172: 164 | AF172: 55 | AG172: Tak | AH172: 88
B173: Krupa Andrzej | C173: 29.06592681 | AA173: 171 | AB173: Czerwińska Nela | AC173: 1958-02-21 | AD173: 1 | AE173: 168 | AF173: 64 | AG173: Tak | AH173: 60
B174: Wasilewski Seweryn | C174: 28.38480216 | AA174: 172 | AB174: Makowska Ewelina | AC174: 1944-07-20 | AD174: 1 | AE174: 165 | AF174: 59 | AG174: Nie | AH174: 74
B175: Krajewski Jacek | C175: 21.19274242 | AA175: 173 | AB175: Brzezińska Anita | AC175: 1947-04-12 | AD175: 1 | AE175: 169 | AF175: 86 | AG175: Nie | AH175: 71
B176: Adamski Witold | C176: 33.07828528 | AA176: 174 | AB176: Sikorski Dorian | AC176: 1982-03-18 | AD176: 0 | AE176: 176 | AF176: 85 | AG176: Nie | AH176: 36
B177: Ziółkowska Aurelia | C177: 17.14677641 | AA177: 175 | AB177: Mróz Jerzy | AC177: 1964-10-01 | AD177: 0 | AE177: 158 | AF177: 89 | AG177: Tak | AH177: 53
B178: Szulc Bianka | C178: 20.44913742 | AA178: 176 | AB178: Przybylska Olivia | AC178: 1940-07-22 | AD178: 1 | AE178: 166 | AF178: 50 | AG178: Tak | AH178: 78
B179: Czerwińska Nela | C179: 22.67573696 | AA179: 177 | AB179: Szymczak Angelika | AC179: 1947-12-13 | AD179: 1 | AE179: 173 | AF179: 54 | AG179: Tak | AH179: 70
B180: Makowska Ewelina | C180: 21.67125803 | AA180: 178 | AB180: Baranowska Sylwia | AC180: 1990-05-11 | AD180: 1 | AE180: 162 | AF180: 61 | AG180: Tak | AH180: 28
B181: Brzezińska Anita | C181: 30.11099051 | AA181: 179 | AB181: Mróz Elena | AC181: 1941-11-07 | AD181: 1 | AE181: 172 | AF181: 86 | AG181: Tak | AH181: 76
B182: Sikorski Dorian | C182: 27.44059917 | AA182: 180 | AB182: Laskowski Iwo | AC182: 1948-12-07 | AD182: 0 | AE182: 172 | AF182: 74 | AG182: Nie | AH182: 69
B183: Mróz Jerzy | C183: 35.65133793 | AA183: 181 | AB183: Błaszczyk Tatiana | AC183: 1944-08-24 | AD183: 1 | AE183: 157 | AF183: 58 | AG183: Tak | AH183: 73
B184: Przybylska Olivia | C184: 18.14486863 | AA184: 182 | AB184: Borowska Victoria | AC184: 1933-05-07 | AD184: 1 | AE184: 165 | AF184: 58 | AG184: Tak | AH184: 85
B185: Szymczak Angelika | C185: 18.04270106 | AA185: 183 | AB185: Andrzejewska Diana | AC185: 1927-01-26 | AD185: 1 | AE185: 167 | AF185: 80 | AG185: Nie | AH185: 91
B186: Baranowska Sylwia | C186: 23.24340802 | AA186: 184 | AB186: Gajewski Jędrzej | AC186: 1967-03-25 | AD186: 0 | AE186: 167 | AF186: 68 | AG186: Tak | AH186: 51
B187: Mróz Elena | C187: 29.06976744 | AA187: 185 | AB187: Ziółkowski Juliusz | AC187: 1963-11-15 | AD187: 0 | AE187: 187 | AF187: 113 | AG187: Nie | AH187: 54
B188: Laskowski Iwo | C188: 25.01352082 | AA188: 186 | AB188: Szulc Cyprian | AC188: 1921-07-11 | AD188: 0 | AE188: 168 | AF188: 79 | AG188: Nie | AH188: 97
B189: Błaszczyk Tatiana | C189: 23.53036634 | AA189: 187 | AB189: Górecka Jowita | AC189: 1965-08-19 | AD189: 1 | AE189: 160 | AF189: 62 | AG189: Tak | AH189: 52
B190: Borowska Victoria | C190: 21.30394858 | AA190: 188 | AB190: Makowski Tadeusz | AC190: 1923-07-04 | AD190: 0 | AE190: 182 | AF190: 87 | AG190: Nie | AH190: 95
B191: Andrzejewska Diana | C191: 28.68514468 | AA191: 189 | AB191: Cieślak Judyta | AC191: 1953-08-03 | AD191: 1 | AE191: 155 | AF191: 57 | AG191: Tak | AH191: 65
B192: Gajewski Jędrzej | C192: 24.38237298 | AA192: 190 | AB192: Czerwiński Dariusz | AC192: 1975-10-01 | AD192: 0 | AE192: 180 | AF192: 81 | AG192: Tak | AH192: 42
B193: Ziółkowski Juliusz | C193: 32.31433555 | AA193: 191 | AB193: Baranowski Ryszard | AC193: 1930-07-31 | AD193: 0 | AE193: 175 | AF193: 76 | AG193: Tak | AH193: 88
B194: Szulc Cyprian | C194: 27.99036281 | AA194: 192 | AB194: Kaczmarczyk Jessica | AC194: 1931-06-04 | AD194: 1 | AE194: 150 | AF194: 40 | AG194: Tak | AH194: 87
B195: Górecka Jowita | C195: 24.21875 | AA195: 193 | AB195: Szymczak Jeremi | AC195: 1932-12-10 | AD195: 0 | AE195: 175 | AF195: 73 | AG195: Nie | AH195: 85
B196: Makowski Tadeusz | C196: 26.26494385 | AA196: 194 | AB196: Brzeziński Mariusz | AC196: 1941-12-21 | AD196: 0 | AE196: 176 | AF196: 76 | AG196: Tak | AH196: 76
B197: Cieślak Judyta | C197: 23.72528616 | AA197: 195 | AB197: Kaczmarczyk Albert | AC197: 1964-12-27 | AD197: 0 | AE197: 174 | AF197: 65 | AG197: Tak | AH197: 53
B198: Czerwiński Dariusz | C198: 25 | AA198: 196 | AB198: Przybylski Stefan | AC198: 1925-12-31 | AD198: 0 | AE198: 171 | AF198: 80 | AG198: Tak | AH198: 92
B199: Baranowski Ryszard | C199: 24.81632653 | AA199: 197 | AB199: Cieślak Remigiusz | AC199: 1949-01-14 | AD199: 0 | AE199: 176 | AF199: 75 | AG199: Tak | AH199: 69
B200: Kaczmarczyk Jessica | C200: 17.77777778 | AA200: 198 | AB200: Borowski Leonard | AC200: 1926-11-28 | AD200: 0 | AE200: 173 | AF200: 71 | AG200: Nie | AH200: 91
... 808 more rows

Sheet Zadanie 4-rozw (hidden)
AA1: Tabela pomocnicza (nie ruszać):
B2: Zadanie 4-rozw | AA2: LP | AB2: Imię i Nazwisko | AC2: Data urodzenia | AD2: Płeć | AE2: Wzrost | AF2: Waga | AG2: Trening | AH2: Wiek
AA3: 1 | AB3: Nowak Jakub | AC3: 1968-08-17 | AD3: 0 | AE3: 175 | AF3: 97 | AG3: Nie | AH3: 49
B4: Posortuj poniższą tabelę alfabetycznie. | AA4: 2 | AB4: Kowalski Kacper | AC4: 1993-03-03 | AD4: 0 | AE4: 170 | AF4: 110 | AG4: Nie | AH4: 25
B5: Pamiętaj, aby tytuły zmiennych pozostały w wierszu 8. | AA5: 3 | AB5: Nowak Julia | AC5: 1936-05-07 | AD5: 1 | AE5: 162 | AF5: 63 | AG5: Tak | AH5: 82
AA6: 4 | AB6: Kowalska Lena | AC6: 1929-07-10 | AD6: 1 | AE6: 159 | AF6: 77 | AG6: Nie | AH6: 89
AA7: 5 | AB7: Wiśniewska Maja | AC7: 1926-01-28 | AD7: 1 | AE7: 154 | AF7: 65 | AG7: Nie | AH7: 92
B8: Osoba | C8: BMI | E8: Schemat rozwiązania: | AA8: 6 | AB8: Wiśniewski Filip | AC8: 1981-05-20 | AD8: 0 | AE8: 178 | AF8: 71 | AG8: Tak | AH8: 37
B9: Adamczyk Aureliusz | C9: 24.33227705 | E9: 1. Zaznacz tabelę (zaznacz komórkę B8 i naciśnij Ctrl+A). | AA9: 7 | AB9: Wójcik Zuzanna | AC9: 1955-12-10 | AD9: 1 | AE9: 165 | AF9: 79 | AG9: Nie | AH9: 62
B10: Adamczyk Halszka | C10: 38.01422711 | E10: 2. Skopiuj zaznaczone komórki (Ctrl+C). | AA10: 8 | AB10: Wójcik Szymon | AC10: 1957-04-27 | AD10: 0 | AE10: 172 | AF10: 71 | AG10: Tak | AH10: 61
B11: Adamczyk Izabella | C11: 22.64737696 | E11: 3. Nie zmieniając zaznaczenia wklej wartości (Narzędzia główne > Wklej > Wklej wartości). | AA11: 9 | AB11: Kowalczyk Wiktoria | AC11: 1959-12-13 | AD11: 1 | AE11: 155 | AF11: 58 | AG11: Tak | AH11: 58
B12: Adamczyk Kinga | C12: 35.49786654 | E12: 4. Otwórz okno sortowania (Narzędzia główne > Edytowanie > Sortuj i filtruj). | AA12: 10 | AB12: Kowalczyk Jan | AC12: 1959-05-04 | AD12: 0 | AE12: 171 | AF12: 76 | AG12: Tak | AH12: 59
B13: Adamczyk Maximilian | C13: 24.77209671 | E13: 5. Ustaw poziom sortowania: Osoba, Wartości, Od A do Z. | AA13: 11 | AB13: Kamińska Amelia | AC13: 1942-06-28 | AD13: 1 | AE13: 166 | AF13: 63 | AG13: Nie | AH13: 76
B14: Adamczyk Mia | C14: 27.63980131 | AA14: 12 | AB14: Lewandowska Oliwia | AC14: 1968-07-08 | AD14: 1 | AE14: 167 | AF14: 61 | AG14: Tak | AH14: 50
B15: Adamczyk Oskar | C15: 28.08641975 | AA15: 13 | AB15: Dąbrowska Aleksandra | AC15: 1949-12-13 | AD15: 1 | AE15: 162 | AF15: 37 | AG15: Tak | AH15: 68
B16: Adamczyk Paulina | C16: 33.17773234 | AA16: 14 | AB16: Kamiński Michał | AC16: 1951-04-16 | AD16: 0 | AE16: 173 | AF16: 82 | AG16: Nie | AH16: 67
B17: Adamczyk Tomasz | C17: 22.05219018 | AA17: 15 | AB17: Nowak Julia | AC17: 1988-11-23 | AD17: 1 | AE17: 163 | AF17: 86 | AG17: Nie | AH17: 29
B18: Adamczyk Tytus | C18: 31.83391003 | AA18: 16 | AB18: Szymańska Zofia | AC18: 1926-07-17 | AD18: 1 | AE18: 173 | AF18: 71 | AG18: Tak | AH18: 92
B19: Adamska Alexandra | C19: 24.85907356 | AA19: 17 | AB19: Woźniak Hanna | AC19: 1965-08-05 | AD19: 1 | AE19: 158 | AF19: 61 | AG19: Tak | AH19: 53
B20: Adamska Dagmara | C20: 25.76571346 | AA20: 18 | AB20: Lewandowski Antoni | AC20: 1931-03-03 | AD20: 0 | AE20: 169 | AF20: 79 | AG20: Tak | AH20: 87
B21: Adamska Juliana | C21: 21.08281329 | AA21: 19 | AB21: Kozłowska Alicja | AC21: 1946-02-10 | AD21: 1 | AE21: 164 | AF21: 70 | AG21: Tak | AH21: 72
B22: Adamska Vanessa | C22: 33.26214068 | AA22: 20 | AB22: Jankowska Emilia | AC22: 1922-02-15 | AD22: 1 | AE22: 161 | AF22: 59 | AG22: Tak | AH22: 96
B23: Adamski Brian | C23: 28.73467206 | AA23: 21 | AB23: Dąbrowski Bartosz | AC23: 1964-01-22 | AD23: 0 | AE23: 175 | AF23: 112 | AG23: Nie | AH23: 54
B24: Adamski Jordan | C24: 23.51020408 | AA24: 22 | AB24: Zieliński Mateusz | AC24: 1994-11-04 | AD24: 0 | AE24: 174 | AF24: 68 | AG24: Tak | AH24: 23
B25: Adamski Max | C25: 28.08988764 | AA25: 23 | AB25: Szymański Wojciech | AC25: 1943-05-26 | AD25: 0 | AE25: 176 | AF25: 99 | AG25: Nie | AH25: 75
B26: Adamski Norbert | C26: 25.05930703 | AA26: 24 | AB26: Wojciechowska Martyna | AC26: 1930-09-19 | AD26: 1 | AE26: 159 | AF26: 64 | AG26: Nie | AH26: 87
B27: Adamski Witold | C27: 33.07828528 | AA27: 25 | AB27: Woźniak Adam | AC27: 1936-04-23 | AD27: 0 | AE27: 177 | AF27: 55 | AG27: Tak | AH27: 82
B28: Andrzejewska Diana | C28: 28.68514468 | AA28: 26 | AB28: Kozłowski Piotr | AC28: 1948-08-20 | AD28: 0 | AE28: 170 | AF28: 69 | AG28: Tak | AH28: 69
B29: Andrzejewska Halina | C29: 32.32323232 | AA29: 27 | AB29: Kwiatkowska Anna | AC29: 1940-12-18 | AD29: 1 | AE29: 157 | AF29: 56 | AG29: Tak | AH29: 77
B30: Andrzejewska Lilly | C30: 23.14725512 | AA30: 28 | AB30: Mazur Gabriela | AC30: 1990-02-13 | AD30: 1 | AE30: 161 | AF30: 85 | AG30: Nie | AH30: 28
B31: Andrzejewska Tatiana | C31: 22.58270917 | AA31: 29 | AB31: Krawczyk Nikola | AC31: 1952-09-12 | AD31: 1 | AE31: 161 | AF31: 73 | AG31: Nie | AH31: 65
B32: Andrzejewski Alexander | C32: 22.20408163 | AA32: 30 | AB32: Piotrowska Nadia | AC32: 1954-09-02 | AD32: 1 | AE32: 156 | AF32: 59 | AG32: Tak | AH32: 63
B33: Andrzejewski Augustyn | C33: 27.4691358 | AA33: 31 | AB33: Jankowski Aleksander | AC33: 1940-09-07 | AD33: 0 | AE33: 180 | AF33: 82 | AG33: Tak | AH33: 77
B34: Andrzejewski Joel | C34: 27.39817568 | AA34: 32 | AB34: Mazur Wiktor | AC34: 1978-03-18 | AD34: 0 | AE34: 174 | AF34: 83 | AG34: Nie | AH34: 40
B35: Andrzejewski Mariusz | C35: 29.40759637 | AA35: 33 | AB35: Wojciechowski Igor | AC35: 1938-08-28 | AD35: 0 | AE35: 168 | AF35: 69 | AG35: Tak | AH35: 79
B36: Baran Blanka | C36: 22.86253448 | AA36: 34 | AB36: Kwiatkowski Mikołaj | AC36: 1946-05-22 | AD36: 0 | AE36: 181 | AF36: 72 | AG36: Tak | AH36: 72
B37: Baran Celina | C37: 27.63980131 | AA37: 35 | AB37: Kaczmarek Maria | AC37: 1933-03-17 | AD37: 1 | AE37: 164 | AF37: 76 | AG37: Tak | AH37: 85
B38: Baran Eryka | C38: 23.45856238 | AA38: 36 | AB38: Grabowska Milena | AC38: 1961-06-04 | AD38: 1 | AE38: 159 | AF38: 51 | AG38: Nie | AH38: 57
B39: Baran Izabela | C39: 28.25698989 | AA39: 37 | AB39: Pawłowska Magdalena | AC39: 1946-11-26 | AD39: 1 | AE39: 152 | AF39: 67 | AG39: Nie | AH39: 71
B40: Baran Julian | C40: 31.5115017 | AA40: 38 | AB40: Krawczyk Dawid | AC40: 1925-04-23 | AD40: 0 | AE40: 176 | AF40: 96 | AG40: Tak | AH40: 93
B41: Baran Louis | C41: 24.61810377 | AA41: 39 | AB41: Michalska Weronika | AC41: 1954-07-08 | AD41: 1 | AE41: 153 | AF41: 74 | AG41: Nie | AH41: 64
B42: Baran Nicolas | C42: 25.82644628 | AA42: 40 | AB42: Kaczmarek Franciszek | AC42: 1937-08-15 | AD42: 0 | AE42: 165 | AF42: 61 | AG42: Tak | AH42: 80
B43: Baran Sebastian | C43: 28.25698989 | AA43: 41 | AB43: Piotrowski Marcel | AC43: 1955-04-11 | AD43: 0 | AE43: 172 | AF43: 70 | AG43: Tak | AH43: 63
B44: Baran Stefania | C44: 21.50446956 | AA44: 42 | AB44: Grabowski Maciej | AC44: 1931-12-17 | AD44: 0 | AE44: 180 | AF44: 66 | AG44: Tak | AH44: 86
B45: Baran Władysław | C45: 26.12244898 | AA45: 43 | AB45: Zając Karolina | AC45: 1946-05-18 | AD45: 1 | AE45: 154 | AF45: 77 | AG45: Nie | AH45: 72
B46: Baranowska Blandyna | C46: 27.58732606 | AA46: 44 | AB46: Król Laura | AC46: 1944-07-08 | AD46: 1 | AE46: 167 | AF46: 63 | AG46: Tak | AH46: 74
B47: Baranowska Jasmina | C47: 28.73467206 | AA47: 45 | AB47: Nowakowska Antonina | AC47: 1921-10-30 | AD47: 1 | AE47: 162 | AF47: 88 | AG47: Nie | AH47: 96
B48: Baranowska Olivia | C48: 23.91883029 | AA48: 46 | AB48: Zając Karol | AC48: 1955-02-22 | AD48: 0 | AE48: 170 | AF48: 85 | AG48: Nie | AH48: 63
B49: Baranowska Sylwia | C49: 23.24340802 | AA49: 47 | AB49: Pawłowski Dominik | AC49: 1928-03-03 | AD49: 0 | AE49: 173 | AF49: 65 | AG49: Nie | AH49: 90
B50: Baranowski Czesław | C50: 22.5981405 | AA50: 48 | AB50: Wieczorek Agata | AC50: 1975-06-05 | AD50: 1 | AE50: 155 | AF50: 44 | AG50: Tak | AH50: 43
B51: Baranowski Iwo | C51: 27.77777778 | AA51: 49 | AB51: Michalski Alan | AC51: 1923-05-22 | AD51: 0 | AE51: 178 | AF51: 102 | AG51: Nie | AH51: 95
B52: Baranowski Kaspian | C52: 32.23850107 | AA52: 50 | AB52: Jabłońska Paulina | AC52: 1932-11-29 | AD52: 1 | AE52: 166 | AF52: 88 | AG52: Nie | AH52: 85
B53: Baranowski Miguel | C53: 23.53304271 | AA53: 51 | AB53: Król Oskar | AC53: 1940-04-15 | AD53: 0 | AE53: 178 | AF53: 108 | AG53: Tak | AH53: 78
B54: Baranowski Ryszard | C54: 24.81632653 | AA54: 52 | AB54: Nowakowski Paweł | AC54: 1922-10-16 | AD54: 0 | AE54: 174 | AF54: 72 | AG54: Tak | AH54: 95
B55: Bąk Aron | C55: 21.87755102 | AA55: 53 | AB55: Majewska Pola | AC55: 1954-05-26 | AD55: 1 | AE55: 165 | AF55: 62 | AG55: Tak | AH55: 64
B56: Bąk Błażej | C56: 22.02432251 | AA56: 54 | AB56: Wieczorek Oliwier | AC56: 1969-03-17 | AD56: 0 | AE56: 173 | AF56: 99 | AG56: Nie | AH56: 49
B57: Bąk Bogumiła | C57: 21.45357371 | AA57: 55 | AB57: Adamczyk Kinga | AC57: 1976-05-12 | AD57: 1 | AE57: 167 | AF57: 99 | AG57: Nie | AH57: 42
B58: Bąk Kasjan | C58: 28.08626033 | AA58: 56 | AB58: Wróbel Patryk | AC58: 1959-01-23 | AD58: 0 | AE58: 180 | AF58: 77 | AG58: Tak | AH58: 59
B59: Bąk Konrad | C59: 24.34380949 | AA59: 57 | AB59: Wróbel Kornelia | AC59: 1939-08-29 | AD59: 1 | AE59: 155 | AF59: 71 | AG59: Nie | AH59: 78
B60: Bąk Lea | C60: 24.9107674 | AA60: 58 | AB60: Jabłoński Hubert | AC60: 1966-07-09 | AD60: 0 | AE60: 164 | AF60: 75 | AG60: Nie | AH60: 52
B61: Bąk Liam | C61: 25.64891762 | AA61: 59 | AB61: Nowicka Patrycja | AC61: 1934-03-31 | AD61: 1 | AE61: 166 | AF61: 91 | AG61: Tak | AH61: 84
B62: Bąk Majka | C62: 27.82931354 | AA62: 60 | AB62: Dudek Krzysztof | AC62: 1923-10-17 | AD62: 0 | AE62: 181 | AF62: 80 | AG62: Nie | AH62: 94
B63: Bąk Olga | C63: 27.18163009 | AA63: 61 | AB63: Dudek Marta | AC63: 1931-06-05 | AD63: 1 | AE63: 160 | AF63: 53 | AG63: Tak | AH63: 87
B64: Bąk Roksana | C64: 28.87544005 | AA64: 62 | AB64: Olszewska Michalina | AC64: 1946-11-01 | AD64: 1 | AE64: 164 | AF64: 76 | AG64: Tak | AH64: 71
B65: Błaszczyk Aaron | C65: 28.72737719 | AA65: 63 | AB65: Adamczyk Tomasz | AC65: 1933-08-24 | AD65: 0 | AE65: 173 | AF65: 66 | AG65: Tak | AH65: 84
B66: Błaszczyk Bogumił | C66: 29.06592681 | AA66: 64 | AB66: Majewski Maksymilian | AC66: 1942-01-31 | AD66: 0 | AE66: 178 | AF66: 121 | AG66: Nie | AH66: 76
B67: Błaszczyk Felicja | C67: 23.7332384 | AA67: 65 | AB67: Nowicki Kamil | AC67: 1971-01-21 | AD67: 0 | AE67: 178 | AF67: 47 | AG67: Tak | AH67: 47
B68: Błaszczyk Jeremi | C68: 23.67125363 | AA68: 66 | AB68: Olszewski Miłosz | AC68: 1936-12-21 | AD68: 0 | AE68: 176 | AF68: 73 | AG68: Tak | AH68: 81
B69: Błaszczyk Octavia | C69: 22.22906193 | AA69: 67 | AB69: Stępień Stanisław | AC69: 1954-07-01 | AD69: 0 | AE69: 168 | AF69: 58 | AG69: Nie | AH69: 64
B70: Błaszczyk Samuel | C70: 36.25047023 | AA70: 68 | AB70: Jaworski Nikodem | AC70: 1931-10-23 | AD70: 0 | AE70: 175 | AF70: 105 | AG70: Nie | AH70: 86
B71: Błaszczyk Sasza | C71: 22.38631428 | AA71: 69 | AB71: Malinowski Bartłomiej | AC71: 1945-12-08 | AD71: 0 | AE71: 174 | AF71: 77 | AG71: Tak | AH71: 72
B72: Błaszczyk Sylwia | C72: 27.82931354 | AA72: 70 | AB72: Pawlak Sebastian | AC72: 1933-12-13 | AD72: 0 | AE72: 171 | AF72: 85 | AG72: Nie | AH72: 84
B73: Błaszczyk Tatiana | C73: 23.53036634 | AA73: 71 | AB73: Jaworska Klaudia | AC73: 1920-05-04 | AD73: 1 | AE73: 163 | AF73: 61 | AG73: Tak | AH73: 98
B74: Borkowska Julitta | C74: 22.30814991 | AA74: 72 | AB74: Górski Adrian | AC74: 1954-05-01 | AD74: 0 | AE74: 171 | AF74: 80 | AG74: Tak | AH74: 64
B75: Borkowska Justyna | C75: 23.33546614 | AA75: 73 | AB75: Malinowska Małgorzata | AC75: 1941-11-26 | AD75: 1 | AE75: 147 | AF75: 85 | AG75: Nie | AH75: 76
B76: Borkowska Natasza | C76: 37.57431629 | AA76: 74 | AB76: Witkowski Gabriel | AC76: 1924-02-03 | AD76: 0 | AE76: 166 | AF76: 69 | AG76: Nie | AH76: 94
B77: Borkowska Ola | C77: 31.24499279 | AA77: 75 | AB77: Walczak Tymoteusz | AC77: 1950-11-23 | AD77: 0 | AE77: 180 | AF77: 127 | AG77: Nie | AH77: 67
B78: Borkowska Wanda | C78: 28.16249373 | AA78: 76 | AB78: Sikora Ksawery | AC78: 1949-07-18 | AD78: 0 | AE78: 169 | AF78: 67 | AG78: Tak | AH78: 69
B79: Borkowski Artur | C79: 23.51020408 | AA79: 77 | AB79: Stępień Joanna | AC79: 1934-01-30 | AD79: 1 | AE79: 170 | AF79: 81 | AG79: Nie | AH79: 84
B80: Borkowski Jonasz | C80: 35.56649909 | AA80: 78 | AB80: Górska Nina | AC80: 1995-01-17 | AD80: 1 | AE80: 164 | AF80: 77 | AG80: Nie | AH80: 23
B81: Borkowski Leszek | C81: 16.37208059 | AA81: 79 | AB81: Pawlak Katarzyna | AC81: 1928-07-22 | AD81: 1 | AE81: 157 | AF81: 78 | AG81: Tak | AH81: 90
B82: Borkowski Lewis | C82: 21.96712018 | AA82: 80 | AB82: Witkowska Iga | AC82: 1957-09-17 | AD82: 1 | AE82: 161 | AF82: 73 | AG82: Nie | AH82: 60
B83: Borkowski Przemysław | C83: 27.35884546 | AA83: 81 | AB83: Rutkowski Krystian | AC83: 1952-12-01 | AD83: 0 | AE83: 170 | AF83: 95 | AG83: Nie | AH83: 65
B84: Borowska Elena | C84: 23.06805075 | AA84: 82 | AB84: Walczak Jagoda | AC84: 1922-07-02 | AD84: 1 | AE84: 146 | AF84: 60 | AG84: Tak | AH84: 96
B85: Borowska Marcjanna | C85: 27.63980131 | AA85: 83 | AB85: Baran Julian | AC85: 1950-11-07 | AD85: 0 | AE85: 169 | AF85: 90 | AG85: Nie | AH85: 67
B86: Borowska Pamela | C86: 32.03857841 | AA86: 84 | AB86: Rutkowska Dominika | AC86: 1928-04-21 | AD86: 1 | AE86: 160 | AF86: 56 | AG86: Tak | AH86: 90
B87: Borowska Victoria | C87: 21.30394858 | AA87: 85 | AB87: Michalak Łukasz | AC87: 1930-04-27 | AD87: 0 | AE87: 165 | AF87: 91 | AG87: Nie | AH87: 88
B88: Borowski Czesław | C88: 27.21730295 | AA88: 86 | AB88: Szewczyk Leon | AC88: 1978-12-29 | AD88: 0 | AE88: 168 | AF88: 70 | AG88: Tak | AH88: 39
B89: Borowski Leonard | C89: 23.72281065 | AA89: 87 | AB89: Sikora Liliana | AC89: 1964-05-19 | AD89: 1 | AE89: 168 | AF89: 69 | AG89: Tak | AH89: 54
B90: Borowski Rayan | C90: 36.33240851 | AA90: 88 | AB90: Ostrowski Fabian | AC90: 1948-03-01 | AD90: 0 | AE90: 166 | AF90: 78 | AG90: Tak | AH90: 70
B91: Borowski Ryszard | C91: 27.77427093 | AA91: 89 | AB91: Tomaszewski Tymon | AC91: 1968-12-21 | AD91: 0 | AE91: 169 | AF91: 83 | AG91: Nie | AH91: 49
B92: Borowski Semir | C92: 22.69401893 | AA92: 90 | AB92: Pietrzak Błażej | AC92: 1978-08-04 | AD92: 0 | AE92: 174 | AF92: 110 | AG92: Tak | AH92: 40
B93: Brzezińska Anita | C93: 30.11099051 | AA93: 91 | AB93: Michalak Barbara | AC93: 1930-05-06 | AD93: 1 | AE93: 163 | AF93: 82 | AG93: Nie | AH93: 88
B94: Brzezińska Marzena | C94: 24.12879237 | AA94: 92 | AB94: Ostrowska Blanka | AC94: 1938-09-04 | AD94: 1 | AE94: 159 | AF94: 53 | AG94: Tak | AH94: 79
B95: Brzezińska Nela | C95: 24.24242424 | AA95: 93 | AB95: Duda Ignacy | AC95: 1958-09-01 | AD95: 0 | AE95: 173 | AF95: 84 | AG95: Nie | AH95: 59
B96: Brzezińska Xenia | C96: 22.67995241 | AA96: 94 | AB96: Szewczyk Marcelina | AC96: 1947-07-08 | AD96: 1 | AE96: 166 | AF96: 96 | AG96: Nie | AH96: 71
B97: Brzeziński Bryan | C97: 26.30361892 | AA97: 95 | AB97: Zalewski Borys | AC97: 1931-12-12 | AD97: 0 | AE97: 164 | AF97: 74 | AG97: Nie | AH97: 86
B98: Brzeziński Juliusz | C98: 31.80465784 | AA98: 96 | AB98: Baran Izabela | AC98: 1968-04-13 | AD98: 1 | AE98: 164 | AF98: 76 | AG98: Nie | AH98: 50
B99: Brzeziński Mariusz | C99: 24.53512397 | AA99: 97 | AB99: Tomaszewska Helena | AC99: 1955-05-29 | AD99: 1 | AE99: 156 | AF99: 83 | AG99: Nie | AH99: 63
B100: Brzeziński Mieczysław | C100: 28.98114344 | AA100: 98 | AB100: Wróblewski Marcin | AC100: 1964-12-06 | AD100: 0 | AE100: 182 | AF100: 78 | AG100: Tak | AH100: 53
B101: Brzeziński Niko | C101: 21.91358025 | AA101: 99 | AB101: Pietrzak Kaja | AC101: 1943-02-18 | AD101: 1 | AE101: 172 | AF101: 66 | AG101: Tak | AH101: 75
B102: Chmielewska Gloria | C102: 25.39021852 | AA102: 100 | AB102: Jasiński Damian | AC102: 1967-07-06 | AD102: 0 | AE102: 162 | AF102: 54 | AG102: Tak | AH102: 51
B103: Chmielewska Lea | C103: 21.2585034 | AA103: 101 | AB103: Jasińska Ewa | AC103: 1963-08-28 | AD103: 1 | AE103: 168 | AF103: 67 | AG103: Tak | AH103: 54
B104: Chmielewska Olga | C104: 22.83737024 | AA104: 102 | AB104: Marciniak Daniel | AC104: 1926-06-21 | AD104: 0 | AE104: 180 | AF104: 70 | AG104: Tak | AH104: 92
B105: Chmielewska Sara | C105: 24.9107674 | AA105: 103 | AB105: Bąk Konrad | AC105: 1954-01-03 | AD105: 0 | AE105: 179 | AF105: 78 | AG105: Tak | AH105: 64
B106: Chmielewska Violetta | C106: 28.13365651 | AA106: 104 | AB106: Zawadzki Artur | AC106: 1984-06-13 | AD106: 0 | AE106: 170 | AF106: 63 | AG106: Tak | AH106: 34
B107: Chmielewski Eryk | C107: 21.19274242 | AA107: 105 | AB107: Wróblewska Łucja | AC107: 1947-03-29 | AD107: 1 | AE107: 166 | AF107: 58 | AG107: Tak | AH107: 71
B108: Chmielewski Hieronim | C108: 28.08988764 | AA108: 106 | AB108: Zalewska Kamila | AC108: 1956-04-23 | AD108: 1 | AE108: 160 | AF108: 74 | AG108: Tak | AH108: 62
B109: Chmielewski Kasjan | C109: 22.64737696 | AA109: 107 | AB109: Marciniak Sandra | AC109: 1923-09-09 | AD109: 1 | AE109: 165 | AF109: 74 | AG109: Nie | AH109: 94
B110: Chmielewski Konrad | C110: 23.183391 | AA110: 108 | AB110: Sadowski Olaf | AC110: 1956-02-15 | AD110: 0 | AE110: 176 | AF110: 87 | AG110: Nie | AH110: 62
B111: Chmielewski Oleg | C111: 23.1206236 | AA111: 109 | AB111: Jakubowski Grzegorz | AC111: 1946-03-03 | AD111: 0 | AE111: 176 | AF111: 73 | AG111: Tak | AH111: 72
B112: Cieślak Dariusz | C112: 25.5036157 | AA112: 110 | AB112: Zawadzka Daria | AC112: 1942-04-22 | AD112: 1 | AE112: 162 | AF112: 73 | AG112: Nie | AH112: 76
B113: Cieślak Diana | C113: 24.31412397 | AA113: 111 | AB113: Wilk Rafał | AC113: 1932-06-01 | AD113: 0 | AE113: 183 | AF113: 72 | AG113: Tak | AH113: 86
B114: Cieślak Francis | C114: 28.69265285 | AA114: 112 | AB114: Włodarczyk Kajetan | AC114: 1931-08-02 | AD114: 0 | AE114: 177 | AF114: 88 | AG114: Tak | AH114: 87
B115: Cieślak Gniewosz | C115: 25.18078512 | AA115: 113 | AB115: Jakubowska Malwina | AC115: 1921-06-04 | AD115: 1 | AE115: 165 | AF115: 78 | AG115: Nie | AH115: 97
B116: Cieślak Jagienka | C116: 25.91068435 | AA116: 114 | AB116: Chmielewski Eryk | AC116: 1956-03-05 | AD116: 0 | AE116: 164 | AF116: 57 | AG116: Nie | AH116: 62
B117: Cieślak Judyta | C117: 23.72528616 | AA117: 115 | AB117: Borkowski Przemysław | AC117: 1947-08-31 | AD117: 0 | AE117: 171 | AF117: 80 | AG117: Nie | AH117: 70
B118: Cieślak Olena | C118: 21.09375 | AA118: 116 | AB118: Sokołowski Kuba | AC118: 1949-07-24 | AD118: 0 | AE118: 162 | AF118: 62 | AG118: Tak | AH118: 69
B119: Cieślak Remigiusz | C119: 24.21229339 | AA119: 117 | AB119: Duda Roksana | AC119: 1941-02-21 | AD119: 1 | AE119: 162 | AF119: 58 | AG119: Tak | AH119: 77
B120: Cieślak Victor | C120: 23.99945917 | AA120: 118 | AB120: Sadowska Kalina | AC120: 1954-04-29 | AD120: 1 | AE120: 176 | AF120: 73 | AG120: Tak | AH120: 64
B121: Czarnecka Eliza | C121: 23.828125 | AA121: 119 | AB121: Szczepański Radosław | AC121: 1976-01-26 | AD121: 0 | AE121: 169 | AF121: 64 | AG121: Tak | AH121: 42
B122: Czarnecka Ina | C122: 25.1486054 | AA122: 120 | AB122: Sawicki Cezary | AC122: 1972-11-16 | AD122: 0 | AE122: 185 | AF122: 115 | AG122: Nie | AH122: 45
B123: Czarnecka Lilla | C123: 34.88985354 | AA123: 121 | AB123: Bąk Olga | AC123: 1927-11-22 | AD123: 1 | AE123: 157 | AF123: 67 | AG123: Nie | AH123: 90
B124: Czarnecka Malina | C124: 23.95122659 | AA124: 122 | AB124: Lis Robert | AC124: 1959-04-01 | AD124: 0 | AE124: 167 | AF124: 57 | AG124: Tak | AH124: 59
B125: Czarnecka Monika | C125: 22.47658689 | AA125: 123 | AB125: Włodarczyk Natasza | AC125: 1960-10-30 | AD125: 1 | AE125: 161 | AF125: 67 | AG125: Nie | AH125: 57
B126: Czarnecki Allan | C126: 34.15365955 | AA126: 124 | AB126: Chmielewska Sara | AC126: 1934-12-18 | AD126: 1 | AE126: 164 | AF126: 67 | AG126: Nie | AH126: 83
B127: Czarnecki Marek | C127: 28.40111108 | AA127: 125 | AB127: Borkowska Justyna | AC127: 1962-09-12 | AD127: 1 | AE127: 163 | AF127: 62 | AG127: Tak | AH127: 55
B128: Czarnecki Mirko | C128: 23.62444749 | AA128: 126 | AB128: Sokołowska Matylda | AC128: 1959-05-02 | AD128: 1 | AE128: 162 | AF128: 58 | AG128: Tak | AH128: 59
B129: Czarnecki Miron | C129: 24.78425752 | AA129: 127 | AB129: Kucharski Marek | AC129: 1949-12-04 | AD129: 0 | AE129: 165 | AF129: 66 | AG129: Tak | AH129: 68
B130: Czarnecki Tobiasz | C130: 27.04164413 | AA130: 128 | AB130: Mazurek Natan | AC130: 1930-02-26 | AD130: 0 | AE130: 175 | AF130: 58 | AG130: Tak | AH130: 88
B131: Czerwińska Aurelia | C131: 23.87543253 | AA131: 129 | AB131: Kubiak Gracjan | AC131: 1928-03-06 | AD131: 0 | AE131: 175 | AF131: 89 | AG131: Nie | AH131: 90
B132: Czerwińska Ksenia | C132: 23.23345618 | AA132: 130 | AB132: Kalinowski Olivier | AC132: 1948-07-15 | AD132: 0 | AE132: 186 | AF132: 74 | AG132: Tak | AH132: 70
B133: Czerwińska Martina | C133: 30.84441596 | AA133: 131 | AB133: Wilk Anastazja | AC133: 1924-02-11 | AD133: 1 | AE133: 163 | AF133: 56 | AG133: Tak | AH133: 94
B134: Czerwińska Nela | C134: 22.67573696 | AA134: 132 | AB134: Sawicka Klara | AC134: 1953-03-20 | AD134: 1 | AE134: 162 | AF134: 62 | AG134: Tak | AH134: 65
B135: Czerwiński Dariusz | C135: 25 | AA135: 133 | AB135: Szczepańska Urszula | AC135: 1971-09-13 | AD135: 1 | AE135: 162 | AF135: 87 | AG135: Nie | AH135: 46
B136: Czerwiński Gniewomir | C136: 28.40111108 | AA136: 134 | AB136: Kucharska Adrianna | AC136: 1935-02-19 | AD136: 1 | AE136: 166 | AF136: 70 | AG136: Nie | AH136: 83
B137: Czerwiński Jerzy | C137: 24.6097337 | AA137: 135 | AB137: Wysocki Arkadiusz | AC137: 1927-03-02 | AD137: 0 | AE137: 180 | AF137: 76 | AG137: Tak | AH137: 91
B138: Czerwiński Lucas | C138: 23.80879705 | AA138: 136 | AB138: Maciejewski Bruno | AC138: 1965-03-14 | AD138: 0 | AE138: 169 | AF138: 69 | AG138: Tak | AH138: 53
B139: Czerwiński Victor | C139: 28.07631929 | AA139: 137 | AB139: Lis Eliza | AC139: 1943-12-26 | AD139: 1 | AE139: 163 | AF139: 75 | AG139: Tak | AH139: 74
B140: Dąbrowska Aleksandra | C140: 14.0984606 | AA140: 138 | AB140: Maciejewska Agnieszka | AC140: 1957-02-21 | AD140: 1 | AE140: 164 | AF140: 68 | AG140: Tak | AH140: 61
B141: Dąbrowska Amelia | C141: 22.40817899 | AA141: 139 | AB141: Czarnecki Tobiasz | AC141: 1937-09-08 | AD141: 0 | AE141: 172 | AF141: 80 | AG141: Nie | AH141: 80
B142: Dąbrowska Ida | C142: 28.08163265 | AA142: 140 | AB142: Czarnecka Monika | AC142: 1979-11-04 | AD142: 1 | AE142: 155 | AF142: 54 | AG142: Tak | AH142: 38
B143: Dąbrowska Kasjana | C143: 24.88888889 | AA143: 141 | AB143: Kalinowska Aniela | AC143: 1932-02-07 | AD143: 1 | AE143: 157 | AF143: 86 | AG143: Tak | AH143: 86
B144: Dąbrowska Naomi | C144: 23.80869017 | AA144: 142 | AB144: Kubiak Dorota | AC144: 1984-05-19 | AD144: 1 | AE144: 160 | AF144: 92 | AG144: Tak | AH144: 34
B145: Dąbrowska Paula | C145: 22.60026298 | AA145: 143 | AB145: Wysocka Lidia | AC145: 1947-11-22 | AD145: 1 | AE145: 163 | AF145: 64 | AG145: Tak | AH145: 70
B146: Dąbrowski Bartosz | C146: 36.57142857 | AA146: 144 | AB146: Mazurek Lilianna | AC146: 1970-03-23 | AD146: 1 | AE146: 154 | AF146: 51 | AG146: Nie | AH146: 48
B147: Dąbrowski Józef | C147: 23.32341806 | AA147: 145 | AB147: Urbańska Marika | AC147: 1957-06-29 | AD147: 1 | AE147: 173 | AF147: 82 | AG147: Nie | AH147: 61
B148: Dąbrowski Kacper | C148: 28.7037037 | AA148: 146 | AB148: Kołodziej Emil | AC148: 1952-02-04 | AD148: 0 | AE148: 180 | AF148: 104 | AG148: Nie | AH148: 66
B149: Dąbrowski Oliver | C149: 15.94387755 | AA149: 147 | AB149: Kołodziej Nicola | AC149: 1939-07-15 | AD149: 1 | AE149: 161 | AF149: 62 | AG149: Tak | AH149: 79
B150: Dąbrowski Ryan | C150: 29.01234568 | AA150: 148 | AB150: Kaźmierczak Karina | AC150: 1973-04-04 | AD150: 1 | AE150: 166 | AF150: 60 | AG150: Tak | AH150: 45
B151: Duda Daria | C151: 23.71184463 | AA151: 149 | AB151: Sobczak Róża | AC151: 1929-08-28 | AD151: 1 | AE151: 162 | AF151: 70 | AG151: Nie | AH151: 88
B152: Duda Ignacy | C152: 28.06642387 | AA152: 150 | AB152: Urbański Kornel | AC152: 1926-03-09 | AD152: 0 | AE152: 162 | AF152: 75 | AG152: Nie | AH152: 92
B153: Duda Julian | C153: 29.06122449 | AA153: 151 | AB153: Sikorska Marianna | AC153: 1950-09-10 | AD153: 1 | AE153: 164 | AF153: 81 | AG153: Tak | AH153: 67
B154: Duda Luka | C154: 31.95078981 | AA154: 152 | AB154: Kaźmierczak Nataniel | AC154: 1964-07-05 | AD154: 0 | AE154: 178 | AF154: 73 | AG154: Nie | AH154: 54
B155: Duda Majka | C155: 18.59103675 | AA155: 153 | AB155: Głowacka Rozalia | AC155: 1954-08-13 | AD155: 1 | AE155: 161 | AF155: 59 | AG155: Nie | AH155: 63
B156: Duda Mirella | C156: 31.09789075 | AA156: 154 | AB156: Krajewska Vanessa | AC156: 1954-08-20 | AD156: 1 | AE156: 162 | AF156: 73 | AG156: Nie | AH156: 63
B157: Duda Nicolas | C157: 27.37966468 | AA157: 155 | AB157: Zakrzewska Marlena | AC157: 1950-04-23 | AD157: 1 | AE157: 164 | AF157: 59 | AG157: Tak | AH157: 68
B158: Duda Oktawia | C158: 21.19274242 | AA158: 156 | AB158: Sobczak Alex | AC158: 1930-11-23 | AD158: 0 | AE158: 154 | AF158: 60 | AG158: Tak | AH158: 87
B159: Duda Oscar | C159: 34.88252796 | AA159: 157 | AB159: Konieczny Norbert | AC159: 1947-04-06 | AD159: 0 | AE159: 177 | AF159: 66 | AG159: Tak | AH159: 71
B160: Duda Roksana | C160: 22.10028959 | AA160: 158 | AB160: Adamska Dagmara | AC160: 1980-06-12 | AD160: 1 | AE160: 166 | AF160: 71 | AG160: Nie | AH160: 38
B161: Dudek Alan | C161: 20.33832645 | AA161: 159 | AB161: Głowacki Aleks | AC161: 1968-10-04 | AD161: 0 | AE161: 176 | AF161: 75 | AG161: Tak | AH161: 49
B162: Dudek Aleksy | C162: 27.77427093 | AA162: 160 | AB162: Wasilewska Liwia | AC162: 1951-06-19 | AD162: 1 | AE162: 166 | AF162: 60 | AG162: Tak | AH162: 67
B163: Dudek Feliks | C163: 12.59039256 | AA163: 161 | AB163: Zakrzewski Brajan | AC163: 1939-09-24 | AD163: 0 | AE163: 183 | AF163: 70 | AG163: Tak | AH163: 78
B164: Dudek Kornelia | C164: 31.63371488 | AA164: 162 | AB164: Gajewska Ada | AC164: 1942-06-25 | AD164: 1 | AE164: 158 | AF164: 72 | AG164: Nie | AH164: 76
B165: Dudek Krzysztof | C165: 24.41927902 | AA165: 163 | AB165: Laskowska Julita | AC165: 1950-09-09 | AD165: 1 | AE165: 164 | AF165: 86 | AG165: Nie | AH165: 67
B166: Dudek Letycja | C166: 30.10211858 | AA166: 164 | AB166: Krupa Sonia | AC166: 1928-10-23 | AD166: 1 | AE166: 171 | AF166: 94 | AG166: Tak | AH166: 89
B167: Dudek Marta | C167: 20.703125 | AA167: 165 | AB167: Krupa Andrzej | AC167: 1953-10-23 | AD167: 0 | AE167: 174 | AF167: 88 | AG167: Nie | AH167: 64
B168: Dudek Nathaniel | C168: 31.17913832 | AA168: 166 | AB168: Wasilewski Seweryn | AC168: 1944-12-08 | AD168: 0 | AE168: 171 | AF168: 83 | AG168: Nie | AH168: 73
B169: Dudek Samanta | C169: 15.24157903 | AA169: 167 | AB169: Krajewski Jacek | AC169: 1942-05-07 | AD169: 0 | AE169: 164 | AF169: 57 | AG169: Tak | AH169: 76
B170: Dudek Zoja | C170: 34.29355281 | AA170: 168 | AB170: Adamski Witold | AC170: 1984-11-25 | AD170: 0 | AE170: 173 | AF170: 99 | AG170: Nie | AH170: 33
B171: Gajewska Ada | C171: 28.84153181 | AA171: 169 | AB171: Ziółkowska Aurelia | AC171: 1923-09-04 | AD171: 1 | AE171: 162 | AF171: 45 | AG171: Tak | AH171: 94
B172: Gajewska Dagmara | C172: 26.29848784 | AA172: 170 | AB172: Szulc Bianka | AC172: 1929-10-08 | AD172: 1 | AE172: 164 | AF172: 55 | AG172: Tak | AH172: 88
B173: Gajewska Dalia | C173: 28.06894434 | AA173: 171 | AB173: Czerwińska Nela | AC173: 1958-02-21 | AD173: 1 | AE173: 168 | AF173: 64 | AG173: Tak | AH173: 60
B174: Gajewska Liza | C174: 28.19428425 | AA174: 172 | AB174: Makowska Ewelina | AC174: 1944-07-20 | AD174: 1 | AE174: 165 | AF174: 59 | AG174: Nie | AH174: 74
B175: Gajewski Alwin | C175: 25.85463947 | AA175: 173 | AB175: Brzezińska Anita | AC175: 1947-04-12 | AD175: 1 | AE175: 169 | AF175: 86 | AG175: Nie | AH175: 71
B176: Gajewski Antonio | C176: 24.33747972 | AA176: 174 | AB176: Sikorski Dorian | AC176: 1982-03-18 | AD176: 0 | AE176: 176 | AF176: 85 | AG176: Nie | AH176: 36
B177: Gajewski Jędrzej | C177: 24.38237298 | AA177: 175 | AB177: Mróz Jerzy | AC177: 1964-10-01 | AD177: 0 | AE177: 158 | AF177: 89 | AG177: Tak | AH177: 53
B178: Gajewski Seweryn | C178: 27.28174603 | AA178: 176 | AB178: Przybylska Olivia | AC178: 1940-07-22 | AD178: 1 | AE178: 166 | AF178: 50 | AG178: Tak | AH178: 78
B179: Gajewski Wincenty | C179: 27.74474832 | AA179: 177 | AB179: Szymczak Angelika | AC179: 1947-12-13 | AD179: 1 | AE179: 173 | AF179: 54 | AG179: Tak | AH179: 70
B180: Głowacka Ariana | C180: 25.63691716 | AA180: 178 | AB180: Baranowska Sylwia | AC180: 1990-05-11 | AD180: 1 | AE180: 162 | AF180: 61 | AG180: Tak | AH180: 28
B181: Głowacka Larysa | C181: 23.66524436 | AA181: 179 | AB181: Mróz Elena | AC181: 1941-11-07 | AD181: 1 | AE181: 172 | AF181: 86 | AG181: Tak | AH181: 76
B182: Głowacka Rozalia | C182: 22.76146754 | AA182: 180 | AB182: Laskowski Iwo | AC182: 1948-12-07 | AD182: 0 | AE182: 172 | AF182: 74 | AG182: Nie | AH182: 69
B183: Głowacka Róża | C183: 24.52434635 | AA183: 181 | AB183: Błaszczyk Tatiana | AC183: 1944-08-24 | AD183: 1 | AE183: 157 | AF183: 58 | AG183: Tak | AH183: 73
B184: Głowacka Stella | C184: 35.56394252 | AA184: 182 | AB184: Borowska Victoria | AC184: 1933-05-07 | AD184: 1 | AE184: 165 | AF184: 58 | AG184: Tak | AH184: 85
B185: Głowacki Aleks | C185: 24.21229339 | AA185: 183 | AB185: Andrzejewska Diana | AC185: 1927-01-26 | AD185: 1 | AE185: 167 | AF185: 80 | AG185: Nie | AH185: 91
B186: Głowacki Allan | C186: 29.98358793 | AA186: 184 | AB186: Gajewski Jędrzej | AC186: 1967-03-25 | AD186: 0 | AE186: 167 | AF186: 68 | AG186: Tak | AH186: 51
B187: Głowacki Ireneusz | C187: 24.77209671 | AA187: 185 | AB187: Ziółkowski Juliusz | AC187: 1963-11-15 | AD187: 0 | AE187: 187 | AF187: 113 | AG187: Nie | AH187: 54
B188: Głowacki Radomir | C188: 25.25951557 | AA188: 186 | AB188: Szulc Cyprian | AC188: 1921-07-11 | AD188: 0 | AE188: 168 | AF188: 79 | AG188: Nie | AH188: 97
B189: Głowacki Tobiasz | C189: 22.5710475 | AA189: 187 | AB189: Górecka Jowita | AC189: 1965-08-19 | AD189: 1 | AE189: 160 | AF189: 62 | AG189: Tak | AH189: 52
B190: Górecka Bogusława | C190: 19.53125 | AA190: 188 | AB190: Makowski Tadeusz | AC190: 1923-07-04 | AD190: 0 | AE190: 182 | AF190: 87 | AG190: Nie | AH190: 95
B191: Górecka Jowita | C191: 24.21875 | AA191: 189 | AB191: Cieślak Judyta | AC191: 1953-08-03 | AD191: 1 | AE191: 155 | AF191: 57 | AG191: Tak | AH191: 65
B192: Górecka Sofia | C192: 20.07733492 | AA192: 190 | AB192: Czerwiński Dariusz | AC192: 1975-10-01 | AD192: 0 | AE192: 180 | AF192: 81 | AG192: Tak | AH192: 42
B193: Górecka Victoria | C193: 15.9674844 | AA193: 191 | AB193: Baranowski Ryszard | AC193: 1930-07-31 | AD193: 0 | AE193: 175 | AF193: 76 | AG193: Tak | AH193: 88
B194: Górska Antonia | C194: 35.56394252 | AA194: 192 | AB194: Kaczmarczyk Jessica | AC194: 1931-06-04 | AD194: 1 | AE194: 150 | AF194: 40 | AG194: Tak | AH194: 87
B195: Górska Layla | C195: 23.12467037 | AA195: 193 | AB195: Szymczak Jeremi | AC195: 1932-12-10 | AD195: 0 | AE195: 175 | AF195: 73 | AG195: Nie | AH195: 85
B196: Górska Małgorzata | C196: 27.70083102 | AA196: 194 | AB196: Brzeziński Mariusz | AC196: 1941-12-21 | AD196: 0 | AE196: 176 | AF196: 76 | AG196: Tak | AH196: 76
B197: Górska Nina | C197: 28.62879239 | AA197: 195 | AB197: Kaczmarczyk Albert | AC197: 1964-12-27 | AD197: 0 | AE197: 174 | AF197: 65 | AG197: Tak | AH197: 53
B198: Górska Rita | C198: 34.9635796 | AA198: 196 | AB198: Przybylski Stefan | AC198: 1925-12-31 | AD198: 0 | AE198: 171 | AF198: 80 | AG198: Tak | AH198: 92
B199: Górski Adrian | C199: 27.35884546 | AA199: 197 | AB199: Cieślak Remigiusz | AC199: 1949-01-14 | AD199: 0 | AE199: 176 | AF199: 75 | AG199: Tak | AH199: 69
B200: Górski David | C200: 22.03840116 | AA200: 198 | AB200: Borowski Leonard | AC200: 1926-11-28 | AD200: 0 | AE200: 173 | AF200: 71 | AG200: Nie | AH200: 91
... 808 more rows

Sheet Zadanie 5 (hidden)
B2: Zadanie 5
B4: W komórce C6 podaj łączną liczbę osób, pobraną z danych z tabeli poniżej.
B6: Liczba osób:
B8: Dane
B9: E.2os.
B10: P.5os.
B11: R.1os.
B12: R.4os.
B13: E.4os.
B14: E.3os.
B15: E.4os.
B16: R.2os.
B17: E.1os.
B18: E.3os.
B19: E.1os.
B20: V.6os.
B21: P.1os.
B22: E.3os.
B23: R.2os.
B24: E.2os.
B25: V.1os.
B26: W.4os.
B27: E.4os.
B28: E.2os.
B29: E.3os.
B30: W.1os.
B31: V.2os.
B32: A.5os.
B33: V.6os.
B34: E.1os.
B35: A.1os.
B36: A.4os.
B37: V.1os.
B38: V.2os.
B39: V.4os.
B40: V.4os.
B41: R.1os.
B42: R.2os.
B43: W.2os.
B44: A.2os.
B45: E.1os.
B46: E.1os.
B47: A.1os.
B48: E.3os.
B49: R.1os.
B50: W.5os.
B51: R.2os.
B52: E.2os.
B53: R.3os.
B54: R.1os.
B55: W.1os.
B56: A.2os.
B57: W.1os.
B58: A.3os.
B59: E.5os.
B60: V.2os.
B61: V.1os.
B62: E.1os.
B63: V.1os.
B64: R.1os.
B65: A.2os.
B66: R.1os.
B67: E.4os.
B68: E.3os.
B69: E.2os.
B70: P.2os.
B71: V.2os.
B72: W.1os.
B73: R.2os.
B74: R.2os.
B75: R.2os.
B76: W.3os.
B77: P.2os.
B78: A.1os.
B79: V.2os.
B80: E.3os.
B81: W.3os.
B82: E.2os.
B83: R.5os.
B84: P.1os.
B85: E.4os.
B86: R.3os.
B87: E.3os.
B88: E.1os.
B89: V.3os.
B90: R.2os.
B91: V.1os.
B92: E.3os.
B93: R.5os.
B94: R.3os.
B95: R.2os.
B96: A.2os.
B97: E.4os.
B98: W.3os.
B99: P.2os.
B100: E.2os.
B101: E.1os.
B102: R.4os.
B103: E.1os.
B104: A.1os.
B105: E.1os.
B106: V.2os.
B107: R.1os.
B108: W.1os.
B109: E.3os.
B110: V.2os.
B111: R.2os.
B112: R.1os.
B113: V.1os.
B114: E.5os.
B115: W.2os.
B116: R.4os.
B117: E.2os.
B118: E.4os.
B119: E.3os.
B120: E.1os.
B121: R.4os.
B122: E.2os.
B123: E.1os.
B124: E.3os.
B125: E.1os.
B126: E.2os.
B127: E.4os.
B128: W.1os.
B129: E.1os.
B130: E.2os.
B131: R.2os.
B132: E.3os.
B133: R.5os.
B134: V.4os.
B135: E.2os.
B136: V.4os.
B137: E.4os.
B138: E.1os.
B139: P.2os.
B140: A.1os.
B141: V.3os.
B142: A.1os.
B143: A.2os.
B144: A.2os.
B145: E.1os.
B146: E.5os.
B147: E.2os.
B148: E.1os.
B149: V.2os.
B150: V.4os.
B151: R.1os.
B152: R.5os.
B153: V.2os.
B154: W.1os.
B155: W.3os.
B156: W.1os.
B157: A.3os.
B158: V.2os.
B159: V.2os.
B160: V.1os.
B161: R.2os.
B162: R.2os.
B163: V.4os.
B164: E.1os.
B165: E.2os.
B166: P.2os.
B167: E.2os.
B168: R.4os.
B169: W.1os.
B170: A.4os.
B171: V.5os.
B172: V.3os.
B173: R.1os.
B174: A.3os.
B175: V.1os.
B176: E.1os.
B177: W.5os.
B178: E.4os.
B179: V.5os.
B180: V.2os.
B181: R.1os.
B182: V.1os.
B183: E.1os.
B184: R.1os.
B185: A.2os.
B186: A.3os.
B187: V.4os.
B188: R.2os.
B189: E.1os.
B190: E.6os.
B191: E.1os.
B192: V.2os.
B193: E.5os.
B194: W.1os.
B195: E.3os.
B196: V.5os.
B197: A.1os.
B198: W.5os.
B199: E.3os.
B200: E.4os.
B201: E.1os.
B202: E.3os.
B203: R.4os.
B204: W.6os.
... 796 more rows

Sheet Zadanie 5-rozw (hidden)
B2: Zadanie 5-rozw
B4: W komórce C6 podaj łączną liczbę osób, pobraną z danych z tabeli poniżej.
B6: Liczba osób: | C6: =SUM(B9:B1000) -> 3120
B8: Dane | E8: Schemat rozwiązania:
B9: 2
B10: 5 | E10: Metoda 1 (narzędzie Zamień):
B11: 1 | E11: 1. Zaznacz dane (zaznacz komórkę B8 i naciśnij Ctrl+A).
B12: 4 | E12: 2. Użyj narzędzia Zamień (Ctrl+H):
B13: 4 | E13: o Znajdź "os.", Zamień na: "";
B14: 3 | E14: o Znajdź "*.", Zamień na: "".
B15: 4 | E15: 3. W komórce C6 wpisz formułę: =SUMA(B9:B1000).
B16: 2
B17: 1 | E17: Metoda 2 (narzędzie Tekst jako kolumny):
B18: 3 | E18: 1. Zaznacz dane (zaznacz komórkę B8 i naciśnij Ctrl+A).
B19: 1 | E19: 2. Użyj narzędzia Tekst jako kolumny (Dane > Tekst jako kolumny):
B20: 6 | E20: o w kroku 1 wybierz opcję Stała szerokość;
B21: 1 | E21: o w kroku 2 ręcznie zaznacz położenie kolumn - rozdzielniki wstaw przed i po cyfrze.
B22: 3 | E22: 3. W komórce C6 wpisz formułę: =SUMA(C9:C1000).
B23: 2
B24: 2 | E24: Metoda 3 (funkcje tekstowe):
B25: 1 | E25: 1. W komórce C9 wpisz formułę: =FRAGMENT.TEKSTU(B9;3;1)*1.
B26: 4 | E26: 2. Przeciągnij ją do pozostałych komórek (C10:C1000).
B27: 4 | E27: 3. W komórce C6 wpisz formułę: =SUMA(C9:C1000).
B28: 2
B29: 3
B30: 1
B31: 2
B32: 5
B33: 6
B34: 1
B35: 1
B36: 4
B37: 1
B38: 2
B39: 4
B40: 4
B41: 1
B42: 2
B43: 2
B44: 2
B45: 1
B46: 1
B47: 1
B48: 3
B49: 1
B50: 5
B51: 2
B52: 2
B53: 3
B54: 1
B55: 1
B56: 2
B57: 1
B58: 3
B59: 5
B60: 2
B61: 1
B62: 1
B63: 1
B64: 1
B65: 2
B66: 1
B67: 4
B68: 3
B69: 2
B70: 2
B71: 2
B72: 1
B73: 2
B74: 2
B75: 2
B76: 3
B77: 2
B78: 1
B79: 2
B80: 3
B81: 3
B82: 2
B83: 5
B84: 1
B85: 4
B86: 3
B87: 3
B88: 1
B89: 3
B90: 2
B91: 1
B92: 3
B93: 5
B94: 3
B95: 2
B96: 2
B97: 4
B98: 3
B99: 2
B100: 2
B101: 1
B102: 4
B103: 1
B104: 1
B105: 1
B106: 2
B107: 1
B108: 1
B109: 3
B110: 2
B111: 2
B112: 1
B113: 1
B114: 5
B115: 2
B116: 4
B117: 2
B118: 4
B119: 3
B120: 1
B121: 4
B122: 2
B123: 1
B124: 3
B125: 1
B126: 2
B127: 4
B128: 1
B129: 1
B130: 2
B131: 2
B132: 3
B133: 5
B134: 4
B135: 2
B136: 4
B137: 4
B138: 1
B139: 2
B140: 1
B141: 3
B142: 1
B143: 2
B144: 2
B145: 1
B146: 5
B147: 2
B148: 1
B149: 2
B150: 4
B151: 1
B152: 5
B153: 2
B154: 1
B155: 3
B156: 1
B157: 3
B158: 2
B159: 2
B160: 1
B161: 2
B162: 2
B163: 4
B164: 1
B165: 2
B166: 2
B167: 2
B168: 4
B169: 1
B170: 4
B171: 5
B172: 3
B173: 1
B174: 3
B175: 1
B176: 1
B177: 5
B178: 4
B179: 5
B180: 2
B181: 1
B182: 1
B183: 1
B184: 1
B185: 2
B186: 3
B187: 4
B188: 2
B189: 1
B190: 6
B191: 1
B192: 2
B193: 5
B194: 1
B195: 3
B196: 5
B197: 1
B198: 5
B199: 3
B200: 4
B201: 1
B202: 3
B203: 4
B204: 6
... 796 more rows

Sheet Zadanie 6 (hidden)
B2: Zadanie 6
B4: W tabeli z linkami do stron kursów, po ostatnim ukośniku, znajdują się nazwy kursów, np. excel-3, powerpoint-1, itd.
B5: Twoim zadaniem jest wypisanie UNIKATOWYCH nazw kursów (każdy kurs dokładnie jeden raz) w kolejności
B6: ALFABETYCZNEJ w tabeli Lista kursów (od komórki B9 w dół).
B8: Lista kursów | D8: Link do strony kursu
D9: https://labmasters.pl/kursy-otwarte/excel/excel-3
D10: https://labmasters.pl/kursy-otwarte/powerpoint/powerpoint-1
D11: https://labmasters.pl/kursy-otwarte/r/r-3
D12: https://labmasters.pl/kursy-otwarte/r/r-2
D13: https://labmasters.pl/kursy-otwarte/excel/excel-4
D14: https://labmasters.pl/e-learning/excel/excel-3
D15: https://labmasters.pl/kursy-otwarte/excel/excel-2
D16: https://labmasters.pl/kursy-otwarte/r/r-1
D17: https://labmasters.pl/kursy-otwarte/excel/excel-4
D18: https://labmasters.pl/e-learning/excel/excel-3
D19: https://labmasters.pl/kursy-otwarte/excel/excel-4
D20: https://labmasters.pl/kursy-otwarte/vba/vba-2
D21: https://labmasters.pl/kursy-otwarte/powerpoint/powerpoint-1
D22: https://labmasters.pl/kursy-otwarte/excel/excel-3
D23: https://labmasters.pl/kursy-otwarte/r/r-4
D24: https://labmasters.pl/e-learning/excel/excel-2
D25: https://labmasters.pl/kursy-otwarte/vba/vba-1
D26: https://labmasters.pl/kursy-otwarte/word/word-1
D27: https://labmasters.pl/kursy-otwarte/excel/excel-1
D28: https://labmasters.pl/e-learning/excel/excel-1
D29: https://labmasters.pl/kursy-otwarte/excel/excel-3
D30: https://labmasters.pl/kursy-otwarte/word/word-1
D31: https://labmasters.pl/kursy-otwarte/vba/vba-4
D32: https://labmasters.pl/kursy-otwarte/access/access-1
D33: https://labmasters.pl/kursy-otwarte/vba/vba-3
D34: https://labmasters.pl/e-learning/excel/excel-3
D35: https://labmasters.pl/kursy-otwarte/access/access-2
D36: https://labmasters.pl/kursy-otwarte/access/access-1
D37: https://labmasters.pl/kursy-otwarte/vba/vba-3
D38: https://labmasters.pl/kursy-otwarte/vba/vba-4
D39: https://labmasters.pl/kursy-otwarte/vba/vba-4
D40: https://labmasters.pl/kursy-otwarte/vba/vba-2
D41: https://labmasters.pl/kursy-otwarte/r/r-4
D42: https://labmasters.pl/kursy-otwarte/r/r-1
D43: https://labmasters.pl/kursy-otwarte/word/word-1
D44: https://labmasters.pl/kursy-otwarte/access/access-2
D45: https://labmasters.pl/kursy-otwarte/excel/excel-4
D46: https://labmasters.pl/kursy-otwarte/excel/excel-3
D47: https://labmasters.pl/kursy-otwarte/access/access-2
D48: https://labmasters.pl/kursy-otwarte/excel/excel-4
D49: https://labmasters.pl/kursy-otwarte/r/r-4
D50: https://labmasters.pl/kursy-otwarte/word/word-1
D51: https://labmasters.pl/kursy-otwarte/r/r-3
D52: https://labmasters.pl/kursy-otwarte/excel/excel-1
D53: https://labmasters.pl/kursy-otwarte/r/r-4
D54: https://labmasters.pl/kursy-otwarte/r/r-1
D55: https://labmasters.pl/kursy-otwarte/word/word-1
D56: https://labmasters.pl/kursy-otwarte/access/access-1
D57: https://labmasters.pl/kursy-otwarte/word/word-1
D58: https://labmasters.pl/kursy-otwarte/access/access-1
D59: https://labmasters.pl/kursy-otwarte/excel/excel-4
D60: https://labmasters.pl/kursy-otwarte/vba/vba-4
D61: https://labmasters.pl/kursy-otwarte/vba/vba-1
D62: https://labmasters.pl/kursy-otwarte/excel/excel-3
D63: https://labmasters.pl/kursy-otwarte/vba/vba-3
D64: https://labmasters.pl/kursy-otwarte/r/r-2
D65: https://labmasters.pl/kursy-otwarte/access/access-2
D66: https://labmasters.pl/kursy-otwarte/r/r-1
D67: https://labmasters.pl/e-learning/excel/excel-3
D68: https://labmasters.pl/kursy-otwarte/excel/excel-4
D69: https://labmasters.pl/e-learning/excel/excel-2
D70: https://labmasters.pl/kursy-otwarte/powerpoint/powerpoint-1
D71: https://labmasters.pl/kursy-otwarte/vba/vba-4
D72: https://labmasters.pl/kursy-otwarte/word/word-1
D73: https://labmasters.pl/kursy-otwarte/r/r-1
D74: https://labmasters.pl/kursy-otwarte/r/r-1
D75: https://labmasters.pl/kursy-otwarte/r/r-4
D76: https://labmasters.pl/kursy-otwarte/word/word-1
D77: https://labmasters.pl/kursy-otwarte/powerpoint/powerpoint-1
D78: https://labmasters.pl/kursy-otwarte/access/access-2
D79: https://labmasters.pl/kursy-otwarte/vba/vba-4
D80: https://labmasters.pl/e-learning/excel/excel-3
D81: https://labmasters.pl/kursy-otwarte/word/word-1
D82: https://labmasters.pl/kursy-otwarte/excel/excel-3
D83: https://labmasters.pl/kursy-otwarte/r/r-1
D84: https://labmasters.pl/kursy-otwarte/powerpoint/powerpoint-1
D85: https://labmasters.pl/e-learning/excel/excel-2
D86: https://labmasters.pl/kursy-otwarte/r/r-4
D87: https://labmasters.pl/e-learning/excel/excel-2
D88: https://labmasters.pl/kursy-otwarte/excel/excel-1
D89: https://labmasters.pl/kursy-otwarte/vba/vba-1
D90: https://labmasters.pl/kursy-otwarte/r/r-1
D91: https://labmasters.pl/kursy-otwarte/vba/vba-2
D92: https://labmasters.pl/e-learning/excel/excel-1
D93: https://labmasters.pl/kursy-otwarte/r/r-3
D94: https://labmasters.pl/kursy-otwarte/r/r-4
D95: https://labmasters.pl/kursy-otwarte/r/r-2
D96: https://labmasters.pl/kursy-otwarte/access/access-1
D97: https://labmasters.pl/kursy-otwarte/excel/excel-1
D98: https://labmasters.pl/kursy-otwarte/word/word-1
D99: https://labmasters.pl/kursy-otwarte/powerpoint/powerpoint-1
D100: https://labmasters.pl/kursy-otwarte/excel/excel-3
D101: https://labmasters.pl/kursy-otwarte/excel/excel-1
D102: https://labmasters.pl/kursy-otwarte/r/r-2
D103: https://labmasters.pl/kursy-otwarte/excel/excel-4
D104: https://labmasters.pl/kursy-otwarte/access/access-2
D105: https://labmasters.pl/e-learning/excel/excel-3
D106: https://labmasters.pl/kursy-otwarte/vba/vba-4
D107: https://labmasters.pl/kursy-otwarte/r/r-4
D108: https://labmasters.pl/kursy-otwarte/word/word-1
D109: https://labmasters.pl/kursy-otwarte/excel/excel-2
D110: https://labmasters.pl/kursy-otwarte/vba/vba-1
D111: https://labmasters.pl/kursy-otwarte/r/r-1
D112: https://labmasters.pl/kursy-otwarte/r/r-3
D113: https://labmasters.pl/kursy-otwarte/vba/vba-4
D114: https://labmasters.pl/kursy-otwarte/excel/excel-2
D115: https://labmasters.pl/kursy-otwarte/word/word-1
D116: https://labmasters.pl/kursy-otwarte/r/r-1
D117: https://labmasters.pl/e-learning/excel/excel-3
D118: https://labmasters.pl/kursy-otwarte/excel/excel-4
D119: https://labmasters.pl/e-learning/excel/excel-1
D120: https://labmasters.pl/kursy-otwarte/excel/excel-1
D121: https://labmasters.pl/kursy-otwarte/r/r-1
D122: https://labmasters.pl/kursy-otwarte/excel/excel-4
D123: https://labmasters.pl/e-learning/excel/excel-1
D124: https://labmasters.pl/e-learning/excel/excel-1
D125: https://labmasters.pl/kursy-otwarte/excel/excel-3
D126: https://labmasters.pl/e-learning/excel/excel-2
D127: https://labmasters.pl/e-learning/excel/excel-1
D128: https://labmasters.pl/kursy-otwarte/word/word-1
D129: https://labmasters.pl/e-learning/excel/excel-2
D130: https://labmasters.pl/kursy-otwarte/excel/excel-1
D131: https://labmasters.pl/kursy-otwarte/r/r-4
D132: https://labmasters.pl/e-learning/excel/excel-2
D133: https://labmasters.pl/kursy-otwarte/r/r-4
D134: https://labmasters.pl/kursy-otwarte/vba/vba-2
D135: https://labmasters.pl/kursy-otwarte/excel/excel-4
D136: https://labmasters.pl/kursy-otwarte/vba/vba-2
D137: https://labmasters.pl/e-learning/excel/excel-2
D138: https://labmasters.pl/kursy-otwarte/excel/excel-2
D139: https://labmasters.pl/kursy-otwarte/powerpoint/powerpoint-1
D140: https://labmasters.pl/kursy-otwarte/access/access-1
D141: https://labmasters.pl/kursy-otwarte/vba/vba-1
D142: https://labmasters.pl/kursy-otwarte/access/access-2
D143: https://labmasters.pl/kursy-otwarte/access/access-1
D144: https://labmasters.pl/kursy-otwarte/access/access-2
D145: https://labmasters.pl/kursy-otwarte/excel/excel-1
D146: https://labmasters.pl/kursy-otwarte/excel/excel-2
D147: https://labmasters.pl/kursy-otwarte/excel/excel-2
D148: https://labmasters.pl/e-learning/excel/excel-1
D149: https://labmasters.pl/kursy-otwarte/vba/vba-3
D150: https://labmasters.pl/kursy-otwarte/vba/vba-2
D151: https://labmasters.pl/kursy-otwarte/r/r-4
D152: https://labmasters.pl/kursy-otwarte/r/r-4
D153: https://labmasters.pl/kursy-otwarte/vba/vba-2
D154: https://labmasters.pl/kursy-otwarte/word/word-1
D155: https://labmasters.pl/kursy-otwarte/word/word-1
D156: https://labmasters.pl/kursy-otwarte/word/word-1
D157: https://labmasters.pl/kursy-otwarte/access/access-1
D158: https://labmasters.pl/kursy-otwarte/vba/vba-2
D159: https://labmasters.pl/kursy-otwarte/vba/vba-2
D160: https://labmasters.pl/kursy-otwarte/vba/vba-4
D161: https://labmasters.pl/kursy-otwarte/r/r-1
D162: https://labmasters.pl/kursy-otwarte/r/r-1
D163: https://labmasters.pl/kursy-otwarte/vba/vba-2
D164: https://labmasters.pl/kursy-otwarte/excel/excel-2
D165: https://labmasters.pl/e-learning/excel/excel-1
D166: https://labmasters.pl/kursy-otwarte/powerpoint/powerpoint-1
D167: https://labmasters.pl/e-learning/excel/excel-3
D168: https://labmasters.pl/kursy-otwarte/r/r-2
D169: https://labmasters.pl/kursy-otwarte/word/word-1
D170: https://labmasters.pl/kursy-otwarte/access/access-1
D171: https://labmasters.pl/kursy-otwarte/vba/vba-2
D172: https://labmasters.pl/kursy-otwarte/vba/vba-1
D173: https://labmasters.pl/kursy-otwarte/r/r-2
D174: https://labmasters.pl/kursy-otwarte/access/access-1
D175: https://labmasters.pl/kursy-otwarte/vba/vba-3
D176: https://labmasters.pl/kursy-otwarte/excel/excel-2
D177: https://labmasters.pl/kursy-otwarte/word/word-1
D178: https://labmasters.pl/e-learning/excel/excel-3
D179: https://labmasters.pl/kursy-otwarte/vba/vba-1
D180: https://labmasters.pl/kursy-otwarte/vba/vba-2
D181: https://labmasters.pl/kursy-otwarte/r/r-3
D182: https://labmasters.pl/kursy-otwarte/vba/vba-4
D183: https://labmasters.pl/kursy-otwarte/excel/excel-1
D184: https://labmasters.pl/kursy-otwarte/r/r-4
D185: https://labmasters.pl/kursy-otwarte/access/access-1
D186: https://labmasters.pl/kursy-otwarte/access/access-1
D187: https://labmasters.pl/kursy-otwarte/vba/vba-3
D188: https://labmasters.pl/kursy-otwarte/r/r-1
D189: https://labmasters.pl/kursy-otwarte/excel/excel-4
D190: https://labmasters.pl/kursy-otwarte/excel/excel-3
D191: https://labmasters.pl/e-learning/excel/excel-2
D192: https://labmasters.pl/kursy-otwarte/vba/vba-3
D193: https://labmasters.pl/kursy-otwarte/excel/excel-1
D194: https://labmasters.pl/kursy-otwarte/word/word-1
D195: https://labmasters.pl/kursy-otwarte/excel/excel-2
D196: https://labmasters.pl/kursy-otwarte/vba/vba-3
D197: https://labmasters.pl/kursy-otwarte/access/access-1
D198: https://labmasters.pl/kursy-otwarte/word/word-1
D199: https://labmasters.pl/kursy-otwarte/excel/excel-3
D200: https://labmasters.pl/e-learning/excel/excel-3
D201: https://labmasters.pl/e-learning/excel/excel-3
D202: https://labmasters.pl/kursy-otwarte/excel/excel-2
D203: https://labmasters.pl/kursy-otwarte/r/r-2
... 797 more rows

Sheet Zadanie 6-rozw (hidden)
B2: Zadanie 6-rozw
B4: W tabeli z linkami do stron kursów, po ostatnim ukośniku, znajdują się nazwy kursów, np. excel-3, powerpoint-1, itd.
B5: Twoim zadaniem jest wypisanie UNIKATOWYCH nazw kursów (każdy kurs dokładnie jeden raz) w kolejności
B6: ALFABETYCZNEJ w tabeli Lista kursów (od komórki B9 w dół).
B8: Lista kursów | D8: Link do strony kursu | F8: Schemat rozwiązania:
B9: access-1 | D9: https://labmasters.pl/kursy-otwarte/excel/excel-3 | F9: 1. Zaznacz komórkę D9 i naciśnij Ctrl+A.
B10: access-2 | D10: https://labmasters.pl/kursy-otwarte/powerpoint/powerpoint-1 | F10: 2. Na wstążce wybierz Dane > Tekst jako kolumny i ustaw prawy ukośnik, jako separator kolumn ("/").
B11: excel-1 | D11: https://labmasters.pl/kursy-otwarte/r/r-3 | F11: 3. Skopiuj rozdzielone nazwy kursów i wklej do komórki B9.
B12: excel-2 | D12: https://labmasters.pl/kursy-otwarte/r/r-2 | F12: 4. Na wstążce wybierz Dane > Usuń duplikaty.
B13: excel-3 | D13: https://labmasters.pl/kursy-otwarte/excel/excel-4 | F13: 5. Posortuj dane od A do Z.
B14: excel-4 | D14: https://labmasters.pl/e-learning/excel/excel-3
B15: powerpoint-1 | D15: https://labmasters.pl/kursy-otwarte/excel/excel-2
B16: r-1 | D16: https://labmasters.pl/kursy-otwarte/r/r-1
B17: r-2 | D17: https://labmasters.pl/kursy-otwarte/excel/excel-4
B18: r-3 | D18: https://labmasters.pl/e-learning/excel/excel-3
B19: r-4 | D19: https://labmasters.pl/kursy-otwarte/excel/excel-4
B20: vba-1 | D20: https://labmasters.pl/kursy-otwarte/vba/vba-2
B21: vba-2 | D21: https://labmasters.pl/kursy-otwarte/powerpoint/powerpoint-1
B22: vba-3 | D22: https://labmasters.pl/kursy-otwarte/excel/excel-3
B23: vba-4 | D23: https://labmasters.pl/kursy-otwarte/r/r-4
B24: word-1 | D24: https://labmasters.pl/e-learning/excel/excel-2
D25: https://labmasters.pl/kursy-otwarte/vba/vba-1
D26: https://labmasters.pl/kursy-otwarte/word/word-1
D27: https://labmasters.pl/kursy-otwarte/excel/excel-1
D28: https://labmasters.pl/e-learning/excel/excel-1
D29: https://labmasters.pl/kursy-otwarte/excel/excel-3
D30: https://labmasters.pl/kursy-otwarte/word/word-1
D31: https://labmasters.pl/kursy-otwarte/vba/vba-4
D32: https://labmasters.pl/kursy-otwarte/access/access-1
D33: https://labmasters.pl/kursy-otwarte/vba/vba-3
D34: https://labmasters.pl/e-learning/excel/excel-3
D35: https://labmasters.pl/kursy-otwarte/access/access-2
D36: https://labmasters.pl/kursy-otwarte/access/access-1
D37: https://labmasters.pl/kursy-otwarte/vba/vba-3
D38: https://labmasters.pl/kursy-otwarte/vba/vba-4
D39: https://labmasters.pl/kursy-otwarte/vba/vba-4
D40: https://labmasters.pl/kursy-otwarte/vba/vba-2
D41: https://labmasters.pl/kursy-otwarte/r/r-4
D42: https://labmasters.pl/kursy-otwarte/r/r-1
D43: https://labmasters.pl/kursy-otwarte/word/word-1
D44: https://labmasters.pl/kursy-otwarte/access/access-2
D45: https://labmasters.pl/kursy-otwarte/excel/excel-4
D46: https://labmasters.pl/kursy-otwarte/excel/excel-3
D47: https://labmasters.pl/kursy-otwarte/access/access-2
D48: https://labmasters.pl/kursy-otwarte/excel/excel-4
D49: https://labmasters.pl/kursy-otwarte/r/r-4
D50: https://labmasters.pl/kursy-otwarte/word/word-1
D51: https://labmasters.pl/kursy-otwarte/r/r-3
D52: https://labmasters.pl/kursy-otwarte/excel/excel-1
D53: https://labmasters.pl/kursy-otwarte/r/r-4
D54: https://labmasters.pl/kursy-otwarte/r/r-1
D55: https://labmasters.pl/kursy-otwarte/word/word-1
D56: https://labmasters.pl/kursy-otwarte/access/access-1
D57: https://labmasters.pl/kursy-otwarte/word/word-1
D58: https://labmasters.pl/kursy-otwarte/access/access-1
D59: https://labmasters.pl/kursy-otwarte/excel/excel-4
D60: https://labmasters.pl/kursy-otwarte/vba/vba-4
D61: https://labmasters.pl/kursy-otwarte/vba/vba-1
D62: https://labmasters.pl/kursy-otwarte/excel/excel-3
D63: https://labmasters.pl/kursy-otwarte/vba/vba-3
D64: https://labmasters.pl/kursy-otwarte/r/r-2
D65: https://labmasters.pl/kursy-otwarte/access/access-2
D66: https://labmasters.pl/kursy-otwarte/r/r-1
D67: https://labmasters.pl/e-learning/excel/excel-3
D68: https://labmasters.pl/kursy-otwarte/excel/excel-4
D69: https://labmasters.pl/e-learning/excel/excel-2
D70: https://labmasters.pl/kursy-otwarte/powerpoint/powerpoint-1
D71: https://labmasters.pl/kursy-otwarte/vba/vba-4
D72: https://labmasters.pl/kursy-otwarte/word/word-1
D73: https://labmasters.pl/kursy-otwarte/r/r-1
D74: https://labmasters.pl/kursy-otwarte/r/r-1
D75: https://labmasters.pl/kursy-otwarte/r/r-4
D76: https://labmasters.pl/kursy-otwarte/word/word-1
D77: https://labmasters.pl/kursy-otwarte/powerpoint/powerpoint-1
D78: https://labmasters.pl/kursy-otwarte/access/access-2
D79: https://labmasters.pl/kursy-otwarte/vba/vba-4
D80: https://labmasters.pl/e-learning/excel/excel-3
D81: https://labmasters.pl/kursy-otwarte/word/word-1
D82: https://labmasters.pl/kursy-otwarte/excel/excel-3
D83: https://labmasters.pl/kursy-otwarte/r/r-1
D84: https://labmasters.pl/kursy-otwarte/powerpoint/powerpoint-1
D85: https://labmasters.pl/e-learning/excel/excel-2
D86: https://labmasters.pl/kursy-otwarte/r/r-4
D87: https://labmasters.pl/e-learning/excel/excel-2
D88: https://labmasters.pl/kursy-otwarte/excel/excel-1
D89: https://labmasters.pl/kursy-otwarte/vba/vba-1
D90: https://labmasters.pl/kursy-otwarte/r/r-1
D91: https://labmasters.pl/kursy-otwarte/vba/vba-2
D92: https://labmasters.pl/e-learning/excel/excel-1
D93: https://labmasters.pl/kursy-otwarte/r/r-3
D94: https://labmasters.pl/kursy-otwarte/r/r-4
D95: https://labmasters.pl/kursy-otwarte/r/r-2
D96: https://labmasters.pl/kursy-otwarte/access/access-1
D97: https://labmasters.pl/kursy-otwarte/excel/excel-1
D98: https://labmasters.pl/kursy-otwarte/word/word-1
D99: https://labmasters.pl/kursy-otwarte/powerpoint/powerpoint-1
D100: https://labmasters.pl/kursy-otwarte/excel/excel-3
D101: https://labmasters.pl/kursy-otwarte/excel/excel-1
D102: https://labmasters.pl/kursy-otwarte/r/r-2
D103: https://labmasters.pl/kursy-otwarte/excel/excel-4
D104: https://labmasters.pl/kursy-otwarte/access/access-2
D105: https://labmasters.pl/e-learning/excel/excel-3
D106: https://labmasters.pl/kursy-otwarte/vba/vba-4
D107: https://labmasters.pl/kursy-otwarte/r/r-4
D108: https://labmasters.pl/kursy-otwarte/word/word-1
D109: https://labmasters.pl/kursy-otwarte/excel/excel-2
D110: https://labmasters.pl/kursy-otwarte/vba/vba-1
D111: https://labmasters.pl/kursy-otwarte/r/r-1
D112: https://labmasters.pl/kursy-otwarte/r/r-3
D113: https://labmasters.pl/kursy-otwarte/vba/vba-4
D114: https://labmasters.pl/kursy-otwarte/excel/excel-2
D115: https://labmasters.pl/kursy-otwarte/word/word-1
D116: https://labmasters.pl/kursy-otwarte/r/r-1
D117: https://labmasters.pl/e-learning/excel/excel-3
D118: https://labmasters.pl/kursy-otwarte/excel/excel-4
D119: https://labmasters.pl/e-learning/excel/excel-1
D120: https://labmasters.pl/kursy-otwarte/excel/excel-1
D121: https://labmasters.pl/kursy-otwarte/r/r-1
D122: https://labmasters.pl/kursy-otwarte/excel/excel-4
D123: https://labmasters.pl/e-learning/excel/excel-1
D124: https://labmasters.pl/e-learning/excel/excel-1
D125: https://labmasters.pl/kursy-otwarte/excel/excel-3
D126: https://labmasters.pl/e-learning/excel/excel-2
D127: https://labmasters.pl/e-learning/excel/excel-1
D128: https://labmasters.pl/kursy-otwarte/word/word-1
D129: https://labmasters.pl/e-learning/excel/excel-2
D130: https://labmasters.pl/kursy-otwarte/excel/excel-1
D131: https://labmasters.pl/kursy-otwarte/r/r-4
D132: https://labmasters.pl/e-learning/excel/excel-2
D133: https://labmasters.pl/kursy-otwarte/r/r-4
D134: https://labmasters.pl/kursy-otwarte/vba/vba-2
D135: https://labmasters.pl/kursy-otwarte/excel/excel-4
D136: https://labmasters.pl/kursy-otwarte/vba/vba-2
D137: https://labmasters.pl/e-learning/excel/excel-2
D138: https://labmasters.pl/kursy-otwarte/excel/excel-2
D139: https://labmasters.pl/kursy-otwarte/powerpoint/powerpoint-1
D140: https://labmasters.pl/kursy-otwarte/access/access-1
D141: https://labmasters.pl/kursy-otwarte/vba/vba-1
D142: https://labmasters.pl/kursy-otwarte/access/access-2
D143: https://labmasters.pl/kursy-otwarte/access/access-1
D144: https://labmasters.pl/kursy-otwarte/access/access-2
D145: https://labmasters.pl/kursy-otwarte/excel/excel-1
D146: https://labmasters.pl/kursy-otwarte/excel/excel-2
D147: https://labmasters.pl/kursy-otwarte/excel/excel-2
D148: https://labmasters.pl/e-learning/excel/excel-1
D149: https://labmasters.pl/kursy-otwarte/vba/vba-3
D150: https://labmasters.pl/kursy-otwarte/vba/vba-2
D151: https://labmasters.pl/kursy-otwarte/r/r-4
D152: https://labmasters.pl/kursy-otwarte/r/r-4
D153: https://labmasters.pl/kursy-otwarte/vba/vba-2
D154: https://labmasters.pl/kursy-otwarte/word/word-1
D155: https://labmasters.pl/kursy-otwarte/word/word-1
D156: https://labmasters.pl/kursy-otwarte/word/word-1
D157: https://labmasters.pl/kursy-otwarte/access/access-1
D158: https://labmasters.pl/kursy-otwarte/vba/vba-2
D159: https://labmasters.pl/kursy-otwarte/vba/vba-2
D160: https://labmasters.pl/kursy-otwarte/vba/vba-4
D161: https://labmasters.pl/kursy-otwarte/r/r-1
D162: https://labmasters.pl/kursy-otwarte/r/r-1
D163: https://labmasters.pl/kursy-otwarte/vba/vba-2
D164: https://labmasters.pl/kursy-otwarte/excel/excel-2
D165: https://labmasters.pl/e-learning/excel/excel-1
D166: https://labmasters.pl/kursy-otwarte/powerpoint/powerpoint-1
D167: https://labmasters.pl/e-learning/excel/excel-3
D168: https://labmasters.pl/kursy-otwarte/r/r-2
D169: https://labmasters.pl/kursy-otwarte/word/word-1
D170: https://labmasters.pl/kursy-otwarte/access/access-1
D171: https://labmasters.pl/kursy-otwarte/vba/vba-2
D172: https://labmasters.pl/kursy-otwarte/vba/vba-1
D173: https://labmasters.pl/kursy-otwarte/r/r-2
D174: https://labmasters.pl/kursy-otwarte/access/access-1
D175: https://labmasters.pl/kursy-otwarte/vba/vba-3
D176: https://labmasters.pl/kursy-otwarte/excel/excel-2
D177: https://labmasters.pl/kursy-otwarte/word/word-1
D178: https://labmasters.pl/e-learning/excel/excel-3
D179: https://labmasters.pl/kursy-otwarte/vba/vba-1
D180: https://labmasters.pl/kursy-otwarte/vba/vba-2
D181: https://labmasters.pl/kursy-otwarte/r/r-3
D182: https://labmasters.pl/kursy-otwarte/vba/vba-4
D183: https://labmasters.pl/kursy-otwarte/excel/excel-1
D184: https://labmasters.pl/kursy-otwarte/r/r-4
D185: https://labmasters.pl/kursy-otwarte/access/access-1
D186: https://labmasters.pl/kursy-otwarte/access/access-1
D187: https://labmasters.pl/kursy-otwarte/vba/vba-3
D188: https://labmasters.pl/kursy-otwarte/r/r-1
D189: https://labmasters.pl/kursy-otwarte/excel/excel-4
D190: https://labmasters.pl/kursy-otwarte/excel/excel-3
D191: https://labmasters.pl/e-learning/excel/excel-2
D192: https://labmasters.pl/kursy-otwarte/vba/vba-3
D193: https://labmasters.pl/kursy-otwarte/excel/excel-1
D194: https://labmasters.pl/kursy-otwarte/word/word-1
D195: https://labmasters.pl/kursy-otwarte/excel/excel-2
D196: https://labmasters.pl/kursy-otwarte/vba/vba-3
D197: https://labmasters.pl/kursy-otwarte/access/access-1
D198: https://labmasters.pl/kursy-otwarte/word/word-1
D199: https://labmasters.pl/kursy-otwarte/excel/excel-3
D200: https://labmasters.pl/e-learning/excel/excel-3
D201: https://labmasters.pl/e-learning/excel/excel-3
D202: https://labmasters.pl/kursy-otwarte/excel/excel-2
D203: https://labmasters.pl/kursy-otwarte/r/r-2
... 797 more rows

Sheet Zadanie 7 (hidden)
B2: Zadanie 7
B4: Na podstawie danych z tabeli obok policz średnią wartość FV w poszczególnych miesiącach poszczególnych lat. | L4: Data FV | M4: Wartość FV
L5: 2008-01-20 | M5: 9860
L6: 2008-01-20 | M6: 12395
B7: Średnia wartość FV: | L7: 2008-01-20 | M7: 5198
C8: 2008 | D8: 2009 | E8: 2010 | F8: 2011 | G8: 2012 | H8: 2013 | I8: 2014 | J8: 2015 | L8: 2008-01-19 | M8: 10091
B9: styczeń | L9: 2008-02-20 | M9: 8563
B10: luty | L10: 2008-02-20 | M10: 7895
B11: marzec | L11: 2008-02-20 | M11: 6056
B12: kwiecień | L12: 2008-03-20 | M12: 7477
B13: maj | L13: 2008-03-20 | M13: 5634
B14: czerwiec | L14: 2008-03-20 | M14: 5080
B15: lipiec | L15: 2008-03-19 | M15: 10362
B16: sierpień | L16: 2008-04-20 | M16: 8079
B17: wrzesień | L17: 2008-04-20 | M17: 11358
B18: październik | L18: 2008-04-19 | M18: 7638
B19: listopad | L19: 2008-05-20 | M19: 11677
B20: grudzień | L20: 2008-05-20 | M20: 9438
L21: 2008-05-20 | M21: 5525
L22: 2008-05-19 | M22: 8040
L23: 2008-05-19 | M23: 9914
L24: 2008-05-19 | M24: 5438
L25: 2008-05-19 | M25: 7116
L26: 2008-05-19 | M26: 8991
L27: 2008-05-19 | M27: 7843
L28: 2008-05-19 | M28: 12573
L29: 2008-05-19 | M29: 11387
L30: 2008-06-20 | M30: 6441
L31: 2008-06-20 | M31: 9638
L32: 2008-06-19 | M32: 7209
L33: 2008-07-20 | M33: 8518
L34: 2008-07-20 | M34: 7938
L35: 2008-08-20 | M35: 7845
L36: 2008-08-20 | M36: 8901
L37: 2008-08-20 | M37: 6050
L38: 2008-08-19 | M38: 10189
L39: 2008-09-20 | M39: 12012
L40: 2008-10-20 | M40: 11697
L41: 2008-10-19 | M41: 11160
L42: 2008-10-20 | M42: 10450
L43: 2008-10-20 | M43: 7453
L44: 2008-10-20 | M44: 5872
L45: 2008-10-19 | M45: 9319
L46: 2008-11-20 | M46: 6248
L47: 2008-11-20 | M47: 10293
L48: 2008-11-20 | M48: 5975
L49: 2008-12-20 | M49: 9803
L50: 2008-12-20 | M50: 11673
L51: 2008-12-20 | M51: 12935
L52: 2008-12-19 | M52: 6478
L53: 2008-12-20 | M53: 7027
L54: 2008-12-20 | M54: 9445
L55: 2009-01-20 | M55: 5738
L56: 2009-01-20 | M56: 9772
L57: 2009-01-20 | M57: 10328
L58: 2009-01-19 | M58: 6531
L59: 2009-02-20 | M59: 7762
L60: 2009-02-20 | M60: 9719
L61: 2009-02-20 | M61: 5287
L62: 2009-03-20 | M62: 7422
L63: 2009-03-20 | M63: 8291
L64: 2009-03-20 | M64: 5050
L65: 2009-03-19 | M65: 6924
L66: 2009-04-20 | M66: 11778
L67: 2009-04-20 | M67: 12719
L68: 2009-04-19 | M68: 7180
L69: 2009-05-20 | M69: 7299
L70: 2009-05-20 | M70: 8919
L71: 2009-05-20 | M71: 7595
L72: 2009-05-19 | M72: 6997
L73: 2009-05-19 | M73: 9784
L74: 2009-05-19 | M74: 8100
L75: 2009-05-19 | M75: 9297
L76: 2009-05-19 | M76: 6270
L77: 2009-05-19 | M77: 7308
L78: 2009-05-19 | M78: 11567
L79: 2009-05-19 | M79: 12131
L80: 2009-06-20 | M80: 8775
L81: 2009-06-20 | M81: 9468
L82: 2009-06-19 | M82: 10106
L83: 2009-07-20 | M83: 8322
L84: 2009-07-20 | M84: 6104
L85: 2009-08-20 | M85: 6902
L86: 2009-08-20 | M86: 8886
L87: 2009-08-20 | M87: 10019
L88: 2009-08-19 | M88: 9969
L89: 2009-09-20 | M89: 9347
L90: 2009-10-20 | M90: 7765
L91: 2009-10-19 | M91: 11544
L92: 2009-10-20 | M92: 10769
L93: 2009-10-20 | M93: 5658
L94: 2009-10-20 | M94: 6228
L95: 2009-10-19 | M95: 5056
L96: 2009-11-20 | M96: 9333
L97: 2009-11-20 | M97: 7687
L98: 2009-11-20 | M98: 7126
L99: 2009-12-20 | M99: 7446
L100: 2009-12-20 | M100: 10082
L101: 2009-12-20 | M101: 7218
L102: 2009-12-19 | M102: 9232
L103: 2009-12-20 | M103: 9040
L104: 2009-12-20 | M104: 6337
L105: 2010-01-20 | M105: 11996
L106: 2010-01-20 | M106: 12851
L107: 2010-01-20 | M107: 10057
L108: 2010-01-19 | M108: 5586
L109: 2010-02-20 | M109: 11730
L110: 2010-02-20 | M110: 7702
L111: 2010-02-20 | M111: 5448
L112: 2010-03-20 | M112: 12207
L113: 2010-03-20 | M113: 8660
L114: 2010-03-20 | M114: 12162
L115: 2010-03-19 | M115: 9518
L116: 2010-04-20 | M116: 12341
L117: 2010-04-20 | M117: 7432
L118: 2010-04-19 | M118: 12943
L119: 2010-05-20 | M119: 8187
L120: 2010-05-20 | M120: 8798
L121: 2010-05-20 | M121: 8400
L122: 2010-05-19 | M122: 9996
L123: 2010-05-19 | M123: 10029
L124: 2010-05-19 | M124: 10762
L125: 2010-05-19 | M125: 10031
L126: 2010-05-19 | M126: 6578
L127: 2010-05-19 | M127: 9524
L128: 2010-05-19 | M128: 8319
L129: 2010-05-19 | M129: 12591
L130: 2010-06-20 | M130: 5402
L131: 2010-06-20 | M131: 7820
L132: 2010-06-19 | M132: 7448
L133: 2010-07-20 | M133: 8376
L134: 2010-07-20 | M134: 7286
L135: 2010-08-20 | M135: 5574
L136: 2010-08-20 | M136: 9228
L137: 2010-08-20 | M137: 12692
L138: 2010-08-19 | M138: 9739
L139: 2010-09-20 | M139: 5032
L140: 2010-10-20 | M140: 7315
L141: 2010-10-19 | M141: 12040
L142: 2010-10-20 | M142: 12443
L143: 2010-10-20 | M143: 12427
L144: 2010-10-20 | M144: 12871
L145: 2010-10-19 | M145: 7170
L146: 2010-11-20 | M146: 11502
L147: 2010-11-20 | M147: 10559
L148: 2010-11-20 | M148: 6087
L149: 2010-12-20 | M149: 10489
L150: 2010-12-20 | M150: 7807
L151: 2010-12-20 | M151: 10896
L152: 2010-12-19 | M152: 11932
L153: 2010-12-20 | M153: 5497
L154: 2010-12-20 | M154: 10707
L155: 2011-01-20 | M155: 5972
L156: 2011-01-20 | M156: 5787
L157: 2011-01-20 | M157: 8203
L158: 2011-01-19 | M158: 9090
L159: 2011-02-20 | M159: 10647
L160: 2011-02-20 | M160: 10471
L161: 2011-02-20 | M161: 9954
L162: 2011-03-20 | M162: 12188
L163: 2011-03-20 | M163: 5603
L164: 2011-03-20 | M164: 7238
L165: 2011-03-19 | M165: 8886
L166: 2011-04-20 | M166: 6674
L167: 2011-04-20 | M167: 11276
L168: 2011-04-19 | M168: 8864
L169: 2011-05-20 | M169: 6605
L170: 2011-05-20 | M170: 10994
L171: 2011-05-20 | M171: 5102
L172: 2011-05-19 | M172: 5825
L173: 2011-05-19 | M173: 8491
L174: 2011-05-19 | M174: 12878
L175: 2011-05-19 | M175: 12187
L176: 2011-05-19 | M176: 6801
L177: 2011-05-19 | M177: 12419
L178: 2011-05-19 | M178: 6959
L179: 2011-05-19 | M179: 10499
L180: 2011-06-20 | M180: 6983
L181: 2011-06-20 | M181: 12451
L182: 2011-06-19 | M182: 5346
L183: 2011-07-20 | M183: 9329
L184: 2011-07-20 | M184: 8789
L185: 2011-08-20 | M185: 10807
L186: 2011-08-20 | M186: 11395
L187: 2011-08-20 | M187: 5580
L188: 2011-08-19 | M188: 6130
L189: 2011-09-20 | M189: 7812
L190: 2011-10-20 | M190: 5788
L191: 2011-10-19 | M191: 7444
L192: 2011-10-20 | M192: 5395
L193: 2011-10-20 | M193: 6911
L194: 2011-10-20 | M194: 10146
L195: 2011-10-19 | M195: 12130
L196: 2011-11-20 | M196: 9977
L197: 2011-11-20 | M197: 8066
L198: 2011-11-20 | M198: 9391
L199: 2011-12-20 | M199: 9361
L200: 2011-12-20 | M200: 10777
L201: 2011-12-20 | M201: 12830
L202: 2011-12-19 | M202: 7731
... 202 more rows

Sheet Zadanie 7-rozw (hidden)
B2: Zadanie 7-rozw
N3: rrrr | O3: mmmm | P3: dddd
B4: Na podstawie danych z tabeli obok policz średnią wartość FV w poszczególnych miesiącach poszczególnych lat. | L4: Data FV | M4: Wartość FV | N4: Rok | O4: Miesiąc | P4: Dzień tyg. | R4: Schemat rozwiązania:
L5: 2008-01-20 | M5: 9860 | N5: =TEXT($L5,N$3) -> 2008 | O5: =TEXT($L5,O$3) -> styczeń | P5: niedziela
L6: 2008-01-20 | M6: 12395 | N6: 2008 | O6: styczeń | P6: niedziela | R6: Metoda 1:
B7: Średnia wartość FV: | L7: 2008-01-20 | M7: 5198 | N7: 2008 | O7: styczeń | P7: niedziela | R7: Funkcja ŚREDNIA.WARUNKÓW
C8: 2008 | D8: 2009 | E8: 2010 | F8: 2011 | G8: 2012 | H8: 2013 | I8: 2014 | J8: 2015 | L8: 2008-01-19 | M8: 10091 | N8: 2008 | O8: styczeń | P8: sobota | S8: 2008 | T8: 2009 | U8: 2010 | V8: 2011 | W8: 2012 | X8: 2013 | Y8: 2014 | Z8: 2015
B9: styczeń | C9: 9386 | D9: 8092.25 | E9: 10122.5 | F9: 7263 | G9: 9321 | H9: 10131.25 | I9: 11369.5 | J9: 8975.25 | L9: 2008-02-20 | M9: 8563 | N9: 2008 | O9: luty | P9: środa | R9: styczeń | S9: =AVERAGEIFS($M$5:$M$404,$O$5:$O$404,$B9,$N$5:$N$404,S$8) -> 9386 | T9: =AVERAGEIFS($M$5:$M$404,$O$5:$O$404,$B9,$N$5:$N$404,T$8) -> 8092.25 | U9: 10122.5 | V9: 7263 | W9: 9321 | X9: 10131.25 | Y9: 11369.5 | Z9: 8975.25
B10: luty | C10: 7504.666667 | D10: 7589.333333 | E10: 8293.333333 | F10: 10357.33333 | G10: 10570.33333 | H10: 10537.33333 | I10: 8094.666667 | J10: 10611.33333 | L10: 2008-02-20 | M10: 7895 | N10: 2008 | O10: luty | P10: środa | R10: luty | S10: =AVERAGEIFS($M$5:$M$404,$O$5:$O$404,$B10,$N$5:$N$404,S$8) -> 7504.666667 | T10: 7589.333333 | U10: 8293.333333 | V10: 10357.33333 | W10: 10570.33333 | X10: 10537.33333 | Y10: 8094.666667 | Z10: 10611.33333
B11: marzec | C11: 7138.25 | D11: 6921.75 | E11: 10636.75 | F11: 8478.75 | G11: 7164.75 | H11: 10509 | I11: 9053.75 | J11: 9900.25 | L11: 2008-02-20 | M11: 6056 | N11: 2008 | O11: luty | P11: środa | R11: marzec | S11: 7138.25 | T11: 6921.75 | U11: 10636.75 | V11: 8478.75 | W11: 7164.75 | X11: 10509 | Y11: 9053.75 | Z11: 9900.25
B12: kwiecień | C12: 9025 | D12: 10559 | E12: 10905.33333 | F12: 8938 | G12: 9088.666667 | H12: 11011.66667 | I12: 9081.333333 | J12: 8168 | L12: 2008-03-20 | M12: 7477 | N12: 2008 | O12: marzec | P12: czwartek | R12: kwiecień | S12: 9025 | T12: 10559 | U12: 10905.33333 | V12: 8938 | W12: 9088.666667 | X12: 11011.66667 | Y12: 9081.333333 | Z12: 8168
B13: maj | C13: 8903.818182 | D13: 8660.636364 | E13: 9383.181818 | F13: 8978.181818 | G13: 7882.181818 | H13: 9650.909091 | I13: 10130.45455 | J13: 8137.090909 | L13: 2008-03-20 | M13: 5634 | N13: 2008 | O13: marzec | P13: czwartek | R13: maj | S13: 8903.818182 | T13: 8660.636364 | U13: 9383.181818 | V13: 8978.181818 | W13: 7882.181818 | X13: 9650.909091 | Y13: 10130.45455 | Z13: 8137.090909
B14: czerwiec | C14: 7762.666667 | D14: 9449.666667 | E14: 6890 | F14: 8260 | G14: 11376 | H14: 8467 | I14: 6082.333333 | J14: 9151 | L14: 2008-03-20 | M14: 5080 | N14: 2008 | O14: marzec | P14: czwartek | R14: czerwiec | S14: 7762.666667 | T14: 9449.666667 | U14: 6890 | V14: 8260 | W14: 11376 | X14: 8467 | Y14: 6082.333333 | Z14: 9151
B15: lipiec | C15: 8228 | D15: 7213 | E15: 7831 | F15: 9059 | G15: 8394 | H15: 10599.5 | I15: 7441.5 | J15: 9327 | L15: 2008-03-19 | M15: 10362 | N15: 2008 | O15: marzec | P15: środa | R15: lipiec | S15: 8228 | T15: 7213 | U15: 7831 | V15: 9059 | W15: 8394 | X15: 10599.5 | Y15: 7441.5 | Z15: 9327
B16: sierpień | C16: 8246.25 | D16: 8944 | E16: 9308.25 | F16: 8478 | G16: 8097.75 | H16: 10146.5 | I16: 10529.75 | J16: 6765.5 | L16: 2008-04-20 | M16: 8079 | N16: 2008 | O16: kwiecień | P16: niedziela | R16: sierpień | S16: 8246.25 | T16: 8944 | U16: 9308.25 | V16: 8478 | W16: =AVERAGEIFS($M$5:$M$404,$O$5:$O$404,$B16,$N$5:$N$404,W$8) -> 8097.75 | X16: 10146.5 | Y16: 10529.75 | Z16: 6765.5
B17: wrzesień | C17: 12012 | D17: 9347 | E17: 5032 | F17: 7812 | G17: 8265 | H17: 9348 | I17: 7396 | J17: 5080 | L17: 2008-04-20 | M17: 11358 | N17: 2008 | O17: kwiecień | P17: niedziela | R17: wrzesień | S17: 12012 | T17: 9347 | U17: 5032 | V17: 7812 | W17: 8265 | X17: 9348 | Y17: 7396 | Z17: 5080
B18: październik | C18: 9325.166667 | D18: 7836.666667 | E18: 10711 | F18: 7969 | G18: 10960.5 | H18: 9537.666667 | I18: 8744.166667 | J18: 9758.666667 | L18: 2008-04-19 | M18: 7638 | N18: 2008 | O18: kwiecień | P18: sobota | R18: październik | S18: 9325.166667 | T18: 7836.666667 | U18: 10711 | V18: 7969 | W18: 10960.5 | X18: 9537.666667 | Y18: 8744.166667 | Z18: 9758.666667
B19: listopad | C19: 7505.333333 | D19: 8048.666667 | E19: 9382.666667 | F19: 9144.666667 | G19: 8693.333333 | H19: 8221.666667 | I19: 10146 | J19: 7826.333333 | L19: 2008-05-20 | M19: 11677 | N19: 2008 | O19: maj | P19: wtorek | R19: listopad | S19: 7505.333333 | T19: 8048.666667 | U19: 9382.666667 | V19: 9144.666667 | W19: 8693.333333 | X19: 8221.666667 | Y19: 10146 | Z19: 7826.333333
B20: grudzień | C20: 9560.166667 | D20: 8225.833333 | E20: 9554.666667 | F20: 9633.5 | G20: 10587 | H20: 9321 | I20: 7419.333333 | J20: 8891.333333 | L20: 2008-05-20 | M20: 9438 | N20: 2008 | O20: maj | P20: wtorek | R20: grudzień | S20: 9560.166667 | T20: 8225.833333 | U20: 9554.666667 | V20: 9633.5 | W20: 10587 | X20: 9321 | Y20: 7419.333333 | Z20: 8891.333333
L21: 2008-05-20 | M21: 5525 | N21: 2008 | O21: maj | P21: wtorek
L22: 2008-05-19 | M22: 8040 | N22: 2008 | O22: maj | P22: poniedziałek | R22: Metoda 2:
L23: 2008-05-19 | M23: 9914 | N23: 2008 | O23: maj | P23: poniedziałek | R23: Tabela przestawna
L24: 2008-05-19 | M24: 5438 | N24: 2008 | O24: maj | P24: poniedziałek | R24: Średnia z Wartość FV | S24: Etykiety kolumn
L25: 2008-05-19 | M25: 7116 | N25: 2008 | O25: =TEXT($L25,O$3) -> maj | P25: =TEXT($L25,P$3) -> poniedziałek | R25: Etykiety wierszy | S25: 2008 | T25: 2009 | U25: 2010 | V25: 2011 | W25: 2012 | X25: 2013 | Y25: 2014 | Z25: 2015
L26: 2008-05-19 | M26: 8991 | N26: =TEXT($L26,N$3) -> 2008 | O26: maj | P26: poniedziałek | R26: sty | S26: 9386 | T26: 8092.25 | U26: 10122.5 | V26: 7263 | W26: 9321 | X26: 10131.25 | Y26: 11369.5 | Z26: 8975.25
L27: 2008-05-19 | M27: 7843 | N27: 2008 | O27: maj | P27: poniedziałek | R27: lut | S27: 7504.666667 | T27: 7589.333333 | U27: 8293.333333 | V27: 10357.33333 | W27: 10570.33333 | X27: 10537.33333 | Y27: 8094.666667 | Z27: 10611.33333
L28: 2008-05-19 | M28: 12573 | N28: 2008 | O28: maj | P28: poniedziałek | R28: mar | S28: 7138.25 | T28: 6921.75 | U28: 10636.75 | V28: 8478.75 | W28: 7164.75 | X28: 10509 | Y28: 9053.75 | Z28: 9900.25
L29: 2008-05-19 | M29: 11387 | N29: 2008 | O29: maj | P29: poniedziałek | R29: kwi | S29: 9025 | T29: 10559 | U29: 10905.33333 | V29: 8938 | W29: 9088.666667 | X29: 11011.66667 | Y29: 9081.333333 | Z29: 8168
L30: 2008-06-20 | M30: 6441 | N30: 2008 | O30: czerwiec | P30: piątek | R30: maj | S30: 8903.818182 | T30: 8660.636364 | U30: 9383.181818 | V30: 8978.181818 | W30: 7882.181818 | X30: 9650.909091 | Y30: 10130.45455 | Z30: 8137.090909
L31: 2008-06-20 | M31: 9638 | N31: 2008 | O31: czerwiec | P31: piątek | R31: cze | S31: 7762.666667 | T31: 9449.666667 | U31: 6890 | V31: 8260 | W31: 11376 | X31: 8467 | Y31: 6082.333333 | Z31: 9151
L32: 2008-06-19 | M32: 7209 | N32: 2008 | O32: czerwiec | P32: czwartek | R32: lip | S32: 8228 | T32: 7213 | U32: 7831 | V32: 9059 | W32: 8394 | X32: 10599.5 | Y32: 7441.5 | Z32: 9327
L33: 2008-07-20 | M33: 8518 | N33: 2008 | O33: lipiec | P33: niedziela | R33: sie | S33: 8246.25 | T33: 8944 | U33: 9308.25 | V33: 8478 | W33: 8097.75 | X33: 10146.5 | Y33: 10529.75 | Z33: 6765.5
L34: 2008-07-20 | M34: 7938 | N34: 2008 | O34: lipiec | P34: niedziela | R34: wrz | S34: 12012 | T34: 9347 | U34: 5032 | V34: 7812 | W34: 8265 | X34: 9348 | Y34: 7396 | Z34: 5080
L35: 2008-08-20 | M35: 7845 | N35: 2008 | O35: sierpień | P35: środa | R35: paź | S35: 9325.166667 | T35: 7836.666667 | U35: 10711 | V35: 7969 | W35: 10960.5 | X35: 9537.666667 | Y35: 8744.166667 | Z35: 9758.666667
L36: 2008-08-20 | M36: 8901 | N36: 2008 | O36: sierpień | P36: środa | R36: lis | S36: 7505.333333 | T36: 8048.666667 | U36: 9382.666667 | V36: 9144.666667 | W36: 8693.333333 | X36: 8221.666667 | Y36: 10146 | Z36: 7826.333333
L37: 2008-08-20 | M37: 6050 | N37: 2008 | O37: sierpień | P37: środa | R37: gru | S37: 9560.166667 | T37: 8225.833333 | U37: 9554.666667 | V37: 9633.5 | W37: 10587 | X37: 9321 | Y37: 7419.333333 | Z37: 8891.333333
L38: 2008-08-19 | M38: 10189 | N38: 2008 | O38: sierpień | P38: wtorek
L39: 2008-09-20 | M39: 12012 | N39: 2008 | O39: wrzesień | P39: sobota
L40: 2008-10-20 | M40: 11697 | N40: 2008 | O40: październik | P40: poniedziałek
L41: 2008-10-19 | M41: 11160 | N41: 2008 | O41: październik | P41: niedziela
L42: 2008-10-20 | M42: 10450 | N42: 2008 | O42: październik | P42: poniedziałek
L43: 2008-10-20 | M43: 7453 | N43: 2008 | O43: październik | P43: poniedziałek
L44: 2008-10-20 | M44: 5872 | N44: 2008 | O44: październik | P44: poniedziałek
L45: 2008-10-19 | M45: 9319 | N45: 2008 | O45: październik | P45: niedziela
L46: 2008-11-20 | M46: 6248 | N46: =TEXT($L46,N$3) -> 2008 | O46: listopad | P46: czwartek
L47: 2008-11-20 | M47: 10293 | N47: 2008 | O47: listopad | P47: czwartek
L48: 2008-11-20 | M48: 5975 | N48: 2008 | O48: listopad | P48: czwartek
L49: 2008-12-20 | M49: 9803 | N49: 2008 | O49: grudzień | P49: sobota
L50: 2008-12-20 | M50: 11673 | N50: 2008 | O50: grudzień | P50: sobota
L51: 2008-12-20 | M51: 12935 | N51: 2008 | O51: grudzień | P51: sobota
L52: 2008-12-19 | M52: 6478 | N52: 2008 | O52: grudzień | P52: piątek
L53: 2008-12-20 | M53: 7027 | N53: 2008 | O53: grudzień | P53: sobota
L54: 2008-12-20 | M54: 9445 | N54: 2008 | O54: grudzień | P54: sobota
L55: 2009-01-20 | M55: 5738 | N55: 2009 | O55: styczeń | P55: wtorek
L56: 2009-01-20 | M56: 9772 | N56: 2009 | O56: styczeń | P56: wtorek
L57: 2009-01-20 | M57: 10328 | N57: 2009 | O57: styczeń | P57: wtorek
L58: 2009-01-19 | M58: 6531 | N58: 2009 | O58: styczeń | P58: poniedziałek
L59: 2009-02-20 | M59: 7762 | N59: 2009 | O59: luty | P59: piątek
L60: 2009-02-20 | M60: 9719 | N60: 2009 | O60: luty | P60: piątek
L61: 2009-02-20 | M61: 5287 | N61: 2009 | O61: luty | P61: piątek
L62: 2009-03-20 | M62: 7422 | N62: 2009 | O62: marzec | P62: piątek
L63: 2009-03-20 | M63: 8291 | N63: 2009 | O63: marzec | P63: piątek
L64: 2009-03-20 | M64: 5050 | N64: 2009 | O64: marzec | P64: piątek
L65: 2009-03-19 | M65: 6924 | N65: 2009 | O65: marzec | P65: czwartek
L66: 2009-04-20 | M66: 11778 | N66: =TEXT($L66,N$3) -> 2009 | O66: kwiecień | P66: poniedziałek
L67: 2009-04-20 | M67: 12719 | N67: 2009 | O67: kwiecień | P67: poniedziałek
L68: 2009-04-19 | M68: 7180 | N68: 2009 | O68: kwiecień | P68: niedziela
L69: 2009-05-20 | M69: 7299 | N69: 2009 | O69: maj | P69: środa
L70: 2009-05-20 | M70: 8919 | N70: 2009 | O70: maj | P70: środa
L71: 2009-05-20 | M71: 7595 | N71: 2009 | O71: maj | P71: środa
L72: 2009-05-19 | M72: 6997 | N72: 2009 | O72: maj | P72: wtorek
L73: 2009-05-19 | M73: 9784 | N73: 2009 | O73: maj | P73: wtorek
L74: 2009-05-19 | M74: 8100 | N74: 2009 | O74: maj | P74: wtorek
L75: 2009-05-19 | M75: 9297 | N75: 2009 | O75: maj | P75: wtorek
L76: 2009-05-19 | M76: 6270 | N76: 2009 | O76: maj | P76: wtorek
L77: 2009-05-19 | M77: 7308 | N77: 2009 | O77: maj | P77: wtorek
L78: 2009-05-19 | M78: 11567 | N78: 2009 | O78: maj | P78: wtorek
L79: 2009-05-19 | M79: 12131 | N79: 2009 | O79: maj | P79: wtorek
L80: 2009-06-20 | M80: 8775 | N80: 2009 | O80: czerwiec | P80: sobota
L81: 2009-06-20 | M81: 9468 | N81: 2009 | O81: czerwiec | P81: sobota
L82: 2009-06-19 | M82: 10106 | N82: 2009 | O82: czerwiec | P82: piątek
L83: 2009-07-20 | M83: 8322 | N83: 2009 | O83: lipiec | P83: poniedziałek
L84: 2009-07-20 | M84: 6104 | N84: 2009 | O84: lipiec | P84: poniedziałek
L85: 2009-08-20 | M85: 6902 | N85: 2009 | O85: sierpień | P85: czwartek
L86: 2009-08-20 | M86: 8886 | N86: =TEXT($L86,N$3) -> 2009 | O86: sierpień | P86: czwartek
L87: 2009-08-20 | M87: 10019 | N87: 2009 | O87: sierpień | P87: czwartek
L88: 2009-08-19 | M88: 9969 | N88: 2009 | O88: sierpień | P88: środa
L89: 2009-09-20 | M89: 9347 | N89: 2009 | O89: wrzesień | P89: niedziela
L90: 2009-10-20 | M90: 7765 | N90: 2009 | O90: październik | P90: wtorek
L91: 2009-10-19 | M91: 11544 | N91: 2009 | O91: październik | P91: poniedziałek
L92: 2009-10-20 | M92: 10769 | N92: 2009 | O92: październik | P92: wtorek
L93: 2009-10-20 | M93: 5658 | N93: 2009 | O93: październik | P93: wtorek
L94: 2009-10-20 | M94: 6228 | N94: 2009 | O94: październik | P94: wtorek
L95: 2009-10-19 | M95: 5056 | N95: 2009 | O95: październik | P95: poniedziałek
L96: 2009-11-20 | M96: 9333 | N96: 2009 | O96: listopad | P96: piątek
L97: 2009-11-20 | M97: 7687 | N97: 2009 | O97: listopad | P97: piątek
L98: 2009-11-20 | M98: 7126 | N98: 2009 | O98: listopad | P98: piątek
L99: 2009-12-20 | M99: 7446 | N99: 2009 | O99: grudzień | P99: niedziela
L100: 2009-12-20 | M100: 10082 | N100: 2009 | O100: grudzień | P100: niedziela
L101: 2009-12-20 | M101: 7218 | N101: 2009 | O101: grudzień | P101: niedziela
L102: 2009-12-19 | M102: 9232 | N102: 2009 | O102: grudzień | P102: sobota
L103: 2009-12-20 | M103: 9040 | N103: 2009 | O103: grudzień | P103: niedziela
L104: 2009-12-20 | M104: 6337 | N104: 2009 | O104: grudzień | P104: niedziela
L105: 2010-01-20 | M105: 11996 | N105: 2010 | O105: styczeń | P105: środa
L106: 2010-01-20 | M106: 12851 | N106: =TEXT($L106,N$3) -> 2010 | O106: styczeń | P106: środa
L107: 2010-01-20 | M107: 10057 | N107: 2010 | O107: styczeń | P107: środa
L108: 2010-01-19 | M108: 5586 | N108: 2010 | O108: styczeń | P108: wtorek
L109: 2010-02-20 | M109: 11730 | N109: 2010 | O109: luty | P109: sobota
L110: 2010-02-20 | M110: 7702 | N110: 2010 | O110: luty | P110: sobota
L111: 2010-02-20 | M111: 5448 | N111: 2010 | O111: luty | P111: sobota
L112: 2010-03-20 | M112: 12207 | N112: 2010 | O112: marzec | P112: sobota
L113: 2010-03-20 | M113: 8660 | N113: 2010 | O113: marzec | P113: sobota
L114: 2010-03-20 | M114: 12162 | N114: 2010 | O114: marzec | P114: sobota
L115: 2010-03-19 | M115: 9518 | N115: 2010 | O115: marzec | P115: piątek
L116: 2010-04-20 | M116: 12341 | N116: 2010 | O116: kwiecień | P116: wtorek
L117: 2010-04-20 | M117: 7432 | N117: 2010 | O117: kwiecień | P117: wtorek
L118: 2010-04-19 | M118: 12943 | N118: 2010 | O118: kwiecień | P118: poniedziałek
L119: 2010-05-20 | M119: 8187 | N119: 2010 | O119: maj | P119: czwartek
L120: 2010-05-20 | M120: 8798 | N120: 2010 | O120: maj | P120: czwartek
L121: 2010-05-20 | M121: 8400 | N121: 2010 | O121: maj | P121: czwartek
L122: 2010-05-19 | M122: 9996 | N122: 2010 | O122: maj | P122: środa
L123: 2010-05-19 | M123: 10029 | N123: 2010 | O123: maj | P123: środa
L124: 2010-05-19 | M124: 10762 | N124: 2010 | O124: maj | P124: środa
L125: 2010-05-19 | M125: 10031 | N125: 2010 | O125: maj | P125: środa
L126: 2010-05-19 | M126: 6578 | N126: =TEXT($L126,N$3) -> 2010 | O126: maj | P126: środa
L127: 2010-05-19 | M127: 9524 | N127: 2010 | O127: maj | P127: środa
L128: 2010-05-19 | M128: 8319 | N128: 2010 | O128: maj | P128: środa
L129: 2010-05-19 | M129: 12591 | N129: 2010 | O129: maj | P129: środa
L130: 2010-06-20 | M130: 5402 | N130: 2010 | O130: czerwiec | P130: niedziela
L131: 2010-06-20 | M131: 7820 | N131: 2010 | O131: czerwiec | P131: niedziela
L132: 2010-06-19 | M132: 7448 | N132: 2010 | O132: czerwiec | P132: sobota
L133: 2010-07-20 | M133: 8376 | N133: 2010 | O133: lipiec | P133: wtorek
L134: 2010-07-20 | M134: 7286 | N134: 2010 | O134: lipiec | P134: wtorek
L135: 2010-08-20 | M135: 5574 | N135: 2010 | O135: sierpień | P135: piątek
L136: 2010-08-20 | M136: 9228 | N136: 2010 | O136: sierpień | P136: piątek
L137: 2010-08-20 | M137: 12692 | N137: 2010 | O137: sierpień | P137: piątek
L138: 2010-08-19 | M138: 9739 | N138: 2010 | O138: sierpień | P138: czwartek
L139: 2010-09-20 | M139: 5032 | N139: 2010 | O139: wrzesień | P139: poniedziałek
L140: 2010-10-20 | M140: 7315 | N140: 2010 | O140: październik | P140: środa
L141: 2010-10-19 | M141: 12040 | N141: 2010 | O141: październik | P141: wtorek
L142: 2010-10-20 | M142: 12443 | N142: 2010 | O142: październik | P142: środa
L143: 2010-10-20 | M143: 12427 | N143: 2010 | O143: październik | P143: środa
L144: 2010-10-20 | M144: 12871 | N144: 2010 | O144: październik | P144: środa
L145: 2010-10-19 | M145: 7170 | N145: 2010 | O145: październik | P145: wtorek
L146: 2010-11-20 | M146: 11502 | N146: =TEXT($L146,N$3) -> 2010 | O146: listopad | P146: sobota
L147: 2010-11-20 | M147: 10559 | N147: 2010 | O147: listopad | P147: sobota
L148: 2010-11-20 | M148: 6087 | N148: 2010 | O148: listopad | P148: sobota
L149: 2010-12-20 | M149: 10489 | N149: 2010 | O149: grudzień | P149: poniedziałek
L150: 2010-12-20 | M150: 7807 | N150: 2010 | O150: grudzień | P150: poniedziałek
L151: 2010-12-20 | M151: 10896 | N151: 2010 | O151: grudzień | P151: poniedziałek
L152: 2010-12-19 | M152: 11932 | N152: 2010 | O152: grudzień | P152: niedziela
L153: 2010-12-20 | M153: 5497 | N153: 2010 | O153: grudzień | P153: poniedziałek
L154: 2010-12-20 | M154: 10707 | N154: 2010 | O154: grudzień | P154: poniedziałek
L155: 2011-01-20 | M155: 5972 | N155: 2011 | O155: styczeń | P155: czwartek
L156: 2011-01-20 | M156: 5787 | N156: 2011 | O156: styczeń | P156: czwartek
L157: 2011-01-20 | M157: 8203 | N157: 2011 | O157: styczeń | P157: czwartek
L158: 2011-01-19 | M158: 9090 | N158: 2011 | O158: styczeń | P158: środa
L159: 2011-02-20 | M159: 10647 | N159: 2011 | O159: luty | P159: niedziela
L160: 2011-02-20 | M160: 10471 | N160: 2011 | O160: luty | P160: niedziela
L161: 2011-02-20 | M161: 9954 | N161: 2011 | O161: luty | P161: niedziela
L162: 2011-03-20 | M162: 12188 | N162: 2011 | O162: marzec | P162: niedziela
L163: 2011-03-20 | M163: 5603 | N163: 2011 | O163: marzec | P163: niedziela
L164: 2011-03-20 | M164: 7238 | N164: 2011 | O164: marzec | P164: niedziela
L165: 2011-03-19 | M165: 8886 | N165: 2011 | O165: marzec | P165: sobota
L166: 2011-04-20 | M166: 6674 | N166: =TEXT($L166,N$3) -> 2011 | O166: kwiecień | P166: środa
L167: 2011-04-20 | M167: 11276 | N167: 2011 | O167: kwiecień | P167: środa
L168: 2011-04-19 | M168: 8864 | N168: 2011 | O168: kwiecień | P168: wtorek
L169: 2011-05-20 | M169: 6605 | N169: 2011 | O169: maj | P169: piątek
L170: 2011-05-20 | M170: 10994 | N170: 2011 | O170: maj | P170: piątek
L171: 2011-05-20 | M171: 5102 | N171: 2011 | O171: maj | P171: piątek
L172: 2011-05-19 | M172: 5825 | N172: 2011 | O172: maj | P172: czwartek
L173: 2011-05-19 | M173: 8491 | N173: 2011 | O173: maj | P173: czwartek
L174: 2011-05-19 | M174: 12878 | N174: 2011 | O174: maj | P174: czwartek
L175: 2011-05-19 | M175: 12187 | N175: 2011 | O175: maj | P175: czwartek
L176: 2011-05-19 | M176: 6801 | N176: 2011 | O176: maj | P176: czwartek
L177: 2011-05-19 | M177: 12419 | N177: 2011 | O177: maj | P177: czwartek
L178: 2011-05-19 | M178: 6959 | N178: 2011 | O178: maj | P178: czwartek
L179: 2011-05-19 | M179: 10499 | N179: 2011 | O179: maj | P179: czwartek
L180: 2011-06-20 | M180: 6983 | N180: 2011 | O180: czerwiec | P180: poniedziałek
L181: 2011-06-20 | M181: 12451 | N181: 2011 | O181: czerwiec | P181: poniedziałek
L182: 2011-06-19 | M182: 5346 | N182: 2011 | O182: czerwiec | P182: niedziela
L183: 2011-07-20 | M183: 9329 | N183: 2011 | O183: lipiec | P183: środa
L184: 2011-07-20 | M184: 8789 | N184: 2011 | O184: lipiec | P184: środa
L185: 2011-08-20 | M185: 10807 | N185: 2011 | O185: sierpień | P185: sobota
L186: 2011-08-20 | M186: 11395 | N186: =TEXT($L186,N$3) -> 2011 | O186: sierpień | P186: sobota
L187: 2011-08-20 | M187: 5580 | N187: 2011 | O187: sierpień | P187: sobota
L188: 2011-08-19 | M188: 6130 | N188: 2011 | O188: sierpień | P188: piątek
L189: 2011-09-20 | M189: 7812 | N189: 2011 | O189: wrzesień | P189: wtorek
L190: 2011-10-20 | M190: 5788 | N190: 2011 | O190: październik | P190: czwartek
L191: 2011-10-19 | M191: 7444 | N191: 2011 | O191: październik | P191: środa
L192: 2011-10-20 | M192: 5395 | N192: 2011 | O192: październik | P192: czwartek
L193: 2011-10-20 | M193: 6911 | N193: 2011 | O193: październik | P193: czwartek
L194: 2011-10-20 | M194: 10146 | N194: 2011 | O194: październik | P194: czwartek
L195: 2011-10-19 | M195: 12130 | N195: 2011 | O195: październik | P195: środa
L196: 2011-11-20 | M196: 9977 | N196: 2011 | O196: listopad | P196: niedziela
L197: 2011-11-20 | M197: 8066 | N197: 2011 | O197: listopad | P197: niedziela
L198: 2011-11-20 | M198: 9391 | N198: 2011 | O198: listopad | P198: niedziela
L199: 2011-12-20 | M199: 9361 | N199: 2011 | O199: grudzień | P199: wtorek
L200: 2011-12-20 | M200: 10777 | N200: 2011 | O200: grudzień | P200: wtorek
L201: 2011-12-20 | M201: 12830 | N201: 2011 | O201: grudzień | P201: wtorek
... 203 more rows

Sheet Zadanie 8 (hidden)
B2: Zadanie 8
B4: Na podstawie danych z tabeli obok policz średnią wartość FV w poszczególnych dniach tygodnia poszczególnych lat. | L4: Data FV | M4: Wartość FV
L5: 2008-01-20 | M5: 9860
L6: 2008-01-20 | M6: 12395
B7: Średnia wartość FV: | L7: 2008-01-20 | M7: 5198
C8: 2008 | D8: 2009 | E8: 2010 | F8: 2011 | G8: 2012 | H8: 2013 | I8: 2014 | J8: 2015 | L8: 2008-01-19 | M8: 10091
B9: poniedziałek | L9: 2008-02-20 | M9: 8563
B10: wtorek | L10: 2008-02-20 | M10: 7895
B11: środa | L11: 2008-02-20 | M11: 6056
B12: czwartek | L12: 2008-03-20 | M12: 7477
B13: piątek | L13: 2008-03-20 | M13: 5634
B14: sobota | L14: 2008-03-20 | M14: 5080
B15: niedziela | L15: 2008-03-19 | M15: 10362
L16: 2008-04-20 | M16: 8079
L17: 2008-04-20 | M17: 11358
L18: 2008-04-19 | M18: 7638
L19: 2008-05-20 | M19: 11677
L20: 2008-05-20 | M20: 9438
L21: 2008-05-20 | M21: 5525
L22: 2008-05-19 | M22: 8040
L23: 2008-05-19 | M23: 9914
L24: 2008-05-19 | M24: 5438
L25: 2008-05-19 | M25: 7116
L26: 2008-05-19 | M26: 8991
L27: 2008-05-19 | M27: 7843
L28: 2008-05-19 | M28: 12573
L29: 2008-05-19 | M29: 11387
L30: 2008-06-20 | M30: 6441
L31: 2008-06-20 | M31: 9638
L32: 2008-06-19 | M32: 7209
L33: 2008-07-20 | M33: 8518
L34: 2008-07-20 | M34: 7938
L35: 2008-08-20 | M35: 7845
L36: 2008-08-20 | M36: 8901
L37: 2008-08-20 | M37: 6050
L38: 2008-08-19 | M38: 10189
L39: 2008-09-20 | M39: 12012
L40: 2008-10-20 | M40: 11697
L41: 2008-10-19 | M41: 11160
L42: 2008-10-20 | M42: 10450
L43: 2008-10-20 | M43: 7453
L44: 2008-10-20 | M44: 5872
L45: 2008-10-19 | M45: 9319
L46: 2008-11-20 | M46: 6248
L47: 2008-11-20 | M47: 10293
L48: 2008-11-20 | M48: 5975
L49: 2008-12-20 | M49: 9803
L50: 2008-12-20 | M50: 11673
L51: 2008-12-20 | M51: 12935
L52: 2008-12-19 | M52: 6478
L53: 2008-12-20 | M53: 7027
L54: 2008-12-20 | M54: 9445
L55: 2009-01-20 | M55: 5738
L56: 2009-01-20 | M56: 9772
L57: 2009-01-20 | M57: 10328
L58: 2009-01-19 | M58: 6531
L59: 2009-02-20 | M59: 7762
L60: 2009-02-20 | M60: 9719
L61: 2009-02-20 | M61: 5287
L62: 2009-03-20 | M62: 7422
L63: 2009-03-20 | M63: 8291
L64: 2009-03-20 | M64: 5050
L65: 2009-03-19 | M65: 6924
L66: 2009-04-20 | M66: 11778
L67: 2009-04-20 | M67: 12719
L68: 2009-04-19 | M68: 7180
L69: 2009-05-20 | M69: 7299
L70: 2009-05-20 | M70: 8919
L71: 2009-05-20 | M71: 7595
L72: 2009-05-19 | M72: 6997
L73: 2009-05-19 | M73: 9784
L74: 2009-05-19 | M74: 8100
L75: 2009-05-19 | M75: 9297
L76: 2009-05-19 | M76: 6270
L77: 2009-05-19 | M77: 7308
L78: 2009-05-19 | M78: 11567
L79: 2009-05-19 | M79: 12131
L80: 2009-06-20 | M80: 8775
L81: 2009-06-20 | M81: 9468
L82: 2009-06-19 | M82: 10106
L83: 2009-07-20 | M83: 8322
L84: 2009-07-20 | M84: 6104
L85: 2009-08-20 | M85: 6902
L86: 2009-08-20 | M86: 8886
L87: 2009-08-20 | M87: 10019
L88: 2009-08-19 | M88: 9969
L89: 2009-09-20 | M89: 9347
L90: 2009-10-20 | M90: 7765
L91: 2009-10-19 | M91: 11544
L92: 2009-10-20 | M92: 10769
L93: 2009-10-20 | M93: 5658
L94: 2009-10-20 | M94: 6228
L95: 2009-10-19 | M95: 5056
L96: 2009-11-20 | M96: 9333
L97: 2009-11-20 | M97: 7687
L98: 2009-11-20 | M98: 7126
L99: 2009-12-20 | M99: 7446
L100: 2009-12-20 | M100: 10082
L101: 2009-12-20 | M101: 7218
L102: 2009-12-19 | M102: 9232
L103: 2009-12-20 | M103: 9040
L104: 2009-12-20 | M104: 6337
L105: 2010-01-20 | M105: 11996
L106: 2010-01-20 | M106: 12851
L107: 2010-01-20 | M107: 10057
L108: 2010-01-19 | M108: 5586
L109: 2010-02-20 | M109: 11730
L110: 2010-02-20 | M110: 7702
L111: 2010-02-20 | M111: 5448
L112: 2010-03-20 | M112: 12207
L113: 2010-03-20 | M113: 8660
L114: 2010-03-20 | M114: 12162
L115: 2010-03-19 | M115: 9518
L116: 2010-04-20 | M116: 12341
L117: 2010-04-20 | M117: 7432
L118: 2010-04-19 | M118: 12943
L119: 2010-05-20 | M119: 8187
L120: 2010-05-20 | M120: 8798
L121: 2010-05-20 | M121: 8400
L122: 2010-05-19 | M122: 9996
L123: 2010-05-19 | M123: 10029
L124: 2010-05-19 | M124: 10762
L125: 2010-05-19 | M125: 10031
L126: 2010-05-19 | M126: 6578
L127: 2010-05-19 | M127: 9524
L128: 2010-05-19 | M128: 8319
L129: 2010-05-19 | M129: 12591
L130: 2010-06-20 | M130: 5402
L131: 2010-06-20 | M131: 7820
L132: 2010-06-19 | M132: 7448
L133: 2010-07-20 | M133: 8376
L134: 2010-07-20 | M134: 7286
L135: 2010-08-20 | M135: 5574
L136: 2010-08-20 | M136: 9228
L137: 2010-08-20 | M137: 12692
L138: 2010-08-19 | M138: 9739
L139: 2010-09-20 | M139: 5032
L140: 2010-10-20 | M140: 7315
L141: 2010-10-19 | M141: 12040
L142: 2010-10-20 | M142: 12443
L143: 2010-10-20 | M143: 12427
L144: 2010-10-20 | M144: 12871
L145: 2010-10-19 | M145: 7170
L146: 2010-11-20 | M146: 11502
L147: 2010-11-20 | M147: 10559
L148: 2010-11-20 | M148: 6087
L149: 2010-12-20 | M149: 10489
L150: 2010-12-20 | M150: 7807
L151: 2010-12-20 | M151: 10896
L152: 2010-12-19 | M152: 11932
L153: 2010-12-20 | M153: 5497
L154: 2010-12-20 | M154: 10707
L155: 2011-01-20 | M155: 5972
L156: 2011-01-20 | M156: 5787
L157: 2011-01-20 | M157: 8203
L158: 2011-01-19 | M158: 9090
L159: 2011-02-20 | M159: 10647
L160: 2011-02-20 | M160: 10471
L161: 2011-02-20 | M161: 9954
L162: 2011-03-20 | M162: 12188
L163: 2011-03-20 | M163: 5603
L164: 2011-03-20 | M164: 7238
L165: 2011-03-19 | M165: 8886
L166: 2011-04-20 | M166: 6674
L167: 2011-04-20 | M167: 11276
L168: 2011-04-19 | M168: 8864
L169: 2011-05-20 | M169: 6605
L170: 2011-05-20 | M170: 10994
L171: 2011-05-20 | M171: 5102
L172: 2011-05-19 | M172: 5825
L173: 2011-05-19 | M173: 8491
L174: 2011-05-19 | M174: 12878
L175: 2011-05-19 | M175: 12187
L176: 2011-05-19 | M176: 6801
L177: 2011-05-19 | M177: 12419
L178: 2011-05-19 | M178: 6959
L179: 2011-05-19 | M179: 10499
L180: 2011-06-20 | M180: 6983
L181: 2011-06-20 | M181: 12451
L182: 2011-06-19 | M182: 5346
L183: 2011-07-20 | M183: 9329
L184: 2011-07-20 | M184: 8789
L185: 2011-08-20 | M185: 10807
L186: 2011-08-20 | M186: 11395
L187: 2011-08-20 | M187: 5580
L188: 2011-08-19 | M188: 6130
L189: 2011-09-20 | M189: 7812
L190: 2011-10-20 | M190: 5788
L191: 2011-10-19 | M191: 7444
L192: 2011-10-20 | M192: 5395
L193: 2011-10-20 | M193: 6911
L194: 2011-10-20 | M194: 10146
L195: 2011-10-19 | M195: 12130
L196: 2011-11-20 | M196: 9977
L197: 2011-11-20 | M197: 8066
L198: 2011-11-20 | M198: 9391
L199: 2011-12-20 | M199: 9361
L200: 2011-12-20 | M200: 10777
L201: 2011-12-20 | M201: 12830
L202: 2011-12-19 | M202: 7731
... 202 more rows

Sheet Zadanie 8-rozw (hidden)
B2: Zadanie 8-rozw
N3: rrrr | O3: mmmm | P3: dddd
B4: Na podstawie danych z tabeli obok policz średnią wartość FV w poszczególnych dniach tygodnia poszczególnych lat. | L4: Data FV | M4: Wartość FV | N4: Rok | O4: Miesiąc | P4: Dzień tyg. | R4: Schemat rozwiązania:
L5: 2008-01-20 | M5: 9860 | N5: =TEXT($L5,N$3) -> 2008 | O5: =TEXT($L5,O$3) -> styczeń | P5: niedziela
L6: 2008-01-20 | M6: 12395 | N6: 2008 | O6: styczeń | P6: niedziela | R6: Metoda 1:
B7: Średnia wartość FV: | L7: 2008-01-20 | M7: 5198 | N7: 2008 | O7: styczeń | P7: niedziela | R7: Funkcja ŚREDNIA.WARUNKÓW
C8: 2008 | D8: 2009 | E8: 2010 | F8: 2011 | G8: 2012 | H8: 2013 | I8: 2014 | J8: 2015 | L8: 2008-01-19 | M8: 10091 | N8: 2008 | O8: styczeń | P8: sobota | S8: 2008 | T8: 2009 | U8: 2010 | V8: 2011 | W8: 2012 | X8: 2013 | Y8: 2014 | Z8: 2015
B9: poniedziałek | C9: 8897.833333 | D9: 8864.857143 | E9: 9053 | F9: 9055 | G9: 8341.285714 | H9: 8524.75 | I9: 9246.933333 | J9: 8982.571429 | L9: 2008-02-20 | M9: 8563 | N9: 2008 | O9: luty | P9: środa | R9: poniedziałek | S9: =AVERAGEIFS($M$5:$M$404,$P$5:$P$404,$B9,$N$5:$N$404,S$8) -> 8897.833333 | T9: =AVERAGEIFS($M$5:$M$404,$P$5:$P$404,$B9,$N$5:$N$404,T$8) -> 8864.857143 | U9: 9053 | V9: 9055 | W9: 8341.285714 | X9: 8524.75 | Y9: 9246.933333 | Z9: 8982.571429
B10: wtorek | C10: 9207.25 | D10: 8514.133333 | E10: 8604.428571 | F10: 9535.142857 | G10: 8402.571429 | H10: 12013.75 | I10: 11399.25 | J10: 8765.4 | L10: 2008-02-20 | M10: 7895 | N10: 2008 | O10: luty | P10: środa | R10: wtorek | S10: =AVERAGEIFS($M$5:$M$404,$P$5:$P$404,$B10,$N$5:$N$404,S$8) -> 9207.25 | T10: 8514.133333 | U10: 8604.428571 | V10: 9535.142857 | W10: 8402.571429 | X10: 12013.75 | Y10: 11399.25 | Z10: 8765.4
B11: środa | C11: 7953.142857 | D11: 8445.5 | E11: 10519.33333 | F11: 9247.428571 | G11: 12217.66667 | H11: 9157.3 | I11: 11568 | J11: 8340.75 | L11: 2008-02-20 | M11: 6056 | N11: 2008 | O11: luty | P11: środa | R11: środa | S11: 7953.142857 | T11: 8445.5 | U11: 10519.33333 | V11: 9247.428571 | W11: 12217.66667 | X11: 9157.3 | Y11: 11568 | Z11: 8340.75
B12: czwartek | C12: 6845.142857 | D12: 8182.75 | E12: 8781 | F12: 8284.066667 | G12: 9178.25 | H12: 9669.666667 | I12: 8605.4 | J12: 7903.5 | L12: 2008-03-20 | M12: 7477 | N12: 2008 | O12: marzec | P12: czwartek | R12: czwartek | S12: 6845.142857 | T12: 8182.75 | U12: 8781 | V12: 8284.066667 | W12: 9178.25 | X12: 9669.666667 | Y12: 8605.4 | Z12: 7903.5
B13: piątek | C13: 7519 | D13: 7778.3 | E13: 9253 | F13: 7207.75 | G13: 10001.22222 | H13: 9708.285714 | I13: 6619.333333 | J13: 8992.6 | L13: 2008-03-20 | M13: 5634 | N13: 2008 | O13: marzec | P13: czwartek | R13: piątek | S13: 7519 | T13: 7778.3 | U13: 9253 | V13: 7207.75 | W13: 10001.22222 | X13: 9708.285714 | Y13: 6619.333333 | Z13: 8992.6
B14: sobota | C14: 10078 | D14: 9158.333333 | E14: 9350.5 | F14: 9167 | G14: 8841.25 | H14: 10354.28571 | I14: 7267.428571 | J14: 10032.66667 | L14: 2008-03-20 | M14: 5080 | N14: 2008 | O14: marzec | P14: czwartek | R14: sobota | S14: 10078 | T14: 9158.333333 | U14: 9350.5 | V14: 9167 | W14: 8841.25 | X14: 10354.28571 | Y14: 7267.428571 | Z14: 10032.66667
B15: niedziela | C15: 9313.888889 | D15: 8092.857143 | E15: 8384.666667 | F15: 8888.1 | G15: 8792.25 | H15: 9636.333333 | I15: 9623.285714 | J15: 7945.142857 | L15: 2008-03-19 | M15: 10362 | N15: 2008 | O15: marzec | P15: środa | R15: niedziela | S15: 9313.888889 | T15: 8092.857143 | U15: 8384.666667 | V15: 8888.1 | W15: 8792.25 | X15: 9636.333333 | Y15: 9623.285714 | Z15: 7945.142857
L16: 2008-04-20 | M16: 8079 | N16: 2008 | O16: kwiecień | P16: niedziela
L17: 2008-04-20 | M17: 11358 | N17: 2008 | O17: kwiecień | P17: niedziela | R17: Metoda 2:
L18: 2008-04-19 | M18: 7638 | N18: 2008 | O18: kwiecień | P18: sobota | R18: Tabela przestawna
L19: 2008-05-20 | M19: 11677 | N19: 2008 | O19: maj | P19: wtorek | R19: Średnia z Wartość FV | S19: Etykiety kolumn
L20: 2008-05-20 | M20: 9438 | N20: 2008 | O20: maj | P20: wtorek | R20: Etykiety wierszy | S20: 2008 | T20: 2009 | U20: 2010 | V20: 2011 | W20: 2012 | X20: 2013 | Y20: 2014 | Z20: 2015
L21: 2008-05-20 | M21: 5525 | N21: 2008 | O21: maj | P21: wtorek | R21: poniedziałek | S21: 8897.833333 | T21: 8864.857143 | U21: 9053 | V21: 9055 | W21: 8341.285714 | X21: 8524.75 | Y21: 9246.933333 | Z21: 8982.571429
L22: 2008-05-19 | M22: 8040 | N22: 2008 | O22: maj | P22: poniedziałek | R22: wtorek | S22: 9207.25 | T22: 8514.133333 | U22: 8604.428571 | V22: 9535.142857 | W22: 8402.571429 | X22: 12013.75 | Y22: 11399.25 | Z22: 8765.4
L23: 2008-05-19 | M23: 9914 | N23: 2008 | O23: maj | P23: poniedziałek | R23: środa | S23: 7953.142857 | T23: 8445.5 | U23: 10519.33333 | V23: 9247.428571 | W23: 12217.66667 | X23: 9157.3 | Y23: 11568 | Z23: 8340.75
L24: 2008-05-19 | M24: 5438 | N24: 2008 | O24: maj | P24: poniedziałek | R24: czwartek | S24: 6845.142857 | T24: 8182.75 | U24: 8781 | V24: 8284.066667 | W24: 9178.25 | X24: 9669.666667 | Y24: 8605.4 | Z24: 7903.5
L25: 2008-05-19 | M25: 7116 | N25: 2008 | O25: =TEXT($L25,O$3) -> maj | P25: =TEXT($L25,P$3) -> poniedziałek | R25: piątek | S25: 7519 | T25: 7778.3 | U25: 9253 | V25: 7207.75 | W25: 10001.22222 | X25: 9708.285714 | Y25: 6619.333333 | Z25: 8992.6
L26: 2008-05-19 | M26: 8991 | N26: =TEXT($L26,N$3) -> 2008 | O26: maj | P26: poniedziałek | R26: sobota | S26: 10078 | T26: 9158.333333 | U26: 9350.5 | V26: 9167 | W26: 8841.25 | X26: 10354.28571 | Y26: 7267.428571 | Z26: 10032.66667
L27: 2008-05-19 | M27: 7843 | N27: 2008 | O27: maj | P27: poniedziałek | R27: niedziela | S27: 9313.888889 | T27: 8092.857143 | U27: 8384.666667 | V27: 8888.1 | W27: 8792.25 | X27: 9636.333333 | Y27: 9623.285714 | Z27: 7945.142857
L28: 2008-05-19 | M28: 12573 | N28: 2008 | O28: maj | P28: poniedziałek
L29: 2008-05-19 | M29: 11387 | N29: 2008 | O29: maj | P29: poniedziałek
L30: 2008-06-20 | M30: 6441 | N30: 2008 | O30: czerwiec | P30: piątek
L31: 2008-06-20 | M31: 9638 | N31: 2008 | O31: czerwiec | P31: piątek
L32: 2008-06-19 | M32: 7209 | N32: 2008 | O32: czerwiec | P32: czwartek
L33: 2008-07-20 | M33: 8518 | N33: 2008 | O33: lipiec | P33: niedziela
L34: 2008-07-20 | M34: 7938 | N34: 2008 | O34: lipiec | P34: niedziela
L35: 2008-08-20 | M35: 7845 | N35: 2008 | O35: sierpień | P35: środa
L36: 2008-08-20 | M36: 8901 | N36: 2008 | O36: sierpień | P36: środa
L37: 2008-08-20 | M37: 6050 | N37: 2008 | O37: sierpień | P37: środa
L38: 2008-08-19 | M38: 10189 | N38: 2008 | O38: sierpień | P38: wtorek
L39: 2008-09-20 | M39: 12012 | N39: 2008 | O39: wrzesień | P39: sobota
L40: 2008-10-20 | M40: 11697 | N40: 2008 | O40: październik | P40: poniedziałek
L41: 2008-10-19 | M41: 11160 | N41: 2008 | O41: październik | P41: niedziela
L42: 2008-10-20 | M42: 10450 | N42: 2008 | O42: październik | P42: poniedziałek
L43: 2008-10-20 | M43: 7453 | N43: 2008 | O43: październik | P43: poniedziałek
L44: 2008-10-20 | M44: 5872 | N44: 2008 | O44: październik | P44: poniedziałek
L45: 2008-10-19 | M45: 9319 | N45: 2008 | O45: październik | P45: niedziela
L46: 2008-11-20 | M46: 6248 | N46: =TEXT($L46,N$3) -> 2008 | O46: listopad | P46: czwartek
L47: 2008-11-20 | M47: 10293 | N47: 2008 | O47: listopad | P47: czwartek
L48: 2008-11-20 | M48: 5975 | N48: 2008 | O48: listopad | P48: czwartek
L49: 2008-12-20 | M49: 9803 | N49: 2008 | O49: grudzień | P49: sobota
L50: 2008-12-20 | M50: 11673 | N50: 2008 | O50: grudzień | P50: sobota
L51: 2008-12-20 | M51: 12935 | N51: 2008 | O51: grudzień | P51: sobota
L52: 2008-12-19 | M52: 6478 | N52: 2008 | O52: grudzień | P52: piątek
L53: 2008-12-20 | M53: 7027 | N53: 2008 | O53: grudzień | P53: sobota
L54: 2008-12-20 | M54: 9445 | N54: 2008 | O54: grudzień | P54: sobota
L55: 2009-01-20 | M55: 5738 | N55: 2009 | O55: styczeń | P55: wtorek
L56: 2009-01-20 | M56: 9772 | N56: 2009 | O56: styczeń | P56: wtorek
L57: 2009-01-20 | M57: 10328 | N57: 2009 | O57: styczeń | P57: wtorek
L58: 2009-01-19 | M58: 6531 | N58: 2009 | O58: styczeń | P58: poniedziałek
L59: 2009-02-20 | M59: 7762 | N59: 2009 | O59: luty | P59: piątek
L60: 2009-02-20 | M60: 9719 | N60: 2009 | O60: luty | P60: piątek
L61: 2009-02-20 | M61: 5287 | N61: 2009 | O61: luty | P61: piątek
L62: 2009-03-20 | M62: 7422 | N62: 2009 | O62: marzec | P62: piątek
L63: 2009-03-20 | M63: 8291 | N63: 2009 | O63: marzec | P63: piątek
L64: 2009-03-20 | M64: 5050 | N64: 2009 | O64: marzec | P64: piątek
L65: 2009-03-19 | M65: 6924 | N65: 2009 | O65: marzec | P65: czwartek
L66: 2009-04-20 | M66: 11778 | N66: =TEXT($L66,N$3) -> 2009 | O66: kwiecień | P66: poniedziałek
L67: 2009-04-20 | M67: 12719 | N67: 2009 | O67: kwiecień | P67: poniedziałek
L68: 2009-04-19 | M68: 7180 | N68: 2009 | O68: kwiecień | P68: niedziela
L69: 2009-05-20 | M69: 7299 | N69: 2009 | O69: maj | P69: środa
L70: 2009-05-20 | M70: 8919 | N70: 2009 | O70: maj | P70: środa
L71: 2009-05-20 | M71: 7595 | N71: 2009 | O71: maj | P71: środa
L72: 2009-05-19 | M72: 6997 | N72: 2009 | O72: maj | P72: wtorek
L73: 2009-05-19 | M73: 9784 | N73: 2009 | O73: maj | P73: wtorek
L74: 2009-05-19 | M74: 8100 | N74: 2009 | O74: maj | P74: wtorek
L75: 2009-05-19 | M75: 9297 | N75: 2009 | O75: maj | P75: wtorek
L76: 2009-05-19 | M76: 6270 | N76: 2009 | O76: maj | P76: wtorek
L77: 2009-05-19 | M77: 7308 | N77: 2009 | O77: maj | P77: wtorek
L78: 2009-05-19 | M78: 11567 | N78: 2009 | O78: maj | P78: wtorek
L79: 2009-05-19 | M79: 12131 | N79: 2009 | O79: maj | P79: wtorek
L80: 2009-06-20 | M80: 8775 | N80: 2009 | O80: czerwiec | P80: sobota
L81: 2009-06-20 | M81: 9468 | N81: 2009 | O81: czerwiec | P81: sobota
L82: 2009-06-19 | M82: 10106 | N82: 2009 | O82: czerwiec | P82: piątek
L83: 2009-07-20 | M83: 8322 | N83: 2009 | O83: lipiec | P83: poniedziałek
L84: 2009-07-20 | M84: 6104 | N84: 2009 | O84: lipiec | P84: poniedziałek
L85: 2009-08-20 | M85: 6902 | N85: 2009 | O85: sierpień | P85: czwartek
L86: 2009-08-20 | M86: 8886 | N86: =TEXT($L86,N$3) -> 2009 | O86: sierpień | P86: czwartek
L87: 2009-08-20 | M87: 10019 | N87: 2009 | O87: sierpień | P87: czwartek
L88: 2009-08-19 | M88: 9969 | N88: 2009 | O88: sierpień | P88: środa
L89: 2009-09-20 | M89: 9347 | N89: 2009 | O89: wrzesień | P89: niedziela
L90: 2009-10-20 | M90: 7765 | N90: 2009 | O90: październik | P90: wtorek
L91: 2009-10-19 | M91: 11544 | N91: 2009 | O91: październik | P91: poniedziałek
L92: 2009-10-20 | M92: 10769 | N92: 2009 | O92: październik | P92: wtorek
L93: 2009-10-20 | M93: 5658 | N93: 2009 | O93: październik | P93: wtorek
L94: 2009-10-20 | M94: 6228 | N94: 2009 | O94: październik | P94: wtorek
L95: 2009-10-19 | M95: 5056 | N95: 2009 | O95: październik | P95: poniedziałek
L96: 2009-11-20 | M96: 9333 | N96: 2009 | O96: listopad | P96: piątek
L97: 2009-11-20 | M97: 7687 | N97: 2009 | O97: listopad | P97: piątek
L98: 2009-11-20 | M98: 7126 | N98: 2009 | O98: listopad | P98: piątek
L99: 2009-12-20 | M99: 7446 | N99: 2009 | O99: grudzień | P99: niedziela
L100: 2009-12-20 | M100: 10082 | N100: 2009 | O100: grudzień | P100: niedziela
L101: 2009-12-20 | M101: 7218 | N101: 2009 | O101: grudzień | P101: niedziela
L102: 2009-12-19 | M102: 9232 | N102: 2009 | O102: grudzień | P102: sobota
L103: 2009-12-20 | M103: 9040 | N103: 2009 | O103: grudzień | P103: niedziela
L104: 2009-12-20 | M104: 6337 | N104: 2009 | O104: grudzień | P104: niedziela
L105: 2010-01-20 | M105: 11996 | N105: 2010 | O105: styczeń | P105: środa
L106: 2010-01-20 | M106: 12851 | N106: =TEXT($L106,N$3) -> 2010 | O106: styczeń | P106: środa
L107: 2010-01-20 | M107: 10057 | N107: 2010 | O107: styczeń | P107: środa
L108: 2010-01-19 | M108: 5586 | N108: 2010 | O108: styczeń | P108: wtorek
L109: 2010-02-20 | M109: 11730 | N109: 2010 | O109: luty | P109: sobota
L110: 2010-02-20 | M110: 7702 | N110: 2010 | O110: luty | P110: sobota
L111: 2010-02-20 | M111: 5448 | N111: 2010 | O111: luty | P111: sobota
L112: 2010-03-20 | M112: 12207 | N112: 2010 | O112: marzec | P112: sobota
L113: 2010-03-20 | M113: 8660 | N113: 2010 | O113: marzec | P113: sobota
L114: 2010-03-20 | M114: 12162 | N114: 2010 | O114: marzec | P114: sobota
L115: 2010-03-19 | M115: 9518 | N115: 2010 | O115: marzec | P115: piątek
L116: 2010-04-20 | M116: 12341 | N116: 2010 | O116: kwiecień | P116: wtorek
L117: 2010-04-20 | M117: 7432 | N117: 2010 | O117: kwiecień | P117: wtorek
L118: 2010-04-19 | M118: 12943 | N118: 2010 | O118: kwiecień | P118: poniedziałek
L119: 2010-05-20 | M119: 8187 | N119: 2010 | O119: maj | P119: czwartek
L120: 2010-05-20 | M120: 8798 | N120: 2010 | O120: maj | P120: czwartek
L121: 2010-05-20 | M121: 8400 | N121: 2010 | O121: maj | P121: czwartek
L122: 2010-05-19 | M122: 9996 | N122: 2010 | O122: maj | P122: środa
L123: 2010-05-19 | M123: 10029 | N123: 2010 | O123: maj | P123: środa
L124: 2010-05-19 | M124: 10762 | N124: 2010 | O124: maj | P124: środa
L125: 2010-05-19 | M125: 10031 | N125: 2010 | O125: maj | P125: środa
L126: 2010-05-19 | M126: 6578 | N126: =TEXT($L126,N$3) -> 2010 | O126: maj | P126: środa
L127: 2010-05-19 | M127: 9524 | N127: 2010 | O127: maj | P127: środa
L128: 2010-05-19 | M128: 8319 | N128: 2010 | O128: maj | P128: środa
L129: 2010-05-19 | M129: 12591 | N129: 2010 | O129: maj | P129: środa
L130: 2010-06-20 | M130: 5402 | N130: 2010 | O130: czerwiec | P130: niedziela
L131: 2010-06-20 | M131: 7820 | N131: 2010 | O131: czerwiec | P131: niedziela
L132: 2010-06-19 | M132: 7448 | N132: 2010 | O132: czerwiec | P132: sobota
L133: 2010-07-20 | M133: 8376 | N133: 2010 | O133: lipiec | P133: wtorek
L134: 2010-07-20 | M134: 7286 | N134: 2010 | O134: lipiec | P134: wtorek
L135: 2010-08-20 | M135: 5574 | N135: 2010 | O135: sierpień | P135: piątek
L136: 2010-08-20 | M136: 9228 | N136: 2010 | O136: sierpień | P136: piątek
L137: 2010-08-20 | M137: 12692 | N137: 2010 | O137: sierpień | P137: piątek
L138: 2010-08-19 | M138: 9739 | N138: 2010 | O138: sierpień | P138: czwartek
L139: 2010-09-20 | M139: 5032 | N139: 2010 | O139: wrzesień | P139: poniedziałek
L140: 2010-10-20 | M140: 7315 | N140: 2010 | O140: październik | P140: środa
L141: 2010-10-19 | M141: 12040 | N141: 2010 | O141: październik | P141: wtorek
L142: 2010-10-20 | M142: 12443 | N142: 2010 | O142: październik | P142: środa
L143: 2010-10-20 | M143: 12427 | N143: 2010 | O143: październik | P143: środa
L144: 2010-10-20 | M144: 12871 | N144: 2010 | O144: październik | P144: środa
L145: 2010-10-19 | M145: 7170 | N145: 2010 | O145: październik | P145: wtorek
L146: 2010-11-20 | M146: 11502 | N146: =TEXT($L146,N$3) -> 2010 | O146: listopad | P146: sobota
L147: 2010-11-20 | M147: 10559 | N147: 2010 | O147: listopad | P147: sobota
L148: 2010-11-20 | M148: 6087 | N148: 2010 | O148: listopad | P148: sobota
L149: 2010-12-20 | M149: 10489 | N149: 2010 | O149: grudzień | P149: poniedziałek
L150: 2010-12-20 | M150: 7807 | N150: 2010 | O150: grudzień | P150: poniedziałek
L151: 2010-12-20 | M151: 10896 | N151: 2010 | O151: grudzień | P151: poniedziałek
L152: 2010-12-19 | M152: 11932 | N152: 2010 | O152: grudzień | P152: niedziela
L153: 2010-12-20 | M153: 5497 | N153: 2010 | O153: grudzień | P153: poniedziałek
L154: 2010-12-20 | M154: 10707 | N154: 2010 | O154: grudzień | P154: poniedziałek
L155: 2011-01-20 | M155: 5972 | N155: 2011 | O155: styczeń | P155: czwartek
L156: 2011-01-20 | M156: 5787 | N156: 2011 | O156: styczeń | P156: czwartek
L157: 2011-01-20 | M157: 8203 | N157: 2011 | O157: styczeń | P157: czwartek
L158: 2011-01-19 | M158: 9090 | N158: 2011 | O158: styczeń | P158: środa
L159: 2011-02-20 | M159: 10647 | N159: 2011 | O159: luty | P159: niedziela
L160: 2011-02-20 | M160: 10471 | N160: 2011 | O160: luty | P160: niedziela
L161: 2011-02-20 | M161: 9954 | N161: 2011 | O161: luty | P161: niedziela
L162: 2011-03-20 | M162: 12188 | N162: 2011 | O162: marzec | P162: niedziela
L163: 2011-03-20 | M163: 5603 | N163: 2011 | O163: marzec | P163: niedziela
L164: 2011-03-20 | M164: 7238 | N164: 2011 | O164: marzec | P164: niedziela
L165: 2011-03-19 | M165: 8886 | N165: 2011 | O165: marzec | P165: sobota
L166: 2011-04-20 | M166: 6674 | N166: =TEXT($L166,N$3) -> 2011 | O166: kwiecień | P166: środa
L167: 2011-04-20 | M167: 11276 | N167: 2011 | O167: kwiecień | P167: środa
L168: 2011-04-19 | M168: 8864 | N168: 2011 | O168: kwiecień | P168: wtorek
L169: 2011-05-20 | M169: 6605 | N169: 2011 | O169: maj | P169: piątek
L170: 2011-05-20 | M170: 10994 | N170: 2011 | O170: maj | P170: piątek
L171: 2011-05-20 | M171: 5102 | N171: 2011 | O171: maj | P171: piątek
L172: 2011-05-19 | M172: 5825 | N172: 2011 | O172: maj | P172: czwartek
L173: 2011-05-19 | M173: 8491 | N173: 2011 | O173: maj | P173: czwartek
L174: 2011-05-19 | M174: 12878 | N174: 2011 | O174: maj | P174: czwartek
L175: 2011-05-19 | M175: 12187 | N175: 2011 | O175: maj | P175: czwartek
L176: 2011-05-19 | M176: 6801 | N176: 2011 | O176: maj | P176: czwartek
L177: 2011-05-19 | M177: 12419 | N177: 2011 | O177: maj | P177: czwartek
L178: 2011-05-19 | M178: 6959 | N178: 2011 | O178: maj | P178: czwartek
L179: 2011-05-19 | M179: 10499 | N179: 2011 | O179: maj | P179: czwartek
L180: 2011-06-20 | M180: 6983 | N180: 2011 | O180: czerwiec | P180: poniedziałek
L181: 2011-06-20 | M181: 12451 | N181: 2011 | O181: czerwiec | P181: poniedziałek
L182: 2011-06-19 | M182: 5346 | N182: 2011 | O182: czerwiec | P182: niedziela
L183: 2011-07-20 | M183: 9329 | N183: 2011 | O183: lipiec | P183: środa
L184: 2011-07-20 | M184: 8789 | N184: 2011 | O184: lipiec | P184: środa
L185: 2011-08-20 | M185: 10807 | N185: 2011 | O185: sierpień | P185: sobota
L186: 2011-08-20 | M186: 11395 | N186: =TEXT($L186,N$3) -> 2011 | O186: sierpień | P186: sobota
L187: 2011-08-20 | M187: 5580 | N187: 2011 | O187: sierpień | P187: sobota
L188: 2011-08-19 | M188: 6130 | N188: 2011 | O188: sierpień | P188: piątek
L189: 2011-09-20 | M189: 7812 | N189: 2011 | O189: wrzesień | P189: wtorek
L190: 2011-10-20 | M190: 5788 | N190: 2011 | O190: październik | P190: czwartek
L191: 2011-10-19 | M191: 7444 | N191: 2011 | O191: październik | P191: środa
L192: 2011-10-20 | M192: 5395 | N192: 2011 | O192: październik | P192: czwartek
L193: 2011-10-20 | M193: 6911 | N193: 2011 | O193: październik | P193: czwartek
L194: 2011-10-20 | M194: 10146 | N194: 2011 | O194: październik | P194: czwartek
L195: 2011-10-19 | M195: 12130 | N195: 2011 | O195: październik | P195: środa
L196: 2011-11-20 | M196: 9977 | N196: 2011 | O196: listopad | P196: niedziela
L197: 2011-11-20 | M197: 8066 | N197: 2011 | O197: listopad | P197: niedziela
L198: 2011-11-20 | M198: 9391 | N198: 2011 | O198: listopad | P198: niedziela
L199: 2011-12-20 | M199: 9361 | N199: 2011 | O199: grudzień | P199: wtorek
L200: 2011-12-20 | M200: 10777 | N200: 2011 | O200: grudzień | P200: wtorek
L201: 2011-12-20 | M201: 12830 | N201: 2011 | O201: grudzień | P201: wtorek
... 203 more rows

Sheet Zadanie 9 (hidden)
B2: Zadanie 9
B4: Do komórki C8 wstaw formułę zwracającą wartość współczynnika korelacji pomiędzy WIG a wskazanym w komórce C7 aktywem (wyzyskującą odpowiednią wartość z macierzy korelacji).
B5: UWAGA: rozwiązanie powinno być interaktywne, tzn. zmiana aktywa w komórce C7 powinna powodować przeliczenie formuły i zwrócenie odpowiedniej korelacji.
B7: Wybrane aktywo | C7: CEZ
B8: Korelacja
B11: Macierz korelacji | C11: WIG
B12: WIG | C12: 1
B13: ASSECOPOL | C13: 0.6636787974
B14: BIOTON | C14: 0.3749735501
B15: BRE | C15: 0.7704383195
B16: BZWBK | C16: 0.7978235894
B17: CERSANIT | C17: 0.5574796179
B18: CEZ | C18: 0.2505283194
B19: CYFRPLSAT | C19: 0.3504119578
B20: GETIN | C20: 0.7518028856
B21: GTC | C21: 0.6367517889
B22: KGHM | C22: 0.7505662176
B23: LOTOS | C23: 0.8021765191
B24: PBG | C24: 0.4706245748
B25: PEKAO | C25: 0.8484599301
B26: PGNIG | C26: 0.6470305075
B27: PKNORLEN | C27: 0.807863199
B28: PKOBP | C28: 0.8528215641
B29: POLIMEXMS | C29: 0.6947397154
B30: TPSA | C30: 0.5124199211
B31: TVN | C31: 0.6721220638
B32: DJIA | C32: 0.131380201
B33: FTSE100 | C33: 0.2270621154
B34: DAX | C34: 0.1678129305
B35: RTS | C35: 0.20883889
B36: BUX | C36: 0.1308612246

Sheet Zadanie 9-rozw (hidden)
B2: Zadanie 9-rozw
B4: Do komórki C8 wstaw formułę zwracającą wartość współczynnika korelacji pomiędzy WIG a wskazanym w komórce C7 aktywem (wyzyskującą odpowiednią wartość z macierzy korelacji).
B5: UWAGA: rozwiązanie powinno być interaktywne, tzn. zmiana aktywa w komórce C7 powinna powodować przeliczenie formuły i zwrócenie odpowiedniej korelacji.
B7: Wybrane aktywo | C7: CEZ
B8: Korelacja | C8: =VLOOKUP(C7,B12:C36,2,0) -> 0.2505283194
B11: Macierz korelacji | C11: WIG | E11: Schemat rozwiązania:
B12: WIG | C12: 1 | E12: W komórce C8 wpisz formułę =WYSZUKAJ.PIONOWO(C7;B12:C36;2;0)
B13: ASSECOPOL | C13: 0.6636787974
B14: BIOTON | C14: 0.3749735501
B15: BRE | C15: 0.7704383195
B16: BZWBK | C16: 0.7978235894
B17: CERSANIT | C17: 0.5574796179
B18: CEZ | C18: 0.2505283194
B19: CYFRPLSAT | C19: 0.3504119578
B20: GETIN | C20: 0.7518028856
B21: GTC | C21: 0.6367517889
B22: KGHM | C22: 0.7505662176
B23: LOTOS | C23: 0.8021765191
B24: PBG | C24: 0.4706245748
B25: PEKAO | C25: 0.8484599301
B26: PGNIG | C26: 0.6470305075
B27: PKNORLEN | C27: 0.807863199
B28: PKOBP | C28: 0.8528215641
B29: POLIMEXMS | C29: 0.6947397154
B30: TPSA | C30: 0.5124199211
B31: TVN | C31: 0.6721220638
B32: DJIA | C32: 0.131380201
B33: FTSE100 | C33: 0.2270621154
B34: DAX | C34: 0.1678129305
B35: RTS | C35: 0.20883889
B36: BUX | C36: 0.1308612246

Sheet Zadanie 10 (hidden)
B2: Zadanie 10
B4: Uzupełnij poniższą tabelę w taki sposób, aby utworzyć tabliczkę mnożenia o wymiarach 100 x 100.
B5: W zielonych komórkach wstaw wynik mnożenia odpowiednich liczb z szarych pól.
C8: 1 | D8: 2 | E8: 3 | F8: 4 | G8: 5 | H8: 6 | I8: 7 | J8: 8 | K8: 9 | L8: 10 | M8: 11 | N8: 12 | O8: 13 | P8: 14 | Q8: 15 | R8: 16 | S8: 17 | T8: 18 | U8: 19 | V8: 20 | W8: 21 | X8: 22 | Y8: 23 | Z8: 24 | AA8: 25 | AB8: 26 | AC8: 27 | AD8: 28 | AE8: 29 | AF8: 30 | AG8: 31 | AH8: 32 | AI8: 33 | AJ8: 34 | AK8: 35 | AL8: 36 | AM8: 37 | AN8: 38 | AO8: 39 | AP8: 40 | AQ8: 41 | AR8: 42 | AS8: 43 | AT8: 44 | AU8: 45 | AV8: 46 | AW8: 47 | AX8: 48 | AY8: 49 | AZ8: 50 | BA8: 51 | BB8: 52 | BC8: 53 | BD8: 54 | BE8: 55 | BF8: 56 | BG8: 57 | BH8: 58 | BI8: 59 | BJ8: 60 | BK8: 61 | BL8: 62 | BM8: 63 | BN8: 64 | BO8: 65 | BP8: 66 | BQ8: 67 | BR8: 68 | BS8: 69 | BT8: 70 | BU8: 71 | BV8: 72 | BW8: 73 | BX8: 74 | BY8: 75 | BZ8: 76 | CA8: 77 | CB8: 78 | CC8: 79 | CD8: 80 | CE8: 81 | CF8: 82 | CG8: 83 | CH8: 84 | CI8: 85 | CJ8: 86 | CK8: 87 | CL8: 88 | CM8: 89 | CN8: 90 | CO8: 91 | CP8: 92 | CQ8: 93 | CR8: 94 | CS8: 95 | CT8: 96 | CU8: 97 | CV8: 98 | CW8: 99 | CX8: 100
B9: 1 | CY9: 1
B10: 2 | CY10: 2
B11: 3 | CY11: 3
B12: 4 | CY12: 4
B13: 5 | CY13: 5
B14: 6 | CY14: 6
B15: 7 | CY15: 7
B16: 8 | CY16: 8
B17: 9 | CY17: 9
B18: 10 | CY18: 10
B19: 11 | CY19: 11
B20: 12 | CY20: 12
B21: 13 | CY21: 13
B22: 14 | CY22: 14
B23: 15 | CY23: 15
B24: 16 | CY24: 16
B25: 17 | CY25: 17
B26: 18 | CY26: 18
B27: 19 | CY27: 19
B28: 20 | CY28: 20
B29: 21 | CY29: 21
B30: 22 | CY30: 22
B31: 23 | CY31: 23
B32: 24 | CY32: 24
B33: 25 | CY33: 25
B34: 26 | CY34: 26
B35: 27 | CY35: 27
B36: 28 | CY36: 28
B37: 29 | CY37: 29
B38: 30 | CY38: 30
B39: 31 | CY39: 31
B40: 32 | CY40: 32
B41: 33 | CY41: 33
B42: 34 | CY42: 34
B43: 35 | CY43: 35
B44: 36 | CY44: 36
B45: 37 | CY45: 37
B46: 38 | CY46: 38
B47: 39 | CY47: 39
B48: 40 | CY48: 40
B49: 41 | CY49: 41
B50: 42 | CY50: 42
B51: 43 | CY51: 43
B52: 44 | CY52: 44
B53: 45 | CY53: 45
B54: 46 | CY54: 46
B55: 47 | CY55: 47
B56: 48 | CY56: 48
B57: 49 | CY57: 49
B58: 50 | CY58: 50
B59: 51 | CY59: 51
B60: 52 | CY60: 52
B61: 53 | CY61: 53
B62: 54 | CY62: 54
B63: 55 | CY63: 55
B64: 56 | CY64: 56
B65: 57 | CY65: 57
B66: 58 | CY66: 58
B67: 59 | CY67: 59
B68: 60 | CY68: 60
B69: 61 | CY69: 61
B70: 62 | CY70: 62
B71: 63 | CY71: 63
B72: 64 | CY72: 64
B73: 65 | CY73: 65
B74: 66 | CY74: 66
B75: 67 | CY75: 67
B76: 68 | CY76: 68
B77: 69 | CY77: 69
B78: 70 | CY78: 70
B79: 71 | CY79: 71
B80: 72 | CY80: 72
B81: 73 | CY81: 73
B82: 74 | CY82: 74
B83: 75 | CY83: 75
B84: 76 | CY84: 76
B85: 77 | CY85: 77
B86: 78 | CY86: 78
B87: 79 | CY87: 79
B88: 80 | CY88: 80
B89: 81 | CY89: 81
B90: 82 | CY90: 82
B91: 83 | CY91: 83
B92: 84 | CY92: 84
B93: 85 | CY93: 85
B94: 86 | CY94: 86
B95: 87 | CY95: 87
B96: 88 | CY96: 88
B97: 89 | CY97: 89
B98: 90 | CY98: 90
B99: 91 | CY99: 91
B100: 92 | CY100: 92
B101: 93 | CY101: 93
B102: 94 | CY102: 94
B103: 95 | CY103: 95
B104: 96 | CY104: 96
B105: 97 | CY105: 97
B106: 98 | CY106: 98
B107: 99 | CY107: 99
B108: 100 | CY108: 100
C109: 1 | D109: 2 | E109: 3 | F109: 4 | G109: 5 | H109: 6 | I109: 7 | J109: 8 | K109: 9 | L109: 10 | M109: 11 | N109: 12 | O109: 13 | P109: 14 | Q109: 15 | R109: 16 | S109: 17 | T109: 18 | U109: 19 | V109: 20 | W109: 21 | X109: 22 | Y109: 23 | Z109: 24 | AA109: 25 | AB109: 26 | AC109: 27 | AD109: 28 | AE109: 29 | AF109: 30 | AG109: 31 | AH109: 32 | AI109: 33 | AJ109: 34 | AK109: 35 | AL109: 36 | AM109: 37 | AN109: 38 | AO109: 39 | AP109: 40 | AQ109: 41 | AR109: 42 | AS109: 43 | AT109: 44 | AU109: 45 | AV109: 46 | AW109: 47 | AX109: 48 | AY109: 49 | AZ109: 50 | BA109: 51 | BB109: 52 | BC109: 53 | BD109: 54 | BE109: 55 | BF109: 56 | BG109: 57 | BH109: 58 | BI109: 59 | BJ109: 60 | BK109: 61 | BL109: 62 | BM109: 63 | BN109: 64 | BO109: 65 | BP109: 66 | BQ109: 67 | BR109: 68 | BS109: 69 | BT109: 70 | BU109: 71 | BV109: 72 | BW109: 73 | BX109: 74 | BY109: 75 | BZ109: 76 | CA109: 77 | CB109: 78 | CC109: 79 | CD109: 80 | CE109: 81 | CF109: 82 | CG109: 83 | CH109: 84 | CI109: 85 | CJ109: 86 | CK109: 87 | CL109: 88 | CM109: 89 | CN109: 90 | CO109: 91 | CP109: 92 | CQ109: 93 | CR109: 94 | CS109: 95 | CT109: 96 | CU109: 97 | CV109: 98 | CW109: 99 | CX109: 100

Sheet Zadanie 10-rozw (hidden)
B2: Zadanie 10-rozw
B4: Uzupełnij poniższą tabelę w taki sposób, aby utworzyć tabliczkę mnożenia o wymiarach 100 x 100. | Q4: Schemat rozwiązania:
B5: W zielonych komórkach wstaw wynik mnożenia odpowiednich liczb z szarych pól. | Q5: 1. W komórce C9 wpisz formułę: =$B9*C$8
Q6: 2. Przeciągnij formułę do pozostałych komórek (C9:CX109)
C8: 1 | D8: 2 | E8: 3 | F8: 4 | G8: 5 | H8: 6 | I8: 7 | J8: 8 | K8: 9 | L8: 10 | M8: 11 | N8: 12 | O8: 13 | P8: 14 | Q8: 15 | R8: 16 | S8: 17 | T8: 18 | U8: 19 | V8: 20 | W8: 21 | X8: 22 | Y8: 23 | Z8: 24 | AA8: 25 | AB8: 26 | AC8: 27 | AD8: 28 | AE8: 29 | AF8: 30 | AG8: 31 | AH8: 32 | AI8: 33 | AJ8: 34 | AK8: 35 | AL8: 36 | AM8: 37 | AN8: 38 | AO8: 39 | AP8: 40 | AQ8: 41 | AR8: 42 | AS8: 43 | AT8: 44 | AU8: 45 | AV8: 46 | AW8: 47 | AX8: 48 | AY8: 49 | AZ8: 50 | BA8: 51 | BB8: 52 | BC8: 53 | BD8: 54 | BE8: 55 | BF8: 56 | BG8: 57 | BH8: 58 | BI8: 59 | BJ8: 60 | BK8: 61 | BL8: 62 | BM8: 63 | BN8: 64 | BO8: 65 | BP8: 66 | BQ8: 67 | BR8: 68 | BS8: 69 | BT8: 70 | BU8: 71 | BV8: 72 | BW8: 73 | BX8: 74 | BY8: 75 | BZ8: 76 | CA8: 77 | CB8: 78 | CC8: 79 | CD8: 80 | CE8: 81 | CF8: 82 | CG8: 83 | CH8: 84 | CI8: 85 | CJ8: 86 | CK8: 87 | CL8: 88 | CM8: 89 | CN8: 90 | CO8: 91 | CP8: 92 | CQ8: 93 | CR8: 94 | CS8: 95 | CT8: 96 | CU8: 97 | CV8: 98 | CW8: 99 | CX8: 100
B9: 1 | C9: 1 | D9: 2 | E9: 3 | F9: 4 | G9: 5 | H9: 6 | I9: 7 | J9: 8 | K9: 9 | L9: 10 | M9: 11 | N9: 12 | O9: 13 | P9: 14 | Q9: 15 | R9: 16 | S9: 17 | T9: 18 | U9: 19 | V9: 20 | W9: 21 | X9: 22 | Y9: 23 | Z9: 24 | AA9: 25 | AB9: 26 | AC9: 27 | AD9: 28 | AE9: 29 | AF9: 30 | AG9: 31 | AH9: 32 | AI9: 33 | AJ9: 34 | AK9: 35 | AL9: 36 | AM9: 37 | AN9: 38 | AO9: 39 | AP9: 40 | AQ9: 41 | AR9: 42 | AS9: 43 | AT9: 44 | AU9: 45 | AV9: 46 | AW9: 47 | AX9: 48 | AY9: 49 | AZ9: 50 | BA9: 51 | BB9: 52 | BC9: 53 | BD9: 54 | BE9: 55 | BF9: 56 | BG9: 57 | BH9: 58 | BI9: 59 | BJ9: 60 | BK9: 61 | BL9: 62 | BM9: 63 | BN9: 64 | BO9: 65 | BP9: 66 | BQ9: 67 | BR9: 68 | BS9: 69 | BT9: 70 | BU9: 71 | BV9: 72 | BW9: 73 | BX9: 74 | BY9: 75 | BZ9: 76 | CA9: 77 | CB9: 78 | CC9: 79 | CD9: 80 | CE9: 81 | CF9: 82 | CG9: 83 | CH9: 84 | CI9: 85 | CJ9: 86 | CK9: 87 | CL9: 88 | CM9: 89 | CN9: 90 | CO9: 91 | CP9: 92 | CQ9: 93 | CR9: 94 | CS9: 95 | CT9: 96 | CU9: 97 | CV9: 98 | CW9: 99 | CX9: 100 | CY9: 1
B10: 2 | C10: 2 | D10: 4 | E10: 6 | F10: 8 | G10: 10 | H10: 12 | I10: 14 | J10: 16 | K10: 18 | L10: 20 | M10: 22 | N10: 24 | O10: 26 | P10: 28 | Q10: 30 | R10: 32 | S10: 34 | T10: 36 | U10: 38 | V10: 40 | W10: 42 | X10: 44 | Y10: 46 | Z10: 48 | AA10: 50 | AB10: 52 | AC10: 54 | AD10: 56 | AE10: 58 | AF10: 60 | AG10: 62 | AH10: 64 | AI10: 66 | AJ10: 68 | AK10: 70 | AL10: 72 | AM10: 74 | AN10: 76 | AO10: 78 | AP10: 80 | AQ10: 82 | AR10: 84 | AS10: 86 | AT10: 88 | AU10: 90 | AV10: 92 | AW10: 94 | AX10: 96 | AY10: 98 | AZ10: 100 | BA10: 102 | BB10: 104 | BC10: 106 | BD10: 108 | BE10: 110 | BF10: 112 | BG10: 114 | BH10: 116 | BI10: 118 | BJ10: 120 | BK10: 122 | BL10: 124 | BM10: 126 | BN10: 128 | BO10: 130 | BP10: 132 | BQ10: 134 | BR10: 136 | BS10: 138 | BT10: 140 | BU10: 142 | BV10: 144 | BW10: 146 | BX10: 148 | BY10: 150 | BZ10: 152 | CA10: 154 | CB10: 156 | CC10: 158 | CD10: 160 | CE10: 162 | CF10: 164 | CG10: 166 | CH10: 168 | CI10: 170 | CJ10: 172 | CK10: 174 | CL10: 176 | CM10: 178 | CN10: 180 | CO10: 182 | CP10: 184 | CQ10: 186 | CR10: 188 | CS10: 190 | CT10: 192 | CU10: 194 | CV10: 196 | CW10: 198 | CX10: 200 | CY10: 2
B11: 3 | C11: 3 | D11: 6 | E11: 9 | F11: 12 | G11: 15 | H11: 18 | I11: 21 | J11: 24 | K11: 27 | L11: 30 | M11: 33 | N11: 36 | O11: 39 | P11: 42 | Q11: 45 | R11: 48 | S11: 51 | T11: 54 | U11: 57 | V11: 60 | W11: 63 | X11: 66 | Y11: 69 | Z11: 72 | AA11: 75 | AB11: 78 | AC11: 81 | AD11: 84 | AE11: 87 | AF11: 90 | AG11: 93 | AH11: 96 | AI11: 99 | AJ11: 102 | AK11: 105 | AL11: 108 | AM11: 111 | AN11: 114 | AO11: 117 | AP11: 120 | AQ11: 123 | AR11: 126 | AS11: 129 | AT11: 132 | AU11: 135 | AV11: 138 | AW11: 141 | AX11: 144 | AY11: 147 | AZ11: 150 | BA11: 153 | BB11: 156 | BC11: 159 | BD11: 162 | BE11: 165 | BF11: 168 | BG11: 171 | BH11: 174 | BI11: 177 | BJ11: 180 | BK11: 183 | BL11: 186 | BM11: 189 | BN11: 192 | BO11: 195 | BP11: 198 | BQ11: 201 | BR11: 204 | BS11: 207 | BT11: 210 | BU11: 213 | BV11: 216 | BW11: 219 | BX11: 222 | BY11: 225 | BZ11: 228 | CA11: 231 | CB11: 234 | CC11: 237 | CD11: 240 | CE11: 243 | CF11: 246 | CG11: 249 | CH11: 252 | CI11: 255 | CJ11: 258 | CK11: 261 | CL11: 264 | CM11: 267 | CN11: 270 | CO11: 273 | CP11: 276 | CQ11: 279 | CR11: 282 | CS11: 285 | CT11: 288 | CU11: 291 | CV11: 294 | CW11: 297 | CX11: 300 | CY11: 3
B12: 4 | C12: 4 | D12: 8 | E12: 12 | F12: 16 | G12: 20 | H12: 24 | I12: 28 | J12: 32 | K12: 36 | L12: 40 | M12: 44 | N12: 48 | O12: 52 | P12: 56 | Q12: 60 | R12: 64 | S12: 68 | T12: 72 | U12: 76 | V12: 80 | W12: 84 | X12: 88 | Y12: 92 | Z12: 96 | AA12: 100 | AB12: 104 | AC12: 108 | AD12: 112 | AE12: 116 | AF12: 120 | AG12: 124 | AH12: 128 | AI12: 132 | AJ12: 136 | AK12: 140 | AL12: 144 | AM12: 148 | AN12: 152 | AO12: 156 | AP12: 160 | AQ12: 164 | AR12: 168 | AS12: 172 | AT12: 176 | AU12: 180 | AV12: 184 | AW12: 188 | AX12: 192 | AY12: 196 | AZ12: 200 | BA12: 204 | BB12: 208 | BC12: 212 | BD12: 216 | BE12: 220 | BF12: 224 | BG12: 228 | BH12: 232 | BI12: 236 | BJ12: 240 | BK12: 244 | BL12: 248 | BM12: 252 | BN12: 256 | BO12: 260 | BP12: 264 | BQ12: 268 | BR12: 272 | BS12: 276 | BT12: 280 | BU12: 284 | BV12: 288 | BW12: 292 | BX12: 296 | BY12: 300 | BZ12: 304 | CA12: 308 | CB12: 312 | CC12: 316 | CD12: 320 | CE12: 324 | CF12: 328 | CG12: 332 | CH12: 336 | CI12: 340 | CJ12: 344 | CK12: 348 | CL12: 352 | CM12: 356 | CN12: 360 | CO12: 364 | CP12: 368 | CQ12: 372 | CR12: 376 | CS12: 380 | CT12: 384 | CU12: 388 | CV12: 392 | CW12: 396 | CX12: 400 | CY12: 4
B13: 5 | C13: 5 | D13: 10 | E13: 15 | F13: 20 | G13: 25 | H13: 30 | I13: 35 | J13: 40 | K13: 45 | L13: 50 | M13: 55 | N13: 60 | O13: 65 | P13: 70 | Q13: 75 | R13: 80 | S13: 85 | T13: 90 | U13: 95 | V13: 100 | W13: 105 | X13: 110 | Y13: 115 | Z13: 120 | AA13: 125 | AB13: 130 | AC13: 135 | AD13: 140 | AE13: 145 | AF13: 150 | AG13: 155 | AH13: 160 | AI13: 165 | AJ13: 170 | AK13: 175 | AL13: 180 | AM13: 185 | AN13: 190 | AO13: 195 | AP13: 200 | AQ13: 205 | AR13: 210 | AS13: 215 | AT13: 220 | AU13: 225 | AV13: 230 | AW13: 235 | AX13: 240 | AY13: 245 | AZ13: 250 | BA13: 255 | BB13: 260 | BC13: 265 | BD13: 270 | BE13: 275 | BF13: 280 | BG13: 285 | BH13: 290 | BI13: 295 | BJ13: 300 | BK13: 305 | BL13: 310 | BM13: 315 | BN13: 320 | BO13: 325 | BP13: 330 | BQ13: 335 | BR13: 340 | BS13: 345 | BT13: 350 | BU13: 355 | BV13: 360 | BW13: 365 | BX13: 370 | BY13: 375 | BZ13: 380 | CA13: 385 | CB13: 390 | CC13: 395 | CD13: 400 | CE13: 405 | CF13: 410 | CG13: 415 | CH13: 420 | CI13: 425 | CJ13: 430 | CK13: 435 | CL13: 440 | CM13: 445 | CN13: 450 | CO13: 455 | CP13: 460 | CQ13: 465 | CR13: 470 | CS13: 475 | CT13: 480 | CU13: 485 | CV13: 490 | CW13: 495 | CX13: 500 | CY13: 5
B14: 6 | C14: 6 | D14: 12 | E14: 18 | F14: 24 | G14: 30 | H14: 36 | I14: 42 | J14: 48 | K14: 54 | L14: 60 | M14: 66 | N14: 72 | O14: 78 | P14: 84 | Q14: 90 | R14: 96 | S14: 102 | T14: 108 | U14: 114 | V14: 120 | W14: 126 | X14: 132 | Y14: 138 | Z14: 144 | AA14: 150 | AB14: 156 | AC14: 162 | AD14: 168 | AE14: 174 | AF14: 180 | AG14: 186 | AH14: 192 | AI14: 198 | AJ14: 204 | AK14: 210 | AL14: 216 | AM14: 222 | AN14: 228 | AO14: 234 | AP14: 240 | AQ14: 246 | AR14: 252 | AS14: 258 | AT14: 264 | AU14: 270 | AV14: 276 | AW14: 282 | AX14: 288 | AY14: 294 | AZ14: 300 | BA14: 306 | BB14: 312 | BC14: 318 | BD14: 324 | BE14: 330 | BF14: 336 | BG14: 342 | BH14: 348 | BI14: 354 | BJ14: 360 | BK14: 366 | BL14: 372 | BM14: 378 | BN14: 384 | BO14: 390 | BP14: 396 | BQ14: 402 | BR14: 408 | BS14: 414 | BT14: 420 | BU14: 426 | BV14: 432 | BW14: 438 | BX14: 444 | BY14: 450 | BZ14: 456 | CA14: 462 | CB14: 468 | CC14: 474 | CD14: 480 | CE14: 486 | CF14: 492 | CG14: 498 | CH14: 504 | CI14: 510 | CJ14: 516 | CK14: 522 | CL14: 528 | CM14: 534 | CN14: 540 | CO14: 546 | CP14: 552 | CQ14: 558 | CR14: 564 | CS14: 570 | CT14: 576 | CU14: 582 | CV14: 588 | CW14: 594 | CX14: 600 | CY14: 6
B15: 7 | C15: 7 | D15: 14 | E15: 21 | F15: 28 | G15: 35 | H15: 42 | I15: 49 | J15: 56 | K15: 63 | L15: 70 | M15: 77 | N15: 84 | O15: 91 | P15: 98 | Q15: 105 | R15: 112 | S15: 119 | T15: 126 | U15: 133 | V15: 140 | W15: 147 | X15: 154 | Y15: 161 | Z15: 168 | AA15: 175 | AB15: 182 | AC15: 189 | AD15: 196 | AE15: 203 | AF15: 210 | AG15: 217 | AH15: 224 | AI15: 231 | AJ15: 238 | AK15: 245 | AL15: 252 | AM15: 259 | AN15: 266 | AO15: 273 | AP15: 280 | AQ15: 287 | AR15: 294 | AS15: 301 | AT15: 308 | AU15: 315 | AV15: 322 | AW15: 329 | AX15: 336 | AY15: 343 | AZ15: 350 | BA15: 357 | BB15: 364 | BC15: 371 | BD15: 378 | BE15: 385 | BF15: 392 | BG15: 399 | BH15: 406 | BI15: 413 | BJ15: 420 | BK15: 427 | BL15: 434 | BM15: 441 | BN15: 448 | BO15: 455 | BP15: 462 | BQ15: 469 | BR15: 476 | BS15: 483 | BT15: 490 | BU15: 497 | BV15: 504 | BW15: 511 | BX15: 518 | BY15: 525 | BZ15: 532 | CA15: 539 | CB15: 546 | CC15: 553 | CD15: 560 | CE15: 567 | CF15: 574 | CG15: 581 | CH15: 588 | CI15: 595 | CJ15: 602 | CK15: 609 | CL15: 616 | CM15: 623 | CN15: 630 | CO15: 637 | CP15: 644 | CQ15: 651 | CR15: 658 | CS15: 665 | CT15: 672 | CU15: 679 | CV15: 686 | CW15: 693 | CX15: 700 | CY15: 7
B16: 8 | C16: 8 | D16: 16 | E16: 24 | F16: 32 | G16: 40 | H16: 48 | I16: 56 | J16: 64 | K16: 72 | L16: 80 | M16: 88 | N16: 96 | O16: 104 | P16: 112 | Q16: 120 | R16: 128 | S16: 136 | T16: 144 | U16: 152 | V16: 160 | W16: 168 | X16: 176 | Y16: 184 | Z16: 192 | AA16: 200 | AB16: 208 | AC16: 216 | AD16: 224 | AE16: 232 | AF16: 240 | AG16: 248 | AH16: 256 | AI16: 264 | AJ16: 272 | AK16: 280 | AL16: 288 | AM16: 296 | AN16: 304 | AO16: 312 | AP16: 320 | AQ16: 328 | AR16: 336 | AS16: 344 | AT16: 352 | AU16: 360 | AV16: 368 | AW16: 376 | AX16: 384 | AY16: 392 | AZ16: 400 | BA16: 408 | BB16: 416 | BC16: 424 | BD16: 432 | BE16: 440 | BF16: 448 | BG16: 456 | BH16: 464 | BI16: 472 | BJ16: 480 | BK16: 488 | BL16: 496 | BM16: 504 | BN16: 512 | BO16: 520 | BP16: 528 | BQ16: 536 | BR16: 544 | BS16: 552 | BT16: 560 | BU16: 568 | BV16: 576 | BW16: 584 | BX16: 592 | BY16: 600 | BZ16: 608 | CA16: 616 | CB16: 624 | CC16: 632 | CD16: 640 | CE16: 648 | CF16: 656 | CG16: 664 | CH16: 672 | CI16: 680 | CJ16: 688 | CK16: 696 | CL16: 704 | CM16: 712 | CN16: 720 | CO16: 728 | CP16: 736 | CQ16: 744 | CR16: 752 | CS16: 760 | CT16: 768 | CU16: 776 | CV16: 784 | CW16: 792 | CX16: 800 | CY16: 8
B17: 9 | C17: 9 | D17: 18 | E17: 27 | F17: 36 | G17: 45 | H17: 54 | I17: 63 | J17: 72 | K17: 81 | L17: 90 | M17: 99 | N17: 108 | O17: 117 | P17: 126 | Q17: 135 | R17: 144 | S17: 153 | T17: 162 | U17: 171 | V17: 180 | W17: 189 | X17: 198 | Y17: 207 | Z17: 216 | AA17: 225 | AB17: 234 | AC17: 243 | AD17: 252 | AE17: 261 | AF17: 270 | AG17: 279 | AH17: 288 | AI17: 297 | AJ17: 306 | AK17: 315 | AL17: 324 | AM17: 333 | AN17: 342 | AO17: 351 | AP17: 360 | AQ17: 369 | AR17: 378 | AS17: 387 | AT17: 396 | AU17: 405 | AV17: 414 | AW17: 423 | AX17: 432 | AY17: 441 | AZ17: 450 | BA17: 459 | BB17: 468 | BC17: 477 | BD17: 486 | BE17: 495 | BF17: 504 | BG17: 513 | BH17: 522 | BI17: 531 | BJ17: 540 | BK17: 549 | BL17: 558 | BM17: 567 | BN17: 576 | BO17: 585 | BP17: 594 | BQ17: 603 | BR17: 612 | BS17: 621 | BT17: 630 | BU17: 639 | BV17: 648 | BW17: 657 | BX17: 666 | BY17: 675 | BZ17: 684 | CA17: 693 | CB17: 702 | CC17: 711 | CD17: 720 | CE17: 729 | CF17: 738 | CG17: 747 | CH17: 756 | CI17: 765 | CJ17: 774 | CK17: 783 | CL17: 792 | CM17: 801 | CN17: 810 | CO17: 819 | CP17: 828 | CQ17: 837 | CR17: 846 | CS17: 855 | CT17: 864 | CU17: 873 | CV17: 882 | CW17: 891 | CX17: 900 | CY17: 9
B18: 10 | C18: 10 | D18: 20 | E18: 30 | F18: 40 | G18: 50 | H18: 60 | I18: 70 | J18: 80 | K18: 90 | L18: 100 | M18: 110 | N18: 120 | O18: 130 | P18: 140 | Q18: 150 | R18: 160 | S18: 170 | T18: 180 | U18: 190 | V18: 200 | W18: 210 | X18: 220 | Y18: 230 | Z18: 240 | AA18: 250 | AB18: 260 | AC18: 270 | AD18: 280 | AE18: 290 | AF18: 300 | AG18: 310 | AH18: 320 | AI18: 330 | AJ18: 340 | AK18: 350 | AL18: 360 | AM18: 370 | AN18: 380 | AO18: 390 | AP18: 400 | AQ18: 410 | AR18: 420 | AS18: 430 | AT18: 440 | AU18: 450 | AV18: 460 | AW18: 470 | AX18: 480 | AY18: 490 | AZ18: 500 | BA18: 510 | BB18: 520 | BC18: 530 | BD18: 540 | BE18: 550 | BF18: 560 | BG18: 570 | BH18: 580 | BI18: 590 | BJ18: 600 | BK18: 610 | BL18: 620 | BM18: 630 | BN18: 640 | BO18: 650 | BP18: 660 | BQ18: 670 | BR18: 680 | BS18: 690 | BT18: 700 | BU18: 710 | BV18: 720 | BW18: 730 | BX18: 740 | BY18: 750 | BZ18: 760 | CA18: 770 | CB18: 780 | CC18: 790 | CD18: 800 | CE18: 810 | CF18: 820 | CG18: 830 | CH18: 840 | CI18: 850 | CJ18: 860 | CK18: 870 | CL18: 880 | CM18: 890 | CN18: 900 | CO18: 910 | CP18: 920 | CQ18: 930 | CR18: 940 | CS18: 950 | CT18: 960 | CU18: 970 | CV18: 980 | CW18: 990 | CX18: 1000 | CY18: 10
B19: 11 | C19: 11 | D19: 22 | E19: 33 | F19: 44 | G19: 55 | H19: 66 | I19: 77 | J19: 88 | K19: 99 | L19: 110 | M19: 121 | N19: 132 | O19: 143 | P19: 154 | Q19: 165 | R19: 176 | S19: 187 | T19: 198 | U19: 209 | V19: 220 | W19: 231 | X19: 242 | Y19: 253 | Z19: 264 | AA19: 275 | AB19: 286 | AC19: 297 | AD19: 308 | AE19: 319 | AF19: 330 | AG19: 341 | AH19: 352 | AI19: 363 | AJ19: 374 | AK19: 385 | AL19: 396 | AM19: 407 | AN19: 418 | AO19: 429 | AP19: 440 | AQ19: 451 | AR19: 462 | AS19: 473 | AT19: 484 | AU19: 495 | AV19: 506 | AW19: 517 | AX19: 528 | AY19: 539 | AZ19: 550 | BA19: 561 | BB19: 572 | BC19: 583 | BD19: 594 | BE19: 605 | BF19: 616 | BG19: 627 | BH19: 638 | BI19: 649 | BJ19: 660 | BK19: 671 | BL19: 682 | BM19: 693 | BN19: 704 | BO19: 715 | BP19: 726 | BQ19: 737 | BR19: 748 | BS19: 759 | BT19: 770 | BU19: 781 | BV19: 792 | BW19: 803 | BX19: 814 | BY19: 825 | BZ19: 836 | CA19: 847 | CB19: 858 | CC19: 869 | CD19: 880 | CE19: 891 | CF19: 902 | CG19: 913 | CH19: 924 | CI19: 935 | CJ19: 946 | CK19: 957 | CL19: 968 | CM19: 979 | CN19: 990 | CO19: 1001 | CP19: 1012 | CQ19: 1023 | CR19: 1034 | CS19: 1045 | CT19: 1056 | CU19: 1067 | CV19: 1078 | CW19: 1089 | CX19: 1100 | CY19: 11
B20: 12 | C20: 12 | D20: 24 | E20: 36 | F20: 48 | G20: 60 | H20: 72 | I20: 84 | J20: 96 | K20: 108 | L20: 120 | M20: 132 | N20: 144 | O20: 156 | P20: 168 | Q20: 180 | R20: 192 | S20: 204 | T20: 216 | U20: 228 | V20: 240 | W20: 252 | X20: 264 | Y20: 276 | Z20: 288 | AA20: 300 | AB20: 312 | AC20: 324 | AD20: 336 | AE20: 348 | AF20: 360 | AG20: 372 | AH20: 384 | AI20: 396 | AJ20: 408 | AK20: 420 | AL20: 432 | AM20: 444 | AN20: 456 | AO20: 468 | AP20: 480 | AQ20: 492 | AR20: 504 | AS20: 516 | AT20: 528 | AU20: 540 | AV20: 552 | AW20: 564 | AX20: 576 | AY20: 588 | AZ20: 600 | BA20: 612 | BB20: 624 | BC20: 636 | BD20: 648 | BE20: 660 | BF20: 672 | BG20: 684 | BH20: 696 | BI20: 708 | BJ20: 720 | BK20: 732 | BL20: 744 | BM20: 756 | BN20: 768 | BO20: 780 | BP20: 792 | BQ20: 804 | BR20: 816 | BS20: 828 | BT20: 840 | BU20: 852 | BV20: 864 | BW20: 876 | BX20: 888 | BY20: 900 | BZ20: 912 | CA20: 924 | CB20: 936 | CC20: 948 | CD20: 960 | CE20: 972 | CF20: 984 | CG20: 996 | CH20: 1008 | CI20: 1020 | CJ20: 1032 | CK20: 1044 | CL20: 1056 | CM20: 1068 | CN20: 1080 | CO20: 1092 | CP20: 1104 | CQ20: 1116 | CR20: 1128 | CS20: 1140 | CT20: 1152 | CU20: 1164 | CV20: 1176 | CW20: 1188 | CX20: 1200 | CY20: 12
B21: 13 | C21: 13 | D21: 26 | E21: 39 | F21: 52 | G21: 65 | H21: 78 | I21: 91 | J21: 104 | K21: 117 | L21: 130 | M21: 143 | N21: 156 | O21: 169 | P21: 182 | Q21: 195 | R21: 208 | S21: 221 | T21: 234 | U21: 247 | V21: 260 | W21: 273 | X21: 286 | Y21: 299 | Z21: 312 | AA21: 325 | AB21: 338 | AC21: 351 | AD21: 364 | AE21: 377 | AF21: 390 | AG21: 403 | AH21: 416 | AI21: 429 | AJ21: 442 | AK21: 455 | AL21: 468 | AM21: 481 | AN21: 494 | AO21: 507 | AP21: 520 | AQ21: 533 | AR21: 546 | AS21: 559 | AT21: 572 | AU21: 585 | AV21: 598 | AW21: 611 | AX21: 624 | AY21: 637 | AZ21: 650 | BA21: 663 | BB21: 676 | BC21: 689 | BD21: 702 | BE21: 715 | BF21: 728 | BG21: 741 | BH21: 754 | BI21: 767 | BJ21: 780 | BK21: 793 | BL21: 806 | BM21: 819 | BN21: 832 | BO21: 845 | BP21: 858 | BQ21: 871 | BR21: 884 | BS21: 897 | BT21: 910 | BU21: 923 | BV21: 936 | BW21: 949 | BX21: 962 | BY21: 975 | BZ21: 988 | CA21: 1001 | CB21: 1014 | CC21: 1027 | CD21: 1040 | CE21: 1053 | CF21: 1066 | CG21: 1079 | CH21: 1092 | CI21: 1105 | CJ21: 1118 | CK21: 1131 | CL21: 1144 | CM21: 1157 | CN21: 1170 | CO21: 1183 | CP21: 1196 | CQ21: 1209 | CR21: 1222 | CS21: 1235 | CT21: 1248 | CU21: 1261 | CV21: 1274 | CW21: 1287 | CX21: 1300 | CY21: 13
B22: 14 | C22: 14 | D22: 28 | E22: 42 | F22: 56 | G22: 70 | H22: 84 | I22: 98 | J22: 112 | K22: 126 | L22: 140 | M22: 154 | N22: 168 | O22: 182 | P22: 196 | Q22: 210 | R22: 224 | S22: 238 | T22: 252 | U22: 266 | V22: 280 | W22: 294 | X22: 308 | Y22: 322 | Z22: 336 | AA22: 350 | AB22: 364 | AC22: 378 | AD22: 392 | AE22: 406 | AF22: 420 | AG22: 434 | AH22: 448 | AI22: 462 | AJ22: 476 | AK22: 490 | AL22: 504 | AM22: 518 | AN22: 532 | AO22: 546 | AP22: 560 | AQ22: 574 | AR22: 588 | AS22: 602 | AT22: 616 | AU22: 630 | AV22: 644 | AW22: 658 | AX22: 672 | AY22: 686 | AZ22: 700 | BA22: 714 | BB22: 728 | BC22: 742 | BD22: 756 | BE22: 770 | BF22: 784 | BG22: 798 | BH22: 812 | BI22: 826 | BJ22: 840 | BK22: 854 | BL22: 868 | BM22: 882 | BN22: 896 | BO22: 910 | BP22: 924 | BQ22: 938 | BR22: 952 | BS22: 966 | BT22: 980 | BU22: 994 | BV22: 1008 | BW22: 1022 | BX22: 1036 | BY22: 1050 | BZ22: 1064 | CA22: 1078 | CB22: 1092 | CC22: 1106 | CD22: 1120 | CE22: 1134 | CF22: 1148 | CG22: 1162 | CH22: 1176 | CI22: 1190 | CJ22: 1204 | CK22: 1218 | CL22: 1232 | CM22: 1246 | CN22: 1260 | CO22: 1274 | CP22: 1288 | CQ22: 1302 | CR22: 1316 | CS22: 1330 | CT22: 1344 | CU22: 1358 | CV22: 1372 | CW22: 1386 | CX22: 1400 | CY22: 14
B23: 15 | C23: 15 | D23: 30 | E23: 45 | F23: 60 | G23: 75 | H23: 90 | I23: 105 | J23: 120 | K23: 135 | L23: 150 | M23: 165 | N23: 180 | O23: 195 | P23: 210 | Q23: 225 | R23: 240 | S23: 255 | T23: 270 | U23: 285 | V23: 300 | W23: 315 | X23: 330 | Y23: 345 | Z23: 360 | AA23: 375 | AB23: 390 | AC23: 405 | AD23: 420 | AE23: 435 | AF23: 450 | AG23: 465 | AH23: 480 | AI23: 495 | AJ23: 510 | AK23: 525 | AL23: 540 | AM23: 555 | AN23: 570 | AO23: 585 | AP23: 600 | AQ23: 615 | AR23: 630 | AS23: 645 | AT23: 660 | AU23: 675 | AV23: 690 | AW23: 705 | AX23: 720 | AY23: 735 | AZ23: 750 | BA23: 765 | BB23: 780 | BC23: 795 | BD23: 810 | BE23: 825 | BF23: 840 | BG23: 855 | BH23: 870 | BI23: 885 | BJ23: 900 | BK23: 915 | BL23: 930 | BM23: 945 | BN23: 960 | BO23: 975 | BP23: 990 | BQ23: 1005 | BR23: 1020 | BS23: 1035 | BT23: 1050 | BU23: 1065 | BV23: 1080 | BW23: 1095 | BX23: 1110 | BY23: 1125 | BZ23: 1140 | CA23: 1155 | CB23: 1170 | CC23: 1185 | CD23: 1200 | CE23: 1215 | CF23: 1230 | CG23: 1245 | CH23: 1260 | CI23: 1275 | CJ23: 1290 | CK23: 1305 | CL23: 1320 | CM23: 1335 | CN23: 1350 | CO23: 1365 | CP23: 1380 | CQ23: 1395 | CR23: 1410 | CS23: 1425 | CT23: 1440 | CU23: 1455 | CV23: 1470 | CW23: 1485 | CX23: 1500 | CY23: 15
B24: 16 | C24: 16 | D24: 32 | E24: 48 | F24: 64 | G24: 80 | H24: 96 | I24: 112 | J24: 128 | K24: 144 | L24: 160 | M24: 176 | N24: 192 | O24: 208 | P24: 224 | Q24: 240 | R24: 256 | S24: 272 | T24: 288 | U24: 304 | V24: 320 | W24: 336 | X24: 352 | Y24: 368 | Z24: 384 | AA24: 400 | AB24: 416 | AC24: 432 | AD24: 448 | AE24: 464 | AF24: 480 | AG24: 496 | AH24: 512 | AI24: 528 | AJ24: 544 | AK24: 560 | AL24: 576 | AM24: 592 | AN24: 608 | AO24: 624 | AP24: 640 | AQ24: 656 | AR24: 672 | AS24: 688 | AT24: 704 | AU24: 720 | AV24: 736 | AW24: 752 | AX24: 768 | AY24: 784 | AZ24: 800 | BA24: 816 | BB24: 832 | BC24: 848 | BD24: 864 | BE24: 880 | BF24: 896 | BG24: 912 | BH24: 928 | BI24: 944 | BJ24: 960 | BK24: 976 | BL24: 992 | BM24: 1008 | BN24: 1024 | BO24: 1040 | BP24: 1056 | BQ24: 1072 | BR24: 1088 | BS24: 1104 | BT24: 1120 | BU24: 1136 | BV24: 1152 | BW24: 1168 | BX24: 1184 | BY24: 1200 | BZ24: 1216 | CA24: 1232 | CB24: 1248 | CC24: 1264 | CD24: 1280 | CE24: 1296 | CF24: 1312 | CG24: 1328 | CH24: 1344 | CI24: 1360 | CJ24: 1376 | CK24: 1392 | CL24: 1408 | CM24: 1424 | CN24: 1440 | CO24: 1456 | CP24: 1472 | CQ24: 1488 | CR24: 1504 | CS24: 1520 | CT24: 1536 | CU24: 1552 | CV24: 1568 | CW24: 1584 | CX24: 1600 | CY24: 16
B25: 17 | C25: 17 | D25: 34 | E25: 51 | F25: 68 | G25: 85 | H25: 102 | I25: 119 | J25: 136 | K25: 153 | L25: 170 | M25: 187 | N25: 204 | O25: 221 | P25: 238 | Q25: 255 | R25: 272 | S25: 289 | T25: 306 | U25: 323 | V25: 340 | W25: 357 | X25: 374 | Y25: 391 | Z25: 408 | AA25: 425 | AB25: 442 | AC25: 459 | AD25: 476 | AE25: 493 | AF25: 510 | AG25: 527 | AH25: 544 | AI25: 561 | AJ25: 578 | AK25: 595 | AL25: 612 | AM25: 629 | AN25: 646 | AO25: 663 | AP25: 680 | AQ25: 697 | AR25: 714 | AS25: 731 | AT25: 748 | AU25: 765 | AV25: 782 | AW25: 799 | AX25: 816 | AY25: 833 | AZ25: 850 | BA25: 867 | BB25: 884 | BC25: 901 | BD25: 918 | BE25: 935 | BF25: 952 | BG25: 969 | BH25: 986 | BI25: 1003 | BJ25: 1020 | BK25: 1037 | BL25: 1054 | BM25: 1071 | BN25: 1088 | BO25: 1105 | BP25: 1122 | BQ25: 1139 | BR25: 1156 | BS25: 1173 | BT25: 1190 | BU25: 1207 | BV25: 1224 | BW25: 1241 | BX25: 1258 | BY25: 1275 | BZ25: 1292 | CA25: 1309 | CB25: 1326 | CC25: 1343 | CD25: 1360 | CE25: 1377 | CF25: 1394 | CG25: 1411 | CH25: 1428 | CI25: 1445 | CJ25: 1462 | CK25: 1479 | CL25: 1496 | CM25: 1513 | CN25: 1530 | CO25: 1547 | CP25: 1564 | CQ25: 1581 | CR25: 1598 | CS25: 1615 | CT25: 1632 | CU25: 1649 | CV25: 1666 | CW25: 1683 | CX25: 1700 | CY25: 17
B26: 18 | C26: 18 | D26: 36 | E26: 54 | F26: 72 | G26: 90 | H26: 108 | I26: 126 | J26: 144 | K26: 162 | L26: 180 | M26: 198 | N26: 216 | O26: 234 | P26: 252 | Q26: 270 | R26: 288 | S26: 306 | T26: 324 | U26: 342 | V26: 360 | W26: 378 | X26: 396 | Y26: 414 | Z26: 432 | AA26: 450 | AB26: 468 | AC26: 486 | AD26: 504 | AE26: 522 | AF26: 540 | AG26: 558 | AH26: 576 | AI26: 594 | AJ26: 612 | AK26: 630 | AL26: 648 | AM26: 666 | AN26: 684 | AO26: 702 | AP26: 720 | AQ26: 738 | AR26: 756 | AS26: 774 | AT26: 792 | AU26: 810 | AV26: 828 | AW26: 846 | AX26: 864 | AY26: 882 | AZ26: 900 | BA26: 918 | BB26: 936 | BC26: 954 | BD26: 972 | BE26: 990 | BF26: 1008 | BG26: 1026 | BH26: 1044 | BI26: 1062 | BJ26: 1080 | BK26: 1098 | BL26: 1116 | BM26: 1134 | BN26: 1152 | BO26: 1170 | BP26: 1188 | BQ26: 1206 | BR26: 1224 | BS26: 1242 | BT26: 1260 | BU26: 1278 | BV26: 1296 | BW26: 1314 | BX26: 1332 | BY26: 1350 | BZ26: 1368 | CA26: 1386 | CB26: 1404 | CC26: 1422 | CD26: 1440 | CE26: 1458 | CF26: 1476 | CG26: 1494 | CH26: 1512 | CI26: 1530 | CJ26: 1548 | CK26: 1566 | CL26: 1584 | CM26: 1602 | CN26: 1620 | CO26: 1638 | CP26: 1656 | CQ26: 1674 | CR26: 1692 | CS26: 1710 | CT26: 1728 | CU26: 1746 | CV26: 1764 | CW26: 1782 | CX26: 1800 | CY26: 18
B27: 19 | C27: 19 | D27: 38 | E27: 57 | F27: 76 | G27: 95 | H27: 114 | I27: 133 | J27: 152 | K27: 171 | L27: 190 | M27: 209 | N27: 228 | O27: 247 | P27: 266 | Q27: 285 | R27: 304 | S27: 323 | T27: 342 | U27: 361 | V27: 380 | W27: 399 | X27: 418 | Y27: 437 | Z27: 456 | AA27: 475 | AB27: 494 | AC27: 513 | AD27: 532 | AE27: 551 | AF27: 570 | AG27: 589 | AH27: 608 | AI27: 627 | AJ27: 646 | AK27: 665 | AL27: 684 | AM27: 703 | AN27: 722 | AO27: 741 | AP27: 760 | AQ27: 779 | AR27: 798 | AS27: 817 | AT27: 836 | AU27: 855 | AV27: 874 | AW27: 893 | AX27: 912 | AY27: 931 | AZ27: 950 | BA27: 969 | BB27: 988 | BC27: 1007 | BD27: 1026 | BE27: 1045 | BF27: 1064 | BG27: 1083 | BH27: 1102 | BI27: 1121 | BJ27: 1140 | BK27: 1159 | BL27: 1178 | BM27: 1197 | BN27: 1216 | BO27: 1235 | BP27: 1254 | BQ27: 1273 | BR27: 1292 | BS27: 1311 | BT27: 1330 | BU27: 1349 | BV27: 1368 | BW27: 1387 | BX27: 1406 | BY27: 1425 | BZ27: 1444 | CA27: 1463 | CB27: 1482 | CC27: 1501 | CD27: 1520 | CE27: 1539 | CF27: 1558 | CG27: 1577 | CH27: 1596 | CI27: 1615 | CJ27: 1634 | CK27: 1653 | CL27: 1672 | CM27: 1691 | CN27: 1710 | CO27: 1729 | CP27: 1748 | CQ27: 1767 | CR27: 1786 | CS27: 1805 | CT27: 1824 | CU27: 1843 | CV27: 1862 | CW27: 1881 | CX27: 1900 | CY27: 19
B28: 20 | C28: 20 | D28: 40 | E28: 60 | F28: 80 | G28: 100 | H28: 120 | I28: 140 | J28: 160 | K28: 180 | L28: 200 | M28: 220 | N28: 240 | O28: 260 | P28: 280 | Q28: 300 | R28: 320 | S28: 340 | T28: 360 | U28: 380 | V28: 400 | W28: 420 | X28: 440 | Y28: 460 | Z28: 480 | AA28: 500 | AB28: 520 | AC28: 540 | AD28: 560 | AE28: 580 | AF28: 600 | AG28: 620 | AH28: 640 | AI28: 660 | AJ28: 680 | AK28: 700 | AL28: 720 | AM28: 740 | AN28: 760 | AO28: 780 | AP28: 800 | AQ28: 820 | AR28: 840 | AS28: 860 | AT28: 880 | AU28: 900 | AV28: 920 | AW28: 940 | AX28: 960 | AY28: 980 | AZ28: 1000 | BA28: 1020 | BB28: 1040 | BC28: 1060 | BD28: 1080 | BE28: 1100 | BF28: 1120 | BG28: 1140 | BH28: 1160 | BI28: 1180 | BJ28: 1200 | BK28: 1220 | BL28: 1240 | BM28: 1260 | BN28: 1280 | BO28: 1300 | BP28: 1320 | BQ28: 1340 | BR28: 1360 | BS28: 1380 | BT28: 1400 | BU28: 1420 | BV28: 1440 | BW28: 1460 | BX28: 1480 | BY28: 1500 | BZ28: 1520 | CA28: 1540 | CB28: 1560 | CC28: 1580 | CD28: 1600 | CE28: 1620 | CF28: 1640 | CG28: 1660 | CH28: 1680 | CI28: 1700 | CJ28: 1720 | CK28: 1740 | CL28: 1760 | CM28: 1780 | CN28: 1800 | CO28: 1820 | CP28: 1840 | CQ28: 1860 | CR28: 1880 | CS28: 1900 | CT28: 1920 | CU28: 1940 | CV28: 1960 | CW28: 1980 | CX28: 2000 | CY28: 20
B29: 21 | C29: 21 | D29: 42 | E29: 63 | F29: 84 | G29: 105 | H29: 126 | I29: 147 | J29: 168 | K29: 189 | L29: 210 | M29: 231 | N29: 252 | O29: 273 | P29: 294 | Q29: 315 | R29: 336 | S29: 357 | T29: 378 | U29: 399 | V29: 420 | W29: 441 | X29: 462 | Y29: 483 | Z29: 504 | AA29: 525 | AB29: 546 | AC29: 567 | AD29: 588 | AE29: 609 | AF29: 630 | AG29: 651 | AH29: 672 | AI29: 693 | AJ29: 714 | AK29: 735 | AL29: 756 | AM29: 777 | AN29: 798 | AO29: 819 | AP29: 840 | AQ29: 861 | AR29: 882 | AS29: 903 | AT29: 924 | AU29: 945 | AV29: 966 | AW29: 987 | AX29: 1008 | AY29: 1029 | AZ29: 1050 | BA29: 1071 | BB29: 1092 | BC29: 1113 | BD29: 1134 | BE29: 1155 | BF29: 1176 | BG29: 1197 | BH29: 1218 | BI29: 1239 | BJ29: 1260 | BK29: 1281 | BL29: 1302 | BM29: 1323 | BN29: 1344 | BO29: 1365 | BP29: 1386 | BQ29: 1407 | BR29: 1428 | BS29: 1449 | BT29: 1470 | BU29: 1491 | BV29: 1512 | BW29: 1533 | BX29: 1554 | BY29: 1575 | BZ29: 1596 | CA29: 1617 | CB29: 1638 | CC29: 1659 | CD29: 1680 | CE29: 1701 | CF29: 1722 | CG29: 1743 | CH29: 1764 | CI29: 1785 | CJ29: 1806 | CK29: 1827 | CL29: 1848 | CM29: 1869 | CN29: 1890 | CO29: 1911 | CP29: 1932 | CQ29: 1953 | CR29: 1974 | CS29: 1995 | CT29: 2016 | CU29: 2037 | CV29: 2058 | CW29: 2079 | CX29: 2100 | CY29: 21
B30: 22 | C30: 22 | D30: 44 | E30: 66 | F30: 88 | G30: 110 | H30: 132 | I30: 154 | J30: 176 | K30: 198 | L30: 220 | M30: 242 | N30: 264 | O30: 286 | P30: 308 | Q30: 330 | R30: 352 | S30: 374 | T30: 396 | U30: 418 | V30: 440 | W30: 462 | X30: 484 | Y30: 506 | Z30: 528 | AA30: 550 | AB30: 572 | AC30: 594 | AD30: 616 | AE30: 638 | AF30: 660 | AG30: 682 | AH30: 704 | AI30: 726 | AJ30: 748 | AK30: 770 | AL30: 792 | AM30: 814 | AN30: 836 | AO30: 858 | AP30: 880 | AQ30: 902 | AR30: 924 | AS30: 946 | AT30: 968 | AU30: 990 | AV30: 1012 | AW30: 1034 | AX30: 1056 | AY30: 1078 | AZ30: 1100 | BA30: 1122 | BB30: 1144 | BC30: 1166 | BD30: 1188 | BE30: 1210 | BF30: 1232 | BG30: 1254 | BH30: 1276 | BI30: 1298 | BJ30: 1320 | BK30: 1342 | BL30: 1364 | BM30: 1386 | BN30: 1408 | BO30: 1430 | BP30: 1452 | BQ30: 1474 | BR30: 1496 | BS30: 1518 | BT30: 1540 | BU30: 1562 | BV30: 1584 | BW30: 1606 | BX30: 1628 | BY30: 1650 | BZ30: 1672 | CA30: 1694 | CB30: 1716 | CC30: 1738 | CD30: 1760 | CE30: 1782 | CF30: 1804 | CG30: 1826 | CH30: 1848 | CI30: 1870 | CJ30: 1892 | CK30: 1914 | CL30: 1936 | CM30: 1958 | CN30: 1980 | CO30: 2002 | CP30: 2024 | CQ30: 2046 | CR30: 2068 | CS30: 2090 | CT30: 2112 | CU30: 2134 | CV30: 2156 | CW30: 2178 | CX30: 2200 | CY30: 22
B31: 23 | C31: 23 | D31: 46 | E31: 69 | F31: 92 | G31: 115 | H31: 138 | I31: 161 | J31: 184 | K31: 207 | L31: 230 | M31: 253 | N31: 276 | O31: 299 | P31: 322 | Q31: 345 | R31: 368 | S31: 391 | T31: 414 | U31: 437 | V31: 460 | W31: 483 | X31: 506 | Y31: 529 | Z31: 552 | AA31: 575 | AB31: 598 | AC31: 621 | AD31: 644 | AE31: 667 | AF31: 690 | AG31: 713 | AH31: 736 | AI31: 759 | AJ31: 782 | AK31: 805 | AL31: 828 | AM31: 851 | AN31: 874 | AO31: 897 | AP31: 920 | AQ31: 943 | AR31: 966 | AS31: 989 | AT31: 1012 | AU31: 1035 | AV31: 1058 | AW31: 1081 | AX31: 1104 | AY31: 1127 | AZ31: 1150 | BA31: 1173 | BB31: 1196 | BC31: 1219 | BD31: 1242 | BE31: 1265 | BF31: 1288 | BG31: 1311 | BH31: 1334 | BI31: 1357 | BJ31: 1380 | BK31: 1403 | BL31: 1426 | BM31: 1449 | BN31: 1472 | BO31: 1495 | BP31: 1518 | BQ31: 1541 | BR31: 1564 | BS31: 1587 | BT31: 1610 | BU31: 1633 | BV31: 1656 | BW31: 1679 | BX31: 1702 | BY31: 1725 | BZ31: 1748 | CA31: 1771 | CB31: 1794 | CC31: 1817 | CD31: 1840 | CE31: 1863 | CF31: 1886 | CG31: 1909 | CH31: 1932 | CI31: 1955 | CJ31: 1978 | CK31: 2001 | CL31: 2024 | CM31: 2047 | CN31: 2070 | CO31: 2093 | CP31: 2116 | CQ31: 2139 | CR31: 2162 | CS31: 2185 | CT31: 2208 | CU31: 2231 | CV31: 2254 | CW31: 2277 | CX31: 2300 | CY31: 23
B32: 24 | C32: 24 | D32: 48 | E32: 72 | F32: 96 | G32: 120 | H32: 144 | I32: 168 | J32: 192 | K32: 216 | L32: 240 | M32: 264 | N32: 288 | O32: 312 | P32: 336 | Q32: 360 | R32: 384 | S32: 408 | T32: 432 | U32: 456 | V32: 480 | W32: 504 | X32: 528 | Y32: 552 | Z32: 576 | AA32: 600 | AB32: 624 | AC32: 648 | AD32: 672 | AE32: 696 | AF32: 720 | AG32: 744 | AH32: 768 | AI32: 792 | AJ32: 816 | AK32: 840 | AL32: 864 | AM32: 888 | AN32: 912 | AO32: 936 | AP32: 960 | AQ32: 984 | AR32: 1008 | AS32: 1032 | AT32: 1056 | AU32: 1080 | AV32: 1104 | AW32: 1128 | AX32: 1152 | AY32: 1176 | AZ32: 1200 | BA32: 1224 | BB32: 1248 | BC32: 1272 | BD32: 1296 | BE32: 1320 | BF32: 1344 | BG32: 1368 | BH32: 1392 | BI32: 1416 | BJ32: 1440 | BK32: 1464 | BL32: 1488 | BM32: 1512 | BN32: 1536 | BO32: 1560 | BP32: 1584 | BQ32: 1608 | BR32: 1632 | BS32: 1656 | BT32: 1680 | BU32: 1704 | BV32: 1728 | BW32: 1752 | BX32: 1776 | BY32: 1800 | BZ32: 1824 | CA32: 1848 | CB32: 1872 | CC32: 1896 | CD32: 1920 | CE32: 1944 | CF32: 1968 | CG32: 1992 | CH32: 2016 | CI32: 2040 | CJ32: 2064 | CK32: 2088 | CL32: 2112 | CM32: 2136 | CN32: 2160 | CO32: 2184 | CP32: 2208 | CQ32: 2232 | CR32: 2256 | CS32: 2280 | CT32: 2304 | CU32: 2328 | CV32: 2352 | CW32: 2376 | CX32: 2400 | CY32: 24
B33: 25 | C33: 25 | D33: 50 | E33: 75 | F33: 100 | G33: 125 | H33: 150 | I33: 175 | J33: 200 | K33: 225 | L33: 250 | M33: 275 | N33: 300 | O33: 325 | P33: 350 | Q33: 375 | R33: 400 | S33: 425 | T33: 450 | U33: 475 | V33: 500 | W33: 525 | X33: 550 | Y33: 575 | Z33: 600 | AA33: 625 | AB33: 650 | AC33: 675 | AD33: 700 | AE33: 725 | AF33: 750 | AG33: 775 | AH33: 800 | AI33: 825 | AJ33: 850 | AK33: 875 | AL33: 900 | AM33: 925 | AN33: 950 | AO33: 975 | AP33: 1000 | AQ33: 1025 | AR33: 1050 | AS33: 1075 | AT33: 1100 | AU33: 1125 | AV33: 1150 | AW33: 1175 | AX33: 1200 | AY33: 1225 | AZ33: 1250 | BA33: 1275 | BB33: 1300 | BC33: 1325 | BD33: 1350 | BE33: 1375 | BF33: 1400 | BG33: 1425 | BH33: 1450 | BI33: 1475 | BJ33: 1500 | BK33: 1525 | BL33: 1550 | BM33: 1575 | BN33: 1600 | BO33: 1625 | BP33: 1650 | BQ33: 1675 | BR33: 1700 | BS33: 1725 | BT33: 1750 | BU33: 1775 | BV33: 1800 | BW33: 1825 | BX33: 1850 | BY33: 1875 | BZ33: 1900 | CA33: 1925 | CB33: 1950 | CC33: 1975 | CD33: 2000 | CE33: 2025 | CF33: 2050 | CG33: 2075 | CH33: 2100 | CI33: 2125 | CJ33: 2150 | CK33: 2175 | CL33: 2200 | CM33: 2225 | CN33: 2250 | CO33: 2275 | CP33: 2300 | CQ33: 2325 | CR33: 2350 | CS33: 2375 | CT33: 2400 | CU33: 2425 | CV33: 2450 | CW33: 2475 | CX33: 2500 | CY33: 25
B34: 26 | C34: 26 | D34: 52 | E34: 78 | F34: 104 | G34: 130 | H34: 156 | I34: 182 | J34: 208 | K34: 234 | L34: 260 | M34: 286 | N34: 312 | O34: 338 | P34: 364 | Q34: 390 | R34: 416 | S34: 442 | T34: 468 | U34: 494 | V34: 520 | W34: 546 | X34: 572 | Y34: 598 | Z34: 624 | AA34: 650 | AB34: 676 | AC34: 702 | AD34: 728 | AE34: 754 | AF34: 780 | AG34: 806 | AH34: 832 | AI34: 858 | AJ34: 884 | AK34: 910 | AL34: 936 | AM34: 962 | AN34: 988 | AO34: 1014 | AP34: 1040 | AQ34: 1066 | AR34: 1092 | AS34: 1118 | AT34: 1144 | AU34: 1170 | AV34: 1196 | AW34: 1222 | AX34: 1248 | AY34: 1274 | AZ34: 1300 | BA34: 1326 | BB34: 1352 | BC34: 1378 | BD34: 1404 | BE34: 1430 | BF34: 1456 | BG34: 1482 | BH34: 1508 | BI34: 1534 | BJ34: 1560 | BK34: 1586 | BL34: 1612 | BM34: 1638 | BN34: 1664 | BO34: 1690 | BP34: 1716 | BQ34: 1742 | BR34: 1768 | BS34: 1794 | BT34: 1820 | BU34: 1846 | BV34: 1872 | BW34: 1898 | BX34: 1924 | BY34: 1950 | BZ34: 1976 | CA34: 2002 | CB34: 2028 | CC34: 2054 | CD34: 2080 | CE34: 2106 | CF34: 2132 | CG34: 2158 | CH34: 2184 | CI34: 2210 | CJ34: 2236 | CK34: 2262 | CL34: 2288 | CM34: 2314 | CN34: 2340 | CO34: 2366 | CP34: 2392 | CQ34: 2418 | CR34: 2444 | CS34: 2470 | CT34: 2496 | CU34: 2522 | CV34: 2548 | CW34: 2574 | CX34: 2600 | CY34: 26
B35: 27 | C35: 27 | D35: 54 | E35: 81 | F35: 108 | G35: 135 | H35: 162 | I35: 189 | J35: 216 | K35: 243 | L35: 270 | M35: 297 | N35: 324 | O35: 351 | P35: 378 | Q35: 405 | R35: 432 | S35: 459 | T35: 486 | U35: 513 | V35: 540 | W35: 567 | X35: 594 | Y35: 621 | Z35: 648 | AA35: 675 | AB35: 702 | AC35: 729 | AD35: 756 | AE35: 783 | AF35: 810 | AG35: 837 | AH35: 864 | AI35: 891 | AJ35: 918 | AK35: 945 | AL35: 972 | AM35: 999 | AN35: 1026 | AO35: 1053 | AP35: 1080 | AQ35: 1107 | AR35: 1134 | AS35: 1161 | AT35: 1188 | AU35: 1215 | AV35: 1242 | AW35: 1269 | AX35: 1296 | AY35: 1323 | AZ35: 1350 | BA35: 1377 | BB35: 1404 | BC35: 1431 | BD35: 1458 | BE35: 1485 | BF35: 1512 | BG35: 1539 | BH35: 1566 | BI35: 1593 | BJ35: 1620 | BK35: 1647 | BL35: 1674 | BM35: 1701 | BN35: 1728 | BO35: 1755 | BP35: 1782 | BQ35: 1809 | BR35: 1836 | BS35: 1863 | BT35: 1890 | BU35: 1917 | BV35: 1944 | BW35: 1971 | BX35: 1998 | BY35: 2025 | BZ35: 2052 | CA35: 2079 | CB35: 2106 | CC35: 2133 | CD35: 2160 | CE35: 2187 | CF35: 2214 | CG35: 2241 | CH35: 2268 | CI35: 2295 | CJ35: 2322 | CK35: 2349 | CL35: 2376 | CM35: 2403 | CN35: 2430 | CO35: 2457 | CP35: 2484 | CQ35: 2511 | CR35: 2538 | CS35: 2565 | CT35: 2592 | CU35: 2619 | CV35: 2646 | CW35: 2673 | CX35: 2700 | CY35: 27
B36: 28 | C36: 28 | D36: 56 | E36: 84 | F36: 112 | G36: 140 | H36: 168 | I36: 196 | J36: 224 | K36: 252 | L36: 280 | M36: 308 | N36: 336 | O36: 364 | P36: 392 | Q36: 420 | R36: 448 | S36: 476 | T36: 504 | U36: 532 | V36: 560 | W36: 588 | X36: 616 | Y36: 644 | Z36: 672 | AA36: 700 | AB36: 728 | AC36: 756 | AD36: 784 | AE36: 812 | AF36: 840 | AG36: 868 | AH36: 896 | AI36: 924 | AJ36: 952 | AK36: 980 | AL36: 1008 | AM36: 1036 | AN36: 1064 | AO36: 1092 | AP36: 1120 | AQ36: 1148 | AR36: 1176 | AS36: 1204 | AT36: 1232 | AU36: 1260 | AV36: 1288 | AW36: 1316 | AX36: 1344 | AY36: 1372 | AZ36: 1400 | BA36: 1428 | BB36: 1456 | BC36: 1484 | BD36: 1512 | BE36: 1540 | BF36: 1568 | BG36: 1596 | BH36: 1624 | BI36: 1652 | BJ36: 1680 | BK36: 1708 | BL36: 1736 | BM36: 1764 | BN36: 1792 | BO36: 1820 | BP36: 1848 | BQ36: 1876 | BR36: 1904 | BS36: 1932 | BT36: 1960 | BU36: 1988 | BV36: 2016 | BW36: 2044 | BX36: 2072 | BY36: 2100 | BZ36: 2128 | CA36: 2156 | CB36: 2184 | CC36: 2212 | CD36: 2240 | CE36: 2268 | CF36: 2296 | CG36: 2324 | CH36: 2352 | CI36: 2380 | CJ36: 2408 | CK36: 2436 | CL36: 2464 | CM36: 2492 | CN36: 2520 | CO36: 2548 | CP36: 2576 | CQ36: 2604 | CR36: 2632 | CS36: 2660 | CT36: 2688 | CU36: 2716 | CV36: 2744 | CW36: 2772 | CX36: 2800 | CY36: 28
B37: 29 | C37: 29 | D37: 58 | E37: 87 | F37: 116 | G37: 145 | H37: 174 | I37: 203 | J37: 232 | K37: 261 | L37: 290 | M37: 319 | N37: 348 | O37: 377 | P37: 406 | Q37: 435 | R37: 464 | S37: 493 | T37: 522 | U37: 551 | V37: 580 | W37: 609 | X37: 638 | Y37: 667 | Z37: 696 | AA37: 725 | AB37: 754 | AC37: 783 | AD37: 812 | AE37: 841 | AF37: 870 | AG37: 899 | AH37: 928 | AI37: 957 | AJ37: 986 | AK37: 1015 | AL37: 1044 | AM37: 1073 | AN37: 1102 | AO37: 1131 | AP37: 1160 | AQ37: 1189 | AR37: 1218 | AS37: 1247 | AT37: 1276 | AU37: 1305 | AV37: 1334 | AW37: 1363 | AX37: 1392 | AY37: 1421 | AZ37: 1450 | BA37: 1479 | BB37: 1508 | BC37: 1537 | BD37: 1566 | BE37: 1595 | BF37: 1624 | BG37: 1653 | BH37: 1682 | BI37: 1711 | BJ37: 1740 | BK37: 1769 | BL37: 1798 | BM37: 1827 | BN37: 1856 | BO37: 1885 | BP37: 1914 | BQ37: 1943 | BR37: 1972 | BS37: 2001 | BT37: 2030 | BU37: 2059 | BV37: 2088 | BW37: 2117 | BX37: 2146 | BY37: 2175 | BZ37: 2204 | CA37: 2233 | CB37: 2262 | CC37: 2291 | CD37: 2320 | CE37: 2349 | CF37: 2378 | CG37: 2407 | CH37: 2436 | CI37: 2465 | CJ37: 2494 | CK37: 2523 | CL37: 2552 | CM37: 2581 | CN37: 2610 | CO37: 2639 | CP37: 2668 | CQ37: 2697 | CR37: 2726 | CS37: 2755 | CT37: 2784 | CU37: 2813 | CV37: 2842 | CW37: 2871 | CX37: 2900 | CY37: 29
B38: 30 | C38: 30 | D38: 60 | E38: 90 | F38: 120 | G38: 150 | H38: 180 | I38: 210 | J38: 240 | K38: 270 | L38: 300 | M38: 330 | N38: 360 | O38: 390 | P38: 420 | Q38: 450 | R38: 480 | S38: 510 | T38: 540 | U38: 570 | V38: 600 | W38: 630 | X38: 660 | Y38: 690 | Z38: 720 | AA38: 750 | AB38: 780 | AC38: 810 | AD38: 840 | AE38: 870 | AF38: 900 | AG38: 930 | AH38: 960 | AI38: 990 | AJ38: 1020 | AK38: 1050 | AL38: 1080 | AM38: 1110 | AN38: 1140 | AO38: 1170 | AP38: 1200 | AQ38: 1230 | AR38: 1260 | AS38: 1290 | AT38: 1320 | AU38: 1350 | AV38: 1380 | AW38: 1410 | AX38: 1440 | AY38: 1470 | AZ38: 1500 | BA38: 1530 | BB38: 1560 | BC38: 1590 | BD38: 1620 | BE38: 1650 | BF38: 1680 | BG38: 1710 | BH38: 1740 | BI38: 1770 | BJ38: 1800 | BK38: 1830 | BL38: 1860 | BM38: 1890 | BN38: 1920 | BO38: 1950 | BP38: 1980 | BQ38: 2010 | BR38: 2040 | BS38: 2070 | BT38: 2100 | BU38: 2130 | BV38: 2160 | BW38: 2190 | BX38: 2220 | BY38: 2250 | BZ38: 2280 | CA38: 2310 | CB38: 2340 | CC38: 2370 | CD38: 2400 | CE38: 2430 | CF38: 2460 | CG38: 2490 | CH38: 2520 | CI38: 2550 | CJ38: 2580 | CK38: 2610 | CL38: 2640 | CM38: 2670 | CN38: 2700 | CO38: 2730 | CP38: 2760 | CQ38: 2790 | CR38: 2820 | CS38: 2850 | CT38: 2880 | CU38: 2910 | CV38: 2940 | CW38: 2970 | CX38: 3000 | CY38: 30
B39: 31 | C39: 31 | D39: 62 | E39: 93 | F39: 124 | G39: 155 | H39: 186 | I39: 217 | J39: 248 | K39: 279 | L39: 310 | M39: 341 | N39: 372 | O39: 403 | P39: 434 | Q39: 465 | R39: 496 | S39: 527 | T39: 558 | U39: 589 | V39: 620 | W39: 651 | X39: 682 | Y39: 713 | Z39: 744 | AA39: 775 | AB39: 806 | AC39: 837 | AD39: 868 | AE39: 899 | AF39: 930 | AG39: 961 | AH39: 992 | AI39: 1023 | AJ39: 1054 | AK39: 1085 | AL39: 1116 | AM39: 1147 | AN39: 1178 | AO39: 1209 | AP39: 1240 | AQ39: 1271 | AR39: 1302 | AS39: 1333 | AT39: 1364 | AU39: 1395 | AV39: 1426 | AW39: 1457 | AX39: 1488 | AY39: 1519 | AZ39: 1550 | BA39: 1581 | BB39: 1612 | BC39: 1643 | BD39: 1674 | BE39: 1705 | BF39: 1736 | BG39: 1767 | BH39: 1798 | BI39: 1829 | BJ39: 1860 | BK39: 1891 | BL39: 1922 | BM39: 1953 | BN39: 1984 | BO39: 2015 | BP39: 2046 | BQ39: 2077 | BR39: 2108 | BS39: 2139 | BT39: 2170 | BU39: 2201 | BV39: 2232 | BW39: 2263 | BX39: 2294 | BY39: 2325 | BZ39: 2356 | CA39: 2387 | CB39: 2418 | CC39: 2449 | CD39: 2480 | CE39: 2511 | CF39: 2542 | CG39: 2573 | CH39: 2604 | CI39: 2635 | CJ39: 2666 | CK39: 2697 | CL39: 2728 | CM39: 2759 | CN39: 2790 | CO39: 2821 | CP39: 2852 | CQ39: 2883 | CR39: 2914 | CS39: 2945 | CT39: 2976 | CU39: 3007 | CV39: 3038 | CW39: 3069 | CX39: 3100 | CY39: 31
B40: 32 | C40: 32 | D40: 64 | E40: 96 | F40: 128 | G40: 160 | H40: 192 | I40: 224 | J40: 256 | K40: 288 | L40: 320 | M40: 352 | N40: 384 | O40: 416 | P40: 448 | Q40: 480 | R40: 512 | S40: 544 | T40: 576 | U40: 608 | V40: 640 | W40: 672 | X40: 704 | Y40: 736 | Z40: 768 | AA40: 800 | AB40: 832 | AC40: 864 | AD40: 896 | AE40: 928 | AF40: 960 | AG40: 992 | AH40: 1024 | AI40: 1056 | AJ40: 1088 | AK40: 1120 | AL40: 1152 | AM40: 1184 | AN40: 1216 | AO40: 1248 | AP40: 1280 | AQ40: 1312 | AR40: 1344 | AS40: 1376 | AT40: 1408 | AU40: 1440 | AV40: 1472 | AW40: 1504 | AX40: 1536 | AY40: 1568 | AZ40: 1600 | BA40: 1632 | BB40: 1664 | BC40: 1696 | BD40: 1728 | BE40: 1760 | BF40: 1792 | BG40: 1824 | BH40: 1856 | BI40: 1888 | BJ40: 1920 | BK40: 1952 | BL40: 1984 | BM40: 2016 | BN40: 2048 | BO40: 2080 | BP40: 2112 | BQ40: 2144 | BR40: 2176 | BS40: 2208 | BT40: 2240 | BU40: 2272 | BV40: 2304 | BW40: 2336 | BX40: 2368 | BY40: 2400 | BZ40: 2432 | CA40: 2464 | CB40: 2496 | CC40: 2528 | CD40: 2560 | CE40: 2592 | CF40: 2624 | CG40: 2656 | CH40: 2688 | CI40: 2720 | CJ40: 2752 | CK40: 2784 | CL40: 2816 | CM40: 2848 | CN40: 2880 | CO40: 2912 | CP40: 2944 | CQ40: 2976 | CR40: 3008 | CS40: 3040 | CT40: 3072 | CU40: 3104 | CV40: 3136 | CW40: 3168 | CX40: 3200 | CY40: 32
B41: 33 | C41: 33 | D41: 66 | E41: 99 | F41: 132 | G41: 165 | H41: 198 | I41: 231 | J41: 264 | K41: 297 | L41: 330 | M41: 363 | N41: 396 | O41: 429 | P41: 462 | Q41: 495 | R41: 528 | S41: 561 | T41: 594 | U41: 627 | V41: 660 | W41: 693 | X41: 726 | Y41: 759 | Z41: 792 | AA41: 825 | AB41: 858 | AC41: 891 | AD41: 924 | AE41: 957 | AF41: 990 | AG41: 1023 | AH41: 1056 | AI41: 1089 | AJ41: 1122 | AK41: 1155 | AL41: 1188 | AM41: 1221 | AN41: 1254 | AO41: 1287 | AP41: 1320 | AQ41: 1353 | AR41: 1386 | AS41: 1419 | AT41: 1452 | AU41: 1485 | AV41: 1518 | AW41: 1551 | AX41: 1584 | AY41: 1617 | AZ41: 1650 | BA41: 1683 | BB41: 1716 | BC41: 1749 | BD41: 1782 | BE41: 1815 | BF41: 1848 | BG41: 1881 | BH41: 1914 | BI41: 1947 | BJ41: 1980 | BK41: 2013 | BL41: 2046 | BM41: 2079 | BN41: 2112 | BO41: 2145 | BP41: 2178 | BQ41: 2211 | BR41: 2244 | BS41: 2277 | BT41: 2310 | BU41: 2343 | BV41: 2376 | BW41: 2409 | BX41: 2442 | BY41: 2475 | BZ41: 2508 | CA41: 2541 | CB41: 2574 | CC41: 2607 | CD41: 2640 | CE41: 2673 | CF41: 2706 | CG41: 2739 | CH41: 2772 | CI41: 2805 | CJ41: 2838 | CK41: 2871 | CL41: 2904 | CM41: 2937 | CN41: 2970 | CO41: 3003 | CP41: 3036 | CQ41: 3069 | CR41: 3102 | CS41: 3135 | CT41: 3168 | CU41: 3201 | CV41: 3234 | CW41: 3267 | CX41: 3300 | CY41: 33
B42: 34 | C42: 34 | D42: 68 | E42: 102 | F42: 136 | G42: 170 | H42: 204 | I42: 238 | J42: 272 | K42: 306 | L42: 340 | M42: 374 | N42: 408 | O42: 442 | P42: 476 | Q42: 510 | R42: 544 | S42: 578 | T42: 612 | U42: 646 | V42: 680 | W42: 714 | X42: 748 | Y42: 782 | Z42: 816 | AA42: 850 | AB42: 884 | AC42: 918 | AD42: 952 | AE42: 986 | AF42: 1020 | AG42: 1054 | AH42: 1088 | AI42: 1122 | AJ42: 1156 | AK42: 1190 | AL42: 1224 | AM42: 1258 | AN42: 1292 | AO42: 1326 | AP42: 1360 | AQ42: 1394 | AR42: 1428 | AS42: 1462 | AT42: 1496 | AU42: 1530 | AV42: 1564 | AW42: 1598 | AX42: 1632 | AY42: 1666 | AZ42: 1700 | BA42: 1734 | BB42: 1768 | BC42: 1802 | BD42: 1836 | BE42: 1870 | BF42: 1904 | BG42: 1938 | BH42: 1972 | BI42: 2006 | BJ42: 2040 | BK42: 2074 | BL42: 2108 | BM42: 2142 | BN42: 2176 | BO42: 2210 | BP42: 2244 | BQ42: 2278 | BR42: 2312 | BS42: 2346 | BT42: 2380 | BU42: 2414 | BV42: 2448 | BW42: 2482 | BX42: 2516 | BY42: 2550 | BZ42: 2584 | CA42: 2618 | CB42: 2652 | CC42: 2686 | CD42: 2720 | CE42: 2754 | CF42: 2788 | CG42: 2822 | CH42: 2856 | CI42: 2890 | CJ42: 2924 | CK42: 2958 | CL42: 2992 | CM42: 3026 | CN42: 3060 | CO42: 3094 | CP42: 3128 | CQ42: 3162 | CR42: 3196 | CS42: 3230 | CT42: 3264 | CU42: 3298 | CV42: 3332 | CW42: 3366 | CX42: 3400 | CY42: 34
B43: 35 | C43: 35 | D43: 70 | E43: 105 | F43: 140 | G43: 175 | H43: 210 | I43: 245 | J43: 280 | K43: 315 | L43: 350 | M43: 385 | N43: 420 | O43: 455 | P43: 490 | Q43: 525 | R43: 560 | S43: 595 | T43: 630 | U43: 665 | V43: 700 | W43: 735 | X43: 770 | Y43: 805 | Z43: 840 | AA43: 875 | AB43: 910 | AC43: 945 | AD43: 980 | AE43: 1015 | AF43: 1050 | AG43: 1085 | AH43: 1120 | AI43: 1155 | AJ43: 1190 | AK43: 1225 | AL43: 1260 | AM43: 1295 | AN43: 1330 | AO43: 1365 | AP43: 1400 | AQ43: 1435 | AR43: 1470 | AS43: 1505 | AT43: 1540 | AU43: 1575 | AV43: 1610 | AW43: 1645 | AX43: 1680 | AY43: 1715 | AZ43: 1750 | BA43: 1785 | BB43: 1820 | BC43: 1855 | BD43: 1890 | BE43: 1925 | BF43: 1960 | BG43: 1995 | BH43: 2030 | BI43: 2065 | BJ43: 2100 | BK43: 2135 | BL43: 2170 | BM43: 2205 | BN43: 2240 | BO43: 2275 | BP43: 2310 | BQ43: 2345 | BR43: 2380 | BS43: 2415 | BT43: 2450 | BU43: 2485 | BV43: 2520 | BW43: 2555 | BX43: 2590 | BY43: 2625 | BZ43: 2660 | CA43: 2695 | CB43: 2730 | CC43: 2765 | CD43: 2800 | CE43: 2835 | CF43: 2870 | CG43: 2905 | CH43: 2940 | CI43: 2975 | CJ43: 3010 | CK43: 3045 | CL43: 3080 | CM43: 3115 | CN43: 3150 | CO43: 3185 | CP43: 3220 | CQ43: 3255 | CR43: 3290 | CS43: 3325 | CT43: 3360 | CU43: 3395 | CV43: 3430 | CW43: 3465 | CX43: 3500 | CY43: 35
B44: 36 | C44: 36 | D44: 72 | E44: 108 | F44: 144 | G44: 180 | H44: 216 | I44: 252 | J44: 288 | K44: 324 | L44: 360 | M44: 396 | N44: 432 | O44: 468 | P44: 504 | Q44: 540 | R44: 576 | S44: 612 | T44: 648 | U44: 684 | V44: 720 | W44: 756 | X44: 792 | Y44: 828 | Z44: 864 | AA44: 900 | AB44: 936 | AC44: 972 | AD44: 1008 | AE44: 1044 | AF44: 1080 | AG44: 1116 | AH44: 1152 | AI44: 1188 | AJ44: 1224 | AK44: 1260 | AL44: 1296 | AM44: 1332 | AN44: 1368 | AO44: 1404 | AP44: 1440 | AQ44: 1476 | AR44: 1512 | AS44: 1548 | AT44: 1584 | AU44: 1620 | AV44: 1656 | AW44: 1692 | AX44: 1728 | AY44: 1764 | AZ44: 1800 | BA44: 1836 | BB44: 1872 | BC44: 1908 | BD44: 1944 | BE44: 1980 | BF44: 2016 | BG44: 2052 | BH44: 2088 | BI44: 2124 | BJ44: 2160 | BK44: 2196 | BL44: 2232 | BM44: 2268 | BN44: 2304 | BO44: 2340 | BP44: 2376 | BQ44: 2412 | BR44: 2448 | BS44: 2484 | BT44: 2520 | BU44: 2556 | BV44: 2592 | BW44: 2628 | BX44: 2664 | BY44: 2700 | BZ44: 2736 | CA44: 2772 | CB44: 2808 | CC44: 2844 | CD44: 2880 | CE44: 2916 | CF44: 2952 | CG44: 2988 | CH44: 3024 | CI44: 3060 | CJ44: 3096 | CK44: 3132 | CL44: 3168 | CM44: 3204 | CN44: 3240 | CO44: 3276 | CP44: 3312 | CQ44: 3348 | CR44: 3384 | CS44: 3420 | CT44: 3456 | CU44: 3492 | CV44: 3528 | CW44: 3564 | CX44: 3600 | CY44: 36
B45: 37 | C45: 37 | D45: 74 | E45: 111 | F45: 148 | G45: 185 | H45: 222 | I45: 259 | J45: 296 | K45: 333 | L45: 370 | M45: 407 | N45: 444 | O45: 481 | P45: 518 | Q45: 555 | R45: 592 | S45: 629 | T45: 666 | U45: 703 | V45: 740 | W45: 777 | X45: 814 | Y45: 851 | Z45: 888 | AA45: 925 | AB45: 962 | AC45: 999 | AD45: 1036 | AE45: 1073 | AF45: 1110 | AG45: 1147 | AH45: 1184 | AI45: 1221 | AJ45: 1258 | AK45: 1295 | AL45: 1332 | AM45: 1369 | AN45: 1406 | AO45: 1443 | AP45: 1480 | AQ45: 1517 | AR45: 1554 | AS45: 1591 | AT45: 1628 | AU45: 1665 | AV45: 1702 | AW45: 1739 | AX45: 1776 | AY45: 1813 | AZ45: 1850 | BA45: 1887 | BB45: 1924 | BC45: 1961 | BD45: 1998 | BE45: 2035 | BF45: 2072 | BG45: 2109 | BH45: 2146 | BI45: 2183 | BJ45: 2220 | BK45: 2257 | BL45: 2294 | BM45: 2331 | BN45: 2368 | BO45: 2405 | BP45: 2442 | BQ45: 2479 | BR45: 2516 | BS45: 2553 | BT45: 2590 | BU45: 2627 | BV45: 2664 | BW45: 2701 | BX45: 2738 | BY45: 2775 | BZ45: 2812 | CA45: 2849 | CB45: 2886 | CC45: 2923 | CD45: 2960 | CE45: 2997 | CF45: 3034 | CG45: 3071 | CH45: 3108 | CI45: 3145 | CJ45: 3182 | CK45: 3219 | CL45: 3256 | CM45: 3293 | CN45: 3330 | CO45: 3367 | CP45: 3404 | CQ45: 3441 | CR45: 3478 | CS45: 3515 | CT45: 3552 | CU45: 3589 | CV45: 3626 | CW45: 3663 | CX45: 3700 | CY45: 37
B46: 38 | C46: 38 | D46: 76 | E46: 114 | F46: 152 | G46: 190 | H46: 228 | I46: 266 | J46: 304 | K46: 342 | L46: 380 | M46: 418 | N46: 456 | O46: 494 | P46: 532 | Q46: 570 | R46: 608 | S46: 646 | T46: 684 | U46: 722 | V46: 760 | W46: 798 | X46: 836 | Y46: 874 | Z46: 912 | AA46: 950 | AB46: 988 | AC46: 1026 | AD46: 1064 | AE46: 1102 | AF46: 1140 | AG46: 1178 | AH46: 1216 | AI46: 1254 | AJ46: 1292 | AK46: 1330 | AL46: 1368 | AM46: 1406 | AN46: 1444 | AO46: 1482 | AP46: 1520 | AQ46: 1558 | AR46: 1596 | AS46: 1634 | AT46: 1672 | AU46: 1710 | AV46: 1748 | AW46: 1786 | AX46: 1824 | AY46: 1862 | AZ46: 1900 | BA46: 1938 | BB46: 1976 | BC46: 2014 | BD46: 2052 | BE46: 2090 | BF46: 2128 | BG46: 2166 | BH46: 2204 | BI46: 2242 | BJ46: 2280 | BK46: 2318 | BL46: 2356 | BM46: 2394 | BN46: 2432 | BO46: 2470 | BP46: 2508 | BQ46: 2546 | BR46: 2584 | BS46: 2622 | BT46: 2660 | BU46: 2698 | BV46: 2736 | BW46: 2774 | BX46: 2812 | BY46: 2850 | BZ46: 2888 | CA46: 2926 | CB46: 2964 | CC46: 3002 | CD46: 3040 | CE46: 3078 | CF46: 3116 | CG46: 3154 | CH46: 3192 | CI46: 3230 | CJ46: 3268 | CK46: 3306 | CL46: 3344 | CM46: 3382 | CN46: 3420 | CO46: 3458 | CP46: 3496 | CQ46: 3534 | CR46: 3572 | CS46: 3610 | CT46: 3648 | CU46: 3686 | CV46: 3724 | CW46: 3762 | CX46: 3800 | CY46: 38
B47: 39 | C47: 39 | D47: 78 | E47: 117 | F47: 156 | G47: 195 | H47: 234 | I47: 273 | J47: 312 | K47: 351 | L47: 390 | M47: 429 | N47: 468 | O47: 507 | P47: 546 | Q47: 585 | R47: 624 | S47: 663 | T47: 702 | U47: 741 | V47: 780 | W47: 819 | X47: 858 | Y47: 897 | Z47: 936 | AA47: 975 | AB47: 1014 | AC47: 1053 | AD47: 1092 | AE47: 1131 | AF47: 1170 | AG47: 1209 | AH47: 1248 | AI47: 1287 | AJ47: 1326 | AK47: 1365 | AL47: 1404 | AM47: 1443 | AN47: 1482 | AO47: 1521 | AP47: 1560 | AQ47: 1599 | AR47: 1638 | AS47: 1677 | AT47: 1716 | AU47: 1755 | AV47: 1794 | AW47: 1833 | AX47: 1872 | AY47: 1911 | AZ47: 1950 | BA47: 1989 | BB47: 2028 | BC47: 2067 | BD47: 2106 | BE47: 2145 | BF47: 2184 | BG47: 2223 | BH47: 2262 | BI47: 2301 | BJ47: 2340 | BK47: 2379 | BL47: 2418 | BM47: 2457 | BN47: 2496 | BO47: 2535 | BP47: 2574 | BQ47: 2613 | BR47: 2652 | BS47: 2691 | BT47: 2730 | BU47: 2769 | BV47: 2808 | BW47: 2847 | BX47: 2886 | BY47: 2925 | BZ47: 2964 | CA47: 3003 | CB47: 3042 | CC47: 3081 | CD47: 3120 | CE47: 3159 | CF47: 3198 | CG47: 3237 | CH47: 3276 | CI47: 3315 | CJ47: 3354 | CK47: 3393 | CL47: 3432 | CM47: 3471 | CN47: 3510 | CO47: 3549 | CP47: 3588 | CQ47: 3627 | CR47: 3666 | CS47: 3705 | CT47: 3744 | CU47: 3783 | CV47: 3822 | CW47: 3861 | CX47: 3900 | CY47: 39
B48: 40 | C48: 40 | D48: 80 | E48: 120 | F48: 160 | G48: 200 | H48: 240 | I48: 280 | J48: 320 | K48: 360 | L48: 400 | M48: 440 | N48: 480 | O48: 520 | P48: 560 | Q48: 600 | R48: 640 | S48: 680 | T48: 720 | U48: 760 | V48: 800 | W48: 840 | X48: 880 | Y48: 920 | Z48: 960 | AA48: 1000 | AB48: 1040 | AC48: 1080 | AD48: 1120 | AE48: 1160 | AF48: 1200 | AG48: 1240 | AH48: 1280 | AI48: 1320 | AJ48: 1360 | AK48: 1400 | AL48: 1440 | AM48: 1480 | AN48: 1520 | AO48: 1560 | AP48: 1600 | AQ48: 1640 | AR48: 1680 | AS48: 1720 | AT48: 1760 | AU48: 1800 | AV48: 1840 | AW48: 1880 | AX48: 1920 | AY48: 1960 | AZ48: 2000 | BA48: 2040 | BB48: 2080 | BC48: 2120 | BD48: 2160 | BE48: 2200 | BF48: 2240 | BG48: 2280 | BH48: 2320 | BI48: 2360 | BJ48: 2400 | BK48: 2440 | BL48: 2480 | BM48: 2520 | BN48: 2560 | BO48: 2600 | BP48: 2640 | BQ48: 2680 | BR48: 2720 | BS48: 2760 | BT48: 2800 | BU48: 2840 | BV48: 2880 | BW48: 2920 | BX48: 2960 | BY48: 3000 | BZ48: 3040 | CA48: 3080 | CB48: 3120 | CC48: 3160 | CD48: 3200 | CE48: 3240 | CF48: 3280 | CG48: 3320 | CH48: 3360 | CI48: 3400 | CJ48: 3440 | CK48: 3480 | CL48: 3520 | CM48: 3560 | CN48: 3600 | CO48: 3640 | CP48: 3680 | CQ48: 3720 | CR48: 3760 | CS48: 3800 | CT48: 3840 | CU48: 3880 | CV48: 3920 | CW48: 3960 | CX48: 4000 | CY48: 40
B49: 41 | C49: 41 | D49: 82 | E49: 123 | F49: 164 | G49: 205 | H49: 246 | I49: 287 | J49: 328 | K49: 369 | L49: 410 | M49: 451 | N49: 492 | O49: 533 | P49: 574 | Q49: 615 | R49: 656 | S49: 697 | T49: 738 | U49: 779 | V49: 820 | W49: 861 | X49: 902 | Y49: 943 | Z49: 984 | AA49: 1025 | AB49: 1066 | AC49: 1107 | AD49: 1148 | AE49: 1189 | AF49: 1230 | AG49: 1271 | AH49: 1312 | AI49: 1353 | AJ49: 1394 | AK49: 1435 | AL49: 1476 | AM49: 1517 | AN49: 1558 | AO49: 1599 | AP49: 1640 | AQ49: 1681 | AR49: 1722 | AS49: 1763 | AT49: 1804 | AU49: 1845 | AV49: 1886 | AW49: 1927 | AX49: 1968 | AY49: 2009 | AZ49: 2050 | BA49: 2091 | BB49: 2132 | BC49: 2173 | BD49: 2214 | BE49: 2255 | BF49: 2296 | BG49: 2337 | BH49: 2378 | BI49: 2419 | BJ49: 2460 | BK49: 2501 | BL49: 2542 | BM49: 2583 | BN49: 2624 | BO49: 2665 | BP49: 2706 | BQ49: 2747 | BR49: 2788 | BS49: 2829 | BT49: 2870 | BU49: 2911 | BV49: 2952 | BW49: 2993 | BX49: 3034 | BY49: 3075 | BZ49: 3116 | CA49: 3157 | CB49: 3198 | CC49: 3239 | CD49: 3280 | CE49: 3321 | CF49: 3362 | CG49: 3403 | CH49: 3444 | CI49: 3485 | CJ49: 3526 | CK49: 3567 | CL49: 3608 | CM49: 3649 | CN49: 3690 | CO49: 3731 | CP49: 3772 | CQ49: 3813 | CR49: 3854 | CS49: 3895 | CT49: 3936 | CU49: 3977 | CV49: 4018 | CW49: 4059 | CX49: 4100 | CY49: 41
B50: 42 | C50: 42 | D50: 84 | E50: 126 | F50: 168 | G50: 210 | H50: 252 | I50: 294 | J50: 336 | K50: 378 | L50: 420 | M50: 462 | N50: 504 | O50: 546 | P50: 588 | Q50: 630 | R50: 672 | S50: 714 | T50: 756 | U50: 798 | V50: 840 | W50: 882 | X50: 924 | Y50: 966 | Z50: 1008 | AA50: 1050 | AB50: 1092 | AC50: 1134 | AD50: 1176 | AE50: 1218 | AF50: 1260 | AG50: 1302 | AH50: 1344 | AI50: 1386 | AJ50: 1428 | AK50: 1470 | AL50: 1512 | AM50: 1554 | AN50: 1596 | AO50: 1638 | AP50: 1680 | AQ50: 1722 | AR50: 1764 | AS50: 1806 | AT50: 1848 | AU50: 1890 | AV50: 1932 | AW50: 1974 | AX50: 2016 | AY50: 2058 | AZ50: 2100 | BA50: 2142 | BB50: 2184 | BC50: 2226 | BD50: 2268 | BE50: 2310 | BF50: 2352 | BG50: 2394 | BH50: 2436 | BI50: 2478 | BJ50: 2520 | BK50: 2562 | BL50: 2604 | BM50: 2646 | BN50: 2688 | BO50: 2730 | BP50: 2772 | BQ50: 2814 | BR50: 2856 | BS50: 2898 | BT50: 2940 | BU50: 2982 | BV50: 3024 | BW50: 3066 | BX50: 3108 | BY50: 3150 | BZ50: 3192 | CA50: 3234 | CB50: 3276 | CC50: 3318 | CD50: 3360 | CE50: 3402 | CF50: 3444 | CG50: 3486 | CH50: 3528 | CI50: 3570 | CJ50: 3612 | CK50: 3654 | CL50: 3696 | CM50: 3738 | CN50: 3780 | CO50: 3822 | CP50: 3864 | CQ50: 3906 | CR50: 3948 | CS50: 3990 | CT50: 4032 | CU50: 4074 | CV50: 4116 | CW50: 4158 | CX50: 4200 | CY50: 42
B51: 43 | C51: 43 | D51: 86 | E51: 129 | F51: 172 | G51: 215 | H51: 258 | I51: 301 | J51: 344 | K51: 387 | L51: 430 | M51: 473 | N51: 516 | O51: 559 | P51: 602 | Q51: 645 | R51: 688 | S51: 731 | T51: 774 | U51: 817 | V51: 860 | W51: 903 | X51: 946 | Y51: 989 | Z51: 1032 | AA51: 1075 | AB51: 1118 | AC51: 1161 | AD51: 1204 | AE51: 1247 | AF51: 1290 | AG51: 1333 | AH51: 1376 | AI51: 1419 | AJ51: 1462 | AK51: 1505 | AL51: 1548 | AM51: 1591 | AN51: 1634 | AO51: 1677 | AP51: 1720 | AQ51: 1763 | AR51: 1806 | AS51: 1849 | AT51: 1892 | AU51: 1935 | AV51: 1978 | AW51: 2021 | AX51: 2064 | AY51: 2107 | AZ51: 2150 | BA51: 2193 | BB51: 2236 | BC51: 2279 | BD51: 2322 | BE51: 2365 | BF51: 2408 | BG51: 2451 | BH51: 2494 | BI51: 2537 | BJ51: 2580 | BK51: 2623 | BL51: 2666 | BM51: 2709 | BN51: 2752 | BO51: 2795 | BP51: 2838 | BQ51: 2881 | BR51: 2924 | BS51: 2967 | BT51: 3010 | BU51: 3053 | BV51: 3096 | BW51: 3139 | BX51: 3182 | BY51: 3225 | BZ51: 3268 | CA51: 3311 | CB51: 3354 | CC51: 3397 | CD51: 3440 | CE51: 3483 | CF51: 3526 | CG51: 3569 | CH51: 3612 | CI51: 3655 | CJ51: 3698 | CK51: 3741 | CL51: 3784 | CM51: 3827 | CN51: 3870 | CO51: 3913 | CP51: 3956 | CQ51: 3999 | CR51: 4042 | CS51: 4085 | CT51: 4128 | CU51: 4171 | CV51: 4214 | CW51: 4257 | CX51: 4300 | CY51: 43
B52: 44 | C52: 44 | D52: 88 | E52: 132 | F52: 176 | G52: 220 | H52: 264 | I52: 308 | J52: 352 | K52: 396 | L52: 440 | M52: 484 | N52: 528 | O52: 572 | P52: 616 | Q52: 660 | R52: 704 | S52: 748 | T52: 792 | U52: 836 | V52: 880 | W52: 924 | X52: 968 | Y52: 1012 | Z52: 1056 | AA52: 1100 | AB52: 1144 | AC52: 1188 | AD52: 1232 | AE52: 1276 | AF52: 1320 | AG52: 1364 | AH52: 1408 | AI52: 1452 | AJ52: 1496 | AK52: 1540 | AL52: 1584 | AM52: 1628 | AN52: 1672 | AO52: 1716 | AP52: 1760 | AQ52: 1804 | AR52: 1848 | AS52: 1892 | AT52: 1936 | AU52: 1980 | AV52: 2024 | AW52: 2068 | AX52: 2112 | AY52: 2156 | AZ52: 2200 | BA52: 2244 | BB52: 2288 | BC52: 2332 | BD52: 2376 | BE52: 2420 | BF52: 2464 | BG52: 2508 | BH52: 2552 | BI52: 2596 | BJ52: 2640 | BK52: 2684 | BL52: 2728 | BM52: 2772 | BN52: 2816 | BO52: 2860 | BP52: 2904 | BQ52: 2948 | BR52: 2992 | BS52: 3036 | BT52: 3080 | BU52: 3124 | BV52: 3168 | BW52: 3212 | BX52: 3256 | BY52: 3300 | BZ52: 3344 | CA52: 3388 | CB52: 3432 | CC52: 3476 | CD52: 3520 | CE52: 3564 | CF52: 3608 | CG52: 3652 | CH52: 3696 | CI52: 3740 | CJ52: 3784 | CK52: 3828 | CL52: 3872 | CM52: 3916 | CN52: 3960 | CO52: 4004 | CP52: 4048 | CQ52: 4092 | CR52: 4136 | CS52: 4180 | CT52: 4224 | CU52: 4268 | CV52: 4312 | CW52: 4356 | CX52: 4400 | CY52: 44
B53: 45 | C53: 45 | D53: 90 | E53: 135 | F53: 180 | G53: 225 | H53: 270 | I53: 315 | J53: 360 | K53: 405 | L53: 450 | M53: 495 | N53: 540 | O53: 585 | P53: 630 | Q53: 675 | R53: 720 | S53: 765 | T53: 810 | U53: 855 | V53: 900 | W53: 945 | X53: 990 | Y53: 1035 | Z53: 1080 | AA53: 1125 | AB53: 1170 | AC53: 1215 | AD53: 1260 | AE53: 1305 | AF53: 1350 | AG53: 1395 | AH53: 1440 | AI53: 1485 | AJ53: 1530 | AK53: 1575 | AL53: 1620 | AM53: 1665 | AN53: 1710 | AO53: 1755 | AP53: 1800 | AQ53: 1845 | AR53: 1890 | AS53: 1935 | AT53: 1980 | AU53: 2025 | AV53: 2070 | AW53: 2115 | AX53: 2160 | AY53: 2205 | AZ53: 2250 | BA53: 2295 | BB53: 2340 | BC53: 2385 | BD53: 2430 | BE53: 2475 | BF53: 2520 | BG53: 2565 | BH53: 2610 | BI53: 2655 | BJ53: 2700 | BK53: 2745 | BL53: 2790 | BM53: 2835 | BN53: 2880 | BO53: 2925 | BP53: 2970 | BQ53: 3015 | BR53: 3060 | BS53: 3105 | BT53: 3150 | BU53: 3195 | BV53: 3240 | BW53: 3285 | BX53: 3330 | BY53: 3375 | BZ53: 3420 | CA53: 3465 | CB53: 3510 | CC53: 3555 | CD53: 3600 | CE53: 3645 | CF53: 3690 | CG53: 3735 | CH53: 3780 | CI53: 3825 | CJ53: 3870 | CK53: 3915 | CL53: 3960 | CM53: 4005 | CN53: 4050 | CO53: 4095 | CP53: 4140 | CQ53: 4185 | CR53: 4230 | CS53: 4275 | CT53: 4320 | CU53: 4365 | CV53: 4410 | CW53: 4455 | CX53: 4500 | CY53: 45
B54: 46 | C54: 46 | D54: 92 | E54: 138 | F54: 184 | G54: 230 | H54: 276 | I54: 322 | J54: 368 | K54: 414 | L54: 460 | M54: 506 | N54: 552 | O54: 598 | P54: 644 | Q54: 690 | R54: 736 | S54: 782 | T54: 828 | U54: 874 | V54: 920 | W54: 966 | X54: 1012 | Y54: 1058 | Z54: 1104 | AA54: 1150 | AB54: 1196 | AC54: 1242 | AD54: 1288 | AE54: 1334 | AF54: 1380 | AG54: 1426 | AH54: 1472 | AI54: 1518 | AJ54: 1564 | AK54: 1610 | AL54: 1656 | AM54: 1702 | AN54: 1748 | AO54: 1794 | AP54: 1840 | AQ54: 1886 | AR54: 1932 | AS54: 1978 | AT54: 2024 | AU54: 2070 | AV54: 2116 | AW54: 2162 | AX54: 2208 | AY54: 2254 | AZ54: 2300 | BA54: 2346 | BB54: 2392 | BC54: 2438 | BD54: 2484 | BE54: 2530 | BF54: 2576 | BG54: 2622 | BH54: 2668 | BI54: 2714 | BJ54: 2760 | BK54: 2806 | BL54: 2852 | BM54: 2898 | BN54: 2944 | BO54: 2990 | BP54: 3036 | BQ54: 3082 | BR54: 3128 | BS54: 3174 | BT54: 3220 | BU54: 3266 | BV54: 3312 | BW54: 3358 | BX54: 3404 | BY54: 3450 | BZ54: 3496 | CA54: 3542 | CB54: 3588 | CC54: 3634 | CD54: 3680 | CE54: 3726 | CF54: 3772 | CG54: 3818 | CH54: 3864 | CI54: 3910 | CJ54: 3956 | CK54: 4002 | CL54: 4048 | CM54: 4094 | CN54: 4140 | CO54: 4186 | CP54: 4232 | CQ54: 4278 | CR54: 4324 | CS54: 4370 | CT54: 4416 | CU54: 4462 | CV54: 4508 | CW54: 4554 | CX54: 4600 | CY54: 46
B55: 47 | C55: 47 | D55: 94 | E55: 141 | F55: 188 | G55: 235 | H55: 282 | I55: 329 | J55: 376 | K55: 423 | L55: 470 | M55: 517 | N55: 564 | O55: 611 | P55: 658 | Q55: 705 | R55: 752 | S55: 799 | T55: 846 | U55: 893 | V55: 940 | W55: 987 | X55: 1034 | Y55: 1081 | Z55: 1128 | AA55: 1175 | AB55: 1222 | AC55: 1269 | AD55: 1316 | AE55: 1363 | AF55: 1410 | AG55: 1457 | AH55: 1504 | AI55: 1551 | AJ55: 1598 | AK55: 1645 | AL55: 1692 | AM55: 1739 | AN55: 1786 | AO55: 1833 | AP55: 1880 | AQ55: 1927 | AR55: 1974 | AS55: 2021 | AT55: 2068 | AU55: 2115 | AV55: 2162 | AW55: 2209 | AX55: 2256 | AY55: 2303 | AZ55: 2350 | BA55: 2397 | BB55: 2444 | BC55: 2491 | BD55: 2538 | BE55: 2585 | BF55: 2632 | BG55: 2679 | BH55: 2726 | BI55: 2773 | BJ55: 2820 | BK55: 2867 | BL55: 2914 | BM55: 2961 | BN55: 3008 | BO55: 3055 | BP55: 3102 | BQ55: 3149 | BR55: 3196 | BS55: 3243 | BT55: 3290 | BU55: 3337 | BV55: 3384 | BW55: 3431 | BX55: 3478 | BY55: 3525 | BZ55: 3572 | CA55: 3619 | CB55: 3666 | CC55: 3713 | CD55: 3760 | CE55: 3807 | CF55: 3854 | CG55: 3901 | CH55: 3948 | CI55: 3995 | CJ55: 4042 | CK55: 4089 | CL55: 4136 | CM55: 4183 | CN55: 4230 | CO55: 4277 | CP55: 4324 | CQ55: 4371 | CR55: 4418 | CS55: 4465 | CT55: 4512 | CU55: 4559 | CV55: 4606 | CW55: 4653 | CX55: 4700 | CY55: 47
B56: 48 | C56: 48 | D56: 96 | E56: 144 | F56: 192 | G56: 240 | H56: 288 | I56: 336 | J56: 384 | K56: 432 | L56: 480 | M56: 528 | N56: 576 | O56: 624 | P56: 672 | Q56: 720 | R56: 768 | S56: 816 | T56: 864 | U56: 912 | V56: 960 | W56: 1008 | X56: 1056 | Y56: 1104 | Z56: 1152 | AA56: 1200 | AB56: 1248 | AC56: 1296 | AD56: 1344 | AE56: 1392 | AF56: 1440 | AG56: 1488 | AH56: 1536 | AI56: 1584 | AJ56: 1632 | AK56: 1680 | AL56: 1728 | AM56: 1776 | AN56: 1824 | AO56: 1872 | AP56: 1920 | AQ56: 1968 | AR56: 2016 | AS56: 2064 | AT56: 2112 | AU56: 2160 | AV56: 2208 | AW56: 2256 | AX56: 2304 | AY56: 2352 | AZ56: 2400 | BA56: 2448 | BB56: 2496 | BC56: 2544 | BD56: 2592 | BE56: 2640 | BF56: 2688 | BG56: 2736 | BH56: 2784 | BI56: 2832 | BJ56: 2880 | BK56: 2928 | BL56: 2976 | BM56: 3024 | BN56: 3072 | BO56: 3120 | BP56: 3168 | BQ56: 3216 | BR56: 3264 | BS56: 3312 | BT56: 3360 | BU56: 3408 | BV56: 3456 | BW56: 3504 | BX56: 3552 | BY56: 3600 | BZ56: 3648 | CA56: 3696 | CB56: 3744 | CC56: 3792 | CD56: 3840 | CE56: 3888 | CF56: 3936 | CG56: 3984 | CH56: 4032 | CI56: 4080 | CJ56: 4128 | CK56: 4176 | CL56: 4224 | CM56: 4272 | CN56: 4320 | CO56: 4368 | CP56: 4416 | CQ56: 4464 | CR56: 4512 | CS56: 4560 | CT56: 4608 | CU56: 4656 | CV56: 4704 | CW56: 4752 | CX56: 4800 | CY56: 48
B57: 49 | C57: 49 | D57: 98 | E57: 147 | F57: 196 | G57: 245 | H57: 294 | I57: 343 | J57: 392 | K57: 441 | L57: 490 | M57: 539 | N57: 588 | O57: 637 | P57: 686 | Q57: 735 | R57: 784 | S57: 833 | T57: 882 | U57: 931 | V57: 980 | W57: 1029 | X57: 1078 | Y57: 1127 | Z57: 1176 | AA57: 1225 | AB57: 1274 | AC57: 1323 | AD57: 1372 | AE57: 1421 | AF57: 1470 | AG57: 1519 | AH57: 1568 | AI57: 1617 | AJ57: 1666 | AK57: 1715 | AL57: 1764 | AM57: 1813 | AN57: 1862 | AO57: 1911 | AP57: 1960 | AQ57: 2009 | AR57: 2058 | AS57: 2107 | AT57: 2156 | AU57: 2205 | AV57: 2254 | AW57: 2303 | AX57: 2352 | AY57: 2401 | AZ57: 2450 | BA57: 2499 | BB57: 2548 | BC57: 2597 | BD57: 2646 | BE57: 2695 | BF57: 2744 | BG57: 2793 | BH57: 2842 | BI57: 2891 | BJ57: 2940 | BK57: 2989 | BL57: 3038 | BM57: 3087 | BN57: 3136 | BO57: 3185 | BP57: 3234 | BQ57: 3283 | BR57: 3332 | BS57: 3381 | BT57: 3430 | BU57: 3479 | BV57: 3528 | BW57: 3577 | BX57: 3626 | BY57: 3675 | BZ57: 3724 | CA57: 3773 | CB57: 3822 | CC57: 3871 | CD57: 3920 | CE57: 3969 | CF57: 4018 | CG57: 4067 | CH57: 4116 | CI57: 4165 | CJ57: 4214 | CK57: 4263 | CL57: 4312 | CM57: 4361 | CN57: 4410 | CO57: 4459 | CP57: 4508 | CQ57: 4557 | CR57: 4606 | CS57: 4655 | CT57: 4704 | CU57: 4753 | CV57: 4802 | CW57: 4851 | CX57: 4900 | CY57: 49
B58: 50 | C58: 50 | D58: 100 | E58: 150 | F58: 200 | G58: 250 | H58: 300 | I58: 350 | J58: 400 | K58: 450 | L58: 500 | M58: 550 | N58: 600 | O58: 650 | P58: 700 | Q58: 750 | R58: 800 | S58: 850 | T58: 900 | U58: 950 | V58: 1000 | W58: 1050 | X58: 1100 | Y58: 1150 | Z58: 1200 | AA58: 1250 | AB58: 1300 | AC58: 1350 | AD58: 1400 | AE58: 1450 | AF58: 1500 | AG58: 1550 | AH58: 1600 | AI58: 1650 | AJ58: 1700 | AK58: 1750 | AL58: 1800 | AM58: 1850 | AN58: 1900 | AO58: 1950 | AP58: 2000 | AQ58: 2050 | AR58: 2100 | AS58: 2150 | AT58: 2200 | AU58: 2250 | AV58: 2300 | AW58: 2350 | AX58: 2400 | AY58: 2450 | AZ58: 2500 | BA58: 2550 | BB58: 2600 | BC58: 2650 | BD58: 2700 | BE58: 2750 | BF58: 2800 | BG58: 2850 | BH58: 2900 | BI58: 2950 | BJ58: 3000 | BK58: 3050 | BL58: 3100 | BM58: 3150 | BN58: 3200 | BO58: 3250 | BP58: 3300 | BQ58: 3350 | BR58: 3400 | BS58: 3450 | BT58: 3500 | BU58: 3550 | BV58: 3600 | BW58: 3650 | BX58: 3700 | BY58: 3750 | BZ58: 3800 | CA58: 3850 | CB58: 3900 | CC58: 3950 | CD58: 4000 | CE58: 4050 | CF58: 4100 | CG58: 4150 | CH58: 4200 | CI58: 4250 | CJ58: 4300 | CK58: 4350 | CL58: 4400 | CM58: 4450 | CN58: 4500 | CO58: 4550 | CP58: 4600 | CQ58: 4650 | CR58: 4700 | CS58: 4750 | CT58: 4800 | CU58: 4850 | CV58: 4900 | CW58: 4950 | CX58: 5000 | CY58: 50
B59: 51 | C59: 51 | D59: 102 | E59: 153 | F59: 204 | G59: 255 | H59: 306 | I59: 357 | J59: 408 | K59: 459 | L59: 510 | M59: 561 | N59: 612 | O59: 663 | P59: 714 | Q59: 765 | R59: 816 | S59: 867 | T59: 918 | U59: 969 | V59: 1020 | W59: 1071 | X59: 1122 | Y59: 1173 | Z59: 1224 | AA59: 1275 | AB59: 1326 | AC59: 1377 | AD59: 1428 | AE59: 1479 | AF59: 1530 | AG59: 1581 | AH59: 1632 | AI59: 1683 | AJ59: 1734 | AK59: 1785 | AL59: 1836 | AM59: 1887 | AN59: 1938 | AO59: 1989 | AP59: 2040 | AQ59: 2091 | AR59: 2142 | AS59: 2193 | AT59: 2244 | AU59: 2295 | AV59: 2346 | AW59: 2397 | AX59: 2448 | AY59: 2499 | AZ59: 2550 | BA59: 2601 | BB59: 2652 | BC59: 2703 | BD59: 2754 | BE59: 2805 | BF59: 2856 | BG59: 2907 | BH59: 2958 | BI59: 3009 | BJ59: 3060 | BK59: 3111 | BL59: 3162 | BM59: 3213 | BN59: 3264 | BO59: 3315 | BP59: 3366 | BQ59: 3417 | BR59: 3468 | BS59: 3519 | BT59: 3570 | BU59: 3621 | BV59: 3672 | BW59: 3723 | BX59: 3774 | BY59: 3825 | BZ59: 3876 | CA59: 3927 | CB59: 3978 | CC59: 4029 | CD59: 4080 | CE59: 4131 | CF59: 4182 | CG59: 4233 | CH59: 4284 | CI59: 4335 | CJ59: 4386 | CK59: 4437 | CL59: 4488 | CM59: 4539 | CN59: 4590 | CO59: 4641 | CP59: 4692 | CQ59: 4743 | CR59: 4794 | CS59: 4845 | CT59: 4896 | CU59: 4947 | CV59: 4998 | CW59: 5049 | CX59: 5100 | CY59: 51
B60: 52 | C60: 52 | D60: 104 | E60: 156 | F60: 208 | G60: 260 | H60: 312 | I60: 364 | J60: 416 | K60: 468 | L60: 520 | M60: 572 | N60: 624 | O60: 676 | P60: 728 | Q60: 780 | R60: 832 | S60: 884 | T60: 936 | U60: 988 | V60: 1040 | W60: 1092 | X60: 1144 | Y60: 1196 | Z60: 1248 | AA60: 1300 | AB60: 1352 | AC60: 1404 | AD60: 1456 | AE60: 1508 | AF60: 1560 | AG60: 1612 | AH60: 1664 | AI60: 1716 | AJ60: 1768 | AK60: 1820 | AL60: 1872 | AM60: 1924 | AN60: 1976 | AO60: 2028 | AP60: 2080 | AQ60: 2132 | AR60: 2184 | AS60: 2236 | AT60: 2288 | AU60: 2340 | AV60: 2392 | AW60: 2444 | AX60: 2496 | AY60: 2548 | AZ60: 2600 | BA60: 2652 | BB60: 2704 | BC60: 2756 | BD60: 2808 | BE60: 2860 | BF60: 2912 | BG60: 2964 | BH60: 3016 | BI60: 3068 | BJ60: 3120 | BK60: 3172 | BL60: 3224 | BM60: 3276 | BN60: 3328 | BO60: 3380 | BP60: 3432 | BQ60: 3484 | BR60: 3536 | BS60: 3588 | BT60: 3640 | BU60: 3692 | BV60: 3744 | BW60: 3796 | BX60: 3848 | BY60: 3900 | BZ60: 3952 | CA60: 4004 | CB60: 4056 | CC60: 4108 | CD60: 4160 | CE60: 4212 | CF60: 4264 | CG60: 4316 | CH60: 4368 | CI60: 4420 | CJ60: 4472 | CK60: 4524 | CL60: 4576 | CM60: 4628 | CN60: 4680 | CO60: 4732 | CP60: 4784 | CQ60: 4836 | CR60: 4888 | CS60: 4940 | CT60: 4992 | CU60: 5044 | CV60: 5096 | CW60: 5148 | CX60: 5200 | CY60: 52
B61: 53 | C61: 53 | D61: 106 | E61: 159 | F61: 212 | G61: 265 | H61: 318 | I61: 371 | J61: 424 | K61: 477 | L61: 530 | M61: 583 | N61: 636 | O61: 689 | P61: 742 | Q61: 795 | R61: 848 | S61: 901 | T61: 954 | U61: 1007 | V61: 1060 | W61: 1113 | X61: 1166 | Y61: 1219 | Z61: 1272 | AA61: 1325 | AB61: 1378 | AC61: 1431 | AD61: 1484 | AE61: 1537 | AF61: 1590 | AG61: 1643 | AH61: 1696 | AI61: 1749 | AJ61: 1802 | AK61: 1855 | AL61: 1908 | AM61: 1961 | AN61: 2014 | AO61: 2067 | AP61: 2120 | AQ61: 2173 | AR61: 2226 | AS61: 2279 | AT61: 2332 | AU61: 2385 | AV61: 2438 | AW61: 2491 | AX61: 2544 | AY61: 2597 | AZ61: 2650 | BA61: 2703 | BB61: 2756 | BC61: 2809 | BD61: 2862 | BE61: 2915 | BF61: 2968 | BG61: 3021 | BH61: 3074 | BI61: 3127 | BJ61: 3180 | BK61: 3233 | BL61: 3286 | BM61: 3339 | BN61: 3392 | BO61: 3445 | BP61: 3498 | BQ61: 3551 | BR61: 3604 | BS61: 3657 | BT61: 3710 | BU61: 3763 | BV61: 3816 | BW61: 3869 | BX61: 3922 | BY61: 3975 | BZ61: 4028 | CA61: 4081 | CB61: 4134 | CC61: 4187 | CD61: 4240 | CE61: 4293 | CF61: 4346 | CG61: 4399 | CH61: 4452 | CI61: 4505 | CJ61: 4558 | CK61: 4611 | CL61: 4664 | CM61: 4717 | CN61: 4770 | CO61: 4823 | CP61: 4876 | CQ61: 4929 | CR61: 4982 | CS61: 5035 | CT61: 5088 | CU61: 5141 | CV61: 5194 | CW61: 5247 | CX61: 5300 | CY61: 53
B62: 54 | C62: 54 | D62: 108 | E62: 162 | F62: 216 | G62: 270 | H62: 324 | I62: 378 | J62: 432 | K62: 486 | L62: 540 | M62: 594 | N62: 648 | O62: 702 | P62: 756 | Q62: 810 | R62: 864 | S62: 918 | T62: 972 | U62: 1026 | V62: 1080 | W62: 1134 | X62: 1188 | Y62: 1242 | Z62: 1296 | AA62: 1350 | AB62: 1404 | AC62: 1458 | AD62: 1512 | AE62: 1566 | AF62: 1620 | AG62: 1674 | AH62: 1728 | AI62: 1782 | AJ62: 1836 | AK62: 1890 | AL62: 1944 | AM62: 1998 | AN62: 2052 | AO62: 2106 | AP62: 2160 | AQ62: 2214 | AR62: 2268 | AS62: 2322 | AT62: 2376 | AU62: 2430 | AV62: 2484 | AW62: 2538 | AX62: 2592 | AY62: 2646 | AZ62: 2700 | BA62: 2754 | BB62: 2808 | BC62: 2862 | BD62: 2916 | BE62: 2970 | BF62: 3024 | BG62: 3078 | BH62: 3132 | BI62: 3186 | BJ62: 3240 | BK62: 3294 | BL62: 3348 | BM62: 3402 | BN62: 3456 | BO62: 3510 | BP62: 3564 | BQ62: 3618 | BR62: 3672 | BS62: 3726 | BT62: 3780 | BU62: 3834 | BV62: 3888 | BW62: 3942 | BX62: 3996 | BY62: 4050 | BZ62: 4104 | CA62: 4158 | CB62: 4212 | CC62: 4266 | CD62: 4320 | CE62: 4374 | CF62: 4428 | CG62: 4482 | CH62: 4536 | CI62: 4590 | CJ62: 4644 | CK62: 4698 | CL62: 4752 | CM62: 4806 | CN62: 4860 | CO62: 4914 | CP62: 4968 | CQ62: 5022 | CR62: 5076 | CS62: 5130 | CT62: 5184 | CU62: 5238 | CV62: 5292 | CW62: 5346 | CX62: 5400 | CY62: 54
B63: 55 | C63: 55 | D63: 110 | E63: 165 | F63: 220 | G63: 275 | H63: 330 | I63: 385 | J63: 440 | K63: 495 | L63: 550 | M63: 605 | N63: 660 | O63: 715 | P63: 770 | Q63: 825 | R63: 880 | S63: 935 | T63: 990 | U63: 1045 | V63: 1100 | W63: 1155 | X63: 1210 | Y63: 1265 | Z63: 1320 | AA63: 1375 | AB63: 1430 | AC63: 1485 | AD63: 1540 | AE63: 1595 | AF63: 1650 | AG63: 1705 | AH63: 1760 | AI63: 1815 | AJ63: 1870 | AK63: 1925 | AL63: 1980 | AM63: 2035 | AN63: 2090 | AO63: 2145 | AP63: 2200 | AQ63: 2255 | AR63: 2310 | AS63: 2365 | AT63: 2420 | AU63: 2475 | AV63: 2530 | AW63: 2585 | AX63: 2640 | AY63: 2695 | AZ63: 2750 | BA63: 2805 | BB63: 2860 | BC63: 2915 | BD63: 2970 | BE63: 3025 | BF63: 3080 | BG63: 3135 | BH63: 3190 | BI63: 3245 | BJ63: 3300 | BK63: 3355 | BL63: 3410 | BM63: 3465 | BN63: 3520 | BO63: 3575 | BP63: 3630 | BQ63: 3685 | BR63: 3740 | BS63: 3795 | BT63: 3850 | BU63: 3905 | BV63: 3960 | BW63: 4015 | BX63: 4070 | BY63: 4125 | BZ63: 4180 | CA63: 4235 | CB63: 4290 | CC63: 4345 | CD63: 4400 | CE63: 4455 | CF63: 4510 | CG63: 4565 | CH63: 4620 | CI63: 4675 | CJ63: 4730 | CK63: 4785 | CL63: 4840 | CM63: 4895 | CN63: 4950 | CO63: 5005 | CP63: 5060 | CQ63: 5115 | CR63: 5170 | CS63: 5225 | CT63: 5280 | CU63: 5335 | CV63: 5390 | CW63: 5445 | CX63: 5500 | CY63: 55
B64: 56 | C64: 56 | D64: 112 | E64: 168 | F64: 224 | G64: 280 | H64: 336 | I64: 392 | J64: 448 | K64: 504 | L64: 560 | M64: 616 | N64: 672 | O64: 728 | P64: 784 | Q64: 840 | R64: 896 | S64: 952 | T64: 1008 | U64: 1064 | V64: 1120 | W64: 1176 | X64: 1232 | Y64: 1288 | Z64: 1344 | AA64: 1400 | AB64: 1456 | AC64: 1512 | AD64: 1568 | AE64: 1624 | AF64: 1680 | AG64: 1736 | AH64: 1792 | AI64: 1848 | AJ64: 1904 | AK64: 1960 | AL64: 2016 | AM64: 2072 | AN64: 2128 | AO64: 2184 | AP64: 2240 | AQ64: 2296 | AR64: 2352 | AS64: 2408 | AT64: 2464 | AU64: 2520 | AV64: 2576 | AW64: 2632 | AX64: 2688 | AY64: 2744 | AZ64: 2800 | BA64: 2856 | BB64: 2912 | BC64: 2968 | BD64: 3024 | BE64: 3080 | BF64: 3136 | BG64: 3192 | BH64: 3248 | BI64: 3304 | BJ64: 3360 | BK64: 3416 | BL64: 3472 | BM64: 3528 | BN64: 3584 | BO64: 3640 | BP64: 3696 | BQ64: 3752 | BR64: 3808 | BS64: 3864 | BT64: 3920 | BU64: 3976 | BV64: 4032 | BW64: 4088 | BX64: 4144 | BY64: 4200 | BZ64: 4256 | CA64: 4312 | CB64: 4368 | CC64: 4424 | CD64: 4480 | CE64: 4536 | CF64: 4592 | CG64: 4648 | CH64: 4704 | CI64: 4760 | CJ64: 4816 | CK64: 4872 | CL64: 4928 | CM64: 4984 | CN64: 5040 | CO64: 5096 | CP64: 5152 | CQ64: 5208 | CR64: 5264 | CS64: 5320 | CT64: 5376 | CU64: 5432 | CV64: 5488 | CW64: 5544 | CX64: 5600 | CY64: 56
B65: 57 | C65: 57 | D65: 114 | E65: 171 | F65: 228 | G65: 285 | H65: 342 | I65: 399 | J65: 456 | K65: 513 | L65: 570 | M65: 627 | N65: 684 | O65: 741 | P65: 798 | Q65: 855 | R65: 912 | S65: 969 | T65: 1026 | U65: 1083 | V65: 1140 | W65: 1197 | X65: 1254 | Y65: 1311 | Z65: 1368 | AA65: 1425 | AB65: 1482 | AC65: 1539 | AD65: 1596 | AE65: 1653 | AF65: 1710 | AG65: 1767 | AH65: 1824 | AI65: 1881 | AJ65: 1938 | AK65: 1995 | AL65: 2052 | AM65: 2109 | AN65: 2166 | AO65: 2223 | AP65: 2280 | AQ65: 2337 | AR65: 2394 | AS65: 2451 | AT65: 2508 | AU65: 2565 | AV65: 2622 | AW65: 2679 | AX65: 2736 | AY65: 2793 | AZ65: 2850 | BA65: 2907 | BB65: 2964 | BC65: 3021 | BD65: 3078 | BE65: 3135 | BF65: 3192 | BG65: 3249 | BH65: 3306 | BI65: 3363 | BJ65: 3420 | BK65: 3477 | BL65: 3534 | BM65: 3591 | BN65: 3648 | BO65: 3705 | BP65: 3762 | BQ65: 3819 | BR65: 3876 | BS65: 3933 | BT65: 3990 | BU65: 4047 | BV65: 4104 | BW65: 4161 | BX65: 4218 | BY65: 4275 | BZ65: 4332 | CA65: 4389 | CB65: 4446 | CC65: 4503 | CD65: 4560 | CE65: 4617 | CF65: 4674 | CG65: 4731 | CH65: 4788 | CI65: 4845 | CJ65: 4902 | CK65: 4959 | CL65: 5016 | CM65: 5073 | CN65: 5130 | CO65: 5187 | CP65: 5244 | CQ65: 5301 | CR65: 5358 | CS65: 5415 | CT65: 5472 | CU65: 5529 | CV65: 5586 | CW65: 5643 | CX65: 5700 | CY65: 57
B66: 58 | C66: 58 | D66: 116 | E66: 174 | F66: 232 | G66: 290 | H66: 348 | I66: 406 | J66: 464 | K66: 522 | L66: 580 | M66: 638 | N66: 696 | O66: 754 | P66: 812 | Q66: 870 | R66: 928 | S66: 986 | T66: 1044 | U66: 1102 | V66: 1160 | W66: 1218 | X66: 1276 | Y66: 1334 | Z66: 1392 | AA66: 1450 | AB66: 1508 | AC66: 1566 | AD66: 1624 | AE66: 1682 | AF66: 1740 | AG66: 1798 | AH66: 1856 | AI66: 1914 | AJ66: 1972 | AK66: 2030 | AL66: 2088 | AM66: 2146 | AN66: 2204 | AO66: 2262 | AP66: 2320 | AQ66: 2378 | AR66: 2436 | AS66: 2494 | AT66: 2552 | AU66: 2610 | AV66: 2668 | AW66: 2726 | AX66: 2784 | AY66: 2842 | AZ66: 2900 | BA66: 2958 | BB66: 3016 | BC66: 3074 | BD66: 3132 | BE66: 3190 | BF66: 3248 | BG66: 3306 | BH66: 3364 | BI66: 3422 | BJ66: 3480 | BK66: 3538 | BL66: 3596 | BM66: 3654 | BN66: 3712 | BO66: 3770 | BP66: 3828 | BQ66: 3886 | BR66: 3944 | BS66: 4002 | BT66: 4060 | BU66: 4118 | BV66: 4176 | BW66: 4234 | BX66: 4292 | BY66: 4350 | BZ66: 4408 | CA66: 4466 | CB66: 4524 | CC66: 4582 | CD66: 4640 | CE66: 4698 | CF66: 4756 | CG66: 4814 | CH66: 4872 | CI66: 4930 | CJ66: 4988 | CK66: 5046 | CL66: 5104 | CM66: 5162 | CN66: 5220 | CO66: 5278 | CP66: 5336 | CQ66: 5394 | CR66: 5452 | CS66: 5510 | CT66: 5568 | CU66: 5626 | CV66: 5684 | CW66: 5742 | CX66: 5800 | CY66: 58
B67: 59 | C67: 59 | D67: 118 | E67: 177 | F67: 236 | G67: 295 | H67: 354 | I67: 413 | J67: 472 | K67: 531 | L67: 590 | M67: 649 | N67: 708 | O67: 767 | P67: 826 | Q67: 885 | R67: 944 | S67: 1003 | T67: 1062 | U67: 1121 | V67: 1180 | W67: 1239 | X67: 1298 | Y67: 1357 | Z67: 1416 | AA67: 1475 | AB67: 1534 | AC67: 1593 | AD67: 1652 | AE67: 1711 | AF67: 1770 | AG67: 1829 | AH67: 1888 | AI67: 1947 | AJ67: 2006 | AK67: 2065 | AL67: 2124 | AM67: 2183 | AN67: 2242 | AO67: 2301 | AP67: 2360 | AQ67: 2419 | AR67: 2478 | AS67: 2537 | AT67: 2596 | AU67: 2655 | AV67: 2714 | AW67: 2773 | AX67: 2832 | AY67: 2891 | AZ67: 2950 | BA67: 3009 | BB67: 3068 | BC67: 3127 | BD67: 3186 | BE67: 3245 | BF67: 3304 | BG67: 3363 | BH67: 3422 | BI67: 3481 | BJ67: 3540 | BK67: 3599 | BL67: 3658 | BM67: 3717 | BN67: 3776 | BO67: 3835 | BP67: 3894 | BQ67: 3953 | BR67: 4012 | BS67: 4071 | BT67: 4130 | BU67: 4189 | BV67: 4248 | BW67: 4307 | BX67: 4366 | BY67: 4425 | BZ67: 4484 | CA67: 4543 | CB67: 4602 | CC67: 4661 | CD67: 4720 | CE67: 4779 | CF67: 4838 | CG67: 4897 | CH67: 4956 | CI67: 5015 | CJ67: 5074 | CK67: 5133 | CL67: 5192 | CM67: 5251 | CN67: 5310 | CO67: 5369 | CP67: 5428 | CQ67: 5487 | CR67: 5546 | CS67: 5605 | CT67: 5664 | CU67: 5723 | CV67: 5782 | CW67: 5841 | CX67: 5900 | CY67: 59
B68: 60 | C68: 60 | D68: 120 | E68: 180 | F68: 240 | G68: 300 | H68: 360 | I68: 420 | J68: 480 | K68: 540 | L68: 600 | M68: 660 | N68: 720 | O68: 780 | P68: 840 | Q68: 900 | R68: 960 | S68: 1020 | T68: 1080 | U68: 1140 | V68: 1200 | W68: 1260 | X68: 1320 | Y68: 1380 | Z68: 1440 | AA68: 1500 | AB68: 1560 | AC68: 1620 | AD68: 1680 | AE68: 1740 | AF68: 1800 | AG68: 1860 | AH68: 1920 | AI68: 1980 | AJ68: 2040 | AK68: 2100 | AL68: 2160 | AM68: 2220 | AN68: 2280 | AO68: 2340 | AP68: 2400 | AQ68: 2460 | AR68: 2520 | AS68: 2580 | AT68: 2640 | AU68: 2700 | AV68: 2760 | AW68: 2820 | AX68: 2880 | AY68: 2940 | AZ68: 3000 | BA68: 3060 | BB68: 3120 | BC68: 3180 | BD68: 3240 | BE68: 3300 | BF68: 3360 | BG68: 3420 | BH68: 3480 | BI68: 3540 | BJ68: 3600 | BK68: 3660 | BL68: 3720 | BM68: 3780 | BN68: 3840 | BO68: 3900 | BP68: 3960 | BQ68: 4020 | BR68: 4080 | BS68: 4140 | BT68: 4200 | BU68: 4260 | BV68: 4320 | BW68: 4380 | BX68: 4440 | BY68: 4500 | BZ68: 4560 | CA68: 4620 | CB68: 4680 | CC68: 4740 | CD68: 4800 | CE68: 4860 | CF68: 4920 | CG68: 4980 | CH68: 5040 | CI68: 5100 | CJ68: 5160 | CK68: 5220 | CL68: 5280 | CM68: 5340 | CN68: 5400 | CO68: 5460 | CP68: 5520 | CQ68: 5580 | CR68: 5640 | CS68: 5700 | CT68: 5760 | CU68: 5820 | CV68: 5880 | CW68: 5940 | CX68: 6000 | CY68: 60
B69: 61 | C69: 61 | D69: 122 | E69: 183 | F69: 244 | G69: 305 | H69: 366 | I69: 427 | J69: 488 | K69: 549 | L69: 610 | M69: 671 | N69: 732 | O69: 793 | P69: 854 | Q69: 915 | R69: 976 | S69: 1037 | T69: 1098 | U69: 1159 | V69: 1220 | W69: 1281 | X69: 1342 | Y69: 1403 | Z69: 1464 | AA69: 1525 | AB69: 1586 | AC69: 1647 | AD69: 1708 | AE69: 1769 | AF69: 1830 | AG69: 1891 | AH69: 1952 | AI69: 2013 | AJ69: 2074 | AK69: 2135 | AL69: 2196 | AM69: 2257 | AN69: 2318 | AO69: 2379 | AP69: 2440 | AQ69: 2501 | AR69: 2562 | AS69: 2623 | AT69: 2684 | AU69: 2745 | AV69: 2806 | AW69: 2867 | AX69: 2928 | AY69: 2989 | AZ69: 3050 | BA69: 3111 | BB69: 3172 | BC69: 3233 | BD69: 3294 | BE69: 3355 | BF69: 3416 | BG69: 3477 | BH69: 3538 | BI69: 3599 | BJ69: 3660 | BK69: 3721 | BL69: 3782 | BM69: 3843 | BN69: 3904 | BO69: 3965 | BP69: 4026 | BQ69: 4087 | BR69: 4148 | BS69: 4209 | BT69: 4270 | BU69: 4331 | BV69: 4392 | BW69: 4453 | BX69: 4514 | BY69: 4575 | BZ69: 4636 | CA69: 4697 | CB69: 4758 | CC69: 4819 | CD69: 4880 | CE69: 4941 | CF69: 5002 | CG69: 5063 | CH69: 5124 | CI69: 5185 | CJ69: 5246 | CK69: 5307 | CL69: 5368 | CM69: 5429 | CN69: 5490 | CO69: 5551 | CP69: 5612 | CQ69: 5673 | CR69: 5734 | CS69: 5795 | CT69: 5856 | CU69: 5917 | CV69: 5978 | CW69: 6039 | CX69: 6100 | CY69: 61
B70: 62 | C70: 62 | D70: 124 | E70: 186 | F70: 248 | G70: 310 | H70: 372 | I70: 434 | J70: 496 | K70: 558 | L70: 620 | M70: 682 | N70: 744 | O70: 806 | P70: 868 | Q70: 930 | R70: 992 | S70: 1054 | T70: 1116 | U70: 1178 | V70: 1240 | W70: 1302 | X70: 1364 | Y70: 1426 | Z70: 1488 | AA70: 1550 | AB70: 1612 | AC70: 1674 | AD70: 1736 | AE70: 1798 | AF70: 1860 | AG70: 1922 | AH70: 1984 | AI70: 2046 | AJ70: 2108 | AK70: 2170 | AL70: 2232 | AM70: 2294 | AN70: 2356 | AO70: 2418 | AP70: 2480 | AQ70: 2542 | AR70: 2604 | AS70: 2666 | AT70: 2728 | AU70: 2790 | AV70: 2852 | AW70: 2914 | AX70: 2976 | AY70: 3038 | AZ70: 3100 | BA70: 3162 | BB70: 3224 | BC70: 3286 | BD70: 3348 | BE70: 3410 | BF70: 3472 | BG70: 3534 | BH70: 3596 | BI70: 3658 | BJ70: 3720 | BK70: 3782 | BL70: 3844 | BM70: 3906 | BN70: 3968 | BO70: 4030 | BP70: 4092 | BQ70: 4154 | BR70: 4216 | BS70: 4278 | BT70: 4340 | BU70: 4402 | BV70: 4464 | BW70: 4526 | BX70: 4588 | BY70: 4650 | BZ70: 4712 | CA70: 4774 | CB70: 4836 | CC70: 4898 | CD70: 4960 | CE70: 5022 | CF70: 5084 | CG70: 5146 | CH70: 5208 | CI70: 5270 | CJ70: 5332 | CK70: 5394 | CL70: 5456 | CM70: 5518 | CN70: 5580 | CO70: 5642 | CP70: 5704 | CQ70: 5766 | CR70: 5828 | CS70: 5890 | CT70: 5952 | CU70: 6014 | CV70: 6076 | CW70: 6138 | CX70: 6200 | CY70: 62
B71: 63 | C71: 63 | D71: 126 | E71: 189 | F71: 252 | G71: 315 | H71: 378 | I71: 441 | J71: 504 | K71: 567 | L71: 630 | M71: 693 | N71: 756 | O71: 819 | P71: 882 | Q71: 945 | R71: 1008 | S71: 1071 | T71: 1134 | U71: 1197 | V71: 1260 | W71: 1323 | X71: 1386 | Y71: 1449 | Z71: 1512 | AA71: 1575 | AB71: 1638 | AC71: 1701 | AD71: 1764 | AE71: 1827 | AF71: 1890 | AG71: 1953 | AH71: 2016 | AI71: 2079 | AJ71: 2142 | AK71: 2205 | AL71: 2268 | AM71: 2331 | AN71: 2394 | AO71: 2457 | AP71: 2520 | AQ71: 2583 | AR71: 2646 | AS71: 2709 | AT71: 2772 | AU71: 2835 | AV71: 2898 | AW71: 2961 | AX71: 3024 | AY71: 3087 | AZ71: 3150 | BA71: 3213 | BB71: 3276 | BC71: 3339 | BD71: 3402 | BE71: 3465 | BF71: 3528 | BG71: 3591 | BH71: 3654 | BI71: 3717 | BJ71: 3780 | BK71: 3843 | BL71: 3906 | BM71: 3969 | BN71: 4032 | BO71: 4095 | BP71: 4158 | BQ71: 4221 | BR71: 4284 | BS71: 4347 | BT71: 4410 | BU71: 4473 | BV71: 4536 | BW71: 4599 | BX71: 4662 | BY71: 4725 | BZ71: 4788 | CA71: 4851 | CB71: 4914 | CC71: 4977 | CD71: 5040 | CE71: 5103 | CF71: 5166 | CG71: 5229 | CH71: 5292 | CI71: 5355 | CJ71: 5418 | CK71: 5481 | CL71: 5544 | CM71: 5607 | CN71: 5670 | CO71: 5733 | CP71: 5796 | CQ71: 5859 | CR71: 5922 | CS71: 5985 | CT71: 6048 | CU71: 6111 | CV71: 6174 | CW71: 6237 | CX71: 6300 | CY71: 63
B72: 64 | C72: 64 | D72: 128 | E72: 192 | F72: 256 | G72: 320 | H72: 384 | I72: 448 | J72: 512 | K72: 576 | L72: 640 | M72: 704 | N72: 768 | O72: 832 | P72: 896 | Q72: 960 | R72: 1024 | S72: 1088 | T72: 1152 | U72: 1216 | V72: 1280 | W72: 1344 | X72: 1408 | Y72: 1472 | Z72: 1536 | AA72: 1600 | AB72: 1664 | AC72: 1728 | AD72: 1792 | AE72: 1856 | AF72: 1920 | AG72: 1984 | AH72: 2048 | AI72: 2112 | AJ72: 2176 | AK72: 2240 | AL72: 2304 | AM72: 2368 | AN72: 2432 | AO72: 2496 | AP72: 2560 | AQ72: 2624 | AR72: 2688 | AS72: 2752 | AT72: 2816 | AU72: 2880 | AV72: 2944 | AW72: 3008 | AX72: 3072 | AY72: 3136 | AZ72: 3200 | BA72: 3264 | BB72: 3328 | BC72: 3392 | BD72: 3456 | BE72: 3520 | BF72: 3584 | BG72: 3648 | BH72: 3712 | BI72: 3776 | BJ72: 3840 | BK72: 3904 | BL72: 3968 | BM72: 4032 | BN72: 4096 | BO72: 4160 | BP72: 4224 | BQ72: 4288 | BR72: 4352 | BS72: 4416 | BT72: 4480 | BU72: 4544 | BV72: 4608 | BW72: 4672 | BX72: 4736 | BY72: 4800 | BZ72: 4864 | CA72: 4928 | CB72: 4992 | CC72: 5056 | CD72: 5120 | CE72: 5184 | CF72: 5248 | CG72: 5312 | CH72: 5376 | CI72: 5440 | CJ72: 5504 | CK72: 5568 | CL72: 5632 | CM72: 5696 | CN72: 5760 | CO72: 5824 | CP72: 5888 | CQ72: 5952 | CR72: 6016 | CS72: 6080 | CT72: 6144 | CU72: 6208 | CV72: 6272 | CW72: 6336 | CX72: 6400 | CY72: 64
B73: 65 | C73: 65 | D73: 130 | E73: 195 | F73: 260 | G73: 325 | H73: 390 | I73: 455 | J73: 520 | K73: 585 | L73: 650 | M73: 715 | N73: 780 | O73: 845 | P73: 910 | Q73: 975 | R73: 1040 | S73: 1105 | T73: 1170 | U73: 1235 | V73: 1300 | W73: 1365 | X73: 1430 | Y73: 1495 | Z73: 1560 | AA73: 1625 | AB73: 1690 | AC73: 1755 | AD73: 1820 | AE73: 1885 | AF73: 1950 | AG73: 2015 | AH73: 2080 | AI73: 2145 | AJ73: 2210 | AK73: 2275 | AL73: 2340 | AM73: 2405 | AN73: 2470 | AO73: 2535 | AP73: 2600 | AQ73: 2665 | AR73: 2730 | AS73: 2795 | AT73: 2860 | AU73: 2925 | AV73: 2990 | AW73: 3055 | AX73: 3120 | AY73: 3185 | AZ73: 3250 | BA73: 3315 | BB73: 3380 | BC73: 3445 | BD73: 3510 | BE73: 3575 | BF73: 3640 | BG73: 3705 | BH73: 3770 | BI73: 3835 | BJ73: 3900 | BK73: 3965 | BL73: 4030 | BM73: 4095 | BN73: 4160 | BO73: 4225 | BP73: 4290 | BQ73: 4355 | BR73: 4420 | BS73: 4485 | BT73: 4550 | BU73: 4615 | BV73: 4680 | BW73: 4745 | BX73: 4810 | BY73: 4875 | BZ73: 4940 | CA73: 5005 | CB73: 5070 | CC73: 5135 | CD73: 5200 | CE73: 5265 | CF73: 5330 | CG73: 5395 | CH73: 5460 | CI73: 5525 | CJ73: 5590 | CK73: 5655 | CL73: 5720 | CM73: 5785 | CN73: 5850 | CO73: 5915 | CP73: 5980 | CQ73: 6045 | CR73: 6110 | CS73: 6175 | CT73: 6240 | CU73: 6305 | CV73: 6370 | CW73: 6435 | CX73: 6500 | CY73: 65
B74: 66 | C74: 66 | D74: 132 | E74: 198 | F74: 264 | G74: 330 | H74: 396 | I74: 462 | J74: 528 | K74: 594 | L74: 660 | M74: 726 | N74: 792 | O74: 858 | P74: 924 | Q74: 990 | R74: 1056 | S74: 1122 | T74: 1188 | U74: 1254 | V74: 1320 | W74: 1386 | X74: 1452 | Y74: 1518 | Z74: 1584 | AA74: 1650 | AB74: 1716 | AC74: 1782 | AD74: 1848 | AE74: 1914 | AF74: 1980 | AG74: 2046 | AH74: 2112 | AI74: 2178 | AJ74: 2244 | AK74: 2310 | AL74: 2376 | AM74: 2442 | AN74: 2508 | AO74: 2574 | AP74: 2640 | AQ74: 2706 | AR74: 2772 | AS74: 2838 | AT74: 2904 | AU74: 2970 | AV74: 3036 | AW74: 3102 | AX74: 3168 | AY74: 3234 | AZ74: 3300 | BA74: 3366 | BB74: 3432 | BC74: 3498 | BD74: 3564 | BE74: 3630 | BF74: 3696 | BG74: 3762 | BH74: 3828 | BI74: 3894 | BJ74: 3960 | BK74: 4026 | BL74: 4092 | BM74: 4158 | BN74: 4224 | BO74: 4290 | BP74: 4356 | BQ74: 4422 | BR74: 4488 | BS74: 4554 | BT74: 4620 | BU74: 4686 | BV74: 4752 | BW74: 4818 | BX74: 4884 | BY74: 4950 | BZ74: 5016 | CA74: 5082 | CB74: 5148 | CC74: 5214 | CD74: 5280 | CE74: 5346 | CF74: 5412 | CG74: 5478 | CH74: 5544 | CI74: 5610 | CJ74: 5676 | CK74: 5742 | CL74: 5808 | CM74: 5874 | CN74: 5940 | CO74: 6006 | CP74: 6072 | CQ74: 6138 | CR74: 6204 | CS74: 6270 | CT74: 6336 | CU74: 6402 | CV74: 6468 | CW74: 6534 | CX74: 6600 | CY74: 66
B75: 67 | C75: 67 | D75: 134 | E75: 201 | F75: 268 | G75: 335 | H75: 402 | I75: 469 | J75: 536 | K75: 603 | L75: 670 | M75: 737 | N75: 804 | O75: 871 | P75: 938 | Q75: 1005 | R75: 1072 | S75: 1139 | T75: 1206 | U75: 1273 | V75: 1340 | W75: 1407 | X75: 1474 | Y75: 1541 | Z75: 1608 | AA75: 1675 | AB75: 1742 | AC75: 1809 | AD75: 1876 | AE75: 1943 | AF75: 2010 | AG75: 2077 | AH75: 2144 | AI75: 2211 | AJ75: 2278 | AK75: 2345 | AL75: 2412 | AM75: 2479 | AN75: 2546 | AO75: 2613 | AP75: 2680 | AQ75: 2747 | AR75: 2814 | AS75: 2881 | AT75: 2948 | AU75: 3015 | AV75: 3082 | AW75: 3149 | AX75: 3216 | AY75: 3283 | AZ75: 3350 | BA75: 3417 | BB75: 3484 | BC75: 3551 | BD75: 3618 | BE75: 3685 | BF75: 3752 | BG75: 3819 | BH75: 3886 | BI75: 3953 | BJ75: 4020 | BK75: 4087 | BL75: 4154 | BM75: 4221 | BN75: 4288 | BO75: 4355 | BP75: 4422 | BQ75: 4489 | BR75: 4556 | BS75: 4623 | BT75: 4690 | BU75: 4757 | BV75: 4824 | BW75: 4891 | BX75: 4958 | BY75: 5025 | BZ75: 5092 | CA75: 5159 | CB75: 5226 | CC75: 5293 | CD75: 5360 | CE75: 5427 | CF75: 5494 | CG75: 5561 | CH75: 5628 | CI75: 5695 | CJ75: 5762 | CK75: 5829 | CL75: 5896 | CM75: 5963 | CN75: 6030 | CO75: 6097 | CP75: 6164 | CQ75: 6231 | CR75: 6298 | CS75: 6365 | CT75: 6432 | CU75: 6499 | CV75: 6566 | CW75: 6633 | CX75: 6700 | CY75: 67
B76: 68 | C76: 68 | D76: 136 | E76: 204 | F76: 272 | G76: 340 | H76: 408 | I76: 476 | J76: 544 | K76: 612 | L76: 680 | M76: 748 | N76: 816 | O76: 884 | P76: 952 | Q76: 1020 | R76: 1088 | S76: 1156 | T76: 1224 | U76: 1292 | V76: 1360 | W76: 1428 | X76: 1496 | Y76: 1564 | Z76: 1632 | AA76: 1700 | AB76: 1768 | AC76: 1836 | AD76: 1904 | AE76: 1972 | AF76: 2040 | AG76: 2108 | AH76: 2176 | AI76: 2244 | AJ76: 2312 | AK76: 2380 | AL76: 2448 | AM76: 2516 | AN76: 2584 | AO76: 2652 | AP76: 2720 | AQ76: 2788 | AR76: 2856 | AS76: 2924 | AT76: 2992 | AU76: 3060 | AV76: 3128 | AW76: 3196 | AX76: 3264 | AY76: 3332 | AZ76: 3400 | BA76: 3468 | BB76: 3536 | BC76: 3604 | BD76: 3672 | BE76: 3740 | BF76: 3808 | BG76: 3876 | BH76: 3944 | BI76: 4012 | BJ76: 4080 | BK76: 4148 | BL76: 4216 | BM76: 4284 | BN76: 4352 | BO76: 4420 | BP76: 4488 | BQ76: 4556 | BR76: 4624 | BS76: 4692 | BT76: 4760 | BU76: 4828 | BV76: 4896 | BW76: 4964 | BX76: 5032 | BY76: 5100 | BZ76: 5168 | CA76: 5236 | CB76: 5304 | CC76: 5372 | CD76: 5440 | CE76: 5508 | CF76: 5576 | CG76: 5644 | CH76: 5712 | CI76: 5780 | CJ76: 5848 | CK76: 5916 | CL76: 5984 | CM76: 6052 | CN76: 6120 | CO76: 6188 | CP76: 6256 | CQ76: 6324 | CR76: 6392 | CS76: 6460 | CT76: 6528 | CU76: 6596 | CV76: 6664 | CW76: 6732 | CX76: 6800 | CY76: 68
B77: 69 | C77: 69 | D77: 138 | E77: 207 | F77: 276 | G77: 345 | H77: 414 | I77: 483 | J77: 552 | K77: 621 | L77: 690 | M77: 759 | N77: 828 | O77: 897 | P77: 966 | Q77: 1035 | R77: 1104 | S77: 1173 | T77: 1242 | U77: 1311 | V77: 1380 | W77: 1449 | X77: 1518 | Y77: 1587 | Z77: 1656 | AA77: 1725 | AB77: 1794 | AC77: 1863 | AD77: 1932 | AE77: 2001 | AF77: 2070 | AG77: 2139 | AH77: 2208 | AI77: 2277 | AJ77: 2346 | AK77: 2415 | AL77: 2484 | AM77: 2553 | AN77: 2622 | AO77: 2691 | AP77: 2760 | AQ77: 2829 | AR77: 2898 | AS77: 2967 | AT77: 3036 | AU77: 3105 | AV77: 3174 | AW77: 3243 | AX77: 3312 | AY77: 3381 | AZ77: 3450 | BA77: 3519 | BB77: 3588 | BC77: 3657 | BD77: 3726 | BE77: 3795 | BF77: 3864 | BG77: 3933 | BH77: 4002 | BI77: 4071 | BJ77: 4140 | BK77: 4209 | BL77: 4278 | BM77: 4347 | BN77: 4416 | BO77: 4485 | BP77: 4554 | BQ77: 4623 | BR77: 4692 | BS77: 4761 | BT77: 4830 | BU77: 4899 | BV77: 4968 | BW77: 5037 | BX77: 5106 | BY77: 5175 | BZ77: 5244 | CA77: 5313 | CB77: 5382 | CC77: 5451 | CD77: 5520 | CE77: 5589 | CF77: 5658 | CG77: 5727 | CH77: 5796 | CI77: 5865 | CJ77: 5934 | CK77: 6003 | CL77: 6072 | CM77: 6141 | CN77: 6210 | CO77: 6279 | CP77: 6348 | CQ77: 6417 | CR77: 6486 | CS77: 6555 | CT77: 6624 | CU77: 6693 | CV77: 6762 | CW77: 6831 | CX77: 6900 | CY77: 69
B78: 70 | C78: 70 | D78: 140 | E78: 210 | F78: 280 | G78: 350 | H78: 420 | I78: 490 | J78: 560 | K78: 630 | L78: 700 | M78: 770 | N78: 840 | O78: 910 | P78: 980 | Q78: 1050 | R78: 1120 | S78: 1190 | T78: 1260 | U78: 1330 | V78: 1400 | W78: 1470 | X78: 1540 | Y78: 1610 | Z78: 1680 | AA78: 1750 | AB78: 1820 | AC78: 1890 | AD78: 1960 | AE78: 2030 | AF78: 2100 | AG78: 2170 | AH78: 2240 | AI78: 2310 | AJ78: 2380 | AK78: 2450 | AL78: 2520 | AM78: 2590 | AN78: 2660 | AO78: 2730 | AP78: 2800 | AQ78: 2870 | AR78: 2940 | AS78: 3010 | AT78: 3080 | AU78: 3150 | AV78: 3220 | AW78: 3290 | AX78: 3360 | AY78: 3430 | AZ78: 3500 | BA78: 3570 | BB78: 3640 | BC78: 3710 | BD78: 3780 | BE78: 3850 | BF78: 3920 | BG78: 3990 | BH78: 4060 | BI78: 4130 | BJ78: 4200 | BK78: 4270 | BL78: 4340 | BM78: 4410 | BN78: 4480 | BO78: 4550 | BP78: 4620 | BQ78: 4690 | BR78: 4760 | BS78: 4830 | BT78: 4900 | BU78: 4970 | BV78: 5040 | BW78: 5110 | BX78: 5180 | BY78: 5250 | BZ78: 5320 | CA78: 5390 | CB78: 5460 | CC78: 5530 | CD78: 5600 | CE78: 5670 | CF78: 5740 | CG78: 5810 | CH78: 5880 | CI78: 5950 | CJ78: 6020 | CK78: 6090 | CL78: 6160 | CM78: 6230 | CN78: 6300 | CO78: 6370 | CP78: 6440 | CQ78: 6510 | CR78: 6580 | CS78: 6650 | CT78: 6720 | CU78: 6790 | CV78: 6860 | CW78: 6930 | CX78: 7000 | CY78: 70
B79: 71 | C79: 71 | D79: 142 | E79: 213 | F79: 284 | G79: 355 | H79: 426 | I79: 497 | J79: 568 | K79: 639 | L79: 710 | M79: 781 | N79: 852 | O79: 923 | P79: 994 | Q79: 1065 | R79: 1136 | S79: 1207 | T79: 1278 | U79: 1349 | V79: 1420 | W79: 1491 | X79: 1562 | Y79: 1633 | Z79: 1704 | AA79: 1775 | AB79: 1846 | AC79: 1917 | AD79: 1988 | AE79: 2059 | AF79: 2130 | AG79: 2201 | AH79: 2272 | AI79: 2343 | AJ79: 2414 | AK79: 2485 | AL79: 2556 | AM79: 2627 | AN79: 2698 | AO79: 2769 | AP79: 2840 | AQ79: 2911 | AR79: 2982 | AS79: 3053 | AT79: 3124 | AU79: 3195 | AV79: 3266 | AW79: 3337 | AX79: 3408 | AY79: 3479 | AZ79: 3550 | BA79: 3621 | BB79: 3692 | BC79: 3763 | BD79: 3834 | BE79: 3905 | BF79: 3976 | BG79: 4047 | BH79: 4118 | BI79: 4189 | BJ79: 4260 | BK79: 4331 | BL79: 4402 | BM79: 4473 | BN79: 4544 | BO79: 4615 | BP79: 4686 | BQ79: 4757 | BR79: 4828 | BS79: 4899 | BT79: 4970 | BU79: 5041 | BV79: 5112 | BW79: 5183 | BX79: 5254 | BY79: 5325 | BZ79: 5396 | CA79: 5467 | CB79: 5538 | CC79: 5609 | CD79: 5680 | CE79: 5751 | CF79: 5822 | CG79: 5893 | CH79: 5964 | CI79: 6035 | CJ79: 6106 | CK79: 6177 | CL79: 6248 | CM79: 6319 | CN79: 6390 | CO79: 6461 | CP79: 6532 | CQ79: 6603 | CR79: 6674 | CS79: 6745 | CT79: 6816 | CU79: 6887 | CV79: 6958 | CW79: 7029 | CX79: 7100 | CY79: 71
B80: 72 | C80: 72 | D80: 144 | E80: 216 | F80: 288 | G80: 360 | H80: 432 | I80: 504 | J80: 576 | K80: 648 | L80: 720 | M80: 792 | N80: 864 | O80: 936 | P80: 1008 | Q80: 1080 | R80: 1152 | S80: 1224 | T80: 1296 | U80: 1368 | V80: 1440 | W80: 1512 | X80: 1584 | Y80: 1656 | Z80: 1728 | AA80: 1800 | AB80: 1872 | AC80: 1944 | AD80: 2016 | AE80: 2088 | AF80: 2160 | AG80: 2232 | AH80: 2304 | AI80: 2376 | AJ80: 2448 | AK80: 2520 | AL80: 2592 | AM80: 2664 | AN80: 2736 | AO80: 2808 | AP80: 2880 | AQ80: 2952 | AR80: 3024 | AS80: 3096 | AT80: 3168 | AU80: 3240 | AV80: 3312 | AW80: 3384 | AX80: 3456 | AY80: 3528 | AZ80: 3600 | BA80: 3672 | BB80: 3744 | BC80: 3816 | BD80: 3888 | BE80: 3960 | BF80: 4032 | BG80: 4104 | BH80: 4176 | BI80: 4248 | BJ80: 4320 | BK80: 4392 | BL80: 4464 | BM80: 4536 | BN80: 4608 | BO80: 4680 | BP80: 4752 | BQ80: 4824 | BR80: 4896 | BS80: 4968 | BT80: 5040 | BU80: 5112 | BV80: 5184 | BW80: 5256 | BX80: 5328 | BY80: 5400 | BZ80: 5472 | CA80: 5544 | CB80: 5616 | CC80: 5688 | CD80: 5760 | CE80: 5832 | CF80: 5904 | CG80: 5976 | CH80: 6048 | CI80: 6120 | CJ80: 6192 | CK80: 6264 | CL80: 6336 | CM80: 6408 | CN80: 6480 | CO80: 6552 | CP80: 6624 | CQ80: 6696 | CR80: 6768 | CS80: 6840 | CT80: 6912 | CU80: 6984 | CV80: 7056 | CW80: 7128 | CX80: 7200 | CY80: 72
B81: 73 | C81: 73 | D81: 146 | E81: 219 | F81: 292 | G81: 365 | H81: 438 | I81: 511 | J81: 584 | K81: 657 | L81: 730 | M81: 803 | N81: 876 | O81: 949 | P81: 1022 | Q81: 1095 | R81: 1168 | S81: 1241 | T81: 1314 | U81: 1387 | V81: 1460 | W81: 1533 | X81: 1606 | Y81: 1679 | Z81: 1752 | AA81: 1825 | AB81: 1898 | AC81: 1971 | AD81: 2044 | AE81: 2117 | AF81: 2190 | AG81: 2263 | AH81: 2336 | AI81: 2409 | AJ81: 2482 | AK81: 2555 | AL81: 2628 | AM81: 2701 | AN81: 2774 | AO81: 2847 | AP81: 2920 | AQ81: 2993 | AR81: 3066 | AS81: 3139 | AT81: 3212 | AU81: 3285 | AV81: 3358 | AW81: 3431 | AX81: 3504 | AY81: 3577 | AZ81: 3650 | BA81: 3723 | BB81: 3796 | BC81: 3869 | BD81: 3942 | BE81: 4015 | BF81: 4088 | BG81: 4161 | BH81: 4234 | BI81: 4307 | BJ81: 4380 | BK81: 4453 | BL81: 4526 | BM81: 4599 | BN81: 4672 | BO81: 4745 | BP81: 4818 | BQ81: 4891 | BR81: 4964 | BS81: 5037 | BT81: 5110 | BU81: 5183 | BV81: 5256 | BW81: 5329 | BX81: 5402 | BY81: 5475 | BZ81: 5548 | CA81: 5621 | CB81: 5694 | CC81: 5767 | CD81: 5840 | CE81: 5913 | CF81: 5986 | CG81: 6059 | CH81: 6132 | CI81: 6205 | CJ81: 6278 | CK81: 6351 | CL81: 6424 | CM81: 6497 | CN81: 6570 | CO81: 6643 | CP81: 6716 | CQ81: 6789 | CR81: 6862 | CS81: 6935 | CT81: 7008 | CU81: 7081 | CV81: 7154 | CW81: 7227 | CX81: 7300 | CY81: 73
B82: 74 | C82: 74 | D82: 148 | E82: 222 | F82: 296 | G82: 370 | H82: 444 | I82: 518 | J82: 592 | K82: 666 | L82: 740 | M82: 814 | N82: 888 | O82: 962 | P82: 1036 | Q82: 1110 | R82: 1184 | S82: 1258 | T82: 1332 | U82: 1406 | V82: 1480 | W82: 1554 | X82: 1628 | Y82: 1702 | Z82: 1776 | AA82: 1850 | AB82: 1924 | AC82: 1998 | AD82: 2072 | AE82: 2146 | AF82: 2220 | AG82: 2294 | AH82: 2368 | AI82: 2442 | AJ82: 2516 | AK82: 2590 | AL82: 2664 | AM82: 2738 | AN82: 2812 | AO82: 2886 | AP82: 2960 | AQ82: 3034 | AR82: 3108 | AS82: 3182 | AT82: 3256 | AU82: 3330 | AV82: 3404 | AW82: 3478 | AX82: 3552 | AY82: 3626 | AZ82: 3700 | BA82: 3774 | BB82: 3848 | BC82: 3922 | BD82: 3996 | BE82: 4070 | BF82: 4144 | BG82: 4218 | BH82: 4292 | BI82: 4366 | BJ82: 4440 | BK82: 4514 | BL82: 4588 | BM82: 4662 | BN82: 4736 | BO82: 4810 | BP82: 4884 | BQ82: 4958 | BR82: 5032 | BS82: 5106 | BT82: 5180 | BU82: 5254 | BV82: 5328 | BW82: 5402 | BX82: 5476 | BY82: 5550 | BZ82: 5624 | CA82: 5698 | CB82: 5772 | CC82: 5846 | CD82: 5920 | CE82: 5994 | CF82: 6068 | CG82: 6142 | CH82: 6216 | CI82: 6290 | CJ82: 6364 | CK82: 6438 | CL82: 6512 | CM82: 6586 | CN82: 6660 | CO82: 6734 | CP82: 6808 | CQ82: 6882 | CR82: 6956 | CS82: 7030 | CT82: 7104 | CU82: 7178 | CV82: 7252 | CW82: 7326 | CX82: 7400 | CY82: 74
B83: 75 | C83: 75 | D83: 150 | E83: 225 | F83: 300 | G83: 375 | H83: 450 | I83: 525 | J83: 600 | K83: 675 | L83: 750 | M83: 825 | N83: 900 | O83: 975 | P83: 1050 | Q83: 1125 | R83: 1200 | S83: 1275 | T83: 1350 | U83: 1425 | V83: 1500 | W83: 1575 | X83: 1650 | Y83: 1725 | Z83: 1800 | AA83: 1875 | AB83: 1950 | AC83: 2025 | AD83: 2100 | AE83: 2175 | AF83: 2250 | AG83: 2325 | AH83: 2400 | AI83: 2475 | AJ83: 2550 | AK83: 2625 | AL83: 2700 | AM83: 2775 | AN83: 2850 | AO83: 2925 | AP83: 3000 | AQ83: 3075 | AR83: 3150 | AS83: 3225 | AT83: 3300 | AU83: 3375 | AV83: 3450 | AW83: 3525 | AX83: 3600 | AY83: 3675 | AZ83: 3750 | BA83: 3825 | BB83: 3900 | BC83: 3975 | BD83: 4050 | BE83: 4125 | BF83: 4200 | BG83: 4275 | BH83: 4350 | BI83: 4425 | BJ83: 4500 | BK83: 4575 | BL83: 4650 | BM83: 4725 | BN83: 4800 | BO83: 4875 | BP83: 4950 | BQ83: 5025 | BR83: 5100 | BS83: 5175 | BT83: 5250 | BU83: 5325 | BV83: 5400 | BW83: 5475 | BX83: 5550 | BY83: 5625 | BZ83: 5700 | CA83: 5775 | CB83: 5850 | CC83: 5925 | CD83: 6000 | CE83: 6075 | CF83: 6150 | CG83: 6225 | CH83: 6300 | CI83: 6375 | CJ83: 6450 | CK83: 6525 | CL83: 6600 | CM83: 6675 | CN83: 6750 | CO83: 6825 | CP83: 6900 | CQ83: 6975 | CR83: 7050 | CS83: 7125 | CT83: 7200 | CU83: 7275 | CV83: 7350 | CW83: 7425 | CX83: 7500 | CY83: 75
B84: 76 | C84: 76 | D84: 152 | E84: 228 | F84: 304 | G84: 380 | H84: 456 | I84: 532 | J84: 608 | K84: 684 | L84: 760 | M84: 836 | N84: 912 | O84: 988 | P84: 1064 | Q84: 1140 | R84: 1216 | S84: 1292 | T84: 1368 | U84: 1444 | V84: 1520 | W84: 1596 | X84: 1672 | Y84: 1748 | Z84: 1824 | AA84: 1900 | AB84: 1976 | AC84: 2052 | AD84: 2128 | AE84: 2204 | AF84: 2280 | AG84: 2356 | AH84: 2432 | AI84: 2508 | AJ84: 2584 | AK84: 2660 | AL84: 2736 | AM84: 2812 | AN84: 2888 | AO84: 2964 | AP84: 3040 | AQ84: 3116 | AR84: 3192 | AS84: 3268 | AT84: 3344 | AU84: 3420 | AV84: 3496 | AW84: 3572 | AX84: 3648 | AY84: 3724 | AZ84: 3800 | BA84: 3876 | BB84: 3952 | BC84: 4028 | BD84: 4104 | BE84: 4180 | BF84: 4256 | BG84: 4332 | BH84: 4408 | BI84: 4484 | BJ84: 4560 | BK84: 4636 | BL84: 4712 | BM84: 4788 | BN84: 4864 | BO84: 4940 | BP84: 5016 | BQ84: 5092 | BR84: 5168 | BS84: 5244 | BT84: 5320 | BU84: 5396 | BV84: 5472 | BW84: 5548 | BX84: 5624 | BY84: 5700 | BZ84: 5776 | CA84: 5852 | CB84: 5928 | CC84: 6004 | CD84: 6080 | CE84: 6156 | CF84: 6232 | CG84: 6308 | CH84: 6384 | CI84: 6460 | CJ84: 6536 | CK84: 6612 | CL84: 6688 | CM84: 6764 | CN84: 6840 | CO84: 6916 | CP84: 6992 | CQ84: 7068 | CR84: 7144 | CS84: 7220 | CT84: 7296 | CU84: 7372 | CV84: 7448 | CW84: 7524 | CX84: 7600 | CY84: 76
B85: 77 | C85: 77 | D85: 154 | E85: 231 | F85: 308 | G85: 385 | H85: 462 | I85: 539 | J85: 616 | K85: 693 | L85: 770 | M85: 847 | N85: 924 | O85: 1001 | P85: 1078 | Q85: 1155 | R85: 1232 | S85: 1309 | T85: 1386 | U85: 1463 | V85: 1540 | W85: 1617 | X85: 1694 | Y85: 1771 | Z85: 1848 | AA85: 1925 | AB85: 2002 | AC85: 2079 | AD85: 2156 | AE85: 2233 | AF85: 2310 | AG85: 2387 | AH85: 2464 | AI85: 2541 | AJ85: 2618 | AK85: 2695 | AL85: 2772 | AM85: 2849 | AN85: 2926 | AO85: 3003 | AP85: 3080 | AQ85: 3157 | AR85: 3234 | AS85: 3311 | AT85: 3388 | AU85: 3465 | AV85: 3542 | AW85: 3619 | AX85: 3696 | AY85: 3773 | AZ85: 3850 | BA85: 3927 | BB85: 4004 | BC85: 4081 | BD85: 4158 | BE85: 4235 | BF85: 4312 | BG85: 4389 | BH85: 4466 | BI85: 4543 | BJ85: 4620 | BK85: 4697 | BL85: 4774 | BM85: 4851 | BN85: 4928 | BO85: 5005 | BP85: 5082 | BQ85: 5159 | BR85: 5236 | BS85: 5313 | BT85: 5390 | BU85: 5467 | BV85: 5544 | BW85: 5621 | BX85: 5698 | BY85: 5775 | BZ85: 5852 | CA85: 5929 | CB85: 6006 | CC85: 6083 | CD85: 6160 | CE85: 6237 | CF85: 6314 | CG85: 6391 | CH85: 6468 | CI85: 6545 | CJ85: 6622 | CK85: 6699 | CL85: 6776 | CM85: 6853 | CN85: 6930 | CO85: 7007 | CP85: 7084 | CQ85: 7161 | CR85: 7238 | CS85: 7315 | CT85: 7392 | CU85: 7469 | CV85: 7546 | CW85: 7623 | CX85: 7700 | CY85: 77
B86: 78 | C86: 78 | D86: 156 | E86: 234 | F86: 312 | G86: 390 | H86: 468 | I86: 546 | J86: 624 | K86: 702 | L86: 780 | M86: 858 | N86: 936 | O86: 1014 | P86: 1092 | Q86: 1170 | R86: 1248 | S86: 1326 | T86: 1404 | U86: 1482 | V86: 1560 | W86: 1638 | X86: 1716 | Y86: 1794 | Z86: 1872 | AA86: 1950 | AB86: 2028 | AC86: 2106 | AD86: 2184 | AE86: 2262 | AF86: 2340 | AG86: 2418 | AH86: 2496 | AI86: 2574 | AJ86: 2652 | AK86: 2730 | AL86: 2808 | AM86: 2886 | AN86: 2964 | AO86: 3042 | AP86: 3120 | AQ86: 3198 | AR86: 3276 | AS86: 3354 | AT86: 3432 | AU86: 3510 | AV86: 3588 | AW86: 3666 | AX86: 3744 | AY86: 3822 | AZ86: 3900 | BA86: 3978 | BB86: 4056 | BC86: 4134 | BD86: 4212 | BE86: 4290 | BF86: 4368 | BG86: 4446 | BH86: 4524 | BI86: 4602 | BJ86: 4680 | BK86: 4758 | BL86: 4836 | BM86: 4914 | BN86: 4992 | BO86: 5070 | BP86: 5148 | BQ86: 5226 | BR86: 5304 | BS86: 5382 | BT86: 5460 | BU86: 5538 | BV86: 5616 | BW86: 5694 | BX86: 5772 | BY86: 5850 | BZ86: 5928 | CA86: 6006 | CB86: 6084 | CC86: 6162 | CD86: 6240 | CE86: 6318 | CF86: 6396 | CG86: 6474 | CH86: 6552 | CI86: 6630 | CJ86: 6708 | CK86: 6786 | CL86: 6864 | CM86: 6942 | CN86: 7020 | CO86: 7098 | CP86: 7176 | CQ86: 7254 | CR86: 7332 | CS86: 7410 | CT86: 7488 | CU86: 7566 | CV86: 7644 | CW86: 7722 | CX86: 7800 | CY86: 78
B87: 79 | C87: 79 | D87: 158 | E87: 237 | F87: 316 | G87: 395 | H87: 474 | I87: 553 | J87: 632 | K87: 711 | L87: 790 | M87: 869 | N87: 948 | O87: 1027 | P87: 1106 | Q87: 1185 | R87: 1264 | S87: 1343 | T87: 1422 | U87: 1501 | V87: 1580 | W87: 1659 | X87: 1738 | Y87: 1817 | Z87: 1896 | AA87: 1975 | AB87: 2054 | AC87: 2133 | AD87: 2212 | AE87: 2291 | AF87: 2370 | AG87: 2449 | AH87: 2528 | AI87: 2607 | AJ87: 2686 | AK87: 2765 | AL87: 2844 | AM87: 2923 | AN87: 3002 | AO87: 3081 | AP87: 3160 | AQ87: 3239 | AR87: 3318 | AS87: 3397 | AT87: 3476 | AU87: 3555 | AV87: 3634 | AW87: 3713 | AX87: 3792 | AY87: 3871 | AZ87: 3950 | BA87: 4029 | BB87: 4108 | BC87: 4187 | BD87: 4266 | BE87: 4345 | BF87: 4424 | BG87: 4503 | BH87: 4582 | BI87: 4661 | BJ87: 4740 | BK87: 4819 | BL87: 4898 | BM87: 4977 | BN87: 5056 | BO87: 5135 | BP87: 5214 | BQ87: 5293 | BR87: 5372 | BS87: 5451 | BT87: 5530 | BU87: 5609 | BV87: 5688 | BW87: 5767 | BX87: 5846 | BY87: 5925 | BZ87: 6004 | CA87: 6083 | CB87: 6162 | CC87: 6241 | CD87: 6320 | CE87: 6399 | CF87: 6478 | CG87: 6557 | CH87: 6636 | CI87: 6715 | CJ87: 6794 | CK87: 6873 | CL87: 6952 | CM87: 7031 | CN87: 7110 | CO87: 7189 | CP87: 7268 | CQ87: 7347 | CR87: 7426 | CS87: 7505 | CT87: 7584 | CU87: 7663 | CV87: 7742 | CW87: 7821 | CX87: 7900 | CY87: 79
B88: 80 | C88: 80 | D88: 160 | E88: 240 | F88: 320 | G88: 400 | H88: 480 | I88: 560 | J88: 640 | K88: 720 | L88: 800 | M88: 880 | N88: 960 | O88: 1040 | P88: 1120 | Q88: 1200 | R88: 1280 | S88: 1360 | T88: 1440 | U88: 1520 | V88: 1600 | W88: 1680 | X88: 1760 | Y88: 1840 | Z88: 1920 | AA88: 2000 | AB88: 2080 | AC88: 2160 | AD88: 2240 | AE88: 2320 | AF88: 2400 | AG88: 2480 | AH88: 2560 | AI88: 2640 | AJ88: 2720 | AK88: 2800 | AL88: 2880 | AM88: 2960 | AN88: 3040 | AO88: 3120 | AP88: 3200 | AQ88: 3280 | AR88: 3360 | AS88: 3440 | AT88: 3520 | AU88: 3600 | AV88: 3680 | AW88: 3760 | AX88: 3840 | AY88: 3920 | AZ88: 4000 | BA88: 4080 | BB88: 4160 | BC88: 4240 | BD88: 4320 | BE88: 4400 | BF88: 4480 | BG88: 4560 | BH88: 4640 | BI88: 4720 | BJ88: 4800 | BK88: 4880 | BL88: 4960 | BM88: 5040 | BN88: 5120 | BO88: 5200 | BP88: 5280 | BQ88: 5360 | BR88: 5440 | BS88: 5520 | BT88: 5600 | BU88: 5680 | BV88: 5760 | BW88: 5840 | BX88: 5920 | BY88: 6000 | BZ88: 6080 | CA88: 6160 | CB88: 6240 | CC88: 6320 | CD88: 6400 | CE88: 6480 | CF88: 6560 | CG88: 6640 | CH88: 6720 | CI88: 6800 | CJ88: 6880 | CK88: 6960 | CL88: 7040 | CM88: 7120 | CN88: 7200 | CO88: 7280 | CP88: 7360 | CQ88: 7440 | CR88: 7520 | CS88: 7600 | CT88: 7680 | CU88: 7760 | CV88: 7840 | CW88: 7920 | CX88: 8000 | CY88: 80
B89: 81 | C89: 81 | D89: 162 | E89: 243 | F89: 324 | G89: 405 | H89: 486 | I89: 567 | J89: 648 | K89: 729 | L89: 810 | M89: 891 | N89: 972 | O89: 1053 | P89: 1134 | Q89: 1215 | R89: 1296 | S89: 1377 | T89: 1458 | U89: 1539 | V89: 1620 | W89: 1701 | X89: 1782 | Y89: 1863 | Z89: 1944 | AA89: 2025 | AB89: 2106 | AC89: 2187 | AD89: 2268 | AE89: 2349 | AF89: 2430 | AG89: 2511 | AH89: 2592 | AI89: 2673 | AJ89: 2754 | AK89: 2835 | AL89: 2916 | AM89: 2997 | AN89: 3078 | AO89: 3159 | AP89: 3240 | AQ89: 3321 | AR89: 3402 | AS89: 3483 | AT89: 3564 | AU89: 3645 | AV89: 3726 | AW89: 3807 | AX89: 3888 | AY89: 3969 | AZ89: 4050 | BA89: 4131 | BB89: 4212 | BC89: 4293 | BD89: 4374 | BE89: 4455 | BF89: 4536 | BG89: 4617 | BH89: 4698 | BI89: 4779 | BJ89: 4860 | BK89: 4941 | BL89: 5022 | BM89: 5103 | BN89: 5184 | BO89: 5265 | BP89: 5346 | BQ89: 5427 | BR89: 5508 | BS89: 5589 | BT89: 5670 | BU89: 5751 | BV89: 5832 | BW89: 5913 | BX89: 5994 | BY89: 6075 | BZ89: 6156 | CA89: 6237 | CB89: 6318 | CC89: 6399 | CD89: 6480 | CE89: 6561 | CF89: 6642 | CG89: 6723 | CH89: 6804 | CI89: 6885 | CJ89: 6966 | CK89: 7047 | CL89: 7128 | CM89: 7209 | CN89: 7290 | CO89: 7371 | CP89: 7452 | CQ89: 7533 | CR89: 7614 | CS89: 7695 | CT89: 7776 | CU89: 7857 | CV89: 7938 | CW89: 8019 | CX89: 8100 | CY89: 81
B90: 82 | C90: 82 | D90: 164 | E90: 246 | F90: 328 | G90: 410 | H90: 492 | I90: 574 | J90: 656 | K90: 738 | L90: 820 | M90: 902 | N90: 984 | O90: 1066 | P90: 1148 | Q90: 1230 | R90: 1312 | S90: 1394 | T90: 1476 | U90: 1558 | V90: 1640 | W90: 1722 | X90: 1804 | Y90: 1886 | Z90: 1968 | AA90: 2050 | AB90: 2132 | AC90: 2214 | AD90: 2296 | AE90: 2378 | AF90: 2460 | AG90: 2542 | AH90: 2624 | AI90: 2706 | AJ90: 2788 | AK90: 2870 | AL90: 2952 | AM90: 3034 | AN90: 3116 | AO90: 3198 | AP90: 3280 | AQ90: 3362 | AR90: 3444 | AS90: 3526 | AT90: 3608 | AU90: 3690 | AV90: 3772 | AW90: 3854 | AX90: 3936 | AY90: 4018 | AZ90: 4100 | BA90: 4182 | BB90: 4264 | BC90: 4346 | BD90: 4428 | BE90: 4510 | BF90: 4592 | BG90: 4674 | BH90: 4756 | BI90: 4838 | BJ90: 4920 | BK90: 5002 | BL90: 5084 | BM90: 5166 | BN90: 5248 | BO90: 5330 | BP90: 5412 | BQ90: 5494 | BR90: 5576 | BS90: 5658 | BT90: 5740 | BU90: 5822 | BV90: 5904 | BW90: 5986 | BX90: 6068 | BY90: 6150 | BZ90: 6232 | CA90: 6314 | CB90: 6396 | CC90: 6478 | CD90: 6560 | CE90: 6642 | CF90: 6724 | CG90: 6806 | CH90: 6888 | CI90: 6970 | CJ90: 7052 | CK90: 7134 | CL90: 7216 | CM90: 7298 | CN90: 7380 | CO90: 7462 | CP90: 7544 | CQ90: 7626 | CR90: 7708 | CS90: 7790 | CT90: 7872 | CU90: 7954 | CV90: 8036 | CW90: 8118 | CX90: 8200 | CY90: 82
B91: 83 | C91: 83 | D91: 166 | E91: 249 | F91: 332 | G91: 415 | H91: 498 | I91: 581 | J91: 664 | K91: 747 | L91: 830 | M91: 913 | N91: 996 | O91: 1079 | P91: 1162 | Q91: 1245 | R91: 1328 | S91: 1411 | T91: 1494 | U91: 1577 | V91: 1660 | W91: 1743 | X91: 1826 | Y91: 1909 | Z91: 1992 | AA91: 2075 | AB91: 2158 | AC91: 2241 | AD91: 2324 | AE91: 2407 | AF91: 2490 | AG91: 2573 | AH91: 2656 | AI91: 2739 | AJ91: 2822 | AK91: 2905 | AL91: 2988 | AM91: 3071 | AN91: 3154 | AO91: 3237 | AP91: 3320 | AQ91: 3403 | AR91: 3486 | AS91: 3569 | AT91: 3652 | AU91: 3735 | AV91: 3818 | AW91: 3901 | AX91: 3984 | AY91: 4067 | AZ91: 4150 | BA91: 4233 | BB91: 4316 | BC91: 4399 | BD91: 4482 | BE91: 4565 | BF91: 4648 | BG91: 4731 | BH91: 4814 | BI91: 4897 | BJ91: 4980 | BK91: 5063 | BL91: 5146 | BM91: 5229 | BN91: 5312 | BO91: 5395 | BP91: 5478 | BQ91: 5561 | BR91: 5644 | BS91: 5727 | BT91: 5810 | BU91: 5893 | BV91: 5976 | BW91: 6059 | BX91: 6142 | BY91: 6225 | BZ91: 6308 | CA91: 6391 | CB91: 6474 | CC91: 6557 | CD91: 6640 | CE91: 6723 | CF91: 6806 | CG91: 6889 | CH91: 6972 | CI91: 7055 | CJ91: 7138 | CK91: 7221 | CL91: 7304 | CM91: 7387 | CN91: 7470 | CO91: 7553 | CP91: 7636 | CQ91: 7719 | CR91: 7802 | CS91: 7885 | CT91: 7968 | CU91: 8051 | CV91: 8134 | CW91: 8217 | CX91: 8300 | CY91: 83
B92: 84 | C92: 84 | D92: 168 | E92: 252 | F92: 336 | G92: 420 | H92: 504 | I92: 588 | J92: 672 | K92: 756 | L92: 840 | M92: 924 | N92: 1008 | O92: 1092 | P92: 1176 | Q92: 1260 | R92: 1344 | S92: 1428 | T92: 1512 | U92: 1596 | V92: 1680 | W92: 1764 | X92: 1848 | Y92: 1932 | Z92: 2016 | AA92: 2100 | AB92: 2184 | AC92: 2268 | AD92: 2352 | AE92: 2436 | AF92: 2520 | AG92: 2604 | AH92: 2688 | AI92: 2772 | AJ92: 2856 | AK92: 2940 | AL92: 3024 | AM92: 3108 | AN92: 3192 | AO92: 3276 | AP92: 3360 | AQ92: 3444 | AR92: 3528 | AS92: 3612 | AT92: 3696 | AU92: 3780 | AV92: 3864 | AW92: 3948 | AX92: 4032 | AY92: 4116 | AZ92: 4200 | BA92: 4284 | BB92: 4368 | BC92: 4452 | BD92: 4536 | BE92: 4620 | BF92: 4704 | BG92: 4788 | BH92: 4872 | BI92: 4956 | BJ92: 5040 | BK92: 5124 | BL92: 5208 | BM92: 5292 | BN92: 5376 | BO92: 5460 | BP92: 5544 | BQ92: 5628 | BR92: 5712 | BS92: 5796 | BT92: 5880 | BU92: 5964 | BV92: 6048 | BW92: 6132 | BX92: 6216 | BY92: 6300 | BZ92: 6384 | CA92: 6468 | CB92: 6552 | CC92: 6636 | CD92: 6720 | CE92: 6804 | CF92: 6888 | CG92: 6972 | CH92: 7056 | CI92: 7140 | CJ92: 7224 | CK92: 7308 | CL92: 7392 | CM92: 7476 | CN92: 7560 | CO92: 7644 | CP92: 7728 | CQ92: 7812 | CR92: 7896 | CS92: 7980 | CT92: 8064 | CU92: 8148 | CV92: 8232 | CW92: 8316 | CX92: 8400 | CY92: 84
B93: 85 | C93: 85 | D93: 170 | E93: 255 | F93: 340 | G93: 425 | H93: 510 | I93: 595 | J93: 680 | K93: 765 | L93: 850 | M93: 935 | N93: 1020 | O93: 1105 | P93: 1190 | Q93: 1275 | R93: 1360 | S93: 1445 | T93: 1530 | U93: 1615 | V93: 1700 | W93: 1785 | X93: 1870 | Y93: 1955 | Z93: 2040 | AA93: 2125 | AB93: 2210 | AC93: 2295 | AD93: 2380 | AE93: 2465 | AF93: 2550 | AG93: 2635 | AH93: 2720 | AI93: 2805 | AJ93: 2890 | AK93: 2975 | AL93: 3060 | AM93: 3145 | AN93: 3230 | AO93: 3315 | AP93: 3400 | AQ93: 3485 | AR93: 3570 | AS93: 3655 | AT93: 3740 | AU93: 3825 | AV93: 3910 | AW93: 3995 | AX93: 4080 | AY93: 4165 | AZ93: 4250 | BA93: 4335 | BB93: 4420 | BC93: 4505 | BD93: 4590 | BE93: 4675 | BF93: 4760 | BG93: 4845 | BH93: 4930 | BI93: 5015 | BJ93: 5100 | BK93: 5185 | BL93: 5270 | BM93: 5355 | BN93: 5440 | BO93: 5525 | BP93: 5610 | BQ93: 5695 | BR93: 5780 | BS93: 5865 | BT93: 5950 | BU93: 6035 | BV93: 6120 | BW93: 6205 | BX93: 6290 | BY93: 6375 | BZ93: 6460 | CA93: 6545 | CB93: 6630 | CC93: 6715 | CD93: 6800 | CE93: 6885 | CF93: 6970 | CG93: 7055 | CH93: 7140 | CI93: 7225 | CJ93: 7310 | CK93: 7395 | CL93: 7480 | CM93: 7565 | CN93: 7650 | CO93: 7735 | CP93: 7820 | CQ93: 7905 | CR93: 7990 | CS93: 8075 | CT93: 8160 | CU93: 8245 | CV93: 8330 | CW93: 8415 | CX93: 8500 | CY93: 85
B94: 86 | C94: 86 | D94: 172 | E94: 258 | F94: 344 | G94: 430 | H94: 516 | I94: 602 | J94: 688 | K94: 774 | L94: 860 | M94: 946 | N94: 1032 | O94: 1118 | P94: 1204 | Q94: 1290 | R94: 1376 | S94: 1462 | T94: 1548 | U94: 1634 | V94: 1720 | W94: 1806 | X94: 1892 | Y94: 1978 | Z94: 2064 | AA94: 2150 | AB94: 2236 | AC94: 2322 | AD94: 2408 | AE94: 2494 | AF94: 2580 | AG94: 2666 | AH94: 2752 | AI94: 2838 | AJ94: 2924 | AK94: 3010 | AL94: 3096 | AM94: 3182 | AN94: 3268 | AO94: 3354 | AP94: 3440 | AQ94: 3526 | AR94: 3612 | AS94: 3698 | AT94: 3784 | AU94: 3870 | AV94: 3956 | AW94: 4042 | AX94: 4128 | AY94: 4214 | AZ94: 4300 | BA94: 4386 | BB94: 4472 | BC94: 4558 | BD94: 4644 | BE94: 4730 | BF94: 4816 | BG94: 4902 | BH94: 4988 | BI94: 5074 | BJ94: 5160 | BK94: 5246 | BL94: 5332 | BM94: 5418 | BN94: 5504 | BO94: 5590 | BP94: 5676 | BQ94: 5762 | BR94: 5848 | BS94: 5934 | BT94: 6020 | BU94: 6106 | BV94: 6192 | BW94: 6278 | BX94: 6364 | BY94: 6450 | BZ94: 6536 | CA94: 6622 | CB94: 6708 | CC94: 6794 | CD94: 6880 | CE94: 6966 | CF94: 7052 | CG94: 7138 | CH94: 7224 | CI94: 7310 | CJ94: 7396 | CK94: 7482 | CL94: 7568 | CM94: 7654 | CN94: 7740 | CO94: 7826 | CP94: 7912 | CQ94: 7998 | CR94: 8084 | CS94: 8170 | CT94: 8256 | CU94: 8342 | CV94: 8428 | CW94: 8514 | CX94: 8600 | CY94: 86
B95: 87 | C95: 87 | D95: 174 | E95: 261 | F95: 348 | G95: 435 | H95: 522 | I95: 609 | J95: 696 | K95: 783 | L95: 870 | M95: 957 | N95: 1044 | O95: 1131 | P95: 1218 | Q95: 1305 | R95: 1392 | S95: 1479 | T95: 1566 | U95: 1653 | V95: 1740 | W95: 1827 | X95: 1914 | Y95: 2001 | Z95: 2088 | AA95: 2175 | AB95: 2262 | AC95: 2349 | AD95: 2436 | AE95: 2523 | AF95: 2610 | AG95: 2697 | AH95: 2784 | AI95: 2871 | AJ95: 2958 | AK95: 3045 | AL95: 3132 | AM95: 3219 | AN95: 3306 | AO95: 3393 | AP95: 3480 | AQ95: 3567 | AR95: 3654 | AS95: 3741 | AT95: 3828 | AU95: 3915 | AV95: 4002 | AW95: 4089 | AX95: 4176 | AY95: 4263 | AZ95: 4350 | BA95: 4437 | BB95: 4524 | BC95: 4611 | BD95: 4698 | BE95: 4785 | BF95: 4872 | BG95: 4959 | BH95: 5046 | BI95: 5133 | BJ95: 5220 | BK95: 5307 | BL95: 5394 | BM95: 5481 | BN95: 5568 | BO95: 5655 | BP95: 5742 | BQ95: 5829 | BR95: 5916 | BS95: 6003 | BT95: 6090 | BU95: 6177 | BV95: 6264 | BW95: 6351 | BX95: 6438 | BY95: 6525 | BZ95: 6612 | CA95: 6699 | CB95: 6786 | CC95: 6873 | CD95: 6960 | CE95: 7047 | CF95: 7134 | CG95: 7221 | CH95: 7308 | CI95: 7395 | CJ95: 7482 | CK95: 7569 | CL95: 7656 | CM95: 7743 | CN95: 7830 | CO95: 7917 | CP95: 8004 | CQ95: 8091 | CR95: 8178 | CS95: 8265 | CT95: 8352 | CU95: 8439 | CV95: 8526 | CW95: 8613 | CX95: 8700 | CY95: 87
B96: 88 | C96: 88 | D96: 176 | E96: 264 | F96: 352 | G96: 440 | H96: 528 | I96: 616 | J96: 704 | K96: 792 | L96: 880 | M96: 968 | N96: 1056 | O96: 1144 | P96: 1232 | Q96: 1320 | R96: 1408 | S96: 1496 | T96: 1584 | U96: 1672 | V96: 1760 | W96: 1848 | X96: 1936 | Y96: 2024 | Z96: 2112 | AA96: 2200 | AB96: 2288 | AC96: 2376 | AD96: 2464 | AE96: 2552 | AF96: 2640 | AG96: 2728 | AH96: 2816 | AI96: 2904 | AJ96: 2992 | AK96: 3080 | AL96: 3168 | AM96: 3256 | AN96: 3344 | AO96: 3432 | AP96: 3520 | AQ96: 3608 | AR96: 3696 | AS96: 3784 | AT96: 3872 | AU96: 3960 | AV96: 4048 | AW96: 4136 | AX96: 4224 | AY96: 4312 | AZ96: 4400 | BA96: 4488 | BB96: 4576 | BC96: 4664 | BD96: 4752 | BE96: 4840 | BF96: 4928 | BG96: 5016 | BH96: 5104 | BI96: 5192 | BJ96: 5280 | BK96: 5368 | BL96: 5456 | BM96: 5544 | BN96: 5632 | BO96: 5720 | BP96: 5808 | BQ96: 5896 | BR96: 5984 | BS96: 6072 | BT96: 6160 | BU96: 6248 | BV96: 6336 | BW96: 6424 | BX96: 6512 | BY96: 6600 | BZ96: 6688 | CA96: 6776 | CB96: 6864 | CC96: 6952 | CD96: 7040 | CE96: 7128 | CF96: 7216 | CG96: 7304 | CH96: 7392 | CI96: 7480 | CJ96: 7568 | CK96: 7656 | CL96: 7744 | CM96: 7832 | CN96: 7920 | CO96: 8008 | CP96: 8096 | CQ96: 8184 | CR96: 8272 | CS96: 8360 | CT96: 8448 | CU96: 8536 | CV96: 8624 | CW96: 8712 | CX96: 8800 | CY96: 88
B97: 89 | C97: 89 | D97: 178 | E97: 267 | F97: 356 | G97: 445 | H97: 534 | I97: 623 | J97: 712 | K97: 801 | L97: 890 | M97: 979 | N97: 1068 | O97: 1157 | P97: 1246 | Q97: 1335 | R97: 1424 | S97: 1513 | T97: 1602 | U97: 1691 | V97: 1780 | W97: 1869 | X97: 1958 | Y97: 2047 | Z97: 2136 | AA97: 2225 | AB97: 2314 | AC97: 2403 | AD97: 2492 | AE97: 2581 | AF97: 2670 | AG97: 2759 | AH97: 2848 | AI97: 2937 | AJ97: 3026 | AK97: 3115 | AL97: 3204 | AM97: 3293 | AN97: 3382 | AO97: 3471 | AP97: 3560 | AQ97: 3649 | AR97: 3738 | AS97: 3827 | AT97: 3916 | AU97: 4005 | AV97: 4094 | AW97: 4183 | AX97: 4272 | AY97: 4361 | AZ97: 4450 | BA97: 4539 | BB97: 4628 | BC97: 4717 | BD97: 4806 | BE97: 4895 | BF97: 4984 | BG97: 5073 | BH97: 5162 | BI97: 5251 | BJ97: 5340 | BK97: 5429 | BL97: 5518 | BM97: 5607 | BN97: 5696 | BO97: 5785 | BP97: 5874 | BQ97: 5963 | BR97: 6052 | BS97: 6141 | BT97: 6230 | BU97: 6319 | BV97: 6408 | BW97: 6497 | BX97: 6586 | BY97: 6675 | BZ97: 6764 | CA97: 6853 | CB97: 6942 | CC97: 7031 | CD97: 7120 | CE97: 7209 | CF97: 7298 | CG97: 7387 | CH97: 7476 | CI97: 7565 | CJ97: 7654 | CK97: 7743 | CL97: 7832 | CM97: 7921 | CN97: 8010 | CO97: 8099 | CP97: 8188 | CQ97: 8277 | CR97: 8366 | CS97: 8455 | CT97: 8544 | CU97: 8633 | CV97: 8722 | CW97: 8811 | CX97: 8900 | CY97: 89
B98: 90 | C98: 90 | D98: 180 | E98: 270 | F98: 360 | G98: 450 | H98: 540 | I98: 630 | J98: 720 | K98: 810 | L98: 900 | M98: 990 | N98: 1080 | O98: 1170 | P98: 1260 | Q98: 1350 | R98: 1440 | S98: 1530 | T98: 1620 | U98: 1710 | V98: 1800 | W98: 1890 | X98: 1980 | Y98: 2070 | Z98: 2160 | AA98: 2250 | AB98: 2340 | AC98: 2430 | AD98: 2520 | AE98: 2610 | AF98: 2700 | AG98: 2790 | AH98: 2880 | AI98: 2970 | AJ98: 3060 | AK98: 3150 | AL98: 3240 | AM98: 3330 | AN98: 3420 | AO98: 3510 | AP98: 3600 | AQ98: 3690 | AR98: 3780 | AS98: 3870 | AT98: 3960 | AU98: 4050 | AV98: 4140 | AW98: 4230 | AX98: 4320 | AY98: 4410 | AZ98: 4500 | BA98: 4590 | BB98: 4680 | BC98: 4770 | BD98: 4860 | BE98: 4950 | BF98: 5040 | BG98: 5130 | BH98: 5220 | BI98: 5310 | BJ98: 5400 | BK98: 5490 | BL98: 5580 | BM98: 5670 | BN98: 5760 | BO98: 5850 | BP98: 5940 | BQ98: 6030 | BR98: 6120 | BS98: 6210 | BT98: 6300 | BU98: 6390 | BV98: 6480 | BW98: 6570 | BX98: 6660 | BY98: 6750 | BZ98: 6840 | CA98: 6930 | CB98: 7020 | CC98: 7110 | CD98: 7200 | CE98: 7290 | CF98: 7380 | CG98: 7470 | CH98: 7560 | CI98: 7650 | CJ98: 7740 | CK98: 7830 | CL98: 7920 | CM98: 8010 | CN98: 8100 | CO98: 8190 | CP98: 8280 | CQ98: 8370 | CR98: 8460 | CS98: 8550 | CT98: 8640 | CU98: 8730 | CV98: 8820 | CW98: 8910 | CX98: 9000 | CY98: 90
B99: 91 | C99: 91 | D99: 182 | E99: 273 | F99: 364 | G99: 455 | H99: 546 | I99: 637 | J99: 728 | K99: 819 | L99: 910 | M99: 1001 | N99: 1092 | O99: 1183 | P99: 1274 | Q99: 1365 | R99: 1456 | S99: 1547 | T99: 1638 | U99: 1729 | V99: 1820 | W99: 1911 | X99: 2002 | Y99: 2093 | Z99: 2184 | AA99: 2275 | AB99: 2366 | AC99: 2457 | AD99: 2548 | AE99: 2639 | AF99: 2730 | AG99: 2821 | AH99: 2912 | AI99: 3003 | AJ99: 3094 | AK99: 3185 | AL99: 3276 | AM99: 3367 | AN99: 3458 | AO99: 3549 | AP99: 3640 | AQ99: 3731 | AR99: 3822 | AS99: 3913 | AT99: 4004 | AU99: 4095 | AV99: 4186 | AW99: 4277 | AX99: 4368 | AY99: 4459 | AZ99: 4550 | BA99: 4641 | BB99: 4732 | BC99: 4823 | BD99: 4914 | BE99: 5005 | BF99: 5096 | BG99: 5187 | BH99: 5278 | BI99: 5369 | BJ99: 5460 | BK99: 5551 | BL99: 5642 | BM99: 5733 | BN99: 5824 | BO99: 5915 | BP99: 6006 | BQ99: 6097 | BR99: 6188 | BS99: 6279 | BT99: 6370 | BU99: 6461 | BV99: 6552 | BW99: 6643 | BX99: 6734 | BY99: 6825 | BZ99: 6916 | CA99: 7007 | CB99: 7098 | CC99: 7189 | CD99: 7280 | CE99: 7371 | CF99: 7462 | CG99: 7553 | CH99: 7644 | CI99: 7735 | CJ99: 7826 | CK99: 7917 | CL99: 8008 | CM99: 8099 | CN99: 8190 | CO99: 8281 | CP99: 8372 | CQ99: 8463 | CR99: 8554 | CS99: 8645 | CT99: 8736 | CU99: 8827 | CV99: 8918 | CW99: 9009 | CX99: 9100 | CY99: 91
B100: 92 | C100: 92 | D100: 184 | E100: 276 | F100: 368 | G100: 460 | H100: 552 | I100: 644 | J100: 736 | K100: 828 | L100: 920 | M100: 1012 | N100: 1104 | O100: 1196 | P100: 1288 | Q100: 1380 | R100: 1472 | S100: 1564 | T100: 1656 | U100: 1748 | V100: 1840 | W100: 1932 | X100: 2024 | Y100: 2116 | Z100: 2208 | AA100: 2300 | AB100: 2392 | AC100: 2484 | AD100: 2576 | AE100: 2668 | AF100: 2760 | AG100: 2852 | AH100: 2944 | AI100: 3036 | AJ100: 3128 | AK100: 3220 | AL100: 3312 | AM100: 3404 | AN100: 3496 | AO100: 3588 | AP100: 3680 | AQ100: 3772 | AR100: 3864 | AS100: 3956 | AT100: 4048 | AU100: 4140 | AV100: 4232 | AW100: 4324 | AX100: 4416 | AY100: 4508 | AZ100: 4600 | BA100: 4692 | BB100: 4784 | BC100: 4876 | BD100: 4968 | BE100: 5060 | BF100: 5152 | BG100: 5244 | BH100: 5336 | BI100: 5428 | BJ100: 5520 | BK100: 5612 | BL100: 5704 | BM100: 5796 | BN100: 5888 | BO100: 5980 | BP100: 6072 | BQ100: 6164 | BR100: 6256 | BS100: 6348 | BT100: 6440 | BU100: 6532 | BV100: 6624 | BW100: 6716 | BX100: 6808 | BY100: 6900 | BZ100: 6992 | CA100: 7084 | CB100: 7176 | CC100: 7268 | CD100: 7360 | CE100: 7452 | CF100: 7544 | CG100: 7636 | CH100: 7728 | CI100: 7820 | CJ100: 7912 | CK100: 8004 | CL100: 8096 | CM100: 8188 | CN100: 8280 | CO100: 8372 | CP100: 8464 | CQ100: 8556 | CR100: 8648 | CS100: 8740 | CT100: 8832 | CU100: 8924 | CV100: 9016 | CW100: 9108 | CX100: 9200 | CY100: 92
B101: 93 | C101: 93 | D101: 186 | E101: 279 | F101: 372 | G101: 465 | H101: 558 | I101: 651 | J101: 744 | K101: 837 | L101: 930 | M101: 1023 | N101: 1116 | O101: 1209 | P101: 1302 | Q101: 1395 | R101: 1488 | S101: 1581 | T101: 1674 | U101: 1767 | V101: 1860 | W101: 1953 | X101: 2046 | Y101: 2139 | Z101: 2232 | AA101: 2325 | AB101: 2418 | AC101: 2511 | AD101: 2604 | AE101: 2697 | AF101: 2790 | AG101: 2883 | AH101: 2976 | AI101: 3069 | AJ101: 3162 | AK101: 3255 | AL101: 3348 | AM101: 3441 | AN101: 3534 | AO101: 3627 | AP101: 3720 | AQ101: 3813 | AR101: 3906 | AS101: 3999 | AT101: 4092 | AU101: 4185 | AV101: 4278 | AW101: 4371 | AX101: 4464 | AY101: 4557 | AZ101: 4650 | BA101: 4743 | BB101: 4836 | BC101: 4929 | BD101: 5022 | BE101: 5115 | BF101: 5208 | BG101: 5301 | BH101: 5394 | BI101: 5487 | BJ101: 5580 | BK101: 5673 | BL101: 5766 | BM101: 5859 | BN101: 5952 | BO101: 6045 | BP101: 6138 | BQ101: 6231 | BR101: 6324 | BS101: 6417 | BT101: 6510 | BU101: 6603 | BV101: 6696 | BW101: 6789 | BX101: 6882 | BY101: 6975 | BZ101: 7068 | CA101: 7161 | CB101: 7254 | CC101: 7347 | CD101: 7440 | CE101: 7533 | CF101: 7626 | CG101: 7719 | CH101: 7812 | CI101: 7905 | CJ101: 7998 | CK101: 8091 | CL101: 8184 | CM101: 8277 | CN101: 8370 | CO101: 8463 | CP101: 8556 | CQ101: 8649 | CR101: 8742 | CS101: 8835 | CT101: 8928 | CU101: 9021 | CV101: 9114 | CW101: 9207 | CX101: 9300 | CY101: 93
B102: 94 | C102: 94 | D102: 188 | E102: 282 | F102: 376 | G102: 470 | H102: 564 | I102: 658 | J102: 752 | K102: 846 | L102: 940 | M102: 1034 | N102: 1128 | O102: 1222 | P102: 1316 | Q102: 1410 | R102: 1504 | S102: 1598 | T102: 1692 | U102: 1786 | V102: 1880 | W102: 1974 | X102: 2068 | Y102: 2162 | Z102: 2256 | AA102: 2350 | AB102: 2444 | AC102: 2538 | AD102: 2632 | AE102: 2726 | AF102: 2820 | AG102: 2914 | AH102: 3008 | AI102: 3102 | AJ102: 3196 | AK102: 3290 | AL102: 3384 | AM102: 3478 | AN102: 3572 | AO102: 3666 | AP102: 3760 | AQ102: 3854 | AR102: 3948 | AS102: 4042 | AT102: 4136 | AU102: 4230 | AV102: 4324 | AW102: 4418 | AX102: 4512 | AY102: 4606 | AZ102: 4700 | BA102: 4794 | BB102: 4888 | BC102: 4982 | BD102: 5076 | BE102: 5170 | BF102: 5264 | BG102: 5358 | BH102: 5452 | BI102: 5546 | BJ102: 5640 | BK102: 5734 | BL102: 5828 | BM102: 5922 | BN102: 6016 | BO102: 6110 | BP102: 6204 | BQ102: 6298 | BR102: 6392 | BS102: 6486 | BT102: 6580 | BU102: 6674 | BV102: 6768 | BW102: 6862 | BX102: 6956 | BY102: 7050 | BZ102: 7144 | CA102: 7238 | CB102: 7332 | CC102: 7426 | CD102: 7520 | CE102: 7614 | CF102: 7708 | CG102: 7802 | CH102: 7896 | CI102: 7990 | CJ102: 8084 | CK102: 8178 | CL102: 8272 | CM102: 8366 | CN102: 8460 | CO102: 8554 | CP102: 8648 | CQ102: 8742 | CR102: 8836 | CS102: 8930 | CT102: 9024 | CU102: 9118 | CV102: 9212 | CW102: 9306 | CX102: 9400 | CY102: 94
